Workbook

Sheet PORTADA

Sheet INSTRUCTIVO

Sheet Hoja4 (hidden)
A3: Suma de RESULTADO | B3: Etiquetas de columna
A4: Etiquetas de fila | B4: Asociados activos | C4: Diversidad de participantes en órganos de dirección, administración y control | D4: Diversidad democrática | E4: Equidad de género en asamblea | F4: Equidad de género en órganos de dirección, administración y control | G4: Participación democrática asistencia delegados o asociados | H4: Participación democrática votación delegados | I4: Población joven en asamblea | J4: Población joven en órganos de dirección, administración y control | K4: Total general
A5: 90 | B5: 0 | C5: 0 | D5: 0 | E5: 0 | F5: 0 | G5: 0 | H5: 0 | I5: 0 | J5: 0 | K5: 0
A6: 93 | B6: 0 | C6: 0 | D6: 0 | E6: 0 | F6: 0 | G6: 0 | H6: 0 | I6: 0 | J6: 0 | K6: 0
A7: 127 | B7: 0 | C7: 0 | D7: 0 | E7: 0 | F7: 0 | G7: 0 | H7: 0 | I7: 0 | J7: 0 | K7: 0
A8: 197 | B8: 0 | C8: 0 | D8: 0 | E8: 0 | F8: 0 | G8: 0 | H8: 0 | I8: 0 | J8: 0 | K8: 0
A9: 246 | B9: 0 | C9: 0 | D9: 0 | E9: 0 | F9: 0 | G9: 0 | H9: 0 | I9: 0 | J9: 0 | K9: 0
A10: 271 | B10: 0 | C10: 0 | D10: 0 | E10: 0 | F10: 0 | G10: 0 | H10: 0 | I10: 0 | J10: 0 | K10: 0
A11: 284 | B11: 0 | C11: 0 | D11: 0 | E11: 0 | F11: 0 | G11: 0 | H11: 0 | I11: 0 | J11: 0 | K11: 0
A12: 330 | B12: 0 | C12: 0 | D12: 0 | E12: 0 | F12: 0 | G12: 0 | H12: 0 | I12: 0 | J12: 0 | K12: 0
A13: 374 | B13: 0 | C13: 0 | D13: 0 | E13: 0 | F13: 0 | G13: 0 | H13: 0 | I13: 0 | J13: 0 | K13: 0
A14: 424 | B14: 0 | C14: 0 | D14: 0 | E14: 0 | F14: 0 | G14: 0 | H14: 0 | I14: 0 | J14: 0 | K14: 0
A15: 446 | B15: 0 | C15: 0 | D15: 0 | E15: 0 | F15: 0 | G15: 0 | H15: 0 | I15: 0 | J15: 0 | K15: 0
A16: 561 | B16: 0 | C16: 0 | D16: 0 | E16: 0 | F16: 0 | G16: 0 | H16: 0 | I16: 0 | J16: 0 | K16: 0
A17: 631 | B17: 0 | C17: 0 | D17: 0 | E17: 0 | F17: 0 | G17: 0 | H17: 0 | I17: 0 | J17: 0 | K17: 0
A18: 715 | B18: 0 | C18: 0 | D18: 0 | E18: 0 | F18: 0 | G18: 0 | H18: 0 | I18: 0 | J18: 0 | K18: 0
A19: 752 | B19: 0 | C19: 0 | D19: 0 | E19: 0 | F19: 0 | G19: 0 | H19: 0 | I19: 0 | J19: 0 | K19: 0
A20: 757 | B20: 0 | C20: 0 | D20: 0 | E20: 0 | F20: 0 | G20: 0 | H20: 0 | I20: 0 | J20: 0 | K20: 0
A21: 821 | B21: 0 | C21: 0 | D21: 0 | E21: 0 | F21: 0 | G21: 0 | H21: 0 | I21: 0 | J21: 0 | K21: 0
A22: 824 | B22: 0 | C22: 0 | D22: 0 | E22: 0 | F22: 0 | G22: 0 | H22: 0 | I22: 0 | J22: 0 | K22: 0
A23: 902 | B23: 0 | C23: 0 | D23: 0 | E23: 0 | F23: 0 | G23: 0 | H23: 0 | I23: 0 | J23: 0 | K23: 0
A24: 912 | B24: 0 | C24: 0 | D24: 0 | E24: 0 | F24: 0 | G24: 0 | H24: 0 | I24: 0 | J24: 0 | K24: 0
A25: 970 | B25: 0 | C25: 0 | D25: 0 | E25: 0 | F25: 0 | G25: 0 | H25: 0 | I25: 0 | J25: 0 | K25: 0
A26: 978 | B26: 0 | C26: 0 | D26: 0 | E26: 0 | F26: 0 | G26: 0 | H26: 0 | I26: 0 | J26: 0 | K26: 0
A27: 991 | B27: 0 | C27: 0 | D27: 0 | E27: 0 | F27: 0 | G27: 0 | H27: 0 | I27: 0 | J27: 0 | K27: 0
A28: 997 | B28: 0 | C28: 0 | D28: 0 | E28: 0 | F28: 0 | G28: 0 | H28: 0 | I28: 0 | J28: 0 | K28: 0
A29: 1093 | B29: 0 | C29: 0 | D29: 0 | E29: 0 | F29: 0 | G29: 0 | H29: 0 | I29: 0 | J29: 0 | K29: 0
A30: 1100 | B30: 0 | C30: 0 | D30: 0 | E30: 0 | F30: 0 | G30: 0 | H30: 0 | I30: 0 | J30: 0 | K30: 0
A31: 1119 | B31: 0 | C31: 0 | D31: 0 | E31: 0 | F31: 0 | G31: 0 | H31: 0 | I31: 0 | J31: 0 | K31: 0
A32: 1128 | B32: 0 | C32: 0 | D32: 0 | E32: 0 | F32: 0 | G32: 0 | H32: 0 | I32: 0 | J32: 0 | K32: 0
A33: 1190 | B33: 0 | C33: 0 | D33: 0 | E33: 0 | F33: 0 | G33: 0 | H33: 0 | I33: 0 | J33: 0 | K33: 0
A34: 1198 | B34: 0 | C34: 0 | D34: 0 | E34: 0 | F34: 0 | G34: 0 | H34: 0 | I34: 0 | J34: 0 | K34: 0
A35: 1266 | B35: 0 | C35: 0 | D35: 0 | E35: 0 | F35: 0 | G35: 0 | H35: 0 | I35: 0 | J35: 0 | K35: 0
A36: 1271 | B36: 0 | C36: 0 | D36: 0 | E36: 0 | F36: 0 | G36: 0 | H36: 0 | I36: 0 | J36: 0 | K36: 0
A37: 1302 | B37: 0 | C37: 0 | D37: 0 | E37: 0 | F37: 0 | G37: 0 | H37: 0 | I37: 0 | J37: 0 | K37: 0
A38: 1306 | B38: 0 | C38: 0 | D38: 0 | E38: 0 | F38: 0 | G38: 0 | H38: 0 | I38: 0 | J38: 0 | K38: 0
A39: 1319 | B39: 0 | C39: 0 | D39: 0 | E39: 0 | F39: 0 | G39: 0 | H39: 0 | I39: 0 | J39: 0 | K39: 0
A40: 1339 | B40: 0 | C40: 0 | D40: 0 | E40: 0 | F40: 0 | G40: 0 | H40: 0 | I40: 0 | J40: 0 | K40: 0
A41: 1344 | B41: 0 | C41: 0 | D41: 0 | E41: 0 | F41: 0 | G41: 0 | H41: 0 | I41: 0 | J41: 0 | K41: 0
A42: 1355 | B42: 0 | C42: 0 | D42: 0 | E42: 0 | F42: 0 | G42: 0 | H42: 0 | I42: 0 | J42: 0 | K42: 0
A43: 1356 | B43: 0 | C43: 0 | D43: 0 | E43: 0 | F43: 0 | G43: 0 | H43: 0 | I43: 0 | J43: 0 | K43: 0
A44: 1360 | B44: 0 | C44: 0 | D44: 0 | E44: 0 | F44: 0 | G44: 0 | H44: 0 | I44: 0 | J44: 0 | K44: 0
A45: 1365 | B45: 0 | C45: 0 | D45: 0 | E45: 0 | F45: 0 | G45: 0 | H45: 0 | I45: 0 | J45: 0 | K45: 0
A46: 1370 | B46: 0 | C46: 0 | D46: 0 | E46: 0 | F46: 0 | G46: 0 | H46: 0 | I46: 0 | J46: 0 | K46: 0
A47: 1377 | B47: 0 | C47: 0 | D47: 0 | E47: 0 | F47: 0 | G47: 0 | H47: 0 | I47: 0 | J47: 0 | K47: 0
A48: 1386 | B48: 0 | C48: 0 | D48: 0 | E48: 0 | F48: 0 | G48: 0 | H48: 0 | I48: 0 | J48: 0 | K48: 0
A49: 1388 | B49: 0 | C49: 0 | D49: 0 | E49: 0 | F49: 0 | G49: 0 | H49: 0 | I49: 0 | J49: 0 | K49: 0
A50: 1390 | B50: 0 | C50: 0 | D50: 0 | E50: 0 | F50: 0 | G50: 0 | H50: 0 | I50: 0 | J50: 0 | K50: 0
A51: 1411 | B51: 0 | C51: 0 | D51: 0 | E51: 0 | F51: 0 | G51: 0 | H51: 0 | I51: 0 | J51: 0 | K51: 0
A52: 1414 | B52: 0 | C52: 0 | D52: 0 | E52: 0 | F52: 0 | G52: 0 | H52: 0 | I52: 0 | J52: 0 | K52: 0
A53: 1421 | B53: 0 | C53: 0 | D53: 0 | E53: 0 | F53: 0 | G53: 0 | H53: 0 | I53: 0 | J53: 0 | K53: 0
A54: 1437 | B54: 0 | C54: 0 | D54: 0 | E54: 0 | F54: 0 | G54: 0 | H54: 0 | I54: 0 | J54: 0 | K54: 0
A55: 1442 | B55: 0 | C55: 0 | D55: 0 | E55: 0 | F55: 0 | G55: 0 | H55: 0 | I55: 0 | J55: 0 | K55: 0
A56: 1448 | B56: 0 | C56: 0 | D56: 0 | E56: 0 | F56: 0 | G56: 0 | H56: 0 | I56: 0 | J56: 0 | K56: 0
A57: 1450 | B57: 0 | C57: 0 | D57: 0 | E57: 0 | F57: 0 | G57: 0 | H57: 0 | I57: 0 | J57: 0 | K57: 0
A58: 1457 | B58: 0 | C58: 0 | D58: 0 | E58: 0 | F58: 0 | G58: 0 | H58: 0 | I58: 0 | J58: 0 | K58: 0
A59: 1459 | B59: 0 | C59: 0 | D59: 0 | E59: 0 | F59: 0 | G59: 0 | H59: 0 | I59: 0 | J59: 0 | K59: 0
A60: 1477 | B60: 0 | C60: 0 | D60: 0 | E60: 0 | F60: 0 | G60: 0 | H60: 0 | I60: 0 | J60: 0 | K60: 0
A61: 1510 | B61: 0 | C61: 0 | D61: 0 | E61: 0 | F61: 0 | G61: 0 | H61: 0 | I61: 0 | J61: 0 | K61: 0
A62: 1512 | B62: 0 | C62: 0 | D62: 0 | E62: 0 | F62: 0 | G62: 0 | H62: 0 | I62: 0 | J62: 0 | K62: 0
A63: 1615 | B63: 0 | C63: 0 | D63: 0 | E63: 0 | F63: 0 | G63: 0 | H63: 0 | I63: 0 | J63: 0 | K63: 0
A64: 1630 | B64: 0 | C64: 0 | D64: 0 | E64: 0 | F64: 0 | G64: 0 | H64: 0 | I64: 0 | J64: 0 | K64: 0
A65: 1632 | B65: 0 | C65: 0 | D65: 0 | E65: 0 | F65: 0 | G65: 0 | H65: 0 | I65: 0 | J65: 0 | K65: 0
A66: 1644 | B66: 0 | C66: 0 | D66: 0 | E66: 0 | F66: 0 | G66: 0 | H66: 0 | I66: 0 | J66: 0 | K66: 0
A67: 1648 | B67: 0 | C67: 0 | D67: 0 | E67: 0 | F67: 0 | G67: 0 | H67: 0 | I67: 0 | J67: 0 | K67: 0
A68: 1649 | B68: 0 | C68: 0 | D68: 0 | E68: 0 | F68: 0 | G68: 0 | H68: 0 | I68: 0 | J68: 0 | K68: 0
A69: 1661 | B69: 0 | C69: 0 | D69: 0 | E69: 0 | F69: 0 | G69: 0 | H69: 0 | I69: 0 | J69: 0 | K69: 0
A70: 1663 | B70: 0 | C70: 0 | D70: 0 | E70: 0 | F70: 0 | G70: 0 | H70: 0 | I70: 0 | J70: 0 | K70: 0
A71: 1691 | B71: 0 | C71: 0 | D71: 0 | E71: 0 | F71: 0 | G71: 0 | H71: 0 | I71: 0 | J71: 0 | K71: 0
A72: 1698 | B72: 0 | C72: 0 | D72: 0 | E72: 0 | F72: 0 | G72: 0 | H72: 0 | I72: 0 | J72: 0 | K72: 0
A73: 1703 | B73: 0 | C73: 0 | D73: 0 | E73: 0 | F73: 0 | G73: 0 | H73: 0 | I73: 0 | J73: 0 | K73: 0
A74: 1751 | B74: 0 | C74: 0 | D74: 0 | E74: 0 | F74: 0 | G74: 0 | H74: 0 | I74: 0 | J74: 0 | K74: 0
A75: 1755 | B75: 0 | C75: 0 | D75: 0 | E75: 0 | F75: 0 | G75: 0 | H75: 0 | I75: 0 | J75: 0 | K75: 0
A76: 1756 | B76: 0 | C76: 0 | D76: 0 | E76: 0 | F76: 0 | G76: 0 | H76: 0 | I76: 0 | J76: 0 | K76: 0
A77: 1760 | B77: 0 | C77: 0 | D77: 0 | E77: 0 | F77: 0 | G77: 0 | H77: 0 | I77: 0 | J77: 0 | K77: 0
A78: 1805 | B78: 0 | C78: 0 | D78: 0 | E78: 0 | F78: 0 | G78: 0 | H78: 0 | I78: 0 | J78: 0 | K78: 0
A79: 1811 | B79: 0 | C79: 0 | D79: 0 | E79: 0 | F79: 0 | G79: 0 | H79: 0 | I79: 0 | J79: 0 | K79: 0
A80: 1813 | B80: 0 | C80: 0 | D80: 0 | E80: 0 | F80: 0 | G80: 0 | H80: 0 | I80: 0 | J80: 0 | K80: 0
A81: 1818 | B81: 0 | C81: 0 | D81: 0 | E81: 0 | F81: 0 | G81: 0 | H81: 0 | I81: 0 | J81: 0 | K81: 0
A82: 1824 | B82: 0 | C82: 0 | D82: 0 | E82: 0 | F82: 0 | G82: 0 | H82: 0 | I82: 0 | J82: 0 | K82: 0
A83: 1827 | B83: 0 | C83: 0 | D83: 0 | E83: 0 | F83: 0 | G83: 0 | H83: 0 | I83: 0 | J83: 0 | K83: 0
A84: 1851 | B84: 0 | C84: 0 | D84: 0 | E84: 0 | F84: 0 | G84: 0 | H84: 0 | I84: 0 | J84: 0 | K84: 0
A85: 1852 | B85: 0 | C85: 0 | D85: 0 | E85: 0 | F85: 0 | G85: 0 | H85: 0 | I85: 0 | J85: 0 | K85: 0
A86: 1859 | B86: 0 | C86: 0 | D86: 0 | E86: 0 | F86: 0 | G86: 0 | H86: 0 | I86: 0 | J86: 0 | K86: 0
A87: 1889 | B87: 0 | C87: 0 | D87: 0 | E87: 0 | F87: 0 | G87: 0 | H87: 0 | I87: 0 | J87: 0 | K87: 0
A88: 1894 | B88: 0 | C88: 0 | D88: 0 | E88: 0 | F88: 0 | G88: 0 | H88: 0 | I88: 0 | J88: 0 | K88: 0
A89: 1961 | B89: 0 | C89: 0 | D89: 0 | E89: 0 | F89: 0 | G89: 0 | H89: 0 | I89: 0 | J89: 0 | K89: 0
A90: 1991 | B90: 0 | C90: 0 | D90: 0 | E90: 0 | F90: 0 | G90: 0 | H90: 0 | I90: 0 | J90: 0 | K90: 0
A91: 1997 | B91: 0 | C91: 0 | D91: 0 | E91: 0 | F91: 0 | G91: 0 | H91: 0 | I91: 0 | J91: 0 | K91: 0
A92: 2006 | B92: 0 | C92: 0 | D92: 0 | E92: 0 | F92: 0 | G92: 0 | H92: 0 | I92: 0 | J92: 0 | K92: 0
A93: 2012 | B93: 0 | C93: 0 | D93: 0 | E93: 0 | F93: 0 | G93: 0 | H93: 0 | I93: 0 | J93: 0 | K93: 0
A94: 2021 | B94: 0 | C94: 0 | D94: 0 | E94: 0 | F94: 0 | G94: 0 | H94: 0 | I94: 0 | J94: 0 | K94: 0
A95: 2024 | B95: 0 | C95: 0 | D95: 0 | E95: 0 | F95: 0 | G95: 0 | H95: 0 | I95: 0 | J95: 0 | K95: 0
A96: 2028 | B96: 0 | C96: 0 | D96: 0 | E96: 0 | F96: 0 | G96: 0 | H96: 0 | I96: 0 | J96: 0 | K96: 0
A97: 2058 | B97: 0 | C97: 0 | D97: 0 | E97: 0 | F97: 0 | G97: 0 | H97: 0 | I97: 0 | J97: 0 | K97: 0
A98: 2077 | B98: 0 | C98: 0 | D98: 0 | E98: 0 | F98: 0 | G98: 0 | H98: 0 | I98: 0 | J98: 0 | K98: 0
A99: 2078 | B99: 0 | C99: 0 | D99: 0 | E99: 0 | F99: 0 | G99: 0 | H99: 0 | I99: 0 | J99: 0 | K99: 0
A100: 2109 | B100: 0 | C100: 0 | D100: 0 | E100: 0 | F100: 0 | G100: 0 | H100: 0 | I100: 0 | J100: 0 | K100: 0
A101: 2130 | B101: 0 | C101: 0 | D101: 0 | E101: 0 | F101: 0 | G101: 0 | H101: 0 | I101: 0 | J101: 0 | K101: 0
A102: 2196 | B102: 0 | C102: 0 | D102: 0 | E102: 0 | F102: 0 | G102: 0 | H102: 0 | I102: 0 | J102: 0 | K102: 0
A103: 2199 | B103: 0 | C103: 0 | D103: 0 | E103: 0 | F103: 0 | G103: 0 | H103: 0 | I103: 0 | J103: 0 | K103: 0
A104: 2223 | B104: 0 | C104: 0 | D104: 0 | E104: 0 | F104: 0 | G104: 0 | H104: 0 | I104: 0 | J104: 0 | K104: 0
A105: 2231 | B105: 0 | C105: 0 | D105: 0 | E105: 0 | F105: 0 | G105: 0 | H105: 0 | I105: 0 | J105: 0 | K105: 0
A106: 2246 | B106: 0 | C106: 0 | D106: 0 | E106: 0 | F106: 0 | G106: 0 | H106: 0 | I106: 0 | J106: 0 | K106: 0
A107: 2336 | B107: 0 | C107: 0 | D107: 0 | E107: 0 | F107: 0 | G107: 0 | H107: 0 | I107: 0 | J107: 0 | K107: 0
A108: 2337 | B108: 0 | C108: 0 | D108: 0 | E108: 0 | F108: 0 | G108: 0 | H108: 0 | I108: 0 | J108: 0 | K108: 0
A109: 2392 | B109: 0 | C109: 0 | D109: 0 | E109: 0 | F109: 0 | G109: 0 | H109: 0 | I109: 0 | J109: 0 | K109: 0
A110: 2398 | B110: 0 | C110: 0 | D110: 0 | E110: 0 | F110: 0 | G110: 0 | H110: 0 | I110: 0 | J110: 0 | K110: 0
A111: 2426 | B111: 0 | C111: 0 | D111: 0 | E111: 0 | F111: 0 | G111: 0 | H111: 0 | I111: 0 | J111: 0 | K111: 0
A112: 2434 | B112: 0 | C112: 0 | D112: 0 | E112: 0 | F112: 0 | G112: 0 | H112: 0 | I112: 0 | J112: 0 | K112: 0
A113: 2483 | B113: 0 | C113: 0 | D113: 0 | E113: 0 | F113: 0 | G113: 0 | H113: 0 | I113: 0 | J113: 0 | K113: 0
A114: 2506 | B114: 0 | C114: 0 | D114: 0 | E114: 0 | F114: 0 | G114: 0 | H114: 0 | I114: 0 | J114: 0 | K114: 0
A115: 2520 | B115: 0 | C115: 0 | D115: 0 | E115: 0 | F115: 0 | G115: 0 | H115: 0 | I115: 0 | J115: 0 | K115: 0
A116: 2525 | B116: 0 | C116: 0 | D116: 0 | E116: 0 | F116: 0 | G116: 0 | H116: 0 | I116: 0 | J116: 0 | K116: 0
A117: 2540 | B117: 0 | C117: 0 | D117: 0 | E117: 0 | F117: 0 | G117: 0 | H117: 0 | I117: 0 | J117: 0 | K117: 0
A118: 2560 | B118: 0 | C118: 0 | D118: 0 | E118: 0 | F118: 0 | G118: 0 | H118: 0 | I118: 0 | J118: 0 | K118: 0
A119: 2641 | B119: 0 | C119: 0 | D119: 0 | E119: 0 | F119: 0 | G119: 0 | H119: 0 | I119: 0 | J119: 0 | K119: 0
A120: 2655 | B120: 0 | C120: 0 | D120: 0 | E120: 0 | F120: 0 | G120: 0 | H120: 0 | I120: 0 | J120: 0 | K120: 0
A121: 2660 | B121: 0 | C121: 0 | D121: 0 | E121: 0 | F121: 0 | G121: 0 | H121: 0 | I121: 0 | J121: 0 | K121: 0
A122: 2675 | B122: 0 | C122: 0 | D122: 0 | E122: 0 | F122: 0 | G122: 0 | H122: 0 | I122: 0 | J122: 0 | K122: 0
A123: 2688 | B123: 0 | C123: 0 | D123: 0 | E123: 0 | F123: 0 | G123: 0 | H123: 0 | I123: 0 | J123: 0 | K123: 0
A124: 2773 | B124: 0 | C124: 0 | D124: 0 | E124: 0 | F124: 0 | G124: 0 | H124: 0 | I124: 0 | J124: 0 | K124: 0
A125: 2783 | B125: 0 | C125: 0 | D125: 0 | E125: 0 | F125: 0 | G125: 0 | H125: 0 | I125: 0 | J125: 0 | K125: 0
A126: 2814 | B126: 0 | C126: 0 | D126: 0 | E126: 0 | F126: 0 | G126: 0 | H126: 0 | I126: 0 | J126: 0 | K126: 0
A127: 2829 | B127: 0 | C127: 0 | D127: 0 | E127: 0 | F127: 0 | G127: 0 | H127: 0 | I127: 0 | J127: 0 | K127: 0
A128: 2871 | B128: 0 | C128: 0 | D128: 0 | E128: 0 | F128: 0 | G128: 0 | H128: 0 | I128: 0 | J128: 0 | K128: 0
A129: 2878 | B129: 0 | C129: 0 | D129: 0 | E129: 0 | F129: 0 | G129: 0 | H129: 0 | I129: 0 | J129: 0 | K129: 0
A130: 3018 | B130: 0 | C130: 0 | D130: 0 | E130: 0 | F130: 0 | G130: 0 | H130: 0 | I130: 0 | J130: 0 | K130: 0
A131: 3033 | B131: 0 | C131: 0 | D131: 0 | E131: 0 | F131: 0 | G131: 0 | H131: 0 | I131: 0 | J131: 0 | K131: 0
A132: 3034 | B132: 0 | C132: 0 | D132: 0 | E132: 0 | F132: 0 | G132: 0 | H132: 0 | I132: 0 | J132: 0 | K132: 0
A133: 3048 | B133: 0 | C133: 0 | D133: 0 | E133: 0 | F133: 0 | G133: 0 | H133: 0 | I133: 0 | J133: 0 | K133: 0
A134: 3049 | B134: 0 | C134: 0 | D134: 0 | E134: 0 | F134: 0 | G134: 0 | H134: 0 | I134: 0 | J134: 0 | K134: 0
A135: 3070 | B135: 0 | C135: 0 | D135: 0 | E135: 0 | F135: 0 | G135: 0 | H135: 0 | I135: 0 | J135: 0 | K135: 0
A136: 3072 | B136: 0 | C136: 0 | D136: 0 | E136: 0 | F136: 0 | G136: 0 | H136: 0 | I136: 0 | J136: 0 | K136: 0
A137: 3123 | B137: 0 | C137: 0 | D137: 0 | E137: 0 | F137: 0 | G137: 0 | H137: 0 | I137: 0 | J137: 0 | K137: 0
A138: 3246 | B138: 0 | C138: 0 | D138: 0 | E138: 0 | F138: 0 | G138: 0 | H138: 0 | I138: 0 | J138: 0 | K138: 0
A139: 3249 | B139: 0 | C139: 0 | D139: 0 | E139: 0 | F139: 0 | G139: 0 | H139: 0 | I139: 0 | J139: 0 | K139: 0
A140: 3278 | B140: 0 | C140: 0 | D140: 0 | E140: 0 | F140: 0 | G140: 0 | H140: 0 | I140: 0 | J140: 0 | K140: 0
A141: 3282 | B141: 0 | C141: 0 | D141: 0 | E141: 0 | F141: 0 | G141: 0 | H141: 0 | I141: 0 | J141: 0 | K141: 0
A142: 3316 | B142: 0 | C142: 0 | D142: 0 | E142: 0 | F142: 0 | G142: 0 | H142: 0 | I142: 0 | J142: 0 | K142: 0
A143: 3341 | B143: 0 | C143: 0 | D143: 0 | E143: 0 | F143: 0 | G143: 0 | H143: 0 | I143: 0 | J143: 0 | K143: 0
A144: 3360 | B144: 0 | C144: 0 | D144: 0 | E144: 0 | F144: 0 | G144: 0 | H144: 0 | I144: 0 | J144: 0 | K144: 0
A145: 3386 | B145: 0 | C145: 0 | D145: 0 | E145: 0 | F145: 0 | G145: 0 | H145: 0 | I145: 0 | J145: 0 | K145: 0
A146: 3391 | B146: 0 | C146: 0 | D146: 0 | E146: 0 | F146: 0 | G146: 0 | H146: 0 | I146: 0 | J146: 0 | K146: 0
A147: 3399 | B147: 0 | C147: 0 | D147: 0 | E147: 0 | F147: 0 | G147: 0 | H147: 0 | I147: 0 | J147: 0 | K147: 0
A148: 3400 | B148: 0 | C148: 0 | D148: 0 | E148: 0 | F148: 0 | G148: 0 | H148: 0 | I148: 0 | J148: 0 | K148: 0
A149: 3402 | B149: 0 | C149: 0 | D149: 0 | E149: 0 | F149: 0 | G149: 0 | H149: 0 | I149: 0 | J149: 0 | K149: 0
A150: 3438 | B150: 0 | C150: 0 | D150: 0 | E150: 0 | F150: 0 | G150: 0 | H150: 0 | I150: 0 | J150: 0 | K150: 0
A151: 3446 | B151: 0 | C151: 0 | D151: 0 | E151: 0 | F151: 0 | G151: 0 | H151: 0 | I151: 0 | J151: 0 | K151: 0
A152: 3488 | B152: 0 | C152: 0 | D152: 0 | E152: 0 | F152: 0 | G152: 0 | H152: 0 | I152: 0 | J152: 0 | K152: 0
A153: 3620 | B153: 0 | C153: 0 | D153: 0 | E153: 0 | F153: 0 | G153: 0 | H153: 0 | I153: 0 | J153: 0 | K153: 0
A154: 3640 | B154: 0 | C154: 0 | D154: 0 | E154: 0 | F154: 0 | G154: 0 | H154: 0 | I154: 0 | J154: 0 | K154: 0
A155: 4004 | B155: 0 | C155: 0 | D155: 0 | E155: 0 | F155: 0 | G155: 0 | H155: 0 | I155: 0 | J155: 0 | K155: 0
A156: 4011 | B156: 0 | C156: 0 | D156: 0 | E156: 0 | F156: 0 | G156: 0 | H156: 0 | I156: 0 | J156: 0 | K156: 0
A157: 4054 | B157: 0 | C157: 0 | D157: 0 | E157: 0 | F157: 0 | G157: 0 | H157: 0 | I157: 0 | J157: 0 | K157: 0
A158: 4403 | B158: 0 | C158: 0 | D158: 0 | E158: 0 | F158: 0 | G158: 0 | H158: 0 | I158: 0 | J158: 0 | K158: 0
A159: 4458 | B159: 0 | C159: 0 | D159: 0 | E159: 0 | F159: 0 | G159: 0 | H159: 0 | I159: 0 | J159: 0 | K159: 0
A160: 4617 | B160: 0 | C160: 0 | D160: 0 | E160: 0 | F160: 0 | G160: 0 | H160: 0 | I160: 0 | J160: 0 | K160: 0
A161: 7099 | B161: 0 | C161: 0 | D161: 0 | E161: 0 | F161: 0 | G161: 0 | H161: 0 | I161: 0 | J161: 0 | K161: 0
A162: 7571 | B162: 0 | C162: 0 | D162: 0 | E162: 0 | F162: 0 | G162: 0 | H162: 0 | I162: 0 | J162: 0 | K162: 0
A163: 7961 | B163: 0 | C163: 0 | D163: 0 | E163: 0 | F163: 0 | G163: 0 | H163: 0 | I163: 0 | J163: 0 | K163: 0
A164: 8024 | B164: 0 | C164: 0 | D164: 0 | E164: 0 | F164: 0 | G164: 0 | H164: 0 | I164: 0 | J164: 0 | K164: 0
A165: 8202 | B165: 0 | C165: 0 | D165: 0 | E165: 0 | F165: 0 | G165: 0 | H165: 0 | I165: 0 | J165: 0 | K165: 0
A166: 8480 | B166: 0 | C166: 0 | D166: 0 | E166: 0 | F166: 0 | G166: 0 | H166: 0 | I166: 0 | J166: 0 | K166: 0
A167: 8487 | B167: 0 | C167: 0 | D167: 0 | E167: 0 | F167: 0 | G167: 0 | H167: 0 | I167: 0 | J167: 0 | K167: 0
A168: 8825 | B168: 0 | C168: 0 | D168: 0 | E168: 0 | F168: 0 | G168: 0 | H168: 0 | I168: 0 | J168: 0 | K168: 0
A169: 10300 | B169: 0 | C169: 0 | D169: 0 | E169: 0 | F169: 0 | G169: 0 | H169: 0 | I169: 0 | J169: 0 | K169: 0
A170: 10555 | B170: 0 | C170: 0 | D170: 0 | E170: 0 | F170: 0 | G170: 0 | H170: 0 | I170: 0 | J170: 0 | K170: 0
A171: 11085 | B171: 0 | C171: 0 | D171: 0 | E171: 0 | F171: 0 | G171: 0 | H171: 0 | I171: 0 | J171: 0 | K171: 0
A172: 11128 | B172: 0 | C172: 0 | D172: 0 | E172: 0 | F172: 0 | G172: 0 | H172: 0 | I172: 0 | J172: 0 | K172: 0
A173: 11327 | B173: 0 | C173: 0 | D173: 0 | E173: 0 | F173: 0 | G173: 0 | H173: 0 | I173: 0 | J173: 0 | K173: 0
A174: 11488 | B174: 0 | C174: 0 | D174: 0 | E174: 0 | F174: 0 | G174: 0 | H174: 0 | I174: 0 | J174: 0 | K174: 0
A175: 13022 | B175: 0 | C175: 0 | D175: 0 | E175: 0 | F175: 0 | G175: 0 | H175: 0 | I175: 0 | J175: 0 | K175: 0
A176: 13024 | B176: 0 | C176: 0 | D176: 0 | E176: 0 | F176: 0 | G176: 0 | H176: 0 | I176: 0 | J176: 0 | K176: 0
A177: 13813 | B177: 0 | C177: 0 | D177: 0 | E177: 0 | F177: 0 | G177: 0 | H177: 0 | I177: 0 | J177: 0 | K177: 0
A178: 15236 | B178: 0 | C178: 0 | D178: 0 | E178: 0 | F178: 0 | G178: 0 | H178: 0 | I178: 0 | J178: 0 | K178: 0
A179: 20009 | B179: 0 | C179: 0 | D179: 0 | E179: 0 | F179: 0 | G179: 0 | H179: 0 | I179: 0 | J179: 0 | K179: 0
A180: Total general | B180: 0 | C180: 0 | D180: 0 | E180: 0 | F180: 0 | G180: 0 | H180: 0 | I180: 0 | J180: 0 | K180: 0

Sheet INFORME
B2: Score Desempeño | D2: Oportunidad de Mejora | F2: 39 | G2: 39 | H2: Disminuye | J2: 0.45
D3: Aceptable | F3: 40 | G3: 40 | H3: Mantiene | J3: 0.75
D4: Satisfactorio | F4: 60 | G4: 60 | H4: Aumenta | J4: 1
B5: Nivel de Desempeño del Sector
F6: Denominador en Cero (0) | G6: Resultados Inconsistente | H6: Satisfactorio | I6: Aceptable | J6: Oportunidad de Mejora
N13: Indicador | O13: 1 | Q13: Indicador | R13: 2 | T13: Indicador | U13: 3 | W13: Indicador | X13: 4 | Z13: Indicador | AA13: 5 | AC13: Indicador | AD13: 6 | AF13: Indicador | AG13: 7 | AI13: Indicador | AJ13: 8 | AL13: Indicador | AM13: 9 | AQ13: Indicador | AR13: 10 | AT13: Indicador | AU13: 11 | AW13: Indicador | AX13: 12 | AZ13: Indicador | BA13: 13 | BC13: Indicador | BD13: 14 | BH13: Indicador | BI13: 15 | BK13: Indicador | BL13: 16 | BN13: Indicador | BO13: 17 | BQ13: Indicador | BR13: 18 | BT13: Indicador | BU13: 19 | BW13: Indicador | BX13: 20 | BZ13: Indicador | CA13: 21 | CC13: Indicador | CD13: 22 | CH13: Indicador | CI13: 23 | CK13: Indicador | CL13: 24 | CN13: Indicador | CO13: 25 | CQ13: Indicador | CR13: 26 | CT13: Indicador | CU13: 27 | CW13: Indicador | CX13: 28 | DB13: Indicador | DC13: 29 | DE13: Indicador | DF13: 30 | DH13: Indicador | DI13: 31 | DK13: Indicador | DL13: 32 | DN13: Indicador | DO13: 33 | DS13: Indicador | DT13: 34 | DV13: Indicador | DW13: 35 | DY13: Indicador | DZ13: 36 | EB13: Indicador | EC13: 37 | EE13: Indicador | EF13: 38 | EJ13: Indicador | EK13: 39 | EM13: Indicador | EN13: 40 | EP13: Indicador | EQ13: 41 | ES13: Indicador | ET13: 42
B14: Segmento | C14: Cod | D14: Entidad | F14: B | G14: E | H14: 60 | I14: 40 | J14: 39 | L14: Principio 1 | N14: Asociados activos | Q14: Participación democrática asistencia delegados o asociados | T14: Participación democrática votación delegados | W14: Diversidad democrática | Z14: Diversidad de participantes en órganos de dirección, administración y control | AC14: Equidad de género en asamblea | AF14: Equidad de género en órganos de dirección, administración y control | AI14: Población joven en asamblea | AL14: Población joven en órganos de dirección, administración y control | AO14: Principio 2 | AQ14: Crecimiento neto de asociados hábiles | AT14: Actividad transaccional | AW14: Equidad de género en número de operaciones | AZ14: Relevo generacional | BC14: Nivel de satisfacción de asociados | BF14: Principio 3 | BH14: Cultura de ahorro | BK14: Inclusión financiera | BN14: Equidad de género en volumen de negocio | BQ14: Equidad de género en número de operaciones | BT14: Capital institucional | BW14: Crecimiento en fondos sociales por asociado beneficiado | BZ14: Cobertura de programas y beneficios sociales | CC14: Rentabilidad social | CF14: Principio 4 | CH14: Participación de la educación, formación e información. | CK14: Cobertura en procesos de educación, formación e información para asociados | CN14: Participación en procesos de educación, formación e información para directivos | CQ14: Participación en procesos de educación, formación e información para empleados. | CT14: Difusión cooperativa y solidaria | CW14: Crecimiento de inversión en educación, formación e información. | CZ14: Principio 5 | DB14: Fuentes de financiación externa | DE14: Concentración de depósitos | DH14: Concentración de créditos | DK14: Indicador de patrocinios | DN14: Cultura de buen gobierno | DQ14: Principio 6 | DS14: Gastos y contribuciones en favor de las comunidades | DV14: Créditos con incidencia comunitaria | DY14: Créditos para fines productivos | EB14: Acciones para el medio ambiente | EE14: Promoción proveedores locales | EH14: Principio 7 | EJ14: Fondeo tomado del sector solidario | EM14: Inversiones con el sector solidario | EP14: Contribuciones voluntarias para el sector solidario | ES14: Economías de escala generadas
B15: Sector | L15: 0.41 | N15: 0.612 | Q15: 0.16 | T15: 0.16 | W15: 0.44 | Z15: =AVERAGE(Z17:Z20,Z23:Z30,Z33:Z51,Z54:Z78,Z81:Z102,Z105:Z158,Z161:Z202) -> 0.6881603448 | AC15: =AVERAGE(AC17:AC20,AC23:AC30,AC33:AC51,AC54:AC78,AC81:AC102,AC105:AC158,AC161:AC202) -> 0.5123304598 | AF15: 0.37 | AI15: =AVERAGE(AI17:AI20,AI23:AI30,AI33:AI51,AI54:AI78,AI81:AI102,AI105:AI158,AI161:AI202) -> 0.2146344828 | AL15: 0.064 | AO15: =AVERAGE(AQ15,AW15,AZ15,BC15) -> 0.4755420769 | AQ15: 0.03973045977 | AT15: 14.86 | AW15: 0.484 | AZ15: 0.517 | BC15: 0.8614378479 | BF15: =AVERAGE(BH15,BK15,BN15,BQ15,BT15,BW15,BZ15,CC15) -> 0.5603170259 | BH15: 0.723 | BK15: 0.52 | BN15: =AVERAGE(BN17:BN20,BN23:BN30,BN33:BN51,BN54:BN78,BN81:BN102,BN105:BN158,BN161:BN202) -> 1.112758621 | BQ15: 0.487 | BT15: =AVERAGE(BT17:BT20,BT23:BT30,BT33:BT51,BT54:BT78,BT81:BT102,BT105:BT158,BT161:BT202) -> 0.09977758621 | BW15: 0.66 | BZ15: 0.46 | CC15: 0.42 | CF15: 0.39 | CH15: 0.26 | CK15: 0.14 | CN15: 0.89 | CQ15: 0.32 | CT15: =AVERAGE(CT17:CT20,CT23:CT30,CT33:CT51,CT54:CT78,CT81:CT102,CT105:CT158,CT161:CT202) -> 0.01218218391 | CW15: =AVERAGE(CW17:CW20,CW23:CW30,CW33:CW51,CW54:CW78,CW81:CW102,CW105:CW158,CW161:CW202) -> 0.2570196203 | CZ15: =AVERAGE(DB15,DE15,DH15,DK15,DN15) -> 0.306175977 | DB15: 0.04 | DE15: 0.1 | DH15: 0.47 | DK15: =AVERAGE(DK17:DK20,DK23:DK30,DK33:DK51,DK54:DK78,DK81:DK102,DK105:DK158,DK161:DK202) -> 0.0008798850575 | DN15: 0.92 | DQ15: =AVERAGE(DS15,DV15,DY15,EB15,EE15) -> 0.2473880487 | DS15: =AVERAGE(DS17:DS20,DS23:DS30,DS33:DS51,DS54:DS78,DS81:DS102,DS105:DS158,DS161:DS202) -> 0.01297701149 | DV15: =AVERAGE(DV17:DV20,DV23:DV30,DV33:DV51,DV54:DV78,DV81:DV102,DV105:DV158,DV161:DV202) -> 0.008217241379 | DY15: 0.1854571429 | EB15: =AVERAGE(EB16,EB22,EB32,EB53,EB80,EB104,EB160) -> 0.08496503838 | EE15: =AVERAGE(EE16,EE22,EE32,EE53,EE80,EE104,EE160) -> 0.9453238095 | EH15: =AVERAGE(EJ15,EM15,EP15,ES15) -> 0.4820845513 | EJ15: =AVERAGE(EJ16,EJ22,EJ32,EJ53,EJ80,EJ104,EJ160) -> 0.5842295635 | EM15: =AVERAGE(EM16,EM22,EM32,EM53,EM80,EM104,EM160) -> 0.7043894341 | EP15: =AVERAGE(EP16,EP22,EP32,EP53,EP80,EP104,EP160) -> 0.04402206468 | ES15: =AVERAGE(ES16,ES22,ES32,ES53,ES80,ES104,ES160) -> 0.5956971429
B16: Top 4 | L16: =AVERAGE(N16,Q16,T16,W16,Z16,AC16,AF16,AI16,AL16) -> 0.3154740741 | N16: 0.452 | O16: -0.03942738267 | Q16: 0.08553333333 | R16: 0.0152098857 | T16: 0.08553333333 | U16: 0.0152098857 | W16: 0.34 | X16: -0.101 | Z16: 0.887675 | AA16: 0.1663635246 | AC16: 0.477925 | AD16: 0.03857190027 | AF16: 0.4306 | AG16: -0.04766086957 | AI16: 0.054 | AJ16: -0.9122 | AL16: 0.026 | AM16: -0.004816025641 | AO16: 0.4928708333 | AQ16: 0.01815 | AR16: 0.0007634881831 | AT16: 15.05 | AU16: 5.522020763 | AW16: 0.527 | AX16: 0.006347681599 | AZ16: 0.523 | BA16: -0.04530947047 | BC16: 0.9033333333 | BD16: -0.01666666667 | BF16: 0.765 | BH16: 0.81 | BI16: 0.1259541489 | BK16: 0.5 | BL16: -0.04118983456 | BN16: 1.115 | BO16: 0.227296572 | BQ16: 0.527 | BR16: 0.006347681599 | BT16: 0.127 | BU16: -0.009432927276 | BW16: 2.266 | BX16: 2.821886617 | BZ16: 0.235 | CA16: -0.07574642321 | CC16: 0.54 | CD16: -0.2039731054 | CF16: =AVERAGE(CH16,CK16,CN16,CQ16,CT16,CW16) -> 0.3977125 | CH16: 0.004 | CI16: -0.4518541001 | CK16: 0.032 | CL16: 0.007898702984 | CN16: 1 | CO16: 0.35 | CQ16: 1 | CR16: 0.07248416608 | CT16: 0.007 | CU16: -0.005001170214 | CW16: 0.343275 | CX16: 0.06374886616 | CZ16: 0.343 | DB16: 0.06 | DC16: 0.0254693922 | DE16: 0.053 | DF16: -0.003014543165 | DH16: 0.602 | DI16: 0.2157703527 | DK16: 0 | DL16: -1.66086928e-05 | DN16: 1 | DO16: 0 | DQ16: =AVERAGE(DS16,DV16,DY16,EB16,EE16) -> 0.3378483333 | DS16: 0.315225 | DT16: 0.3137505124 | DV16: 0.50005 | DW16: 0.4996659861 | DY16: 0.1464 | DZ16: -0.1006739312 | EB16: 0.1103 | EC16: -0.07505553868 | EE16: 0.6172666667 | EF16: -0.2693792961 | EH16: 0.129875 | EJ16: 0.1596 | EK16: 0.1594147471 | EM16: 0.3411 | EN16: 0.2093107389 | EP16: 0.0188 | EQ16: 0.007201296041 | ES16: 0 | ET16: 0
C17: 824 | D17: CODEMA | F17: 5 | G17: 6 | H17: 16 | I17: 4 | J17: 22 | L17: =AVERAGE(N17,Q17,T17,W17,Z17,AC17,AF17,AI17,AL17) -> 0.3001777778 | N17: 1.0001 | O17: 0.2513 | Q17: 0 | R17: -0.6105 | T17: 0 | U17: -0.6105 | W17: 0 | X17: -1.6205 | Z17: 0.7742 | AA17: 0 | AC17: 0.5182 | AD17: 0.0182 | AF17: 0.4091 | AG17: 0 | AI17: 0 | AJ17: -14.7568 | AL17: 0 | AM17: 0 | AO17: 0.217025 | AQ17: -0.0057 | AR17: -0.0137 | AT17: 2.11 | AU17: 1.36 | AW17: 0.7219 | AX17: 0.0107 | AZ17: 0.1519 | BA17: -0.0061 | BC17: 0 | BD17: 0 | BF17: 0.9105625 | BH17: 2.2428 | BI17: 1.7575 | BK17: 0.0441 | BL17: 0.0017 | BN17: 0.92 | BO17: -0.12 | BQ17: 0.7219 | BR17: 0.0107 | BT17: 0.0653 | BU17: -0.0032 | BW17: 1.9987 | BX17: 2.653 | BZ17: 1.1635 | CA17: -0.8137 | CC17: 0.1282 | CD17: -0.2062 | CF17: 0.5237 | CH17: 0.0039 | CI17: -0.0406 | CK17: 0.0012 | CL17: -0.0471 | CN17: 2.4 | CO17: 1.84 | CQ17: 1 | CR17: 1 | CT17: 0.0017 | CU17: -0.0017 | CW17: -0.2646 | CX17: -9.4357 | CZ17: 0.37058 | DB17: 0 | DC17: 0 | DE17: 0.0529 | DF17: -0.0215 | DH17: 0.8 | DI17: 0.3681 | DK17: 0 | DL17: -0.0001 | DN17: 1 | DO17: 0 | DQ17: 0.4505 | DS17: 1.2506 | DT17: 1.2506 | DV17: 1 | DW17: 1 | DY17: 0 | DZ17: 0 | EB17: 0.0019 | EC17: 0.0019 | EE17: 0 | EF17: 0 | EH17: 0.001425 | EJ17: 0 | EK17: 0 | EM17: 0 | EN17: -0.2096 | EP17: 0.0057 | EQ17: -0.0031 | ES17: 0 | ET17: 0
C18: 3246 | D18: CREDISERVIR | F18: 3 | G18: 7 | H18: 16 | I18: 7 | J18: 19 | L18: =AVERAGE(N18,Q18,T18,W18,Z18,AC18,AF18,AI18,AL18) -> 0.4216555556 | N18: 0.5785 | O18: -0.0311 | Q18: 0.2035 | R18: 0 | T18: 0.2035 | U18: 0 | W18: 1 | X18: 0 | Z18: 0.625 | AA18: 0 | AC18: 0.4343 | AD18: 0.0159 | AF18: 0.5254 | AG18: 0 | AI18: 0.1414 | AJ18: -0.0117 | AL18: 0.0833 | AM18: 0 | AO18: 0.527475 | AQ18: 0.0414 | AR18: 0.007 | AT18: 19.76 | AU18: 2.38 | AW18: 0.4886 | AX18: 0.0124 | AZ18: 0.6199 | BA18: -0.0198 | BC18: 0.96 | BD18: 0 | BF18: 1.6913375 | BH18: 0.7875 | BI18: 0.0108 | BK18: 0.1514 | BL18: 0.0077 | BN18: 1.45 | BO18: -0.1 | BQ18: 0.4886 | BR18: 0.0124 | BT18: 0.1662 | BU18: -0.0189 | BW18: 8.4106 | BX18: 9.2193 | BZ18: 0.1878 | CA18: -0.45 | CC18: 1.8886 | CD18: 0.2745 | CF18: 0.6945333333 | CH18: 0.0119 | CI18: 0.0073 | CK18: 0.0402 | CL18: 0.0198 | CN18: 1.1667 | CO18: 0.1667 | CQ18: 1 | CR18: 0 | CT18: 0.0137 | CU18: 0.0062 | CW18: 1.9347 | CX18: 2.4509 | CZ18: 0.39464 | DB18: 0.0673 | DC18: 0.0455 | DE18: 0.5222 | DF18: 0.4464 | DH18: 0.3837 | DI18: -0.0106 | DK18: 0 | DL18: 0 | DN18: 1 | DO18: 0 | DQ18: 0.05838 | DS18: 0.0073 | DT18: 0.0002 | DV18: 0 | DW18: -0.0014 | DY18: 0 | DZ18: -0.4334 | EB18: 0.1482 | EC18: -0.1534 | EE18: 0.1364 | EF18: -0.1075 | EH18: 0.359475 | EJ18: 0.3737 | EK18: 0.3736 | EM18: 1 | EN18: 0 | EP18: 0.0642 | EQ18: -0.0087 | ES18: 0 | ET18: 0
C19: 8024 | D19: FINANCIERA COMULTRASAN LTDA | F19: 1 | G19: 4 | H19: 11 | I19: 6 | J19: 25 | L19: =AVERAGE(N19,Q19,T19,W19,Z19,AC19,AF19,AI19,AL19) -> 0.2873666667 | N19: 0.3321 | O19: -0.016 | Q19: 0.0357 | R19: 0 | T19: 0.0357 | U19: 0 | W19: 1 | X19: 0 | Z19: 0.697 | AA19: 0.0541 | AC19: 0.337 | AD19: 0.0218 | AF19: 0.1379 | AG19: -0.1621 | AI19: 0.0109 | AJ19: -0.0217 | AL19: 0 | AM19: 0 | AO19: 0.4735 | AQ19: 0.0166 | AR19: -0.0168 | AT19: 13.33 | AU19: 1.02 | AW19: 0.4869 | AX19: -0.0105 | AZ19: 0.4905 | BA19: -0.0323 | BC19: 0.9 | BD19: -0.04 | BF19: 1.9627375 | BH19: 0.579 | BI19: -0.049 | BK19: 0.4012 | BL19: -0.4235 | BN19: 1.14 | BO19: 0.04 | BQ19: 0.4869 | BR19: -0.0105 | BT19: 0.1796 | BU19: -0.0109 | BW19: -0.8169 | BX19: -0.2516 | BZ19: 0.0448 | CA19: -0.0238 | CC19: 13.6873 | CD19: 1.4757 | CF19: 0.2395166667 | CH19: 0.0016 | CI19: -0.9984 | CK19: 0.0444 | CL19: 0.0107 | CN19: 0.9583 | CO19: 0 | CQ19: 1 | CR19: 0 | CT19: 0.0028 | CU19: -0.0122 | CW19: -0.57 | CX19: -0.8368 | CZ19: 0.27388 | DB19: 0.0474 | DC19: 0.0089 | DE19: 0.0277 | DF19: -0.008 | DH19: 0.2943 | DI19: -0.0441 | DK19: 0 | DL19: 0 | DN19: 1 | DO19: 0 | DQ19: 0.24204 | DS19: 0.0023 | DT19: 0.0012 | DV19: 0 | DW19: 0 | DY19: 0.2913 | DZ19: -0.0369 | EB19: 0 | EC19: 0 | EE19: 0.9166 | EF19: -0.0286 | EH19: 0.00365 | EJ19: 0.0004 | EK19: 0 | EM19: 0.0131 | EN19: -0.0012 | EP19: 0.0011 | EQ19: 0.001 | ES19: 0 | ET19: 0
C20: 8480 | D20: FINCOMERCIO LTDA | F20: 1 | G20: 6 | H20: 17 | I20: 7 | J20: 18 | L20: =AVERAGE(N20,Q20,T20,W20,Z20,AC20,AF20,AI20,AL20) -> 0.4543444444 | N20: 0.5195 | O20: -0.1501 | Q20: 0.0174 | R20: -0.0077 | T20: 0.0174 | U20: -0.0077 | W20: 0.697 | X20: 0.0446 | Z20: 1.4545 | AA20: 0.5212 | AC20: 0.6222 | AD20: 0.0464 | AF20: 0.65 | AG20: 0.09 | AI20: 0.1111 | AJ20: 0.0505 | AL20: 0 | AM20: 0 | AO20: 0.488675 | AQ20: 0.0203 | AR20: 0.0419 | AT20: 18.41 | AU20: 18.41 | AW20: 0.5442 | AX20: 0.017 | AZ20: 0.5402 | BA20: -0.069 | BC20: 0.85 | BD20: -0.01 | BF20: 0.678025 | BH20: 1.1095 | BI20: 0.3164 | BK20: 0.7625 | BL20: 0.3509 | BN20: 0.95 | BO20: -0.01 | BQ20: 0.5442 | BR20: 0.017 | BT20: 0.079 | BU20: -0.0157 | BW20: -0.5275 | BX20: -0.6377 | BZ20: 0.545 | CA20: 0.1662 | CC20: 1.9615 | CD20: 0.3473 | CF20: 0.7149833333 | CH20: 0.0018 | CI20: -0.0157 | CK20: 0.002 | CL20: 0.002 | CN20: 3 | CO20: 3 | CQ20: 1 | CR20: 1 | CT20: 0.0131 | CU20: -0.0082 | CW20: 0.273 | CX20: -0.0838 | CZ20: 0.51342 | DB20: 0.1785 | DC20: 0.0783 | DE20: 0.0573 | DF20: -0.0407 | DH20: 1.3313 | DI20: 1.0184 | DK20: 0 | DL20: 0 | DN20: 1 | DO20: 0 | DQ20: 0.19638 | DS20: 0.0007 | DT20: 0.0003 | DV20: 0.0001 | DW20: -0.0001 | DY20: 0.0015 | DZ20: 0.0015 | EB20: 0.1808 | EC20: 0.1808 | EE20: 0.7988 | EF20: -0.0206 | EH20: 0.029775 | EJ20: 0.1047 | EK20: 0.1047 | EM20: 0.0102 | EN20: 0.0047 | EP20: 0.0042 | EQ20: -0.0018 | ES20: 0 | ET20: 0
B22: Megas | L22: =AVERAGE(N22,Q22,T22,W22,Z22,AC22,AF22,AI22,AL22) -> 0.3255277778 | N22: 0.484 | O22: -0.3494495318 | Q22: 0.292475 | R22: 0.0354304094 | T22: 0.292475 | U22: 0.0354304094 | W22: 0.384 | X22: 0.1777169517 | Z22: 0.8335 | AA22: 0.08128761062 | AC22: 0.3682 | AD22: -0.02122976356 | AF22: 0.206 | AG22: -0.09126828829 | AI22: 0.0391 | AJ22: -0.00123379694 | AL22: 0.03 | AM22: -0.01552426471 | AO22: =AVERAGE(AQ22,AW22,AZ22,BC22) -> 0.48675 | AQ22: 0.077 | AR22: 0.04073367546 | AT22: 17.49 | AU22: -30.9942373 | AW22: 0.527 | AX22: -0.03845313142 | AZ22: 0.483 | BA22: -0.04310347577 | BC22: 0.86 | BD22: -0.04 | BF22: =AVERAGE(BH22,BK22,BN22,BQ22,BT22,BW22,BZ22,CC22) -> 0.462665625 | BH22: 0.662 | BI22: 0.05136090382 | BK22: 0.513 | BL22: -0.04179251042 | BN22: 1.02375 | BO22: 0.1270716835 | BQ22: 0.527 | BR22: -0.03845313142 | BT22: 0.089 | BU22: -0.005132572931 | BW22: 0.166575 | BX22: -0.1413372698 | BZ22: 0.309 | CA22: -0.06760732897 | CC22: 0.411 | CD22: -0.2796515314 | CF22: =AVERAGE(CH22,CK22,CN22,CQ22,CT22,CW22) -> 0.47165 | CH22: 0.6261125 | CI22: -0.03170006067 | CK22: 0.116 | CL22: 0.07576987535 | CN22: 1 | CO22: 0 | CQ22: 1 | CR22: 0.316097561 | CT22: 0.008 | CU22: 0.00245850947 | CW22: 0.0797875 | CX22: 0.06897388995 | CZ22: =AVERAGE(DB22,DE22,DH22,DK22,DN22) -> 0.30288 | DB22: 0.022 | DC22: 0.01137358853 | DE22: 0.069 | DF22: -0.2022082992 | DH22: 0.439 | DI22: 0.02698242585 | DK22: 2.5e-05 | DL22: -0.0009303517674 | DN22: 0.984375 | DO22: 0.03125 | DQ22: =AVERAGE(DS22,DV22,DY22,EB22,EE22) -> 0.2849475 | DS22: 0.004775 | DT22: -0.0009574938301 | DV22: 0.00035 | DW22: -0.00148499341 | DY22: 0.2968 | DZ22: 0.2695318515 | EB22: 0.1228125 | EC22: -0.02264316501 | EE22: 1 | EF22: 0 | EH22: =AVERAGE(EJ22,EM22,EP22,ES22) -> 0.3663107143 | EJ22: 0.3327 | EK22: 0.3327 | EM22: 0.3448428571 | EN22: 0.1387021463 | EP22: 0.0241 | EQ22: -0.001762716729 | ES22: 0.7636 | ET22: 0.03632727273
C23: 127 | D23: COASMEDAS | F23: 6 | G23: 2 | H23: 8 | I23: 0 | J23: 34 | L23: 0.2565222222 | N23: 0.8545 | O23: -0.1882 | Q23: 0 | R23: 0 | T23: 0 | U23: 0 | W23: 0 | X23: 0 | Z23: 1 | AA23: 1 | AC23: 0.2667 | AD23: 0 | AF23: 0.1875 | AG23: 0.1875 | AI23: 0 | AJ23: 0 | AL23: 0 | AM23: 0 | AO23: =AVERAGE(AQ23,AW23,AZ23,BC23) -> 0.03225 | AQ23: 0.1282 | AR23: 0.2538 | AT23: 19.01 | AU23: 7.67 | AW23: 0.0008 | AX23: -0.5795 | AZ23: 0 | BA23: -0.4671 | BC23: 0 | BD23: 0 | BF23: =AVERAGE(BH23,BK23,BN23,BQ23,BT23,BW23,BZ23,CC23) -> 0.240875 | BH23: 0.0726 | BI23: 0.0442 | BK23: 0 | BL23: -0.0274 | BN23: 1 | BO23: -0.1 | BQ23: 0.0008 | BR23: -0.5795 | BT23: 0.0668 | BU23: -0.0039 | BW23: 0.1609 | BX23: 0.9245 | BZ23: 0.6715 | CA23: -0.01 | CC23: -0.0456 | CD23: -0.1213 | CF23: =AVERAGE(CH23,CK23,CN23,CQ23,CT23,CW23) -> 0.7146166667 | CH23: 0.0065 | CI23: -0.0009 | CK23: 0 | CL23: 0 | CN23: 4.5 | CO23: -480.5 | CQ23: 0 | CR23: 0 | CT23: 0.0054 | CU23: 0.0031 | CW23: -0.2242 | CX23: -0.2717 | CZ23: =AVERAGE(DB23,DE23,DH23,DK23,DN23) -> 0.20178 | DB23: 0.0089 | DC23: 0.0051 | DE23: 0 | DF23: -0.0432 | DH23: 0 | DI23: -0.3728 | DK23: 0 | DL23: 0 | DN23: 1 | DO23: 0 | DQ23: =AVERAGE(DS23,DV23,DY23,EB23,EE23) -> 0 | DS23: 0 | DT23: 0 | DV23: 0 | DW23: 0 | DY23: 0 | DZ23: 0 | EB23: 0 | EC23: 0 | EE23: 0 | EF23: 0 | EH23: =AVERAGE(EJ23,EM23,EP23,ES23) -> 0.0186 | EJ23: 0 | EK23: 0 | EM23: 0.0535 | EN23: -0.007 | EP23: 0.0209 | EQ23: 0.0059 | ES23: 0 | ET23: 0
C24: 978 | D24: COOPETROL | F24: 2 | G24: 3 | H24: 13 | I24: 6 | J24: 23 | L24: 0.3555666667 | N24: 0.556 | O24: 0.0219 | Q24: 0.2255 | R24: 0 | T24: 0.2255 | U24: 0 | W24: 0.6523 | X24: 0 | Z24: 0.9524 | AA24: 0.2601 | AC24: 0.197 | AD24: 0.0086 | AF24: 0.25 | AG24: 0.05 | AI24: 0.0303 | AJ24: 0.0013 | AL24: 0.1111 | AM24: 0 | AO24: 0.45595 | AQ24: 0.0654 | AR24: 0.079 | AT24: 4.9 | AU24: 0.23 | AW24: 0.385 | AX24: 0.0112 | AZ24: 0.4934 | BA24: 0.0378 | BC24: 0.88 | BD24: 0.1 | BF24: 0.5282875 | BH24: 0.5761 | BI24: -0.0646 | BK24: 0.0961 | BL24: -0.187 | BN24: 1.28 | BO24: 0.09 | BQ24: 0.385 | BR24: 0.0112 | BT24: 0.0706 | BU24: -0.0038 | BW24: -0.2512 | BX24: -0.0694 | BZ24: 0.8363 | CA24: 0.0288 | CC24: 1.2334 | CD24: 0.7979 | CF24: 0.4855666667 | CH24: 1 | CI24: -0.0581 | CK24: 0 | CL24: -0.18 | CN24: 0.9348 | CO24: -0.0652 | CQ24: 1 | CR24: 0.1714 | CT24: 0.0004 | CU24: 0.0003 | CW24: -0.0218 | CX24: 0.1566 | CZ24: 0.285 | DB24: 0.029 | DC24: 0.029 | DE24: 0.0507 | DF24: -0.0163 | DH24: 0.3453 | DI24: -0.0105 | DK24: 0 | DL24: 0 | DN24: 1 | DO24: 0.25 | DQ24: 0.1631 | DS24: 0 | DT24: -0.0045 | DV24: 0 | DW24: 0 | DY24: 0 | DZ24: 0 | EB24: 0 | EC24: -0.6846 | EE24: 0.8155 | EF24: -0.117 | EH24: 0.349825 | EJ24: 0.3327 | EK24: 0.3327 | EM24: 1 | EN24: 0 | EP24: 0.0666 | EQ24: 0.0018 | ES24: 0 | ET24: 0
C25: 997 | D25: COOPTRAISS | F25: 4 | G25: 6 | H25: 23 | I25: 2 | J25: 17 | L25: 0.2732666667 | N25: 0.6803 | O25: -0.5618 | Q25: 0 | R25: -0.6174 | T25: 0 | U25: -0.6174 | W25: 0 | X25: -1 | Z25: 1 | AA25: 0 | AC25: 0.4671 | AD25: -0.0197 | AF25: 0.2857 | AG25: 0 | AI25: 0.0263 | AJ25: 0 | AL25: 0 | AM25: 0 | AO25: 0.604475 | AQ25: 0.0415 | AR25: 0.1397 | AT25: 57.76 | AU25: 18.1 | AW25: 0.6559 | AX25: 0.0177 | AZ25: 0.8205 | BA25: 0.328 | BC25: 0.9 | BD25: -0.01 | BF25: 0.6815 | BH25: 1.4256 | BI25: -0.0475 | BK25: 0.8545 | BL25: -0.0223 | BN25: 0.85 | BO25: -0.14 | BQ25: 0.6559 | BR25: 0.0177 | BT25: 0.0366 | BU25: -0.0007 | BW25: -0.2913 | BX25: -3.7826 | BZ25: 1.2434 | CA25: 0.8968 | CC25: 0.6773 | CD25: 0.2546 | CF25: 0.6872666667 | CH25: 0.0024 | CI25: -0.9976 | CK25: 0.012 | CL25: -0.0854 | CN25: 2.2903 | CO25: -0.1613 | CQ25: 1.1727 | CR25: 0.1727 | CT25: 0.0001 | CU25: -0.0024 | CW25: 0.6461 | CX25: 0.6219 | CZ25: 0.49666 | DB25: 0 | DC25: 0 | DE25: 0.6005 | DF25: -0.3226 | DH25: 1.0078 | DI25: 0.105 | DK25: 0 | DL25: 0 | DN25: 0.875 | DO25: 0 | DQ25: 0.396 | DS25: 0 | DT25: 0 | DV25: 0 | DW25: 0 | DY25: 0 | DZ25: 0 | EB25: 0.98 | EC25: 0.98 | EE25: 1 | EF25: 0 | EH25: 0.097775 | EJ25: 0 | EK25: 0 | EM25: 0.3863 | EN25: 0.0041 | EP25: 0.0048 | EQ25: 0.0001 | ES25: 0 | ET25: 0
C26: 1119 | D26: COPROCENVA | F26: 11 | G26: 2 | H26: 9 | I26: 4 | J26: 29 | L26: 0.1616333333 | N26: 0.9947 | O26: -0.0048 | Q26: 0 | R26: -0.2863 | T26: 0 | U26: -0.2863 | W26: 0 | X26: -0.784 | Z26: 0 | AA26: -0.8182 | AC26: 0.42 | AD26: -0.01 | AF26: 0 | AG26: -0.36 | AI26: 0.04 | AJ26: -0.01 | AL26: 0 | AM26: 0 | AO26: 0.475625 | AQ26: 0.0053 | AR26: 0.0262 | AT26: 29.64 | AU26: 0.02 | AW26: 0.6574 | AX26: 0.0103 | AZ26: 0.3398 | BA26: -0.044 | BC26: 0.9 | BD26: 0 | BF26: 0.509825 | BH26: 1.8588 | BI26: 0.0141 | BK26: 0.2922 | BL26: -0.0536 | BN26: 0.95 | BO26: 0.03 | BQ26: 0.6574 | BR26: 0.0103 | BT26: 0.0361 | BU26: -0.0018 | BW26: -0.4223 | BX26: -0.5293 | BZ26: 0.4272 | CA26: -0.0578 | CC26: 0.2792 | CD26: -0.1784 | CF26: 0.0018 | CH26: 0 | CI26: 0 | CK26: 0 | CL26: 0 | CN26: 0 | CO26: 0 | CQ26: 0 | CR26: 0 | CT26: 0.0108 | CU26: -0.0008 | CW26: 0 | CX26: 0 | CZ26: 0.38334 | DB26: 0.0273 | DC26: 0.0135 | DE26: 0.0439 | DF26: 0.0079 | DH26: 0.8455 | DI26: 0.2782 | DK26: 0 | DL26: 0 | DN26: 1 | DO26: 0 | DQ26: 0 | DS26: 0 | DT26: 0 | DV26: 0 | DW26: 0 | DY26: 0 | DZ26: 0 | EB26: 0 | EC26: 0 | EE26: 0 | EF26: 0 | EH26: 0.0211 | EJ26: 0 | EK26: 0 | EM26: 0.0786 | EN26: -0.0196 | EP26: 0.0058 | EQ26: -0.0004 | ES26: 0 | ET26: 0
C27: 1355 | D27: COOPETRABAN | F27: 4 | G27: 5 | H27: 14 | I27: 5 | J27: 23 | L27: 0.3152111111 | N27: 0.5398 | O27: 0 | Q27: 0.3732 | R27: 0.0449 | T27: 0.3732 | U27: 0.0449 | W27: 1 | X27: 0 | Z27: 0 | AA27: -0.6154 | AC27: 0.5217 | AD27: -0.0168 | AF27: 0 | AG27: -0.35 | AI27: 0.029 | AJ27: 0.0136 | AL27: 0 | AM27: 0 | AO27: 0.490875 | AQ27: 0.0384 | AR27: 0.0157 | AT27: 13.01 | AU27: 6.35 | AW27: 0.6292 | AX27: 0.0156 | AZ27: 0.3459 | BA27: 0.0094 | BC27: 0.95 | BD27: -0.02 | BF27: 0.645225 | BH27: 0.5736 | BI27: 0.096 | BK27: 0.1355 | BL27: -0.044 | BN27: 1.19 | BO27: 0.38 | BQ27: 0.6292 | BR27: 0.0156 | BT27: 0.1463 | BU27: -0.0084 | BW27: -0.1128 | BX27: -6.2731 | BZ27: 0.2779 | CA27: 0.0169 | CC27: 2.3221 | CD27: 0.2279 | CF27: 0.5322166667 | CH27: 1 | CI27: 0 | CK27: 0.2217 | CL27: 0.1948 | CN27: 1 | CO27: 0 | CQ27: 1 | CR27: 0 | CT27: 0.0109 | CU27: 0.0082 | CW27: -0.0393 | CX27: -0.1032 | CZ27: 0.29556 | DB27: 0.0586 | DC27: 0.0443 | DE27: 0.0375 | DF27: -0.0173 | DH27: 0.3817 | DI27: 0.3817 | DK27: 0 | DL27: 0 | DN27: 1 | DO27: 0 | DQ27: 1.01608 | DS27: 0.0035 | DT27: -0.0119 | DV27: 0 | DW27: 0 | DY27: 0 | DZ27: 0 | EB27: 0 | EC27: 0 | EE27: 5.0769 | EF27: -0.9231 | EH27: 0.000825 | EJ27: 0 | EK27: 0 | EM27: 0 | EN27: 0 | EP27: 0.0033 | EQ27: 0.0002 | ES27: 0 | ET27: 0
C28: 1698 | D28: COOPROFESORES | F28: 4 | G28: 1 | H28: 11 | I28: 4 | J28: 27 | L28: 0.3779666667 | N28: 0.6936 | O28: 0.1088 | Q28: 0.4352 | R28: 0 | T28: 0.4352 | U28: 0 | W28: 0.7306 | X28: 0 | Z28: 0.6667 | AA28: 0.1667 | AC28: 0.3469 | AD28: -0.0369 | AF28: 0.0833 | AG28: -0.1042 | AI28: 0.0102 | AJ28: 0.0001 | AL28: 0 | AM28: 0 | AO28: 0.3193 | AQ28: 0.0244 | AR28: -0.0101 | AT28: 25.97 | AU28: 7.19 | AW28: 0.6969 | AX28: 0.0169 | AZ28: 0.5559 | BA28: 0.0581 | BC28: 0 | BD28: 0 | BF28: 0.3325625 | BH28: 0.6158 | BI28: -0.0187 | BK28: 0.1159 | BL28: -0.0071 | BN28: 0.85 | BO28: -0.02 | BQ28: 0.6969 | BR28: 0.0169 | BT28: 0.0549 | BU28: -0.002 | BW28: -0.0058 | BX28: -0.2967 | BZ28: 0.0451 | CA28: -0.0247 | CC28: 0.2877 | CD28: -0.021 | CF28: 0.3305833333 | CH28: 1 | CI28: 0 | CK28: 0.0852 | CL28: -0.0037 | CN28: 0.48 | CO28: 0.16 | CQ28: 0.3482 | CR28: -0.6518 | CT28: 0.0028 | CU28: 0.0002 | CW28: 0.0673 | CX28: 0.0424 | CZ28: 0.2885 | DB28: 0.0036 | DC28: -0.0023 | DE28: 0.0479 | DF28: -0.0149 | DH28: 0.391 | DI28: -0.0045 | DK28: 0 | DL28: -0.0002 | DN28: 1 | DO28: 0 | DQ28: 0.14178 | DS28: 0 | DT28: 0 | DV28: 0 | DW28: 0 | DY28: 0 | DZ28: 0 | EB28: 0 | EC28: 0 | EE28: 0.7089 | EF28: 0.3898 | EH28: 0.014125 | EJ28: 0 | EK28: 0 | EM28: 0.0263 | EN28: -0.0195 | EP28: 0.0302 | EQ28: 0.0109 | ES28: 0 | ET28: 0
C29: 2783 | D29: UTRAHUILCA | F29: 0 | G29: 2 | H29: 12 | I29: 7 | J29: 23 | L29: 0.3642444444 | N29: 0.8224 | O29: 0.3397 | Q29: 0.136 | R29: 0.136 | T29: 0.136 | U29: 0.136 | W29: 1 | X29: 1 | Z29: 0.5484 | AA29: 0.5484 | AC29: 0.358 | AD29: -0.0802 | AF29: 0.1786 | AG29: 0.1786 | AI29: 0.0988 | AJ29: -0.0136 | AL29: 0 | AM29: 0 | AO29: 0.31985 | AQ29: 0.1612 | AR29: 0.0718 | AT29: 12.81 | AU29: -1.23 | AW29: 0.5669 | AX29: 0.0048 | AZ29: 0.5513 | BA29: -0.0295 | BC29: 0 | BD29: 0 | BF29: 0.4688625 | BH29: 0.3645 | BI29: 0.0924 | BK29: 0.4473 | BL29: -0.0318 | BN29: 1.06 | BO29: 0.03 | BQ29: 0.5669 | BR29: 0.0048 | BT29: 0.1123 | BU29: -0.0083 | BW29: 0.1197 | BX29: -0.3153 | BZ29: 0.1646 | CA29: 0.0286 | CC29: 0.9156 | CD29: 0.0755 | CF29: 0.4815 | CH29: 1 | CI29: 0 | CK29: 0.0109 | CL29: -0.0007 | CN29: 0.8085 | CO29: 0.8085 | CQ29: 1 | CR29: 0 | CT29: 0.0114 | CU29: 0.0005 | CW29: 0.0582 | CX29: -0.021 | CZ29: 0.2892 | DB29: 0.0116 | DC29: -0.0046 | DE29: 0.0617 | DF29: -0.0225 | DH29: 0.3725 | DI29: -0.0391 | DK29: 0.0002 | DL29: -0.0063 | DN29: 1 | DO29: 0 | DQ29: 0.24444 | DS29: 0.0296 | DT29: 0.001 | DV29: 0.0028 | DW29: -0.0092 | DY29: 0.2968 | DZ29: 0.1178 | EB29: 0.0025 | EC29: -0.1273 | EE29: 0.8905 | EF29: 0.0251 | EH29: 0.358675 | EJ29: 0 | EK29: 0 | EM29: 0.6366 | EN29: -0.3634 | EP29: 0.0345 | EQ29: -0.0464 | ES29: 0.7636 | ET29: 0.0363
C30: 3072 | D30: COOMULDESA LTDA | F30: 10 | G30: 4 | H30: 13 | I30: 4 | J30: 25 | L30: 0.006488888889 | N30: 0.0584 | O30: -0.9889 | Q30: 0 | R30: -0.1716 | T30: 0 | U30: -0.1716 | W30: 0 | X30: -0.7009 | Z30: 0 | AA30: -1.4286 | AC30: 0 | AD30: -0.26 | AF30: 0 | AG30: -0.3333 | AI30: 0 | AJ30: -0.06 | AL30: 0 | AM30: 0 | AO30: 0.461225 | AQ30: 0.0778 | AR30: 0.0051 | AT30: 17.6 | AU30: -126.71 | AW30: 0.497 | AX30: 0.0289 | AZ30: 0.6001 | BA30: -0.0282 | BC30: 0.67 | BD30: -0.27 | BF30: 0.8643875 | BH30: 0.751 | BI30: 0.0721 | BK30: 0.6941 | BL30: 0.0623 | BN30: 1.01 | BO30: -0.01 | BQ30: 0.497 | BR30: 0.0289 | BT30: 0.1388 | BU30: -0.0175 | BW30: 2.1354 | BX30: 2.9664 | BZ30: 0.2492 | CA30: -0.3715 | CC30: 1.4396 | CD30: 0.2067 | CF30: 0.40735 | CH30: 1 | CI30: 0 | CK30: 0.3257 | CL30: 0.2651 | CN30: 0.9524 | CO30: 0.4802 | CQ30: 0 | CR30: -0.1978 | CT30: 0.014 | CU30: 0.0011 | CW30: 0.152 | CX30: 0.037 | CZ30: 0.28274 | DB30: 0.0251 | DC30: 0.0033 | DE30: 0.0453 | DF30: -0.9532 | DH30: 0.3433 | DI30: -0.0239 | DK30: 0 | DL30: 0 | DN30: 1 | DO30: 0 | DQ30: 0.13738 | DS30: 0.0051 | DT30: 0.0038 | DV30: 0 | DW30: 0 | DY30: 0 | DZ30: 0 | EB30: 0 | EC30: 0 | EE30: 0.6818 | EF30: -0.0081 | EH30: 0.064825 | EJ30: 0 | EK30: 0 | EM30: 0.2326 | EN30: -0.0215 | EP30: 0.0267 | EQ30: 0.0027 | ES30: 0 | ET30: 0
B32: Grandes | L32: =AVERAGE(N32,Q32,T32,W32,Z32,AC32,AF32,AI32,AL32) -> 0.3708662539 | N32: 0.589 | O32: -0.1537270127 | Q32: 0.4006947368 | R32: 0.1332112271 | T32: 0.4006947368 | U32: 0.1332112271 | W32: 0.329 | X32: 0.07010358956 | Z32: 0.6690647059 | AA32: -0.02740588235 | AC32: 0.5003421053 | AD32: 0.07887236463 | AF32: 0.316 | AG32: 0.01614989107 | AI32: 0.102 | AJ32: 0.128680217 | AL32: 0.031 | AM32: 0.01135112782 | AO32: =AVERAGE(AQ32,AW32,AZ32,BC32) -> 0.4673214286 | AQ32: 0.027 | AR32: -0.02204900206 | AT32: 10.32 | AU32: -0.5371943752 | AW32: 0.433 | AX32: -0.03756389461 | AZ32: 0.52 | BA32: -0.0289154418 | BC32: 0.8892857143 | BD32: 0.02142857143 | BF32: =AVERAGE(BH32,BK32,BN32,BQ32,BT32,BW32,BZ32,CC32) -> 0.440375 | BH32: 0.664 | BI32: -0.02347985861 | BK32: 0.514 | BL32: -0.12159436 | BN32: 1.23 | BO32: 0.1001627625 | BQ32: 0.433 | BR32: -0.03756389461 | BT32: 0.086 | BU32: -0.001296393666 | BW32: -0.214 | BX32: -0.7545061442 | BZ32: 0.372 | CA32: 0.2269922504 | CC32: 0.438 | CD32: -0.1546370952 | CF32: =AVERAGE(CH32,CK32,CN32,CQ32,CT32,CW32) -> 0.4020657895 | CH32: 0.237 | CI32: 0.003026528969 | CK32: 0.181 | CL32: 0.05164370591 | CN32: 0.867 | CO32: 0.4320224215 | CQ32: 1 | CR32: 0 | CT32: 0.017 | CU32: 0.003747896712 | CW32: 0.1103947368 | CX32: 0.1162055274 | CZ32: =AVERAGE(DB32,DE32,DH32,DK32,DN32) -> 0.2944126316 | DB32: 0.02304210526 | DC32: -0.01033532576 | DE32: 0.096 | DF32: 0.007163896079 | DH32: 0.438 | DI32: 0.02581183214 | DK32: 0.0005473684211 | DL32: 0.0003242478139 | DN32: 0.9144736842 | DO32: -0.01973684211 | DQ32: =AVERAGE(DS32,DV32,DY32,EB32,EE32) -> 0.2515364286 | DS32: 0.020125 | DT32: 0.005808578426 | DV32: 0.0021 | DW32: -0.0004799754991 | DY32: 0.1854571429 | DZ32: 0.01162490219 | EB32: 0.05 | EC32: 0.04796939404 | EE32: 1 | EF32: 0 | EH32: =AVERAGE(EJ32,EM32,EP32,ES32) -> 0.5516978676 | EJ32: 0.56665 | EK32: 0.3199299911 | EM32: 0.76094 | EN32: 0.3051701235 | EP32: 0.02557647059 | EQ32: 0.002515031303 | ES32: 0.853625 | ET32: 0.3237883588
C33: 197 | D33: BENEFICIAR | F33: 6 | G33: 3 | H33: 11 | I33: 5 | J33: 26 | L33: 0.3018333333 | N33: 0.6092 | O33: -0.7344 | Q33: 0.0113 | R33: -0.9887 | T33: 0.0113 | U33: -0.9887 | W33: 0.6934 | X33: -0.094 | Z33: 0.3913 | AA33: -0.0487 | AC33: 0.5 | AD33: -0.0455 | AF33: 0.4545 | AG33: -0.084 | AI33: 0.0455 | AJ33: 0.0455 | AL33: 0 | AM33: 0 | AO33: =AVERAGE(AQ33,AW33,AZ33,BC33) -> 0.26955 | AQ33: -0.0647 | AR33: 0.304 | AT33: 26.81 | AU33: 0.16 | AW33: 0.4816 | AX33: -0.0199 | AZ33: 0.6613 | BA33: 0.0035 | BC33: 0 | BD33: 0 | BF33: =AVERAGE(BH33,BK33,BN33,BQ33,BT33,BW33,BZ33,CC33) -> 0.9374 | BH33: 3.1068 | BI33: 2.5994 | BK33: 0.9356 | BL33: -0.0096 | BN33: 0.8 | BO33: -0.12 | BQ33: 0.4816 | BR33: -0.0199 | BT33: 0.0995 | BU33: 0.0041 | BW33: 0 | BX33: -24.2616 | BZ33: 0 | CA33: -0.001 | CC33: 2.0757 | CD33: 0.7179 | CF33: =AVERAGE(CH33,CK33,CN33,CQ33,CT33,CW33) -> -0.07243333333 | CH33: 0 | CI33: 0 | CK33: 0.0024 | CL33: 0.0014 | CN33: 0.1875 | CO33: 0.1875 | CQ33: 0.375 | CR33: 0.2137 | CT33: 0.0005 | CU33: -0.0011 | CW33: -1 | CX33: 0 | CZ33: =AVERAGE(DB33,DE33,DH33,DK33,DN33) -> 0.21402 | DB33: 0 | DC33: 0 | DE33: 0.171 | DF33: -0.1095 | DH33: 0.0212 | DI33: -0.2047 | DK33: 0.0029 | DL33: 0 | DN33: 0.875 | DO33: 0 | DQ33: =AVERAGE(DS33,DV33,DY33,EB33,EE33) -> 0.19344 | DS33: 0 | DT33: 0 | DV33: 0 | DW33: 0 | DY33: 0 | DZ33: 0 | EB33: 0 | EC33: 0 | EE33: 0.9672 | EF33: 0.012 | EH33: =AVERAGE(EJ33,EM33,EP33,ES33) -> 0.14345 | EJ33: 0 | EK33: 0 | EM33: 0.5357 | EN33: 0.074 | EP33: 0.0381 | EQ33: 0.0061 | ES33: 0 | ET33: 0
C34: 374 | D34: PROGRESSA | F34: 6 | G34: 3 | H34: 13 | I34: 5 | J34: 24 | L34: 0.4916777778 | N34: 1 | O34: 0.0012 | Q34: 1 | R34: 0 | T34: 1 | U34: 0 | W34: 0.7167 | X34: -0.0741 | Z34: 0 | AA34: 0 | AC34: 0.6667 | AD34: 0 | AF34: 0 | AG34: 0 | AI34: 0.0417 | AJ34: -0.0324 | AL34: 0 | AM34: 0 | AO34: 0.49105 | AQ34: 0.0906 | AR34: 0.0894 | AT34: 1.17 | AU34: -2.68 | AW34: 0.5505 | AX34: -0.1022 | AZ34: 0.4931 | BA34: -0.0213 | BC34: 0.83 | BD34: 0.05 | BF34: -14.1619 | BH34: 1.0091 | BI34: 0.8609 | BK34: 0.3298 | BL34: 0.0808 | BN34: 1.27 | BO34: -0.01 | BQ34: 0.5505 | BR34: -0.1022 | BT34: 0.274 | BU34: 0.0376 | BW34: 0 | BX34: 1 | BZ34: 0 | CA34: -0.0119 | CC34: -116.7286 | CD34: 882.1442 | CF34: 0.1838666667 | CH34: 0 | CI34: -1 | CK34: 0.0643 | CL34: 0.0407 | CN34: 0 | CO34: -5.3333 | CQ34: 0 | CR34: -0.7783 | CT34: 0.0389 | CU34: -0.0022 | CW34: 1 | CX34: 0.9136 | CZ34: 0.2514 | DB34: 0.0736 | DC34: -0.0511 | DE34: 0.0133 | DF34: -0.0043 | DH34: 0.4201 | DI34: 0.0909 | DK34: 0 | DL34: 0 | DN34: 0.75 | DO34: -0.125 | DQ34: 0.1742 | DS34: 0 | DT34: 0 | DV34: 0 | DW34: 0 | DY34: 0 | DZ34: -0.0007 | EB34: 0 | EC34: 0 | EE34: 0.871 | EF34: 0.0619 | EH34: 0.236825 | EJ34: 0 | EK34: -0.6309 | EM34: 0.9166 | EN34: 0.0333 | EP34: 0.0307 | EQ34: -0.0303 | ES34: 0 | ET34: 0
C35: 446 | D35: FEBOR | F35: 3 | G35: 5 | H35: 15 | I35: 4 | J35: 23 | L35: 0.4477555556 | N35: 0.9998 | O35: -0.0002 | Q35: 0.4429 | R35: 0 | T35: 0.4429 | U35: 0 | W35: 1 | X35: 0 | Z35: 0.8333 | AA35: 0 | AC35: 0.18 | AD35: 0 | AF35: 0.0909 | AG35: 0.0195 | AI35: 0.04 | AJ35: 0 | AL35: 0 | AM35: 0 | AO35: 0.382825 | AQ35: -0.009 | AR35: 0.0219 | AT35: 152.16 | AU35: 5.88 | AW35: 0.2741 | AX35: 0.2673 | AZ35: 0.4162 | BA35: -0.1084 | BC35: 0.85 | BD35: -0.15 | BF35: 0.8034625 | BH35: 3.002 | BI35: 0.7414 | BK35: 0.1095 | BL35: 0.0293 | BN35: 1.46 | BO35: 0.04 | BQ35: 0.2741 | BR35: 0.2673 | BT35: 0.1253 | BU35: -0.0012 | BW35: -0.9577 | BX35: -2.0507 | BZ35: 1.1425 | CA35: 1.0495 | CC35: 1.272 | CD35: 0.3931 | CF35: 0.3974 | CH35: 1 | CI35: 0.9888 | CK35: 0.1511 | CL35: 0.1313 | CN35: 1 | CO35: 1 | CQ35: 0 | CR35: 0 | CT35: 0.0301 | CU35: -0.0121 | CW35: 0.2032 | CX35: 0.0918 | CZ35: 0.42188 | DB35: 0 | DC35: 0 | DE35: 0.3469 | DF35: -0.1608 | DH35: 0.7625 | DI35: 0.2264 | DK35: 0 | DL35: 0 | DN35: 1 | DO35: 0 | DQ35: 0.01336 | DS35: 0.0007 | DT35: 0.0002 | DV35: 0 | DW35: 0 | DY35: 0 | DZ35: 0 | EB35: 0 | EC35: 0 | EE35: 0.0661 | EF35: -0.8339 | EH35: 0.259075 | EJ35: 0 | EK35: 0 | EM35: 0.9869 | EN35: 0.281 | EP35: 0.0494 | EQ35: 0.0493 | ES35: 0 | ET35: 0
C36: 902 | D36: CREDIFLORES | F36: 2 | G36: 5 | H36: 9 | I36: 6 | J36: 27 | L36: 0.1794333333 | N36: 0.2495 | O36: -0.7505 | Q36: 0.0507 | R36: -0.0434 | T36: 0.0507 | U36: -0.0434 | W36: 0 | X36: 0 | Z36: 0.2903 | AA36: -0.2097 | AC36: 0.5 | AD36: 0.0352 | AF36: 0.4737 | AG36: 0.1208 | AI36: 0 | AJ36: -0.0282 | AL36: 0 | AM36: 0 | AO36: 0.470625 | AQ36: 0.0285 | AR36: -0.0368 | AT36: 12.68 | AU36: -0.08 | AW36: 1.3323 | AX36: 0.871 | AZ36: 0.5217 | BA36: -0.0288 | BC36: 0 | BD36: 0 | BF36: 0.50935 | BH36: 1.0796 | BI36: -0.5146 | BK36: 0.6906 | BL36: 0.2272 | BN36: 1.04 | BO36: 0.02 | BQ36: 1.3323 | BR36: 0.871 | BT36: 0.0993 | BU36: -0.0074 | BW36: -0.779 | BX36: -0.6484 | BZ36: 0.1891 | CA36: 0.1216 | CC36: 0.4229 | CD36: 0.232 | CF36: 0.1752333333 | CH36: 0.003 | CI36: 0.003 | CK36: 0 | CL36: 0 | CN36: 1 | CO36: 1 | CQ36: 1 | CR36: 1 | CT36: 0.0459 | CU36: 0.0372 | CW36: -0.9975 | CX36: -0.9975 | CZ36: 0.28856 | DB36: 0.0072 | DC36: -0.0006 | DE36: 0.122 | DF36: 0.0536 | DH36: 0.3136 | DI36: -0.0344 | DK36: 0 | DL36: 0 | DN36: 1 | DO36: 0 | DQ36: 0.0845 | DS36: 0 | DT36: 0 | DV36: 0 | DW36: 0 | DY36: 0.1593 | DZ36: -0.0223 | EB36: 0 | EC36: 0 | EE36: 0.2632 | EF36: 0 | EH36: 0.005 | EJ36: 0 | EK36: 0 | EM36: 0.0122 | EN36: -0.1448 | EP36: 0.0078 | EQ36: 0.0004 | ES36: 0 | ET36: 0
C37: 1198 | D37: COOPTENJO | F37: 0 | G37: 3 | H37: 11 | I37: 10 | J37: 21 | L37: 0.4349666667 | N37: 0.4806 | O37: 0.0186 | Q37: 0.4624 | R37: 0.4624 | T37: 0.4624 | U37: 0.4624 | W37: 0.6569 | X37: 0.6569 | Z37: 1.1429 | AA37: 0.6429 | AC37: 0.434 | AD37: 0.0054 | AF37: 0.2 | AG37: 0.0824 | AI37: 0.0755 | AJ37: -0.0138 | AL37: 0 | AM37: -0.1333 | AO37: 0.4111 | AQ37: 0.0524 | AR37: 0.0761 | AT37: 10.75 | AU37: -3.52 | AW37: 0.0795 | AX37: -0.3896 | AZ37: 0.5625 | BA37: -0.2531 | BC37: 0.95 | BD37: 0.12 | BF37: 0.0569125 | BH37: 0.5163 | BI37: 0.255 | BK37: 0.0544 | BL37: -0.8534 | BN37: 1.13 | BO37: 0.06 | BQ37: 0.0795 | BR37: -0.3896 | BT37: 0.0532 | BU37: -0.0029 | BW37: -0.9198 | BX37: -0.4121 | BZ37: 0.3171 | CA37: 0.0081 | CC37: -0.7754 | CD37: -0.6374 | CF37: 0.5276 | CH37: 0.0033 | CI37: 0.0012 | CK37: 0.706 | CL37: 0.6583 | CN37: 0.8889 | CO37: 0.246 | CQ37: 0.9738 | CR37: -0.0262 | CT37: 0.0103 | CU37: 0.01 | CW37: 0.5833 | CX37: 0.9488 | CZ37: 0.30374 | DB37: 0.0188 | DC37: -0.0416 | DE37: 0.0695 | DF37: 0.0244 | DH37: 0.4304 | DI37: 0.1106 | DK37: 0 | DL37: 0 | DN37: 1 | DO37: 0 | DQ37: 0.20886 | DS37: 0.0003 | DT37: -0.001 | DV37: 0 | DW37: 0 | DY37: 0.0818 | DZ37: 0.0423 | EB37: 0 | EC37: 0 | EE37: 0.9622 | EF37: 0.0225 | EH37: 0.33575 | EJ37: 0 | EK37: -0.5139 | EM37: 1 | EN37: 0 | EP37: 0.018 | EQ37: 0.0162 | ES37: 0.325 | ET37: -0.0083
C38: 1360 | D38: COOGRANADA | F38: 0 | G38: 9 | H38: 18 | I38: 6 | J38: 18 | L38: 0.4035888889 | N38: 0.3183 | O38: -0.0074 | Q38: 0.2679 | R38: 0 | T38: 0.2679 | U38: 0 | W38: 1 | X38: 0 | Z38: 0.7826 | AA38: 0 | AC38: 0.54 | AD38: 0 | AF38: 0.25 | AG38: 0 | AI38: 0.15 | AJ38: 0 | AL38: 0.0556 | AM38: 0 | AO38: 0.52375 | AQ38: 0.064 | AR38: 0.0127 | AT38: 8.79 | AU38: 0.13 | AW38: 0.5146 | AX38: 0.0192 | AZ38: 0.5564 | BA38: 0.0076 | BC38: 0.96 | BD38: 0.1 | BF38: 1.01535 | BH38: 0.2707 | BI38: -0.1765 | BK38: 0.6931 | BL38: 0.0138 | BN38: 1.28 | BO38: 0.03 | BQ38: 0.5146 | BR38: 0.0192 | BT38: 0.0311 | BU38: -0.0017 | BW38: 1.4125 | BX38: 1.3908 | BZ38: 0.0071 | CA38: -0.2225 | CC38: 3.9137 | CD38: 8.5388 | CF38: 1.15525 | CH38: 1 | CI38: 0.9791 | CK38: 0.1721 | CL38: -0.0162 | CN38: 4.6875 | CO38: 4.5312 | CQ38: 1 | CR38: 0 | CT38: 0.0137 | CU38: -0.0065 | CW38: 0.0582 | CX38: -0.2865 | CZ38: 0.27292 | DB38: 0 | DC38: -0.0702 | DE38: 0.1587 | DF38: 0.0854 | DH38: 0.2059 | DI38: 0.0805 | DK38: 0 | DL38: 0 | DN38: 1 | DO38: 0 | DQ38: 0.2616 | DS38: 0.0252 | DT38: 0.0093 | DV38: 0.0024 | DW38: 0.0016 | DY38: 0.6137 | DZ38: -0.0107 | EB38: 0 | EC38: -0.0219 | EE38: 0.6667 | EF38: -0.1614 | EH38: 1.404675 | EJ38: 0 | EK38: 0 | EM38: 5.0971 | EN38: 2.7339 | EP38: 0.0216 | EQ38: 0.0027 | ES38: 0.5 | ET38: -0.0333
C39: 1390 | D39: COOCREAFAM | F39: 13 | G39: 2 | H39: 7 | I39: 7 | J39: 28 | L39: 0.3449333333 | N39: 0.1859 | O39: -0.1719 | Q39: 0.0826 | R39: 0 | T39: 0.0826 | U39: 0 | W39: 0.685 | X39: 0 | Z39: 0.7143 | AA39: -0.1278 | AC39: 0.5373 | AD39: 0.1663 | AF39: 0.5789 | AG39: 0.1289 | AI39: 0.1045 | AJ39: 0.04 | AL39: 0.1333 | AM39: 0.1333 | AO39: 0.2758 | AQ39: 0.0348 | AR39: -0.0008 | AT39: 6.75 | AU39: 0.43 | AW39: 0.504 | AX39: 0.0189 | AZ39: 0.5644 | BA39: 0.0109 | BC39: 0 | BD39: 0 | BF39: 0.31185 | BH39: 0.3551 | BI39: -0.0783 | BK39: 0.5257 | BL39: -0.0056 | BN39: 1.11 | BO39: -0.12 | BQ39: 0.504 | BR39: 0.0189 | BT39: 0 | BU39: -0.0643 | BW39: 0 | BX39: 0 | BZ39: 0 | CA39: -0.0232 | CC39: 0 | CD39: -1.8082 | CF39: 0.1534833333 | CH39: 0 | CI39: 0 | CK39: 0.5539 | CL39: 0.022 | CN39: 0 | CO39: 0 | CQ39: 0 | CR39: 0 | CT39: 0 | CU39: -0.018 | CW39: 0.367 | CX39: 0.367 | CZ39: 0.3824 | DB39: 0.0116 | DC39: -0.018 | DE39: 0.085 | DF39: -0.0176 | DH39: 0.8154 | DI39: -1.1788 | DK39: 0 | DL39: 0 | DN39: 1 | DO39: 0 | DQ39: 0.16 | DS39: 0 | DT39: -0.0159 | DV39: 0 | DW39: 0 | DY39: 0 | DZ39: -0.6346 | EB39: 0 | EC39: 0 | EE39: 0.8 | EF39: -0.45 | EH39: 0 | EJ39: 0 | EK39: 0 | EM39: 0 | EN39: -0.0183 | EP39: 0 | EQ39: -0.0019 | ES39: 0 | ET39: 0
C40: 1421 | D40: COMEDAL | F40: 5 | G40: 6 | H40: 12 | I40: 2 | J40: 28 | L40: 0.3808 | N40: 1.505 | O40: -0.0163 | Q40: 0.2695 | R40: -0.0423 | T40: 0.2695 | U40: -0.0423 | W40: 0.0253 | X40: 0.0253 | Z40: 1 | AA40: 0 | AC40: 0.14 | AD40: 0.0067 | AF40: 0.1154 | AG40: 0.0083 | AI40: 0.04 | AJ40: 0.04 | AL40: 0.0625 | AM40: 0.0625 | AO40: 0.52715 | AQ40: 0.0319 | AR40: -0.0049 | AT40: 3 | AU40: 0 | AW40: 0.3871 | AX40: -0.0095 | AZ40: 0.7096 | BA40: 0.0252 | BC40: 0.98 | BD40: 0.01 | BF40: 2.7584375 | BH40: 0.9629 | BI40: -0.0354 | BK40: 0.5751 | BL40: -0.1579 | BN40: 1.43 | BO40: -0.22 | BQ40: 0.3871 | BR40: -0.0095 | BT40: 0.071 | BU40: 0.0013 | BW40: -0.0101 | BX40: 0.6471 | BZ40: 0.3543 | CA40: 0.1036 | CC40: 18.2972 | CD40: 12.7794 | CF40: 0.3061833333 | CH40: 0 | CI40: 0 | CK40: 0.2977 | CL40: 0.0709 | CN40: 1.5294 | CO40: 1.5294 | CQ40: 0 | CR40: 0 | CT40: 0.01 | CU40: -0.0015 | CW40: 0 | CX40: 0 | CZ40: 0.28834 | DB40: 0.0347 | DC40: 0.0071 | DE40: 0.0407 | DF40: -0.0113 | DH40: 0.3663 | DI40: -0.0214 | DK40: 0 | DL40: 0 | DN40: 1 | DO40: 0 | DQ40: 0.20012 | DS40: 0.0006 | DT40: 0.0004 | DV40: 0 | DW40: 0 | DY40: 0 | DZ40: 0 | EB40: 0 | EC40: 0 | EE40: 1 | EF40: 0 | EH40: 0.015775 | EJ40: 0 | EK40: 0 | EM40: 0 | EN40: 0 | EP40: 0.0631 | EQ40: -0.0053 | ES40: 0 | ET40: 0
C41: 1477 | D41: COOPRUDEA | F41: 4 | G41: 4 | H41: 13 | I41: 7 | J41: 22 | L41: 0.3275444444 | N41: 0.7195 | O41: 0.022 | Q41: 0.4084 | R41: 0 | T41: 0.4084 | U41: 0 | W41: 0 | X41: 0 | Z41: 0.7273 | AA41: -0.0227 | AC41: 0.36 | AD41: -0.015 | AF41: 0.3043 | AG41: -0.029 | AI41: 0.02 | AJ41: -0.0008 | AL41: 0 | AM41: 0 | AO41: 0.4695 | AQ41: -0.0097 | AR41: -0.027 | AT41: 71.4 | AU41: 13.65 | AW41: 0.471 | AX41: -0.0224 | AZ41: 0.5767 | BA41: 0.0525 | BC41: 0.84 | BD41: -0.03 | BF41: 0.6860125 | BH41: 1.1336 | BI41: -0.0017 | BK41: 0.1884 | BL41: -0.0642 | BN41: 2.21 | BO41: 1.07 | BQ41: 0.471 | BR41: -0.0224 | BT41: 0.0551 | BU41: 0.0034 | BW41: -0.4279 | BX41: -0.353 | BZ41: 1.6601 | CA41: 0.1285 | CC41: 0.1978 | CD41: -0.8381 | CF41: 0.3744333333 | CH41: 1 | CI41: 0 | CK41: 0.4027 | CL41: 0.0696 | CN41: 0.7931 | CO41: -0.1873 | CQ41: 0 | CR41: 0 | CT41: 0.0381 | CU41: 0.008 | CW41: 0.0127 | CX41: 0.2849 | CZ41: 0.2853 | DB41: 0.0001 | DC41: 0 | DE41: 0.0795 | DF41: -0.1093 | DH41: 0.3469 | DI41: -1.1361 | DK41: 0 | DL41: 0 | DN41: 1 | DO41: 0 | DQ41: 0.2 | DS41: 0 | DT41: 0 | DV41: 0 | DW41: 0 | DY41: 0 | DZ41: 0 | EB41: 0 | EC41: 0 | EE41: 1 | EF41: 0 | EH41: 0.201275 | EJ41: 0 | EK41: 0 | EM41: 0.0326 | EN41: 0.0064 | EP41: 0.0402 | EQ41: -0.0005 | ES41: 0.7323 | ET41: -3.2677
C42: 2336 | D42: CANAPRO O.C | F42: 5 | G42: 2 | H42: 13 | I42: 5 | J42: 24 | L42: 0.4125333333 | N42: 1 | O42: 0.1402 | Q42: 0.4913 | R42: 0 | T42: 0.4913 | U42: 0 | W42: 0 | X42: -1 | Z42: 0.375 | AA42: 0.0592 | AC42: 0.5586 | AD42: 0.0053 | AF42: 0.7 | AG42: 0.319 | AI42: 0.0966 | AJ42: 0.0033 | AL42: 0 | AM42: 0 | AO42: 0.435625 | AQ42: 0.0014 | AR42: 0.011 | AT42: 0.13 | AU42: 0.13 | AW42: 0.7049 | AX42: 0.0246 | AZ42: 0.1562 | BA42: -0.0269 | BC42: 0.88 | BD42: 0.01 | BF42: 1.5271 | BH42: 0.6777 | BI42: -0.0144 | BK42: 0.1938 | BL42: -0.0028 | BN42: 0.96 | BO42: 0.1 | BQ42: 0.7049 | BR42: 0.0246 | BT42: 0.0444 | BU42: 0 | BW42: -0.1414 | BX42: 0.4401 | BZ42: 0.1019 | CA42: -0.4616 | CC42: 9.6755 | CD42: 8.2234 | CF42: 0.3491166667 | CH42: 0.0007 | CI42: 0.0007 | CK42: 0.094 | CL42: 0.0153 | CN42: 1 | CO42: 0 | CQ42: 1 | CR42: 0 | CT42: 0 | CU42: 0 | CW42: 0 | CX42: 1 | CZ42: 0.30168 | DB42: 0.081 | DC42: 0.0373 | DE42: 0.073 | DF42: -0.0176 | DH42: 0.3544 | DI42: -0.0097 | DK42: 0 | DL42: -0.0024 | DN42: 1 | DO42: 0 | DQ42: 0.01334 | DS42: 0 | DT42: 0 | DV42: 0 | DW42: 0 | DY42: 0 | DZ42: 0 | EB42: 0 | EC42: 0 | EE42: 0.0667 | EF42: 0.0667 | EH42: 0.3889 | EJ42: 0.5521 | EK42: 0.1405 | EM42: 1 | EN42: 0.9958 | EP42: 0.0035 | EQ42: 0.0002 | ES42: 0 | ET42: 0
C43: 2398 | D43: COEDUCADORES BOYACA | F43: 7 | G43: 1 | H43: 10 | I43: 4 | J43: 28 | L43: 0.5345888889 | N43: 1 | O43: 0 | Q43: 0.5784 | R43: 0 | T43: 0.5784 | U43: 0 | W43: 1 | X43: 0 | Z43: 1 | AA43: 0 | AC43: 0.4308 | AD43: 0.0277 | AF43: 0.2083 | AG43: -0.1517 | AI43: 0.0154 | AJ43: -0.0079 | AL43: 0 | AM43: 0 | AO43: 0.487275 | AQ43: -0.0107 | AR43: -0.012 | AT43: 0.02 | AU43: 0 | AW43: 0.7137 | AX43: 0.0154 | AZ43: 0.3361 | BA43: -0.0864 | BC43: 0.91 | BD43: -0.06 | BF43: 0.3128375 | BH43: 0 | BI43: -0.8845 | BK43: 0.0429 | BL43: -0.007 | BN43: 0.99 | BO43: -0.01 | BQ43: 0.7137 | BR43: 0.0154 | BT43: 0.0085 | BU43: 0.0026 | BW43: -0.152 | BX43: -1.1012 | BZ43: 0.0089 | CA43: -0.0219 | CC43: 0.8907 | CD43: 0.6745 | CF43: 0.00275 | CH43: 0 | CI43: 0 | CK43: 0 | CL43: 0 | CN43: 0 | CO43: 0 | CQ43: 0 | CR43: 0 | CT43: 0.0165 | CU43: -0.0016 | CW43: 0 | CX43: 0 | CZ43: 0.2577 | DB43: 0 | DC43: 0 | DE43: 0.0736 | DF43: -0.0449 | DH43: 0.3399 | DI43: -0.0157 | DK43: 0 | DL43: 0 | DN43: 0.875 | DO43: -0.125 | DQ43: 0.24688 | DS43: 0 | DT43: 0 | DV43: 0 | DW43: 0 | DY43: 0 | DZ43: 0 | EB43: 0 | EC43: 0 | EE43: 1.2344 | EF43: 0.4053 | EH43: 0.020925 | EJ43: 0 | EK43: 0 | EM43: 0.0272 | EN43: 0.0195 | EP43: 0.0565 | EQ43: 0.0022 | ES43: 0 | ET43: 0
C44: 2506 | D44: COOPEMTOL | F44: 4 | G44: 9 | H44: 16 | I44: 4 | J44: 22 | L44: 0.3397222222 | N44: 1 | O44: -0.1754 | Q44: 0.4064 | R44: 0 | T44: 0.4064 | U44: 0 | W44: 1 | X44: 0 | Z44: 0 | AA44: -0.6053 | AC44: 0.2447 | AD44: 0.0003 | AF44: 0 | AG44: -0.2609 | AI44: 0 | AJ44: 0 | AL44: 0 | AM44: 0 | AO44: 0.44985 | AQ44: 0.0406 | AR44: 0.0519 | AT44: 8.14 | AU44: -6.26 | AW44: 1.505 | AX44: 0.8609 | AZ44: 0.2538 | BA44: -0.0542 | BC44: 0 | BD44: 0 | BF44: 0.9110125 | BH44: 1.1358 | BI44: -0.0071 | BK44: 2.168 | BL44: 1.5483 | BN44: 1.2 | BO44: 0.4 | BQ44: 1.505 | BR44: 0.8609 | BT44: 0.1675 | BU44: 0.0029 | BW44: 0.3413 | BX44: 0.0845 | BZ44: 0.5765 | CA44: -0.7522 | CC44: 0.194 | CD44: 0.0163 | CF44: 1.039133333 | CH44: 0.0018 | CI44: -0.6117 | CK44: 0.0015 | CL44: -0.0291 | CN44: 2 | CO44: 1.913 | CQ44: 1 | CR44: 0 | CT44: 0.0016 | CU44: -0.0001 | CW44: 3.2299 | CX44: 3.3402 | CZ44: 0.324 | DB44: 0 | DC44: 0 | DE44: 0.87 | DF44: 0.8185 | DH44: 0 | DI44: -0.644 | DK44: 0 | DL44: 0 | DN44: 0.75 | DO44: 0 | DQ44: 0.1723 | DS44: 0.0478 | DT44: 0.0478 | DV44: 0 | DW44: 0 | DY44: 0.0004 | DZ44: -0.0859 | EB44: 0 | EC44: 0 | EE44: 0.8133 | EF44: -0.9367 | EH44: 0.000125 | EJ44: 0 | EK44: 0 | EM44: 0.0003 | EN44: -0.0025 | EP44: 0.0002 | EQ44: 0.0002 | ES44: 0 | ET44: 0
C45: 2773 | D45: COOFISAM | F45: 1 | G45: 7 | H45: 16 | I45: 8 | J45: 18 | L45: 0.4413111111 | N45: 1.0906 | O45: 0.1143 | Q45: 0.3009 | R45: -0.0194 | T45: 0.3009 | U45: -0.0194 | W45: 0.7194 | X45: -0.2806 | Z45: 0.6667 | AA45: -0.0256 | AC45: 0.4141 | AD45: 0.1438 | AF45: 0.3125 | AG45: -0.0208 | AI45: 0.1111 | AJ45: -0.0511 | AL45: 0.0556 | AM45: 0.0556 | AO45: 0.49665 | AQ45: 0.0619 | AR45: -0.7844 | AT45: 10.88 | AU45: 5.02 | AW45: 0.4607 | AX45: 0.0165 | AZ45: 0.594 | BA45: 0.01 | BC45: 0.87 | BD45: -0.05 | BF45: 0.62615 | BH45: 0.3784 | BI45: -0.6443 | BK45: 0.6756 | BL45: 0.2503 | BN45: 1.17 | BO45: 0.2 | BQ45: 0.4607 | BR45: 0.0165 | BT45: 0.0474 | BU45: -0.0035 | BW45: 1.0742 | BX45: -0.5683 | BZ45: 0.1078 | CA45: 0.0543 | CC45: 1.0951 | CD45: 0.2644 | CF45: 0.39775 | CH45: 0.0497 | CI45: 0.012 | CK45: 0.1836 | CL45: 0.1151 | CN45: 0.6667 | CO45: -0.0333 | CQ45: 1 | CR45: 0 | CT45: 0.0036 | CU45: 0.003 | CW45: 0.4829 | CX45: 0.9334 | CZ45: 0.2691 | DB45: 0.064 | DC45: 0.0356 | DE45: 0.1161 | DF45: 0.063 | DH45: 0.5342 | DI45: 0.1055 | DK45: 0.0062 | DL45: 0.0052 | DN45: 0.625 | DO45: 0 | DQ45: 1.53876 | DS45: 0.0002 | DT45: -0.0043 | DV45: 0 | DW45: 0 | DY45: 0.4374 | DZ45: 0.2495 | EB45: 0.8403 | EC45: 0.8403 | EE45: 6.4159 | EF45: 0.6132 | EH45: 0.009075 | EJ45: 0 | EK45: 0 | EM45: 0.0147 | EN45: -0.3609 | EP45: 0.0216 | EQ45: -0.0237 | ES45: 0 | ET45: 0
C46: 3640 | D46: COONFIE | F46: 5 | G46: 3 | H46: 8 | I46: 8 | J46: 26 | L46: 0.4341111111 | N46: 0.997 | O46: -0.0717 | Q46: 0.4391 | R46: -0.0002 | T46: 0.4391 | U46: -0.0002 | W46: 0.717 | X46: 0 | Z46: 0.75 | AA46: -0.25 | AC46: 0.4261 | AD46: 0 | AF46: 0.0952 | AG46: 0 | AI46: 0.0435 | AJ46: 0 | AL46: 0 | AM46: 0 | AO46: 0.4848 | AQ46: 0.0386 | AR46: -0.1095 | AT46: 11.29 | AU46: -0.8 | AW46: 0.5103 | AX46: -0.0241 | AZ46: 0.5203 | BA46: -0.0617 | BC46: 0.87 | BD46: 0.05 | BF46: 0.2625875 | BH46: 0.1099 | BI46: -0.0083 | BK46: 0.4381 | BL46: -0.154 | BN46: 1.08 | BO46: 0.02 | BQ46: 0.5103 | BR46: -0.0241 | BT46: 0.033 | BU46: -0.0027 | BW46: -0.1403 | BX46: 0.1342 | BZ46: 0.0733 | CA46: -0.0704 | CC46: -0.0036 | CD46: -0.2751 | CF46: -0.05523333333 | CH46: 0.0019 | CI46: -0.0066 | CK46: 0.0102 | CL46: -0.0658 | CN46: 0.3944 | CO46: 0.0252 | CQ46: 0 | CR46: -1 | CT46: 0.0303 | CU46: 0.018 | CW46: -0.7682 | CX46: -1.4827 | CZ46: 0.26722 | DB46: 0.0004 | DC46: 0.0001 | DE46: 0.0888 | DF46: 0.0008 | DH46: 0.3719 | DI46: 0.0013 | DK46: 0 | DL46: 0 | DN46: 0.875 | DO46: -0.125 | DQ46: 0.2353 | DS46: 0 | DT46: 0 | DV46: 0 | DW46: -0.002 | DY46: 0 | DZ46: 0 | EB46: 0 | EC46: 0 | EE46: 1.1765 | EF46: 0.3432 | EH46: 0.007925 | EJ46: 0 | EK46: 0 | EM46: 0 | EN46: 0 | EP46: 0.0317 | EQ46: 0.0303 | ES46: 0 | ET46: 0
C47: 4617 | D47: COOPANTEX | F47: 5 | G47: 4 | H47: 8 | I47: 8 | J47: 26 | L47: 0.3931111111 | N47: 0.8096 | O47: 0.1228 | Q47: 0.0612 | R47: 0.021 | T47: 0.0612 | U47: 0.021 | W47: 0.8584 | X47: 0.0955 | Z47: 0.56 | AA47: -0.5169 | AC47: 0.5676 | AD47: 0.097 | AF47: 0.12 | AG47: 0.0431 | AI47: 0.5 | AJ47: 0.3235 | AL47: 0 | AM47: 0 | AO47: 0.21525 | AQ47: -0.0845 | AR47: -0.0913 | AT47: 6.97 | AU47: 0.83 | AW47: 0.4576 | AX47: 0.0235 | AZ47: 0.4879 | BA47: -0.0355 | BC47: 0 | BD47: 0 | BF47: 0.4944875 | BH47: 1.4128 | BI47: 0.0458 | BK47: 0.3552 | BL47: -0.0536 | BN47: 1.53 | BO47: 0.1 | BQ47: 0.4576 | BR47: 0.0235 | BT47: 0.0567 | BU47: -0.0067 | BW47: 0 | BX47: 0 | BZ47: 0 | CA47: -0.0001 | CC47: 0.1436 | CD47: -0.1219 | CF47: 0.004816666667 | CH47: 0.0013 | CI47: -0.0587 | CK47: 0 | CL47: -0.0057 | CN47: 0 | CO47: 0 | CQ47: 1 | CR47: 0 | CT47: 0.0014 | CU47: 0.0014 | CW47: -0.9738 | CX47: -1.0698 | CZ47: 0.2651 | DB47: 0 | DC47: 0 | DE47: 0.0537 | DF47: -0.572 | DH47: 0.2705 | DI47: 0.0539 | DK47: 0.0013 | DL47: 0.0013 | DN47: 1 | DO47: 0 | DQ47: 0 | DS47: 0 | DT47: 0 | DV47: 0 | DW47: 0 | DY47: 0 | DZ47: 0 | EB47: 0 | EC47: 0 | EE47: 0 | EF47: 0 | EH47: 0.48555 | EJ47: 0 | EK47: 0 | EM47: 0.078 | EN47: 0.0121 | EP47: 0.007 | EQ47: -0.0062 | ES47: 1.8572 | ET47: 1.8572
C48: 8487 | D48: COBELEN | F48: 2 | G48: 4 | H48: 12 | I48: 8 | J48: 22 | L48: 0.3606111111 | N48: 0.7408 | O48: -0.044 | Q48: 0.3203 | R48: 0 | T48: 0.3203 | U48: 0 | W48: 0 | X48: -1 | Z48: 0.64 | AA48: 0.0945 | AC48: 0.5227 | AD48: 0.0227 | AF48: 0.3793 | AG48: -0.1335 | AI48: 0.2045 | AJ48: -0.0155 | AL48: 0.1176 | AM48: 0.1176 | AO48: 0.4741 | AQ48: 0.0682 | AR48: 0.1534 | AT48: 8.27 | AU48: 4.84 | AW48: 0.4709 | AX48: 0.0001 | AZ48: 0.3873 | BA48: -0.0186 | BC48: 0.97 | BD48: 0.14 | BF48: 0.4984125 | BH48: 1.4421 | BI48: 0.1319 | BK48: 0.1639 | BL48: -0.1107 | BN48: 1.36 | BO48: 0.35 | BQ48: 0.4709 | BR48: 0.0001 | BT48: 0.0705 | BU48: -0.0406 | BW48: -0.9682 | BX48: -0.5975 | BZ48: 1.4481 | CA48: 1.3839 | CC48: 0 | CD48: 0 | CF48: 0.2456333333 | CH48: 0.0006 | CI48: 0.0004 | CK48: 0 | CL48: -0.0427 | CN48: 0.6 | CO48: -0.4 | CQ48: 1 | CR48: 0 | CT48: 0.0081 | CU48: 0.0015 | CW48: -0.1349 | CX48: 0.5398 | CZ48: 0.56106 | DB48: 0.0272 | DC48: -0.0134 | DE48: 0.7999 | DF48: 0.4748 | DH48: 0.9782 | DI48: 0.1938 | DK48: 0 | DL48: 0 | DN48: 1 | DO48: 0 | DQ48: 0.11798 | DS48: 0.0057 | DT48: 0.0037 | DV48: 0.0018 | DW48: -0.003 | DY48: 0.0055 | DZ48: -0.1464 | EB48: 0 | EC48: 0 | EE48: 0.5769 | EF48: 0.333 | EH48: 0.248625 | EJ48: 0.5812 | EK48: 0.0034 | EM48: 0.3681 | EN48: -0.2049 | EP48: 0.0452 | EQ48: -0.0069 | ES48: 0 | ET48: -0.6648
C49: 11085 | D49: COPICREDITO | F49: 13 | G49: 5 | H49: 13 | I49: 2 | J49: 27 | L49: 0.7698444444 | N49: 1 | O49: 0 | Q49: 1 | R49: 1 | T49: 1 | U49: 1 | W49: 1 | X49: 0 | Z49: 0.4286 | AA49: 0.4286 | AC49: 1 | AD49: 1 | AF49: 0.5 | AG49: 0.2692 | AI49: 1 | AJ49: 1 | AL49: 0 | AM49: 0 | AO49: 0.235 | AQ49: 0 | AR49: 0 | AT49: 0 | AU49: 0 | AW49: 0 | AX49: 0 | AZ49: 0 | BA49: 0 | BC49: 0.94 | BD49: 0.1 | BF49: 1.1158875 | BH49: 1.4286 | BI49: 0.2857 | BK49: 0 | BL49: 0 | BN49: 0 | BO49: 0 | BQ49: 0 | BR49: 0 | BT49: 0.1003 | BU49: 0.004 | BW49: 0 | BX49: 0 | BZ49: 0 | CA49: 0 | CC49: 7.3982 | CD49: 4.4684 | CF49: 3.333333333e-05 | CH49: 0 | CI49: 0 | CK49: 0 | CL49: 0 | CN49: 0 | CO49: 0 | CQ49: 0 | CR49: 0 | CT49: 0.0002 | CU49: 0.0001 | CW49: 0 | CX49: 0 | CZ49: 0.195 | DB49: 0 | DC49: 0 | DE49: 0.1 | DF49: -0.9 | DH49: 0 | DI49: 0 | DK49: 0 | DL49: 0 | DN49: 0.875 | DO49: 0 | DQ49: 2.18182 | DS49: 0 | DT49: 0 | DV49: 0 | DW49: 0 | DY49: 0 | DZ49: 0 | EB49: 0 | EC49: 0 | EE49: 10.9091 | EF49: 10.9091 | EH49: 2.5e-05 | EJ49: 0 | EK49: 0 | EM49: 0 | EN49: 0 | EP49: 0.0001 | EQ49: 0 | ES49: 0 | ET49: 0
C50: 11128 | D50: AYC COLANTA | F50: 6 | G50: 4 | H50: 15 | I50: 3 | J50: 24 | L50: 0.7368 | N50: 0.9937 | O50: -0.0001 | Q50: 1 | R50: 1 | T50: 1 | U50: 1 | W50: 0.75 | X50: 0 | Z50: 0.5333 | AA50: -0.0381 | AC50: 1 | AD50: 1 | AF50: 0.2917 | AG50: -0.0126 | AI50: 1 | AJ50: 1 | AL50: 0.0625 | AM50: 0 | AO50: 0.35145 | AQ50: 0.0555 | AR50: -0.004 | AT50: 65.95 | AU50: 29.09 | AW50: 0.2447 | AX50: -0.0086 | AZ50: 0.4656 | BA50: -0.0039 | BC50: 0.64 | BD50: -0.25 | BF50: 1.052625 | BH50: 0.5382 | BI50: 0.0848 | BK50: 0.1368 | BL50: 0.0101 | BN50: 1.15 | BO50: -1 | BQ50: 0.2447 | BR50: -0.0086 | BT50: 0.0528 | BU50: -0.0019 | BW50: -0.3566 | BX50: -0.5062 | BZ50: 0.9996 | CA50: 0.016 | CC50: 5.6555 | CD50: 2.7806 | CF50: 0 | CH50: 0 | CI50: 0 | CK50: 0 | CL50: 0 | CN50: 0 | CO50: 0 | CQ50: 0 | CR50: 0 | CT50: 0 | CU50: 0 | CW50: 0 | CX50: 0 | CZ50: 0.22368 | DB50: 0.0911 | DC50: -0.0005 | DE50: 0.0356 | DF50: -0.0174 | DH50: 0.2417 | DI50: -0.0779 | DK50: 0 | DL50: 0 | DN50: 0.75 | DO50: 0 | DQ50: 0.2 | DS50: 0 | DT50: 0 | DV50: 0 | DW50: 0 | DY50: 0 | DZ50: -0.4185 | EB50: 0 | EC50: 0 | EE50: 1 | EF50: 0.0149 | EH50: 0.243375 | EJ50: 0 | EK50: 0 | EM50: 0.9734 | EN50: 0.9683 | EP50: 0.0001 | EQ50: -0.0078 | ES50: 0 | ET50: 0
C51: 11327 | D51: MICROEMPRESAS DE COLOMBIA A.C. | F51: 2 | G51: 2 | H51: 8 | I51: 10 | J51: 24 | L51: 0.2487 | N51: 0.4309 | O51: -0.283 | Q51: 0.0199 | R51: 0 | T51: 0.0199 | U51: 0 | W51: 0 | X51: -0.6243 | Z51: 0.5385 | AA51: -0.0215 | AC51: 0.4839 | AD51: -0.0645 | AF51: 0.5517 | AG51: -0.0197 | AI51: 0.1935 | AJ51: 0 | AL51: 0 | AM51: 0 | AO51: 0.5027 | AQ51: 0.0202 | AR51: 0.0112 | AT51: 1.87 | AU51: -11.94 | AW51: 0.5361 | AX51: 0.0182 | AZ51: 0.4945 | BA51: 0.0118 | BC51: 0.96 | BD51: 0.26 | BF51: 0.426275 | BH51: 0.3409 | BI51: 0.0296 | BK51: 0.3213 | BL51: -0.0277 | BN51: 0.95 | BO51: -0.12 | BQ51: 0.5361 | BR51: 0.0182 | BT51: 0.2296 | BU51: -0.0219 | BW51: -0.9777 | BX51: -0.2156 | BZ51: 0.965 | CA51: 0.8981 | CC51: 1.045 | CD51: 0.1124 | CF51: 0.18925 | CH51: 1 | CI51: 0 | CK51: 0.0878 | CL51: -0.122 | CN51: 0 | CO51: 0 | CQ51: 0 | CR51: 0 | CT51: 0.013 | CU51: -0.0042 | CW51: 0.0347 | CX51: 0.031 | CZ51: 0.29436 | DB51: 0.0281 | DC51: -0.0418 | DE51: 0.0163 | DF51: -0.0099 | DH51: 0.4274 | DI51: -0.0064 | DK51: 0 | DL51: 0 | DN51: 1 | DO51: 0 | DQ51: 0.21612 | DS51: 0.0805 | DT51: -0.0729 | DV51: 0 | DW51: -0.0329 | DY51: 0.0001 | DZ51: -0.9813 | EB51: 0 | EC51: 0 | EE51: 1 | EF51: 0 | EH51: 0.092825 | EJ51: 0 | EK51: 0 | EM51: 0.3713 | EN51: -0.8932 | EP51: 0 | EQ51: 0 | ES51: 0 | ET51: 0
B53: Medianas | L53: =AVERAGE(N53,Q53,T53,W53,Z53,AC53,AF53,AI53,AL53) -> 0.394813256 | N53: 0.706 | O53: -0.04835454441 | Q53: 0.3629904762 | R53: 0.1451610485 | T53: 0.3629904762 | U53: 0.1451610485 | W53: 0.45 | X53: 0 | Z53: 0.7084391304 | AA53: 0.06905859946 | AC53: 0.464428 | AD53: 0.007317390519 | AF53: 0.3309190476 | AG53: -0.03292534597 | AI53: 0.1255521739 | AJ53: 0.05275307685 | AL53: 0.042 | AM53: -0.02218170913 | AO53: =AVERAGE(AQ53,AW53,AZ53,BC53) -> 0.45425 | AQ53: 0.023 | AR53: -0.003413086295 | AT53: 12.66 | AU53: 3.186912404 | AW53: 0.481 | AX53: -0.01565016259 | AZ53: 0.483 | BA53: 0.03701421045 | BC53: 0.83 | BD53: 0.02882352941 | BF53: =AVERAGE(BH53,BK53,BN53,BQ53,BT53,BW53,BZ53,CC53) -> 0.62655 | BH53: 0.783 | BI53: 0.2251306354 | BK53: 0.489 | BL53: -0.03899156821 | BN53: 1.1404 | BO53: -0.07038170982 | BQ53: 0.481 | BR53: -0.01565016259 | BT53: 0.092 | BU53: -0.001293879229 | BW53: 0.852 | BX53: 1.121187293 | BZ53: 0.782 | CA53: 0.2256654928 | CC53: 0.393 | CD53: -0.09565736844 | CF53: =AVERAGE(CH53,CK53,CN53,CQ53,CT53,CW53) -> 0.4062713333 | CH53: 0.322 | CI53: 0.08809596248 | CK53: 0.294 | CL53: -0.5600640972 | CN53: 1 | CO53: 0 | CQ53: 1 | CR53: 0.798053024 | CT53: 0.012568 | CU53: 0.005006390221 | CW53: -0.19094 | CX53: -0.1547717736 | CZ53: =AVERAGE(DB53,DE53,DH53,DK53,DN53) -> 0.3064048 | DB53: 0.062 | DC53: -0.01363167916 | DE53: 0.224 | DF53: 0.08152255642 | DH53: 0.376 | DI53: -0.07583945681 | DK53: 2.4e-05 | DL53: -0.0001212507253 | DN53: 0.87 | DO53: -0.005 | DQ53: =AVERAGE(DS53,DV53,DY53,EB53,EE53) -> 0.2588648 | DS53: 0.006204 | DT53: -0.002901023126 | DV53: 0.013792 | DW53: 0.013792 | DY53: 0.098824 | DZ53: -0.03934331193 | EB53: 0.175504 | EC53: 0.1638500013 | EE53: 1 | EF53: 0 | EH53: =AVERAGE(EJ53,EM53,EP53,ES53) -> 0.5538918966 | EJ53: 0.5967625 | EK53: 0.2536607169 | EM53: 0.9168681818 | EN53: 0.4926989925 | EP53: 0.04046190476 | EQ53: 0.01654889105 | ES53: 0.661475 | ET53: 0.4413612316
C54: 90 | D54: COOPCAFAM | F54: 4 | G54: 3 | H54: 15 | I54: 4 | J54: 23 | L54: 0.2890222222 | N54: 0.6751 | O54: 0.0477 | Q54: 0 | R54: -0.0299 | T54: 0 | U54: -0.0299 | W54: 0 | X54: -0.7293 | Z54: 0.6667 | AA54: 0.0556 | AC54: 0.661 | AD54: 0.0217 | AF54: 0.2778 | AG54: -0.0858 | AI54: 0.2373 | AJ54: 0.0078 | AL54: 0.0833 | AM54: -0.0076 | AO54: =AVERAGE(AQ54,AW54,AZ54,BC54) -> 0.4536 | AQ54: 0.0012 | AR54: 0.1166 | AT54: 2.88 | AU54: -0.09 | AW54: 0.6474 | AX54: 0.0159 | AZ54: 0.5958 | BA54: -0.0122 | BC54: 0.57 | BD54: -0.04 | BF54: =AVERAGE(BH54,BK54,BN54,BQ54,BT54,BW54,BZ54,CC54) -> 0.6982125 | BH54: 0.0867 | BI54: -0.0008 | BK54: 0.6165 | BL54: -0.0773 | BN54: 1.16 | BO54: -0.05 | BQ54: 0.6474 | BR54: 0.0159 | BT54: 0.057 | BU54: 0.0005 | BW54: 1.3804 | BX54: 2.0586 | BZ54: 0.7302 | CA54: 0.016 | CC54: 0.9075 | CD54: 0.7406 | CF54: =AVERAGE(CH54,CK54,CN54,CQ54,CT54,CW54) -> 0.3360666667 | CH54: 0.0018 | CI54: 0.0006 | CK54: 0.0064 | CL54: 0.0025 | CN54: 0.4 | CO54: -0.5091 | CQ54: 1 | CR54: 0.9658 | CT54: 0 | CU54: 0 | CW54: 0.6082 | CX54: 1.185 | CZ54: =AVERAGE(DB54,DE54,DH54,DK54,DN54) -> 0.2717 | DB54: 0.0004 | DC54: 0.0004 | DE54: 0.2665 | DF54: -0.1659 | DH54: 0.2166 | DI54: -0.0776 | DK54: 0 | DL54: -0.0027 | DN54: 0.875 | DO54: 0 | DQ54: =AVERAGE(DS54,DV54,DY54,EB54,EE54) -> 0 | DS54: 0 | DT54: 0 | DV54: 0 | DW54: 0 | DY54: 0 | DZ54: 0 | EB54: 0 | EC54: 0 | EE54: 0 | EF54: 0 | EH54: =AVERAGE(EJ54,EM54,EP54,ES54) -> 0.0161 | EJ54: 0 | EK54: 0 | EM54: 0.0372 | EN54: -1.6157 | EP54: 0.0272 | EQ54: -0.0017 | ES54: 0 | ET54: 0
C55: 246 | D55: COOPEBIS | F55: 4 | G55: 3 | H55: 13 | I55: 7 | J55: 22 | L55: 0.2402444444 | N55: 0.5128 | O55: 0.0061 | Q55: 0 | R55: 0 | T55: 0 | U55: 0 | W55: 0 | X55: 0 | Z55: 0.6316 | AA55: 0.0316 | AC55: 0.5467 | AD55: 0.0134 | AF55: 0.4444 | AG55: -0.1112 | AI55: 0.0267 | AJ55: 0.0045 | AL55: 0 | AM55: 0 | AO55: 0.435025 | AQ55: -0.0545 | AR55: -0.0038 | AT55: 18.04 | AU55: -1.63 | AW55: 0.658 | AX55: 0.1511 | AZ55: 0.2666 | BA55: 0.0295 | BC55: 0.87 | BD55: 0.05 | BF55: 0.48175 | BH55: 1.2446 | BI55: 0.1615 | BK55: 0.262 | BL55: -0.0643 | BN55: 1.17 | BO55: -1.06 | BQ55: 0.658 | BR55: 0.1511 | BT55: 0.0715 | BU55: 0.0002 | BW55: -1 | BX55: -0.995 | BZ55: 0.536 | CA55: 0.3248 | CC55: 0.9119 | CD55: 0.7867 | CF55: 0.3489166667 | CH55: 0.0132 | CI55: 0.0057 | CK55: 0.1789 | CL55: 0.134 | CN55: 0.28 | CO55: -0.6 | CQ55: 1 | CR55: 0 | CT55: 0.0103 | CU55: 0.0031 | CW55: 0.6111 | CX55: 1.4326 | CZ55: 0.33552 | DB55: 0 | DC55: 0 | DE55: 0 | DF55: -0.2913 | DH55: 0.677 | DI55: 0.0412 | DK55: 0.0006 | DL55: 0.0006 | DN55: 1 | DO55: 0 | DQ55: 0.18118 | DS55: 0.0002 | DT55: -0.0005 | DV55: 0 | DW55: 0 | DY55: 0 | DZ55: 0 | EB55: 0 | EC55: 0 | EE55: 0.9057 | EF55: -0.0387 | EH55: 0.1626 | EJ55: 0 | EK55: 0 | EM55: 0.5458 | EN55: -0.0974 | EP55: 0.1046 | EQ55: 0.0318 | ES55: 0 | ET55: 0
C56: 284 | D56: COOPEDAC | F56: 2 | G56: 5 | H56: 14 | I56: 4 | J56: 24 | L56: 0.3723222222 | N56: 0.5975 | O56: 0.3226 | Q56: 0.3788 | R56: -0.6212 | T56: 0.3788 | U56: -0.6212 | W56: 0.6791 | X56: -0.0032 | Z56: 0.8667 | AA56: 0.8667 | AC56: 0.2833 | AD56: 0 | AF56: 0.1667 | AG56: 0.1667 | AI56: 0 | AJ56: -0.0333 | AL56: 0 | AM56: 0 | AO56: 0.456875 | AQ56: -0.052 | AR56: 0.0694 | AT56: 4.47 | AU56: 1.4 | AW56: 0.3617 | AX56: 0.0311 | AZ56: 0.5278 | BA56: -0.1053 | BC56: 0.99 | BD56: 0 | BF56: 0.711725 | BH56: 0.7495 | BI56: -0.1187 | BK56: 0.3807 | BL56: -0.0936 | BN56: 1.45 | BO56: 0.15 | BQ56: 0.3617 | BR56: 0.0311 | BT56: 0.0351 | BU56: 0.0026 | BW56: 2.2576 | BX56: 3.0753 | BZ56: 0.1006 | CA56: -0.3129 | CC56: 0.3586 | CD56: 0.2576 | CF56: 0.3165666667 | CH56: 1 | CI56: -0.0538 | CK56: 0.1591 | CL56: -0.2544 | CN56: 0.619 | CO56: -0.0893 | CQ56: 0.0107 | CR56: -0.9893 | CT56: 0.0207 | CU56: 0.0065 | CW56: 0.0899 | CX56: 0.0265 | CZ56: 0.31784 | DB56: 0.09 | DC56: -0.0952 | DE56: 0.1438 | DF56: 0.0625 | DH56: 0.3554 | DI56: -0.0031 | DK56: 0 | DL56: -0.0016 | DN56: 1 | DO56: 0 | DQ56: 2 | DS56: 0 | DT56: 0 | DV56: 0 | DW56: 0 | DY56: 0 | DZ56: 0 | EB56: 0 | EC56: 0 | EE56: 10 | EF56: 10 | EH56: 0.368625 | EJ56: 0.9922 | EK56: 0.1385 | EM56: 0.4532 | EN56: -1.4503 | EP56: 0.0291 | EQ56: -0.0026 | ES56: 0 | ET56: 0
C57: 561 | D57: COOP PROFESORES U NAL | F57: 3 | G57: 5 | H57: 13 | I57: 6 | J57: 23 | L57: 0.3811222222 | N57: 0.6658 | O57: -0.3342 | Q57: 0.2422 | R57: 0.2165 | T57: 0.2422 | U57: 0.2165 | W57: 1 | X57: 0 | Z57: 0.7647 | AA57: -0.2353 | AC57: 0.2368 | AD57: -0.0611 | AF57: 0.1875 | AG57: -0.1125 | AI57: 0 | AJ57: 0 | AL57: 0.0909 | AM57: 0.0909 | AO57: 0.441275 | AQ57: 0.0463 | AR57: -0.0157 | AT57: 10.21 | AU57: -3.22 | AW57: 0.4263 | AX57: 0.0306 | AZ57: 0.4225 | BA57: 0.0696 | BC57: 0.87 | BD57: 0.03 | BF57: 0.50085 | BH57: 0.6536 | BI57: -0.0735 | BK57: 0.536 | BL57: -0.1872 | BN57: 1.03 | BO57: -0.98 | BQ57: 0.4263 | BR57: 0.0306 | BT57: 0.0499 | BU57: 0.0011 | BW57: 0 | BX57: 0.9213 | BZ57: 0.1382 | CA57: 0.1179 | CC57: 1.1728 | CD57: -6.6267 | CF57: 0.2163 | CH57: 1 | CI57: 0.9977 | CK57: 0.0964 | CL57: -1.4444 | CN57: 0.0588 | CO57: -0.3957 | CQ57: 0 | CR57: 0 | CT57: 0.0098 | CU57: 0.0046 | CW57: 0.1328 | CX57: 0.1328 | CZ57: 0.261 | DB57: 0 | DC57: 0 | DE57: 0.1124 | DF57: -0.1265 | DH57: 0.1926 | DI57: -0.0344 | DK57: 0 | DL57: 0 | DN57: 1 | DO57: 0 | DQ57: 1.00784 | DS57: 0.0001 | DT57: -0.0513 | DV57: 0 | DW57: 0 | DY57: 0.0391 | DZ57: 0.0391 | EB57: 0 | EC57: 0 | EE57: 5 | EF57: 5 | EH57: 0.2611 | EJ57: 0 | EK57: 0 | EM57: 0.0658 | EN57: -0.0257 | EP57: 0.1145 | EQ57: 0.0266 | ES57: 0.8641 | ET57: 0.8641
C58: 631 | D58: CREDICOOP | F58: 9 | G58: 2 | H58: 4 | I58: 7 | J58: 31 | L58: 0.09236666667 | N58: 0.4285 | O58: -0.0575 | Q58: 0 | R58: -1 | T58: 0 | U58: -1 | W58: 0 | X58: -1 | Z58: 0 | AA58: -0.625 | AC58: 0.375 | AD58: 0.0325 | AF58: 0 | AG58: -0.4167 | AI58: 0.0278 | AJ58: 0.0141 | AL58: 0 | AM58: -0.15 | AO58: 0.427575 | AQ58: 0.0173 | AR58: -0.0427 | AT58: 10.59 | AU58: 0.95 | AW58: 0.4599 | AX58: 0.0101 | AZ58: 0.5031 | BA58: -0.0228 | BC58: 0.73 | BD58: 0.05 | BF58: 0.295925 | BH58: 0.3585 | BI58: -0.0896 | BK58: 0.2807 | BL58: -0.0401 | BN58: 1.05 | BO58: -0.36 | BQ58: 0.4599 | BR58: 0.0101 | BT58: 0.0716 | BU58: 0.0006 | BW58: -0.5524 | BX58: 0.2222 | BZ58: 0.1479 | CA58: 0.036 | CC58: 0.5512 | CD58: 0.1042 | CF58: -0.1065166667 | CH58: 0.0004 | CI58: -0.0022 | CK58: 0.0023 | CL58: -0.0263 | CN58: 0 | CO58: -0.15 | CQ58: 0.15 | CR58: -0.6192 | CT58: 0.0356 | CU58: 0.0209 | CW58: -0.8274 | CX58: -1.099 | CZ58: 0.35168 | DB58: 0 | DC58: -0.0208 | DE58: 0.1702 | DF58: 0.0601 | DH58: 0.5882 | DI58: -0.0354 | DK58: 0 | DL58: 0 | DN58: 1 | DO58: 0 | DQ58: 0.00156 | DS58: 0 | DT58: 0 | DV58: 0 | DW58: 0 | DY58: 0.0078 | DZ58: -0.0605 | EB58: 0 | EC58: 0 | EE58: 0 | EF58: 0 | EH58: 0.00045 | EJ58: 0 | EK58: 0 | EM58: 0 | EN58: 0 | EP58: 0.0018 | EQ58: -0.0001 | ES58: 0 | ET58: 0
C59: 757 | D59: COOTRAPELDAR | F59: 5 | G59: 6 | H59: 15 | I59: 5 | J59: 22 | L59: 0.3856444444 | N59: 0.8419 | O59: 0.0921 | Q59: 0.057 | R59: 0.057 | T59: 0.057 | U59: 0.057 | W59: 0.7621 | X59: 0.7621 | Z59: 0.75 | AA59: -1.1071 | AC59: 0.5417 | AD59: 0.0315 | AF59: 0.2667 | AG59: 0.1238 | AI59: 0.1944 | AJ59: 0.0924 | AL59: 0 | AM59: 0 | AO59: 0.430825 | AQ59: 0.0647 | AR59: 0.0023 | AT59: 13.23 | AU59: 1.15 | AW59: 0.3707 | AX59: -0.1701 | AZ59: 0.4579 | BA59: 0.0532 | BC59: 0.83 | BD59: 0.01 | BF59: 0.859575 | BH59: 2.0407 | BI59: -0.0021 | BK59: 0.6595 | BL59: -0.0038 | BN59: 1.08 | BO59: -0.06 | BQ59: 0.3707 | BR59: -0.1701 | BT59: 0.0611 | BU59: 0.0037 | BW59: -0.2555 | BX59: -0.3526 | BZ59: 1.2398 | CA59: 0.3612 | CC59: 1.6803 | CD59: 0.6325 | CF59: 0.39475 | CH59: 0.0025 | CI59: 0.0025 | CK59: 0.1045 | CL59: 0.0415 | CN59: 1.3333 | CO59: -0.5238 | CQ59: 1 | CR59: 0 | CT59: 0.0027 | CU59: -0.003 | CW59: -0.0745 | CX59: -0.0745 | CZ59: 0.4213 | DB59: 0 | DC59: 0 | DE59: 0.4401 | DF59: -0.5011 | DH59: 0.7914 | DI59: -0.1957 | DK59: 0 | DL59: 0 | DN59: 0.875 | DO59: 0 | DQ59: 0.06666 | DS59: 0 | DT59: 0 | DV59: 0 | DW59: 0 | DY59: 0 | DZ59: 0 | EB59: 0 | EC59: 0 | EE59: 0.3333 | EF59: 0.0724 | EH59: 0.00065 | EJ59: 0 | EK59: 0 | EM59: 0.0015 | EN59: 0.0015 | EP59: 0.0011 | EQ59: -0.0131 | ES59: 0 | ET59: 0
C60: 821 | D60: ALIANZA | F60: 3 | G60: 4 | H60: 12 | I60: 8 | J60: 22 | L60: 0.4019222222 | N60: 0.9244 | O60: 0.0271 | Q60: 0.1246 | R60: 0.0008 | T60: 0.1246 | U60: 0.0008 | W60: 0.7226 | X60: -0.0122 | Z60: 0.7143 | AA60: 0.1217 | AC60: 0.4694 | AD60: -0.0735 | AF60: 0.4762 | AG60: 0.0119 | AI60: 0.0612 | AJ60: -0.0531 | AL60: 0 | AM60: 0 | AO60: 0.49755 | AQ60: 0.0391 | AR60: -0.0378 | AT60: 82.94 | AU60: 78.91 | AW60: 0.4865 | AX60: -0.0182 | AZ60: 0.5546 | BA60: -0.0072 | BC60: 0.91 | BD60: 0.04 | BF60: 1.3439125 | BH60: 2.202 | BI60: 0.9747 | BK60: 0.7607 | BL60: -0.0328 | BN60: 0.97 | BO60: 0.44 | BQ60: 0.4865 | BR60: -0.0182 | BT60: 0.0601 | BU60: 0.0022 | BW60: -0.6804 | BX60: -0.002 | BZ60: 0.871 | CA60: -0.1537 | CC60: 6.0814 | CD60: 5.4175 | CF60: -0.07705 | CH60: 0 | CI60: -0.001 | CK60: 0.0224 | CL60: -0.0344 | CN60: 0.5 | CO60: -0.5 | CQ60: 0 | CR60: -0.0307 | CT60: 0.0153 | CU60: 0.0066 | CW60: -1 | CX60: -0.1659 | CZ60: 0.1956 | DB60: 0.113 | DC60: -0.0119 | DE60: 0.049 | DF60: -0.6484 | DH60: 0.441 | DI60: -3.0682 | DK60: 0 | DL60: 0 | DN60: 0.375 | DO60: -0.625 | DQ60: 0.1925 | DS60: 0 | DT60: 0 | DV60: 0 | DW60: 0 | DY60: 0 | DZ60: 0 | EB60: 0 | EC60: 0 | EE60: 0.9625 | EF60: -0.0112 | EH60: 0.00505 | EJ60: 0 | EK60: 0 | EM60: 0.0181 | EN60: -0.0584 | EP60: 0.0021 | EQ60: -0.0289 | ES60: 0 | ET60: 0
C61: 1190 | D61: COOVITEL | F61: 2 | G61: 4 | H61: 16 | I61: 7 | J61: 19 | L61: 0.4238777778 | N61: 0.8548 | O61: 0.3578 | Q61: 0.1795 | R61: 0.1795 | T61: 0.1795 | U61: 0.1795 | W61: 1 | X61: 1 | Z61: 0.5385 | AA61: -0.0215 | AC61: 0.5313 | AD61: -0.002 | AF61: 0.5 | AG61: -0.1 | AI61: 0.0313 | AJ61: -0.0131 | AL61: 0 | AM61: 0 | AO61: 0.4476 | AQ61: 0.0048 | AR61: -0.2935 | AT61: 22.11 | AU61: 6.48 | AW61: 0.4734 | AX61: 0.0148 | AZ61: 0.3322 | BA61: 0.0947 | BC61: 0.98 | BD61: 0.03 | BF61: 0.8866875 | BH61: 0.8054 | BI61: 0.0986 | BK61: 0.1735 | BL61: -0.2412 | BN61: 1.29 | BO61: 0.35 | BQ61: 0.4734 | BR61: 0.0148 | BT61: 0.1036 | BU61: -0.0127 | BW61: 0.0964 | BX61: 0.3323 | BZ61: 2.5444 | CA61: -0.0239 | CC61: 1.6068 | CD61: 0.4507 | CF61: 0.2846333333 | CH61: 0.001 | CI61: -0.0205 | CK61: 0.6381 | CL61: 0.0805 | CN61: 0.75 | CO61: -0.0147 | CQ61: 1 | CR61: 0 | CT61: 0.0243 | CU61: 0.0104 | CW61: -0.7056 | CX61: -0.4546 | CZ61: 0.29874 | DB61: 0.1285 | DC61: 0.0281 | DE61: 0.0419 | DF61: -0.0408 | DH61: 0.3233 | DI61: -0.0193 | DK61: 0 | DL61: 0 | DN61: 1 | DO61: 0 | DQ61: 0.4003 | DS61: 0.0015 | DT61: 0.0015 | DV61: 0 | DW61: 0 | DY61: 0 | DZ61: 0 | EB61: 1 | EC61: 1 | EE61: 1 | EF61: 0 | EH61: 0.2036 | EJ61: 0.7487 | EK61: 0.1815 | EM61: 0.0025 | EN61: -0.0156 | EP61: 0.0006 | EQ61: -0.0403 | ES61: 0.0626 | ET61: -0.103
C62: 1266 | D62: COOACUEDUCTO | F62: 4 | G62: 7 | H62: 14 | I62: 5 | J62: 23 | L62: 0.5748777778 | N62: 0.7697 | O62: -0.3114 | Q62: 0.5599 | R62: 0.5334 | T62: 0.5599 | U62: 0.5334 | W62: 1.7861 | X62: 0.7861 | Z62: 1 | AA62: 0 | AC62: 0.26 | AD62: -0.0127 | AF62: 0.2083 | AG62: -0.0774 | AI62: 0.03 | AJ62: -0.0104 | AL62: 0 | AM62: 0 | AO62: 0.38465 | AQ62: 0.0539 | AR62: 0.0337 | AT62: 4.67 | AU62: 2.75 | AW62: 0.2035 | AX62: -0.0702 | AZ62: 0.3412 | BA62: 0.0768 | BC62: 0.94 | BD62: 0.08 | BF62: 0.5660125 | BH62: 1.1213 | BI62: -1.077 | BK62: 0.4908 | BL62: 0.1313 | BN62: 1.08 | BO62: -0.16 | BQ62: 0.2035 | BR62: -0.0702 | BT62: 0.09 | BU62: -0.003 | BW62: 0.0225 | BX62: -11.0224 | BZ62: 1.3043 | CA62: 1.201 | CC62: 0.2157 | CD62: -0.0424 | CF62: 2.08395 | CH62: 1 | CI62: 0.9819 | CK62: 0.0402 | CL62: -0.0548 | CN62: 10.3333 | CO62: -0.1905 | CQ62: 1 | CR62: 0.1082 | CT62: 0.0058 | CU62: -0.0001 | CW62: 0.1244 | CX62: -1.9035 | CZ62: 0.26862 | DB62: 0 | DC62: 0 | DE62: 0.0641 | DF62: -4.5106 | DH62: 0.404 | DI62: -0.0158 | DK62: 0 | DL62: 0 | DN62: 0.875 | DO62: 0.125 | DQ62: 0.20022 | DS62: 0.0011 | DT62: 0.0008 | DV62: 0 | DW62: 0 | DY62: 0 | DZ62: 0 | EB62: 0 | EC62: 0 | EE62: 1 | EF62: 0.1923 | EH62: 0.02565 | EJ62: 0 | EK62: 0 | EM62: 0.1026 | EN62: -0.0006 | EP62: 0 | EQ62: 0 | ES62: 0 | ET62: 0
C63: 1377 | D63: COOPRIACHON | F63: 4 | G63: 6 | H63: 17 | I63: 5 | J63: 20 | L63: 0.3182777778 | N63: 0.6377 | O63: 0.1616 | Q63: 0.3576 | R63: 0 | T63: 0.3576 | U63: 0 | W63: 1 | X63: 0 | Z63: 0 | AA63: -0.24 | AC63: 0.3256 | AD63: 0.0456 | AF63: 0 | AG63: -0.3214 | AI63: 0.186 | AJ63: -0.114 | AL63: 0 | AM63: -0.25 | AO63: 0.511575 | AQ63: 0.0602 | AR63: 0.0051 | AT63: 21.49 | AU63: 1.69 | AW63: 0.5244 | AX63: 0.0274 | AZ63: 0.5117 | BA63: 0.0031 | BC63: 0.95 | BD63: 0 | BF63: 0.6504125 | BH63: 0.6722 | BI63: 0.1692 | BK63: 0.5077 | BL63: -0.0733 | BN63: 1.29 | BO63: 0.03 | BQ63: 0.5244 | BR63: 0.0274 | BT63: 0.0578 | BU63: -0.0052 | BW63: -0.2503 | BX63: 0.7497 | BZ63: 1.6585 | CA63: 0.7413 | CC63: 0.743 | CD63: 0.3082 | CF63: 2.769033333 | CH63: 0.0425 | CI63: 0.0151 | CK63: 0.7583 | CL63: 0.6074 | CN63: 14 | CO63: 11.0588 | CQ63: 1 | CR63: 0 | CT63: 0.0458 | CU63: 0.0291 | CW63: 0.7676 | CX63: 0.76 | CZ63: 0.26718 | DB63: 0.0332 | DC63: 0.0332 | DE63: 0.1413 | DF63: 0.0293 | DH63: 0.2864 | DI63: -0.0118 | DK63: 0 | DL63: 0 | DN63: 0.875 | DO63: 0.125 | DQ63: 0.97406 | DS63: 0 | DT63: -0.0026 | DV63: 0 | DW63: 0 | DY63: 0.0065 | DZ63: 0.0027 | EB63: 0 | EC63: 0 | EE63: 4.8638 | EF63: -8.2538 | EH63: 0.004075 | EJ63: 0 | EK63: 0 | EM63: 0 | EN63: -0.1726 | EP63: 0.0163 | EQ63: 0.0044 | ES63: 0 | ET63: 0
C64: 1648 | D64: COOYARUMAL | F64: 2 | G64: 5 | H64: 11 | I64: 7 | J64: 24 | L64: 0.4078777778 | N64: 1.0511 | O64: 0.6471 | Q64: 0.2597 | R64: 0 | T64: 0.2597 | U64: 0 | W64: 1 | X64: 0 | Z64: 0.4615 | AA64: -0.3385 | AC64: 0.4889 | AD64: 0 | AF64: 0 | AG64: -0.9 | AI64: 0.0667 | AJ64: -0.0222 | AL64: 0.0833 | AM64: 0 | AO64: 0.52325 | AQ64: 0.0148 | AR64: -0.0018 | AT64: 19.4 | AU64: 1.87 | AW64: 0.5251 | AX64: -0.0435 | AZ64: 0.6131 | BA64: -0.0424 | BC64: 0.94 | BD64: -0.01 | BF64: 0.5411125 | BH64: 0 | BI64: 0 | BK64: 0.13 | BL64: -0.0506 | BN64: 1.16 | BO64: 0.1 | BQ64: 0.5251 | BR64: -0.0435 | BT64: 0.1758 | BU64: -0.0105 | BW64: -0.2464 | BX64: -1.1278 | BZ64: 0.7709 | CA64: 0.0151 | CC64: 1.8135 | CD64: 1.0542 | CF64: 0.4544666667 | CH64: 0.0174 | CI64: -0.0013 | CK64: 0.1961 | CL64: -0.2393 | CN64: 1.6111 | CO64: -0.3544 | CQ64: 1 | CR64: 0 | CT64: 0.0169 | CU64: -0.003 | CW64: -0.1147 | CX64: 0.3788 | CZ64: 0.21964 | DB64: 0 | DC64: 0 | DE64: 0.0628 | DF64: -0.0025 | DH64: 0.0354 | DI64: -0.322 | DK64: 0 | DL64: 0 | DN64: 1 | DO64: 0 | DQ64: 0.14982 | DS64: 0.0215 | DT64: 0.0161 | DV64: 0.3278 | DW64: 0.3278 | DY64: 0.1539 | DZ64: 0.1421 | EB64: 0.0837 | EC64: 0.0837 | EE64: 0.1622 | EF64: 0.0136 | EH64: 0.013475 | EJ64: 0 | EK64: 0 | EM64: 0.0126 | EN64: -0.0048 | EP64: 0.0413 | EQ64: 0.0025 | ES64: 0 | ET64: 0
C65: 1661 | D65: PIO XII | F65: 1 | G65: 3 | H65: 9 | I65: 7 | J65: 26 | L65: 0.4085 | N65: 0.5003 | O65: -0.186 | Q65: 0.2841 | R65: 0 | T65: 0.2841 | U65: 0 | W65: 1 | X65: 0 | Z65: 0.75 | AA65: 0.1786 | AC65: 0.2927 | AD65: -0.0629 | AF65: 0.3077 | AG65: -0.0256 | AI65: 0.1951 | AJ65: 0.0618 | AL65: 0.0625 | AM65: -0.0042 | AO65: 0.3026 | AQ65: 0.1519 | AR65: -0.0487 | AT65: 9.68 | AU65: 0.73 | AW65: 0.5091 | AX65: -0.0107 | AZ65: 0.5494 | BA65: -0.0281 | BC65: 0 | BD65: 0 | BF65: 0.9489 | BH65: 0.4209 | BI65: 0.0048 | BK65: 0.3702 | BL65: -0.2237 | BN65: 1.34 | BO65: -0.05 | BQ65: 0.5091 | BR65: -0.0107 | BT65: 0.1253 | BU65: -0.0091 | BW65: -0.371 | BX65: -0.2255 | BZ65: 0.4348 | CA65: 0.2767 | CC65: 4.7619 | CD65: 3.6204 | CF65: 0.2083 | CH65: 0 | CI65: -0.0044 | CK65: 0.3984 | CL65: 0.2416 | CN65: 0.8462 | CO65: 0.4359 | CQ65: 1 | CR65: 0 | CT65: 0.0052 | CU65: 0.0023 | CW65: -1 | CX65: -1.3687 | CZ65: 0.31096 | DB65: 0.082 | DC65: -0.009 | DE65: 0.8821 | DF65: 0.8294 | DH65: 0.2157 | DI65: -0.0239 | DK65: 0 | DL65: 0 | DN65: 0.375 | DO65: -0.125 | DQ65: 0.1189 | DS65: 0.0073 | DT65: 0.004 | DV65: 0 | DW65: 0 | DY65: 0.0049 | DZ65: 0.0049 | EB65: 0 | EC65: 0 | EE65: 0.5823 | EF65: -0.2826 | EH65: 0.0999 | EJ65: 0.3659 | EK65: 0.0174 | EM65: 0.0204 | EN65: 0.0204 | EP65: 0.0133 | EQ65: 0.0023 | ES65: 0 | ET65: 0
C66: 1703 | D66: COPACREDITO SANTA ROSA | F66: 6 | G66: 5 | H66: 12 | I66: 7 | J66: 23 | L66: 0.3218222222 | N66: 0.9209 | O66: -0.0346 | Q66: 0 | R66: -0.1975 | T66: 0 | U66: -0.1975 | W66: 0 | X66: -1 | Z66: 0.5714 | AA66: 0.2185 | AC66: 0.6364 | AD66: 0.065 | AF66: 0.2222 | AG66: -0.1624 | AI66: 0.2955 | AJ66: 0.0302 | AL66: 0.25 | AM66: 0 | AO66: 0.313525 | AQ66: 0.0942 | AR66: -0.0011 | AT66: 30.19 | AU66: 1.16 | AW66: 0.5327 | AX66: 0.0068 | AZ66: 0.6272 | BA66: 0.0273 | BC66: 0 | BD66: 0 | BF66: 0.798275 | BH66: 1.0894 | BI66: 0.8391 | BK66: 0.4339 | BL66: -0.0995 | BN66: 0.92 | BO66: -0.31 | BQ66: 0.5327 | BR66: 0.0068 | BT66: 0.1329 | BU66: -0.0083 | BW66: -0.1247 | BX66: -0.0393 | BZ66: 1.8784 | CA66: 0.6358 | CC66: 1.5236 | CD66: 0.4354 | CF66: 0.5696333333 | CH66: 0 | CI66: -0.0138 | CK66: 0.3997 | CL66: 0.2271 | CN66: 3 | CO66: 2 | CQ66: 1 | CR66: 0 | CT66: 0.0181 | CU66: 0.0095 | CW66: -1 | CX66: -0.2841 | CZ66: 0.2 | DB66: 0 | DC66: 0 | DE66: 0 | DF66: 0 | DH66: 0 | DI66: 0 | DK66: 0 | DL66: 0 | DN66: 1 | DO66: 0 | DQ66: 0.11408 | DS66: 0.0871 | DT66: 0.0871 | DV66: 0 | DW66: 0 | DY66: 0 | DZ66: 0 | EB66: 0 | EC66: 0 | EE66: 0.4833 | EF66: -0.2881 | EH66: 0.139025 | EJ66: 0 | EK66: 0 | EM66: 0.5561 | EN66: -0.279 | EP66: 0 | EQ66: 0 | ES66: 0 | ET66: 0
C67: 1760 | D67: CREARCOOP | F67: 0 | G67: 11 | H67: 17 | I67: 6 | J67: 19 | L67: 0.7620444444 | N67: 2.9641 | O67: -1.653 | Q67: 0.1569 | R67: -0.0212 | T67: 0.1569 | U67: -0.0212 | W67: 0.8002 | X67: -0.1998 | Z67: 1.3333 | AA67: 1.3333 | AC67: 0.5614 | AD67: -0.0433 | AF67: 0.6154 | AG67: 0.6154 | AI67: 0.0702 | AJ67: 0.0237 | AL67: 0.2 | AM67: 0.2 | AO67: 0.302125 | AQ67: 0.2719 | AR67: 0.2825 | AT67: 12.87 | AU67: 12.87 | AW67: 0.5295 | AX67: -0.0098 | AZ67: 0.4071 | BA67: -0.0007 | BC67: 0 | BD67: 0 | BF67: 2.32065 | BH67: 1.2915 | BI67: 0.1028 | BK67: 0.1769 | BL67: -0.046 | BN67: 1.4 | BO67: -0.01 | BQ67: 0.5295 | BR67: -0.0098 | BT67: 0.0168 | BU67: -0.0025 | BW67: -0.4555 | BX67: 0.5445 | BZ67: 2.7228 | CA67: 2.3603 | CC67: 12.8832 | CD67: 5.4064 | CF67: 0.337 | CH67: 0.0008 | CI67: -0.0012 | CK67: 1.0071 | CL67: -17.991 | CN67: 0.4688 | CO67: 0.4688 | CQ67: 1 | CR67: 0 | CT67: 0 | CU67: -0.0008 | CW67: -0.4547 | CX67: -0.4547 | CZ67: 0.24892 | DB67: 0.1902 | DC67: -0.0149 | DE67: 0.0123 | DF67: 0.0113 | DH67: 0.0421 | DI67: -0.2426 | DK67: 0 | DL67: 0 | DN67: 1 | DO67: 0.125 | DQ67: 0.25192 | DS67: 0.0161 | DT67: 0.0138 | DV67: 0.017 | DW67: 0.017 | DY67: 0.5262 | DZ67: 0.1535 | EB67: 0.008 | EC67: 0.008 | EE67: 0.6923 | EF67: -0.3077 | EH67: 3.97005 | EJ67: 0.3732 | EK67: 0.3077 | EM67: 14.7289 | EN67: 14.3804 | EP67: 0.0089 | EQ67: -0.0028 | ES67: 0.7692 | ET67: 0.7692
C68: 1859 | D68: COOPSERVIVELEZ LIMITADA | F68: 2 | G68: 3 | H68: 14 | I68: 8 | J68: 20 | L68: 0.2942444444 | N68: 0.6303 | O68: 0.0085 | Q68: 0.063 | R68: 0 | T68: 0.063 | U68: 0 | W68: 0 | X68: 0 | Z68: 0.6522 | AA68: 0.0332 | AC68: 0.5208 | AD68: -0.0162 | AF68: 0.5897 | AG68: -0.0319 | AI68: 0.0625 | AJ68: -0.0116 | AL68: 0.0667 | AM68: -0.0102 | AO68: 0.2714 | AQ68: 0.1124 | AR68: 0.09 | AT68: 11.01 | AU68: 2.69 | AW68: 0.4728 | AX68: -0.0052 | AZ68: 0.5004 | BA68: -0.0565 | BC68: 0 | BD68: 0 | BF68: 0.8227875 | BH68: 0.6408 | BI68: -0.0357 | BK68: 0.337 | BL68: -0.0395 | BN68: 1.23 | BO68: 0.03 | BQ68: 0.4728 | BR68: -0.0052 | BT68: 0.3367 | BU68: 0.0011 | BW68: 0.507 | BX68: 1.1658 | BZ68: 0.2797 | CA68: 0.1692 | CC68: 2.7783 | CD68: 3.4328 | CF68: 0.5224 | CH68: 1 | CI68: 0 | CK68: 0.003 | CL68: 0.0006 | CN68: 0.625 | CO68: 0.2159 | CQ68: 1 | CR68: 0 | CT68: 0.0002 | CU68: 0 | CW68: 0.5062 | CX68: 0.7574 | CZ68: 0.2622 | DB68: 0 | DC68: 0 | DE68: 0.1025 | DF68: 0.0444 | DH68: 0.3335 | DI68: 0.0169 | DK68: 0 | DL68: 0 | DN68: 0.875 | DO68: 0.125 | DQ68: 0.30352 | DS68: 0.0073 | DT68: 0.0044 | DV68: 0 | DW68: 0 | DY68: 0.8858 | DZ68: 0.0206 | EB68: 0 | EC68: 0 | EE68: 0.6245 | EF68: 0 | EH68: 0.253 | EJ68: 0 | EK68: 0 | EM68: 1 | EN68: 0 | EP68: 0.012 | EQ68: -0.0137 | ES68: 0 | ET68: 0
C69: 1889 | D69: CONGENTE | F69: 1 | G69: 4 | H69: 14 | I69: 7 | J69: 21 | L69: 0.3355111111 | N69: 0.2234 | O69: -0.159 | Q69: 0.1327 | R69: 0.1327 | T69: 0.1327 | U69: 0.1327 | W69: 1 | X69: 1 | Z69: 0.6061 | AA69: 0.6061 | AC69: 0.4941 | AD69: 0.0458 | AF69: 0.3571 | AG69: 0.3571 | AI69: 0.0235 | AJ69: -0.0282 | AL69: 0.05 | AM69: 0.05 | AO69: 0.50295 | AQ69: 0.0187 | AR69: 0.0157 | AT69: 4.97 | AU69: 0.42 | AW69: 0.5084 | AX69: 0.0092 | AZ69: 0.5147 | BA69: -0.0417 | BC69: 0.97 | BD69: 0.04 | BF69: 0.3692 | BH69: 0.1359 | BI69: 0.1248 | BK69: 0.4442 | BL69: 0.0491 | BN69: 1.11 | BO69: 0.06 | BQ69: 0.5084 | BR69: 0.0092 | BT69: 0.1216 | BU69: 0 | BW69: -0.5325 | BX69: 0.2777 | BZ69: 0.1167 | CA69: -0.0434 | CC69: 1.0493 | CD69: 0.1835 | CF69: 0.6607666667 | CH69: 0.0109 | CI69: -0.0158 | CK69: 0.116 | CL69: -0.0419 | CN69: 3.5769 | CO69: -0.0631 | CQ69: 0.84 | CR69: -0.7433 | CT69: 0.0041 | CU69: 0.0022 | CW69: -0.5833 | CX69: -0.0439 | CZ69: 0.52208 | DB69: 0.1161 | DC69: -0.0267 | DE69: 0.7884 | DF69: 0.5655 | DH69: 0.8309 | DI69: 0.6168 | DK69: 0 | DL69: 0 | DN69: 0.875 | DO69: 0.375 | DQ69: 0.25848 | DS69: 0.0025 | DT69: 0.0008 | DV69: 0 | DW69: 0 | DY69: 0.3872 | DZ69: 0.3872 | EB69: 0.1127 | EC69: 0.1127 | EE69: 0.79 | EF69: 0.79 | EH69: 0.32025 | EJ69: 0.8356 | EK69: 0.8356 | EM69: 0.3903 | EN69: 0.2776 | EP69: 0.0551 | EQ69: 0.0542 | ES69: 0 | ET69: 0
C70: 1997 | D70: COOFIPOPULAR | F70: 6 | G70: 5 | H70: 16 | I70: 4 | J70: 22 | L70: 0.5900888889 | N70: 1 | O70: 0 | Q70: 1 | R70: 0.4475 | T70: 1 | U70: 0.4475 | W70: 1 | X70: 0.2519 | Z70: 0.5333 | AA70: 0 | AC70: 0.4667 | AD70: -0.005 | AF70: 0.2941 | AG70: -0.0905 | AI70: 0.0167 | AJ70: -0.0022 | AL70: 0 | AM70: 0 | AO70: 0.5329 | AQ70: 0.1395 | AR70: 0.0055 | AT70: 20.98 | AU70: -4.44 | AW70: 0.6585 | AX70: 0.0379 | AZ70: 0.6136 | BA70: 0.1104 | BC70: 0.72 | BD70: 0.11 | BF70: 1.941575 | BH70: 0.8992 | BI70: -0.8021 | BK70: 0.0969 | BL70: 0.0013 | BN70: 1.13 | BO70: 0.03 | BQ70: 0.6585 | BR70: 0.0379 | BT70: 0.0561 | BU70: -0.0047 | BW70: 11.1926 | BX70: 11.2046 | BZ70: 1.233 | CA70: -2.3809 | CC70: 0.2663 | CD70: -0.6279 | CF70: -0.007766666667 | CH70: 0.0124 | CI70: -0.9876 | CK70: 0.0378 | CL70: 0.0273 | CN70: 0.8714 | CO70: 0.4936 | CQ70: 0 | CR70: 0 | CT70: 0.0165 | CU70: 0.0008 | CW70: -0.9847 | CX70: -1.1617 | CZ70: 0.34238 | DB70: 0.1566 | DC70: -0.0043 | DE70: 0.0787 | DF70: -0.0512 | DH70: 0.4766 | DI70: 0.0334 | DK70: 0 | DL70: 0 | DN70: 1 | DO70: 0 | DQ70: 0 | DS70: 0 | DT70: 0 | DV70: 0 | DW70: 0 | DY70: 0 | DZ70: 0 | EB70: 0 | EC70: 0 | EE70: 0 | EF70: 0 | EH70: 0.02295 | EJ70: 0 | EK70: 0 | EM70: 0.063 | EN70: -0.0193 | EP70: 0.0288 | EQ70: -0.005 | ES70: 0 | ET70: 0
C71: 2077 | D71: COOPCARVAJAL | F71: 5 | G71: 3 | H71: 10 | I71: 5 | J71: 27 | L71: 0.2809111111 | N71: 0.6891 | O71: -0.3153 | Q71: 0.3029 | R71: 0 | T71: 0.3029 | U71: 0 | W71: 0 | X71: 0 | Z71: 0.5833 | AA71: 0.5833 | AC71: 0.3667 | AD71: -0.0062 | AF71: 0.2 | AG71: 0.2 | AI71: 0.0833 | AJ71: -0.0014 | AL71: 0 | AM71: 0 | AO71: 0.4688 | AQ71: -0.0676 | AR71: -0.0126 | AT71: 20.05 | AU71: 2.13 | AW71: 0.4051 | AX71: -0.007 | AZ71: 0.6277 | BA71: -0.0127 | BC71: 0.91 | BD71: 0.91 | BF71: 0.7165 | BH71: 1.402 | BI71: 0.1814 | BK71: 0.5258 | BL71: 0.0877 | BN71: 0.96 | BO71: 0.05 | BQ71: 0.4051 | BR71: -0.007 | BT71: 0.1656 | BU71: 0.0029 | BW71: -0.4162 | BX71: -0.7383 | BZ71: 2.6237 | CA71: 1.8193 | CC71: 0.066 | CD71: -0.0225 | CF71: 0.1788 | CH71: 1 | CI71: 0.0049 | CK71: 0 | CL71: 0 | CN71: 0 | CO71: 0 | CQ71: 0 | CR71: 0 | CT71: 0.0061 | CU71: -0.0002 | CW71: 0.0667 | CX71: 0.0847 | CZ71: 0.12714 | DB71: 0 | DC71: 0 | DE71: 0.0437 | DF71: -0.0338 | DH71: 0.342 | DI71: 0.0079 | DK71: 0 | DL71: 0 | DN71: 0.25 | DO71: -0.5 | DQ71: 0.13368 | DS71: 0 | DT71: 0 | DV71: 0 | DW71: 0 | DY71: 0 | DZ71: 0 | EB71: 0 | EC71: 0 | EE71: 0.6684 | EF71: -0.0976 | EH71: 0.048775 | EJ71: 0 | EK71: 0 | EM71: 0.1614 | EN71: -0.0866 | EP71: 0.0337 | EQ71: -0.0009 | ES71: 0 | ET71: 0
C72: 2871 | D72: COOTRACERREJON | F72: 1 | G72: 5 | H72: 12 | I72: 5 | J72: 25 | L72: 0.3140777778 | N72: 1.102 | O72: 0.0138 | Q72: 0.5797 | R72: 0 | T72: 0.5797 | U72: 0 | W72: 0 | X72: 0 | Z72: 0.5172 | AA72: -0.0185 | AC72: 0.0361 | AD72: -0.0009 | AF72: 0 | AG72: 0 | AI72: 0.012 | AJ72: -0.0003 | AL72: 0 | AM72: 0 | AO72: 0.3773 | AQ72: -0.0926 | AR72: -0.0115 | AT72: 1.27 | AU72: -1.72 | AW72: 0.3 | AX72: 0.3 | AZ72: 0.3818 | BA72: -0.0264 | BC72: 0.92 | BD72: 0 | BF72: 0.670125 | BH72: 2.076 | BI72: -0.1119 | BK72: 0.5396 | BL72: 0.5396 | BN72: 1.14 | BO72: 0.49 | BQ72: 0.3 | BR72: 0.3 | BT72: 0.0788 | BU72: 0.0178 | BW72: 0.0515 | BX72: 1.0515 | BZ72: 0.0337 | CA72: 0.0032 | CC72: 1.1414 | CD72: 0.0653 | CF72: 0.42565 | CH72: 0.0228 | CI72: 0.0073 | CK72: 0.0364 | CL72: -0.0033 | CN72: 0.8302 | CO72: 0.012 | CQ72: 1 | CR72: 0.4375 | CT72: 0.0228 | CU72: 0.0012 | CW72: 0.6417 | CX72: 1.2086 | CZ72: 0.25766 | DB72: 0.0911 | DC72: -0.3006 | DE72: 0.0382 | DF72: 0.0382 | DH72: 0.159 | DI72: -0.2839 | DK72: 0 | DL72: 0 | DN72: 1 | DO72: 0 | DQ72: 0.04616 | DS72: 0.0038 | DT72: 0.0003 | DV72: 0 | DW72: 0 | DY72: 0 | DZ72: 0 | EB72: 0 | EC72: 0 | EE72: 0.227 | EF72: -0.6758 | EH72: 0.3118 | EJ72: 0.9609 | EK72: 0.5429 | EM72: 0.2857 | EN72: -0.6133 | EP72: 0.0006 | EQ72: -0.0002 | ES72: 0 | ET72: 0
C73: 3018 | D73: COFINCAFE | F73: 0 | G73: 5 | H73: 14 | I73: 8 | J73: 20 | L73: 0.2760444444 | N73: 0.0898 | O73: -0.7428 | Q73: 0.0733 | R73: 0 | T73: 0.0733 | U73: 0 | W73: 0.8131 | X73: 0 | Z73: 0.6667 | AA73: 0 | AC73: 0.3235 | AD73: 0.0332 | AF73: 0.2609 | AG73: 0 | AI73: 0.0588 | AJ73: -0.0057 | AL73: 0.125 | AM73: 0 | AO73: 0.4699 | AQ73: 0.0653 | AR73: -0.0012 | AT73: 0.33 | AU73: -0.13 | AW73: 0.4532 | AX73: 0.028 | AZ73: 0.3911 | BA73: -0.0169 | BC73: 0.97 | BD73: -0.01 | BF73: 0.486825 | BH73: 0.4245 | BI73: 0.2026 | BK73: 0.1576 | BL73: -0.1068 | BN73: 1.21 | BO73: -0.07 | BQ73: 0.4532 | BR73: 0.028 | BT73: 0.0894 | BU73: 0.0065 | BW73: -0.9197 | BX73: -0.667 | BZ73: 1.0753 | CA73: 0.8504 | CC73: 1.4043 | CD73: -1.3622 | CF73: 0.5497 | CH73: 0.0001 | CI73: 0 | CK73: 1.0344 | CL73: 1.0014 | CN73: 1 | CO73: 0.619 | CQ73: 1 | CR73: 0 | CT73: 0.0066 | CU73: 0.0006 | CW73: 0.2571 | CX73: 1.2545 | CZ73: 0.31516 | DB73: 0.0743 | DC73: -0.0147 | DE73: 0.0412 | DF73: 0.0156 | DH73: 0.4603 | DI73: 0.1947 | DK73: 0 | DL73: 0 | DN73: 1 | DO73: 0 | DQ73: 0.8126 | DS73: 0.0007 | DT73: 0.0005 | DV73: 0 | DW73: 0 | DY73: 0.4232 | DZ73: 0.1022 | EB73: 2.8891 | EC73: 1.7292 | EE73: 0.75 | EF73: -0.1 | EH73: 0.238075 | EJ73: 0 | EK73: 0 | EM73: 0 | EN73: 0 | EP73: 0.0023 | EQ73: 0.001 | ES73: 0.95 | ET73: 0.6349
C74: 3033 | D74: AVANZA | F74: 3 | G74: 5 | H74: 12 | I74: 6 | J74: 24 | L74: 0.8271 | N74: 0.8216 | O74: -0.1784 | Q74: 0.1291 | R74: 0 | T74: 0.1291 | U74: 0 | W74: 5.0572 | X74: 0 | Z74: 0.5 | AA74: 0 | AC74: 0.4561 | AD74: 0 | AF74: 0.3333 | AG74: -0.0303 | AI74: 0.0175 | AJ74: 0 | AL74: 0 | AM74: 0 | AO74: 0.267125 | AQ74: 0.0585 | AR74: 0.0251 | AT74: 18.57 | AU74: 16.57 | AW74: 0.5608 | AX74: 0.0142 | AZ74: 0.4492 | BA74: 0.0829 | BC74: 0 | BD74: 0 | BF74: 0.70975 | BH74: 1.15 | BI74: 0.4972 | BK74: 0.51 | BL74: -0.1283 | BN74: 1.08 | BO74: -0.1 | BQ74: 0.5608 | BR74: 0.0142 | BT74: 0.0557 | BU74: -0.0006 | BW74: -0.997 | BX74: -1.4176 | BZ74: 0.7635 | CA74: 0.5319 | CC74: 2.555 | CD74: 1.4669 | CF74: 0.2986166667 | CH74: 1 | CI74: -0.0154 | CK74: 0.013 | CL74: 0.0091 | CN74: 0.7778 | CO74: 0.7778 | CQ74: 0 | CR74: 0 | CT74: 0 | CU74: -0.0103 | CW74: 0.0009 | CX74: -0.3285 | CZ74: 0.31806 | DB74: 0.249 | DC74: -0.0645 | DE74: 0.0483 | DF74: -0.0011 | DH74: 0.293 | DI74: 0.1625 | DK74: 0 | DL74: 0 | DN74: 1 | DO74: 0 | DQ74: 0.2072 | DS74: 0 | DT74: -0.014 | DV74: 0 | DW74: 0 | DY74: 0.036 | DZ74: -0.2987 | EB74: 0 | EC74: 0 | EE74: 1 | EF74: 0.4 | EH74: 0.14565 | EJ74: 0.3535 | EK74: 0.0487 | EM74: 0.2289 | EN74: -0.7316 | EP74: 0.0002 | EQ74: -0.049 | ES74: 0 | ET74: 0
C75: 3341 | D75: COFINAL LTDA | F75: 1 | G75: 5 | H75: 15 | I75: 5 | J75: 22 | L75: 0.4615333333 | N75: 0.8153 | O75: -0.136 | Q75: 0.3381 | R75: 0.3381 | T75: 0.3381 | U75: 0.3381 | W75: 1 | X75: 1 | Z75: 1 | AA75: -1.2 | AC75: 0.5524 | AD75: 0.0979 | AF75: 0.0909 | AG75: -0.0202 | AI75: 0.019 | AJ75: 0.0076 | AL75: 0 | AM75: 0 | AO75: 0.1977 | AQ75: -0.1479 | AR75: -0.0351 | AT75: 4.19 | AU75: 3.51 | AW75: 0.489 | AX75: -0.0026 | AZ75: 0.4497 | BA75: 0.1753 | BC75: 0 | BD75: -0.8 | BF75: 0.775675 | BH75: 0.9979 | BI75: 0.6789 | BK75: 0.5634 | BL75: 0.0209 | BN75: 1.02 | BO75: 0 | BQ75: 0.489 | BR75: -0.0026 | BT75: 0.0656 | BU75: -0.01 | BW75: 1.1202 | BX75: 2.0078 | BZ75: 0.0509 | CA75: -0.1864 | CC75: 1.8984 | CD75: 1.8238 | CF75: 0.7727 | CH75: 1 | CI75: 0 | CK75: 0.0116 | CL75: 0.0111 | CN75: 2.6 | CO75: 0 | CQ75: 0.8528 | CR75: -0.1472 | CT75: 0.0377 | CU75: 0.0154 | CW75: 0.1341 | CX75: 0.027 | CZ75: 0.29772 | DB75: 0.146 | DC75: 0.0587 | DE75: 0.0338 | DF75: -0.0037 | DH75: 0.3088 | DI75: -1.0164 | DK75: 0 | DL75: 0 | DN75: 1 | DO75: 0.125 | DQ75: 0.21944 | DS75: 0.0031 | DT75: -0.1105 | DV75: 0 | DW75: 0 | DY75: 0 | DZ75: 0 | EB75: 0.2941 | EC75: 0.2941 | EE75: 0.8 | EF75: -0.45 | EH75: 0.0441 | EJ75: 0.1441 | EK75: 0.0426 | EM75: 0.0323 | EN75: -0.0004 | EP75: 0 | EQ75: -0.0066 | ES75: 0 | ET75: 0
C76: 3400 | D76: SERVIMCOOP | F76: 4 | G76: 6 | H76: 15 | I76: 4 | J76: 23 | L76: 0.8519222222 | N76: 2.839 | O76: 0.1706 | Q76: 1 | R76: 1 | T76: 1 | U76: 1 | W76: 1 | X76: 1 | Z76: 0.8125 | AA76: 0.0433 | AC76: 0.5875 | AD76: 0.1145 | AF76: 0.3158 | AG76: -0.0842 | AI76: 0.1125 | AJ76: 0.0044 | AL76: 0 | AM76: -0.1 | AO76: 0.29505 | AQ76: 0.1061 | AR76: -0.0164 | AT76: 9.59 | AU76: 0.43 | AW76: 0.5074 | AX76: 0.0578 | AZ76: 0.5267 | BA76: -0.0199 | BC76: 0.04 | BD76: 0 | BF76: 1.8554625 | BH76: 1.0677 | BI76: 0.4771 | BK76: 0.1893 | BL76: -0.0011 | BN76: 1 | BO76: 0.13 | BQ76: 0.5074 | BR76: 0.0578 | BT76: 0.0527 | BU76: -0.0041 | BW76: 10.6179 | BX76: 11.3 | BZ76: 0.0012 | CA76: -0.9802 | CC76: 1.4075 | CD76: 0.3206 | CF76: 0.1198 | CH76: 0.0017 | CI76: 0.0017 | CK76: 0.0001 | CL76: -0.2789 | CN76: 0.9524 | CO76: 0.008 | CQ76: 0.68 | CR76: 0.32 | CT76: 0.0009 | CU76: -0.0012 | CW76: -0.9163 | CX76: -0.9163 | CZ76: 0.22904 | DB76: 0 | DC76: -0.0049 | DE76: 0.0553 | DF76: -0.0345 | DH76: 0.2149 | DI76: -0.0867 | DK76: 0 | DL76: 0 | DN76: 0.875 | DO76: 0 | DQ76: 0.14366 | DS76: 0.0009 | DT76: 0.0009 | DV76: 0 | DW76: 0 | DY76: 0 | DZ76: -0.0047 | EB76: 0 | EC76: 0 | EE76: 0.7174 | EF76: -0.0207 | EH76: 0.037175 | EJ76: 0 | EK76: 0 | EM76: 0.1487 | EN76: -0.0533 | EP76: 0 | EQ76: 0 | ES76: 0 | ET76: 0
C77: 3438 | D77: COPACREDITO | F77: 3 | G77: 6 | H77: 17 | I77: 1 | J77: 24 | L77: 0.752 | N77: 0.823 | O77: 0.0112 | Q77: 1 | R77: 1 | T77: 1 | U77: 1 | W77: 1 | X77: 0 | Z77: 0.6818 | AA77: -0.2182 | AC77: 1 | AD77: 1 | AF77: 0.2632 | AG77: 0.1632 | AI77: 1 | AJ77: 1 | AL77: 0 | AM77: 0 | AO77: 0.137125 | AQ77: -0.0368 | AR77: 0.0221 | AT77: 122.15 | AU77: -47.42 | AW77: 0.2238 | AX77: 0.0085 | AZ77: 0.3615 | BA77: -0.0334 | BC77: 0 | BD77: 0 | BF77: 0.4460625 | BH77: 0.9634 | BI77: 0.0823 | BK77: 0.2043 | BL77: 0.1103 | BN77: 1.27 | BO77: -0.5 | BQ77: 0.2238 | BR77: 0.0085 | BT77: 0.0809 | BU77: -0.0147 | BW77: -0.8184 | BX77: -1.3823 | BZ77: 1.3729 | CA77: -1.0304 | CC77: 0.2716 | CD77: -0.1186 | CF77: 0.1123833333 | CH77: 0 | CI77: -0.0063 | CK77: 0.0076 | CL77: -0.0405 | CN77: 0.6667 | CO77: -0.3889 | CQ77: 1 | CR77: 0 | CT77: 0 | CU77: -0.0007 | CW77: -1 | CX77: -0.0841 | CZ77: 0.22226 | DB77: 0 | DC77: 0 | DE77: 0.0875 | DF77: -0.0035 | DH77: 0.3988 | DI77: -0.0494 | DK77: 0 | DL77: 0 | DN77: 0.625 | DO77: 0.125 | DQ77: 2.90494 | DS77: 0 | DT77: 0 | DV77: 0 | DW77: 0 | DY77: 0 | DZ77: 0 | EB77: 0 | EC77: 0 | EE77: 14.5247 | EF77: 3.5586 | EH77: 0.31495 | EJ77: 0 | EK77: 0 | EM77: 1.0878 | EN77: 0.3535 | EP77: 0.172 | EQ77: 0.0396 | ES77: 0 | ET77: 0
C78: 4004 | D78: COOEDUCAR | F78: 2 | G78: 3 | H78: 19 | I78: 6 | J78: 17 | L78: 0.5116444444 | N78: 0.8774 | O78: 0.3021 | Q78: 0.4037 | R78: 0 | T78: 0.4037 | U78: 0 | W78: 1 | X78: 0 | Z78: 0.6923 | AA78: -0.0114 | AC78: 0.5966 | AD78: -0.0029 | AF78: 0.5714 | AG78: 0.2185 | AI78: 0.0597 | AJ78: -0.004 | AL78: 0 | AM78: 0 | AO78: 0.2776 | AQ78: -0.0094 | AR78: -0.0091 | AT78: 18.12 | AU78: -8.71 | AW78: 0.6425 | AX78: 0.0332 | AZ78: 0.4773 | BA78: 0.0937 | BC78: 0 | BD78: 0 | BF78: 0.7663 | BH78: 0.895 | BI78: 0.3064 | BK78: 0.7183 | BL78: 0.0268 | BN78: 0.97 | BO78: 0.07 | BQ78: 0.6425 | BR78: 0.0332 | BT78: 0.1011 | BU78: -0.0021 | BW78: 0.8119 | BX78: 1.0602 | BZ78: 0.8219 | CA78: -0.2726 | CC78: 1.1697 | CD78: 0.3475 | CF78: 0.4867833333 | CH78: 1 | CI78: 0 | CK78: 0.1524 | CL78: -0.0064 | CN78: 0.8125 | CO78: -0.1467 | CQ78: 1 | CR78: 0.5263 | CT78: 0.0088 | CU78: -0.0007 | CW78: -0.053 | CX78: 0.196 | CZ78: 0.35774 | DB78: 0 | DC78: 0 | DE78: 0.0626 | DF78: -0.0047 | DH78: 0.7261 | DI78: -0.0526 | DK78: 0 | DL78: 0 | DN78: 1 | DO78: 0 | DQ78: 0.39862 | DS78: 0.0019 | DT78: 0.0019 | DV78: 0 | DW78: 0 | DY78: 0 | DZ78: 0 | EB78: 0 | EC78: 0 | EE78: 1.9912 | EF78: 0.9198 | EH78: 0.103125 | EJ78: 0 | EK78: 0 | EM78: 0.2283 | EN78: -0.098 | EP78: 0.1842 | EQ78: 0.0158 | ES78: 0 | ET78: 0
B80: Pequeñas | L80: =AVERAGE(N80,Q80,T80,W80,Z80,AC80,AF80,AI80,AL80) -> 0.5117398737 | N80: 0.8184702917 | O80: 0.038649658 | Q80: 0.4911071429 | R80: 0.06233250356 | T80: 0.4911071429 | U80: 0.06233250356 | W80: 1 | X80: 0.07386255012 | Z80: 0.772895 | AA80: 0.07949877358 | AC80: 0.5022142857 | AD80: 0.0300989011 | AF80: 0.234 | AG80: 0.01331833333 | AI80: 0.238865 | AJ80: 0.1061726923 | AL80: 0.057 | AM80: 0.008552315288 | AO80: =AVERAGE(AQ80,AW80,AZ80,BC80) -> 0.4745 | AQ80: 0.055 | AR80: -0.04338185223 | AT80: 1 | AU80: -10.24186311 | AW80: 0.509 | AX80: 0.07143917173 | AZ80: 0.554 | BA80: 0.1382828552 | BC80: 0.78 | BD80: -0.054 | BF80: =AVERAGE(BH80,BK80,BN80,BQ80,BT80,BW80,BZ80,CC80) -> 0.6009545455 | BH80: 0.658 | BI80: -0.1288169724 | BK80: 0.586 | BL80: 0.009821812968 | BN80: 1.043636364 | BO80: -0.2319434446 | BQ80: 0.509 | BR80: 0.07143917173 | BT80: 0.083 | BU80: -0.003887920464 | BW80: 0.885 | BX80: 1.272057797 | BZ80: 0.712 | CA80: -0.0215462824 | CC80: 0.331 | CD80: 0.003294486075 | CF80: =AVERAGE(CH80,CK80,CN80,CQ80,CT80,CW80) -> 0.3103037879 | CH80: 0.231 | CI80: 0.022987446 | CK80: 0.062 | CL80: -0.06017594798 | CN80: 0.974 | CO80: 0.5078491296 | CQ80: 0.299 | CR80: 0.2395248343 | CT80: 0.008904545455 | CU80: 0.003634109435 | CW80: 0.2869181818 | CX80: 0.8712396356 | CZ80: =AVERAGE(DB80,DE80,DH80,DK80,DN80) -> 0.3150063636 | DB80: 0.015 | DC80: 0.0006506354832 | DE80: 0.103 | DF80: -0.04936613847 | DH80: 0.491 | DI80: 0.07662787758 | DK80: 0.0001227272727 | DL80: -4.000387464e-05 | DN80: 0.9659090909 | DO80: 0.01704545455 | DQ80: =AVERAGE(DS80,DV80,DY80,EB80,EE80) -> 0.2131981818 | DS80: 0.007145454545 | DT80: 0.003201671098 | DV80: 0.001268181818 | DW80: 0.000518436887 | DY80: 0.02856363636 | DZ80: -0.08681505726 | EB80: 0.02901363636 | EC80: -0.03710515696 | EE80: 1 | EF80: 0 | EH80: =AVERAGE(EJ80,EM80,EP80,ES80) -> 0.5399391447 | EJ80: 0.568 | EK80: 0.06287629477 | EM80: 1 | EN80: 0.6714331943 | EP80: 0.03103157895 | EQ80: 0.01873690067 | ES80: 0.560725 | ET80: 0.3361665441
C81: 991 | D81: COOPETEXAS | F81: 5 | G81: 0 | H81: 13 | I81: 3 | J81: 26 | L81: 0.7740777778 | N81: 1 | O81: 0 | Q81: 1 | R81: 1 | T81: 1 | U81: 1 | W81: 1 | X81: 0 | Z81: 0.8 | AA81: 0.1158 | AC81: 1 | AD81: 1 | AF81: 0.1667 | AG81: -0.2246 | AI81: 1 | AJ81: 1 | AL81: 0 | AM81: 0 | AO81: =AVERAGE(AQ81,AW81,AZ81,BC81) -> 0.42115 | AQ81: -0.0183 | AR81: -0.0183 | AT81: 0.28 | AU81: -4.26 | AW81: 0.3886 | AX81: 0.0499 | AZ81: 0.4643 | BA81: 0.2143 | BC81: 0.85 | BD81: 0.09 | BF81: =AVERAGE(BH81,BK81,BN81,BQ81,BT81,BW81,BZ81,CC81) -> 0.2731625 | BH81: 0.9823 | BI81: 0.4625 | BK81: 0.0789 | BL81: 0.0789 | BN81: 0.74 | BO81: -0.41 | BQ81: 0.3886 | BR81: 0.0499 | BT81: 0.1033 | BU81: 0.0017 | BW81: -0.5884 | BX81: 0.1376 | BZ81: 0.0522 | CA81: 0.0165 | CC81: 0.4284 | CD81: 0.1381 | CF81: =AVERAGE(CH81,CK81,CN81,CQ81,CT81,CW81) -> 0.2125333333 | CH81: 0.0194 | CI81: 0.0043 | CK81: 0.0236 | CL81: -0.0015 | CN81: 0.04 | CO81: 0.04 | CQ81: 1 | CR81: 1 | CT81: 0 | CU81: 0 | CW81: 0.1922 | CX81: -0.1665 | CZ81: =AVERAGE(DB81,DE81,DH81,DK81,DN81) -> 0.32434 | DB81: 0 | DC81: 0 | DE81: 0.2221 | DF81: -0.1527 | DH81: 0.3996 | DI81: -0.2239 | DK81: 0 | DL81: 0 | DN81: 1 | DO81: 0.125 | DQ81: =AVERAGE(DS81,DV81,DY81,EB81,EE81) -> 0.2 | DS81: 0 | DT81: 0 | DV81: 0 | DW81: 0 | DY81: 0 | DZ81: 0 | EB81: 0 | EC81: 0 | EE81: 1 | EF81: 0 | EH81: =AVERAGE(EJ81,EM81,EP81,ES81) -> 0 | EJ81: 0 | EK81: 0 | EM81: 0 | EN81: 0 | EP81: 0 | EQ81: 0 | ES81: 0 | ET81: 0
C82: 1093 | D82: BADIVENCOOP LTDA | F82: 5 | G82: 4 | H82: 15 | I82: 5 | J82: 22 | L82: 0.7198333333 | N82: 1 | O82: 0.0988 | Q82: 1 | R82: 1 | T82: 1 | U82: 1 | W82: 0.7127 | X82: -0.2873 | Z82: 0.5714 | AA82: 0 | AC82: 1 | AD82: 1 | AF82: 0.1944 | AG82: -0.0556 | AI82: 1 | AJ82: 1 | AL82: 0 | AM82: 0 | AO82: 0.4307 | AQ82: 0.0007 | AR82: 0.0074 | AT82: 1.23 | AU82: -1.73 | AW82: 0.2908 | AX82: -0.0069 | AZ82: 0.4513 | BA82: 0.0602 | BC82: 0.98 | BD82: 0.03 | BF82: 0.502675 | BH82: 1.6652 | BI82: 0.3861 | BK82: 0.9157 | BL82: -0.0019 | BN82: 1.03 | BO82: -0.02 | BQ82: 0.2908 | BR82: -0.0069 | BT82: 0.0732 | BU82: 0.0012 | BW82: -0.4062 | BX82: 0.0881 | BZ82: 0.3255 | CA82: 0.1508 | CC82: 0.1272 | CD82: 0.0168 | CF82: 0.39395 | CH82: 0.0069 | CI82: 0.0014 | CK82: 0.3277 | CL82: 0.1812 | CN82: 0.6667 | CO82: 0.2122 | CQ82: 1 | CR82: 0 | CT82: 0.0052 | CU82: 0.0014 | CW82: 0.3572 | CX82: 0.9089 | CZ82: 0.31022 | DB82: 0 | DC82: -0.0001 | DE82: 0.5251 | DF82: 0.2474 | DH82: 0.026 | DI82: -0.2804 | DK82: 0 | DL82: 0 | DN82: 1 | DO82: 0 | DQ82: 0.0002 | DS82: 0.001 | DT82: 0.001 | DV82: 0 | DW82: 0 | DY82: 0 | DZ82: 0 | EB82: 0 | EC82: 0 | EE82: 0 | EF82: 0 | EH82: 0.325725 | EJ82: 0 | EK82: 0 | EM82: 1.2791 | EN82: 0.4589 | EP82: 0.0238 | EQ82: -0.0035 | ES82: 0 | ET82: 0
C83: 1414 | D83: COOTRASENA | F83: 5 | G83: 1 | H83: 10 | I83: 9 | J83: 23 | L83: 0.2639444444 | N83: 0.8852 | O83: 0.5052 | Q83: 0 | R83: -0.9996 | T83: 0 | U83: -0.9996 | W83: 0 | X83: -0.731 | Z83: 0.6667 | AA83: 0 | AC83: 0.42 | AD83: -0.0011 | AF83: 0.3636 | AG83: -0.065 | AI83: 0.04 | AJ83: 0.0049 | AL83: 0 | AM83: 0 | AO83: 0.33935 | AQ83: 0.2683 | AR83: 0.1259 | AT83: 37.54 | AU83: 37.23 | AW83: 0.5152 | AX83: -0.0063 | AZ83: 0.5339 | BA83: 0.0398 | BC83: 0.04 | BD83: -0.84 | BF83: 0.416925 | BH83: 0.53 | BI83: -0.1256 | BK83: 0.5468 | BL83: -0.008 | BN83: 0.96 | BO83: 0.09 | BQ83: 0.5152 | BR83: -0.0063 | BT83: 0.0514 | BU83: -0.003 | BW83: -0.4492 | BX83: -0.1104 | BZ83: 0.8671 | CA83: -0.0643 | CC83: 0.3141 | CD83: -0.1162 | CF83: 0.4285166667 | CH83: 0.0056 | CI83: 0.0023 | CK83: 0.0338 | CL83: -0.0019 | CN83: 0.8621 | CO83: 0 | CQ83: 1 | CR83: 0 | CT83: 0.0028 | CU83: 0.0025 | CW83: 0.6668 | CX83: 1.2788 | CZ83: 0.2858 | DB83: 0.0004 | DC83: 0.0004 | DE83: 0 | DF83: 0 | DH83: 0.4286 | DI83: -0.0073 | DK83: 0 | DL83: 0 | DN83: 1 | DO83: 0 | DQ83: 0.20008 | DS83: 0.0004 | DT83: 0.0001 | DV83: 0 | DW83: 0 | DY83: 0 | DZ83: 0 | EB83: 0 | EC83: 0 | EE83: 1 | EF83: 0 | EH83: 0.026775 | EJ83: 0 | EK83: 0 | EM83: 0.0949 | EN83: 0.0872 | EP83: 0.0122 | EQ83: 0.0008 | ES83: 0 | ET83: 0
C84: 1442 | D84: COOSERVUNAL | F84: 3 | G84: 5 | H84: 15 | I84: 7 | J84: 20 | L84: 0.4304777778 | N84: 1.021 | O84: 0.021 | Q84: 0.0938 | R84: 0 | T84: 0.0938 | U84: 0 | W84: 1 | X84: 0 | Z84: 0.5909 | AA84: -0.0591 | AC84: 0.4194 | AD84: 0 | AF84: 0.5 | AG84: 0.1296 | AI84: 0.0645 | AJ84: 0 | AL84: 0.0909 | AM84: 0.0909 | AO84: 0.4457 | AQ84: -0.0153 | AR84: -0.0014 | AT84: 31.17 | AU84: 24.7 | AW84: 0.5136 | AX84: 0.4373 | AZ84: 0.4545 | BA84: -0.1 | BC84: 0.83 | BD84: 0 | BF84: 0.0216625 | BH84: 1.5102 | BI84: -3.2294 | BK84: 0.7362 | BL84: -202275.9513 | BN84: 0.98 | BO84: -0.18 | BQ84: 0.5136 | BR84: 0.4373 | BT84: 0.0742 | BU84: -0.0029 | BW84: -0.3493 | BX84: -1.6343 | BZ84: 0.8025 | CA84: 0.3266 | CC84: -4.0941 | CD84: -7.6449 | CF84: 0.8523666667 | CH84: 1 | CI84: 0.8964 | CK84: 0.1898 | CL84: -0.0189 | CN84: 3.625 | CO84: 2.6838 | CQ84: 0.3077 | CR84: -0.6923 | CT84: 0.0074 | CU84: 0.0024 | CW84: -0.0157 | CX84: -0.4777 | CZ84: 0.663 | DB84: 0.0912 | DC84: 0.0911 | DE84: 0 | DF84: -0.085 | DH84: 2.2238 | DI84: 2.221 | DK84: 0 | DL84: 0 | DN84: 1 | DO84: 0 | DQ84: 0.2 | DS84: 0 | DT84: -0.0445 | DV84: 0 | DW84: 0 | DY84: 0 | DZ84: -0.0957 | EB84: 0 | EC84: 0 | EE84: 1 | EF84: 1 | EH84: 0.101825 | EJ84: 0.0489 | EK84: 0.0489 | EM84: 0.2681 | EN84: 0.1068 | EP84: 0.0503 | EQ84: 0.0078 | ES84: 0.04 | ET84: -0.16
C85: 1663 | D85: COOPEMSURA | F85: 7 | G85: 3 | H85: 13 | I85: 4 | J85: 25 | L85: 0.1684333333 | N85: 0.754 | O85: 0.3663 | Q85: 0 | R85: -1 | T85: 0 | U85: -1 | W85: 0 | X85: -0.7059 | Z85: 0 | AA85: -1.625 | AC85: 0.5952 | AD85: 0.0043 | AF85: 0 | AG85: 0 | AI85: 0.1667 | AJ85: 0.0076 | AL85: 0 | AM85: -0.125 | AO85: 0.578225 | AQ85: -0.0075 | AR85: -0.9092 | AT85: 0.12 | AU85: -1.47 | AW85: 0.7011 | AX85: 0.4162 | AZ85: 0.6593 | BA85: 0.0328 | BC85: 0.96 | BD85: 0 | BF85: 0.4454875 | BH85: 0.4944 | BI85: -0.0843 | BK85: 0.6335 | BL85: -0.0137 | BN85: 1.14 | BO85: 0.11 | BQ85: 0.7011 | BR85: 0.4162 | BT85: 0.1303 | BU85: -0.0001 | BW85: -0.4659 | BX85: 0.082 | BZ85: 0.7061 | CA85: 0.1077 | CC85: 0.2244 | CD85: 0.1217 | CF85: 1.229316667 | CH85: 0.0051 | CI85: -0.0165 | CK85: 0.1392 | CL85: -0.1436 | CN85: 6.2857 | CO85: 5.419 | CQ85: 1 | CR85: 0.9952 | CT85: 0.0084 | CU85: -0.0028 | CW85: -0.0625 | CX85: 0.3713 | CZ85: 0.39932 | DB85: 0 | DC85: 0 | DE85: 0.7686 | DF85: 0.6673 | DH85: 0.353 | DI85: -0.4257 | DK85: 0 | DL85: 0 | DN85: 0.875 | DO85: 0 | DQ85: 0.00048 | DS85: 0.0024 | DT85: -0.0069 | DV85: 0 | DW85: 0 | DY85: 0 | DZ85: 0 | EB85: 0 | EC85: 0 | EE85: 0 | EF85: 0 | EH85: 0.0022 | EJ85: 0 | EK85: 0 | EM85: 0.0086 | EN85: 0.0007 | EP85: 0.0002 | EQ85: 0.0002 | ES85: 0 | ET85: 0
C86: 1755 | D86: COOPECREDITO ENTRERRIOS | F86: 2 | G86: 5 | H86: 12 | I86: 9 | J86: 21 | L86: 0.4185333333 | N86: 0.7647 | O86: -0.3222 | Q86: 0.1777 | R86: -0.0969 | T86: 0.1777 | U86: -0.0969 | W86: 1 | X86: 0.0006 | Z86: 0.5217 | AA86: -0.087 | AC86: 0.5735 | AD86: 0.0597 | AF86: 0.3125 | AG86: -0.169 | AI86: 0.1765 | AJ86: -0.1354 | AL86: 0.0625 | AM86: -0.3375 | AO86: 0.2732 | AQ86: 0.0384 | AR86: 0.0137 | AT86: 36.37 | AU86: 35.09 | AW86: 0.4448 | AX86: -0.4939 | AZ86: 0.6096 | BA86: -0.02 | BC86: 0 | BD86: -0.9 | BF86: 6.3867375 | BH86: 0.7954 | BI86: -0.9067 | BK86: 0.2335 | BL86: -0.0149 | BN86: 1.52 | BO86: 0.07 | BQ86: 0.4448 | BR86: -0.4939 | BT86: 0.094 | BU86: -0.007 | BW86: 47.0629 | BX86: 47.9666 | BZ86: 0.5057 | CA86: -6.6898 | CC86: 0.4376 | CD86: -1.6926 | CF86: 0.3910166667 | CH86: 0.0804 | CI86: -0.0039 | CK86: 0.1243 | CL86: -1.6134 | CN86: 1.1667 | CO86: 0.6667 | CQ86: 1 | CR86: 0 | CT86: 0.0061 | CU86: -0.0014 | CW86: -0.0314 | CX86: -0.1857 | CZ86: 0.40418 | DB86: 0 | DC86: 0 | DE86: 0.0529 | DF86: -0.0137 | DH86: 0.968 | DI86: 0.0574 | DK86: 0 | DL86: 0 | DN86: 1 | DO86: 0 | DQ86: 0.20038 | DS86: 0.0182 | DT86: 0.0119 | DV86: 0 | DW86: 0 | DY86: 0.4673 | DZ86: -0.052 | EB86: 0.2006 | EC86: 0.2006 | EE86: 0.3158 | EF86: -0.0436 | EH86: 0.150775 | EJ86: 0 | EK86: 0 | EM86: 0.5839 | EN86: 0.0183 | EP86: 0.0192 | EQ86: 0.0049 | ES86: 0 | ET86: 0
C87: 1805 | D87: FORJAR | F87: 4 | G87: 6 | H87: 12 | I87: 4 | J87: 26 | L87: 0.3759222222 | N87: 0.4863 | O87: -0.0082 | Q87: 0.3902 | R87: 0.0792 | T87: 0.3902 | U87: 0.0792 | W87: 1 | X87: 0 | Z87: 0.4815 | AA87: -0.0185 | AC87: 0.3958 | AD87: 0.0045 | AF87: 0.1351 | AG87: 0.024 | AI87: 0.1042 | AJ87: -0.0045 | AL87: 0 | AM87: 0 | AO87: 0.195875 | AQ87: -0.0136 | AR87: 0.0019 | AT87: 7.76 | AU87: -0.83 | AW87: 0.3701 | AX87: 0.0289 | AZ87: 0.427 | BA87: -0.0614 | BC87: 0 | BD87: 0 | BF87: 0.6437625 | BH87: 1.0548 | BI87: 0.0021 | BK87: 0.6066 | BL87: 0.1281 | BN87: 0.73 | BO87: -0.78 | BQ87: 0.3701 | BR87: 0.0289 | BT87: 0.1587 | BU87: -0.0051 | BW87: 0.1574 | BX87: 0.9775 | BZ87: 1.0057 | CA87: 0.2838 | CC87: 1.0668 | CD87: 0.5287 | CF87: 0.00035 | CH87: 0 | CI87: 0 | CK87: 0 | CL87: -0.0008 | CN87: 0 | CO87: 0 | CQ87: 0 | CR87: -1 | CT87: 0.0021 | CU87: -0.0066 | CW87: 0 | CX87: 0 | CZ87: 0.27656 | DB87: 0 | DC87: 0 | DE87: 0.0053 | DF87: -0.0405 | DH87: 0.3775 | DI87: 0.0663 | DK87: 0 | DL87: 0 | DN87: 1 | DO87: 0.125 | DQ87: 0.471 | DS87: 0.0008 | DT87: 0.0007 | DV87: 0.0279 | DW87: 0.0208 | DY87: 0.1596 | DZ87: 0.0245 | EB87: 0 | EC87: 0 | EE87: 2.1667 | EF87: 0.6111 | EH87: 0.960425 | EJ87: 0 | EK87: 0 | EM87: 3.8202 | EN87: -8.0944 | EP87: 0.0215 | EQ87: 0.0014 | ES87: 0 | ET87: 0
C88: 1827 | D88: COOSANLUIS | F88: 2 | G88: 6 | H88: 14 | I88: 6 | J88: 22 | L88: 0.4919777778 | N88: 1.2222 | O88: 0.1728 | Q88: 0.2946 | R88: 0 | T88: 0.2946 | U88: 0 | W88: 0.6676 | X88: 0 | Z88: 0.8 | AA88: 0.0941 | AC88: 0.4762 | AD88: -0.0238 | AF88: 0.3333 | AG88: 0 | AI88: 0.2143 | AJ88: 0.0893 | AL88: 0.125 | AM88: 0.0481 | AO88: 0.480475 | AQ88: -0.0392 | AR88: -0.1006 | AT88: 2.87 | AU88: -2.04 | AW88: 0.4354 | AX88: -0.0725 | AZ88: 0.5457 | BA88: -0.0354 | BC88: 0.98 | BD88: 0.08 | BF88: 0.7687287166 | BH88: 0.9132 | BI88: 0.0787 | BK88: 0.325829733 | BL88: -0.207670267 | BN88: 0.96 | BO88: -0.12 | BQ88: 0.4354 | BR88: -0.0725 | BT88: 0.1363 | BU88: 0.0159 | BW88: 0.3192 | BX88: 0.7969 | BZ88: 1.1667 | CA88: 0.2278 | CC88: 1.8932 | CD88: 1.4325 | CF88: 0.1675666667 | CH88: 0.0186 | CI88: -0.1684 | CK88: 0.059 | CL88: 0.0392 | CN88: 0.4444 | CO88: -0.1011 | CQ88: 0.0807 | CR88: -0.9193 | CT88: 0.0051 | CU88: 0.0017 | CW88: 0.3976 | CX88: 1.3767 | CZ88: 0.24788 | DB88: 0.0237 | DC88: -0.0419 | DE88: 0.0472 | DF88: -0.0119 | DH88: 0.2935 | DI88: 0.0274 | DK88: 0 | DL88: 0 | DN88: 0.875 | DO88: -0.125 | DQ88: 0.09984 | DS88: 0.0107 | DT88: 0.0084 | DV88: 0 | DW88: 0 | DY88: 0 | DZ88: -0.4412 | EB88: 0.1694 | EC88: 0.1694 | EE88: 0.3191 | EF88: -2.0722 | EH88: 1.71995 | EJ88: 0 | EK88: -0.2852 | EM88: 6.0454 | EN88: 6.0454 | EP88: 0.0011 | EQ88: -0.0003 | ES88: 0.8333 | ET88: 0
C89: 2078 | D89: COOTRAIPI | F89: 2 | G89: 4 | H89: 14 | I89: 6 | J89: 22 | L89: 0.4585 | N89: 1 | O89: 0.017 | Q89: 0.6947 | R89: 0 | T89: 0.6947 | U89: 0 | W89: 0.7913 | X89: 0.0036 | Z89: 0.5 | AA89: 0 | AC89: 0.2708 | AD89: 0.0041 | AF89: 0.1333 | AG89: 0 | AI89: 0.0417 | AJ89: -0.0027 | AL89: 0 | AM89: 0 | AO89: 0.44595 | AQ89: 0.0326 | AR89: 0.0241 | AT89: 36.82 | AU89: 36.44 | AW89: 0.5108 | AX89: 0.0405 | AZ89: 0.4404 | BA89: 0.0173 | BC89: 0.8 | BD89: 0.8 | BF89: 1.3063875 | BH89: 0.8967 | BI89: 0.0315 | BK89: 0.3313 | BL89: -0.2177 | BN89: 1.07 | BO89: 0.08 | BQ89: 0.5108 | BR89: 0.0405 | BT89: 0.0734 | BU89: -0.0033 | BW89: 7.2386 | BX89: 7.5348 | BZ89: 0.2759 | CA89: 0.0778 | CC89: 0.0544 | CD89: -0.2187 | CF89: 0.1499 | CH89: 0.0007 | CI89: -0.0018 | CK89: 0.0016 | CL89: 0.0016 | CN89: 0.6316 | CO89: 0.6316 | CQ89: 1 | CR89: 1 | CT89: 0.003 | CU89: 0.0011 | CW89: -0.7375 | CX89: -0.0316 | CZ89: 0.34812 | DB89: 0.0006 | DC89: 0.0006 | DE89: 0.1167 | DF89: -0.6833 | DH89: 0.6233 | DI89: 0.6233 | DK89: 0 | DL89: 0 | DN89: 1 | DO89: 0 | DQ89: 0.09358 | DS89: 0 | DT89: 0 | DV89: 0 | DW89: 0 | DY89: 0 | DZ89: -0.0056 | EB89: 0 | EC89: 0 | EE89: 0.4679 | EF89: 0 | EH89: 0.00875 | EJ89: 0 | EK89: 0 | EM89: 0.0331 | EN89: -0.5827 | EP89: 0.0019 | EQ89: 0.0001 | ES89: 0 | ET89: 0
C90: 2130 | D90: MULTIROBLE | F90: 7 | G90: 4 | H90: 8 | I90: 4 | J90: 30 | L90: 0.2025222222 | N90: 1.0313 | O90: 0.1803 | Q90: 0 | R90: 0 | T90: 0 | U90: 0 | W90: 0 | X90: 0 | Z90: 0.5938 | AA90: -0.0062 | AC90: 0.1304 | AD90: -0.0653 | AF90: 0.0455 | AG90: -0.001 | AI90: 0.0217 | AJ90: 0 | AL90: 0 | AM90: 0 | AO90: 0.182575 | AQ90: -0.0349 | AR90: -0.0251 | AT90: 20 | AU90: 8.77 | AW90: 0.144 | AX90: -0.0043 | AZ90: 0.6212 | BA90: 0.0995 | BC90: 0 | BD90: -0.85 | BF90: 0.41055 | BH90: 1.4184 | BI90: -0.0322 | BK90: 0.3251 | BL90: 0.2531 | BN90: 1.04 | BO90: -0.74 | BQ90: 0.144 | BR90: -0.0043 | BT90: 0.1831 | BU90: -0.0041 | BW90: 0 | BX90: 0 | BZ90: 0 | CA90: -0.5255 | CC90: 0.1738 | CD90: 0.0171 | CF90: 0.2314 | CH90: 0.0102 | CI90: 0.0042 | CK90: 0.0514 | CL90: -0.0276 | CN90: 0.0222 | CO90: -0.3187 | CQ90: 0.3 | CR90: -0.2 | CT90: 0.0287 | CU90: -0.0054 | CW90: 0.9759 | CX90: 1.78 | CZ90: 0.45124 | DB90: 0 | DC90: 0 | DE90: 0.4565 | DF90: -0.0994 | DH90: 0.7997 | DI90: -0.0001 | DK90: 0 | DL90: 0 | DN90: 1 | DO90: 0 | DQ90: 0 | DS90: 0 | DT90: 0 | DV90: 0 | DW90: 0 | DY90: 0 | DZ90: 0 | EB90: 0 | EC90: 0 | EE90: 0 | EF90: -0.6517 | EH90: 0.022425 | EJ90: 0 | EK90: 0 | EM90: 0.085 | EN90: -0.1509 | EP90: 0.0047 | EQ90: -0.0008 | ES90: 0 | ET90: 0
C91: 2199 | D91: MANUELITACOOP | F91: 3 | G91: 3 | H91: 11 | I91: 5 | J91: 26 | L91: 0.3821444444 | N91: 1 | O91: 0 | Q91: 0.2228 | R91: 0.2228 | T91: 0.2228 | U91: 0.2228 | W91: 0.7252 | X91: 0.7252 | Z91: 1 | AA91: 1 | AC91: 0.102 | AD91: 0.102 | AF91: 0.1053 | AG91: -0.0376 | AI91: 0.0612 | AJ91: 0.0612 | AL91: 0 | AM91: 0 | AO91: 0.141975 | AQ91: -0.0791 | AR91: -0.0179 | AT91: 56.16 | AU91: 53.27 | AW91: 0.0996 | AX91: 0.0637 | AZ91: 0.5474 | BA91: 0.0518 | BC91: 0 | BD91: 0 | BF91: 0.5785875 | BH91: 0.8762 | BI91: -0.0697 | BK91: 0.6507 | BL91: -0.1268 | BN91: 0.75 | BO91: -0.23 | BQ91: 0.0996 | BR91: 0.0637 | BT91: 0.1005 | BU91: 0.0045 | BW91: -0.3801 | BX91: -0.5482 | BZ91: 2.1526 | CA91: 0.0031 | CC91: 0.3792 | CD91: 0.1108 | CF91: 0.4324666667 | CH91: 0.003 | CI91: 0.002 | CK91: 0 | CL91: 0 | CN91: 0.1333 | CO91: -0.5138 | CQ91: 1 | CR91: 0 | CT91: 0 | CU91: -0.0003 | CW91: 1.4585 | CX91: 2.1443 | CZ91: 0.30716 | DB91: 0 | DC91: 0 | DE91: 0.0719 | DF91: 0.008 | DH91: 0.4639 | DI91: 0.0512 | DK91: 0 | DL91: 0 | DN91: 1 | DO91: 0 | DQ91: 0.08 | DS91: 0 | DT91: 0 | DV91: 0 | DW91: 0 | DY91: 0 | DZ91: -0.0845 | EB91: 0 | EC91: 0 | EE91: 0.4 | EF91: 0.4 | EH91: 0.019375 | EJ91: 0 | EK91: 0 | EM91: 0.0775 | EN91: 0.0427 | EP91: 0 | EQ91: 0 | ES91: 0 | ET91: 0
C92: 2392 | D92: COOMEC | F92: 3 | G92: 3 | H92: 17 | I92: 3 | J92: 22 | L92: 0.7848222222 | N92: 1 | O92: 0.0053 | Q92: 1 | R92: 1 | T92: 1 | U92: 1 | W92: 1 | X92: 0 | Z92: 0.7407 | AA92: -0.2117 | AC92: 1 | AD92: 1 | AF92: 0.2727 | AG92: -0.0455 | AI92: 1 | AJ92: 1 | AL92: 0.05 | AM92: 0.05 | AO92: 0.30805 | AQ92: -0.0009 | AR92: -0.149 | AT92: 12.75 | AU92: 1.01 | AW92: 0.5967 | AX92: 0.012 | AZ92: 0.6364 | BA92: -0.2368 | BC92: 0 | BD92: 0 | BF92: 0.8463125 | BH92: 1.0556 | BI92: -1.0417 | BK92: 0.1392 | BL92: 0.0001 | BN92: 0.93 | BO92: -0.09 | BQ92: 0.5967 | BR92: 0.012 | BT92: 0.0626 | BU92: 0.002 | BW92: 0.6244 | BX92: 0.2806 | BZ92: 0.1454 | CA92: 0.0625 | CC92: 3.2166 | CD92: 2.286 | CF92: 0.05061666667 | CH92: 0 | CI92: 0 | CK92: 0.0337 | CL92: 0.0056 | CN92: 0.2679 | CO92: 0.0179 | CQ92: 1 | CR92: 0 | CT92: 0.0021 | CU92: -0.0003 | CW92: -1 | CX92: -1 | CZ92: 0.32436 | DB92: 0.1547 | DC92: -0.0204 | DE92: 0.1028 | DF92: -0.0001 | DH92: 0.4893 | DI92: 0.0885 | DK92: 0 | DL92: 0 | DN92: 0.875 | DO92: 0.25 | DQ92: 0 | DS92: 0 | DT92: 0 | DV92: 0 | DW92: 0 | DY92: 0 | DZ92: 0 | EB92: 0 | EC92: 0 | EE92: 0 | EF92: -14.1667 | EH92: 0.2039 | EJ92: 0.7897 | EK92: 0.0763 | EM92: 0 | EN92: 0 | EP92: 0.0259 | EQ92: -0.0048 | ES92: 0 | ET92: 0
C93: 2641 | D93: CESCA | F93: 6 | G93: 4 | H93: 15 | I93: 5 | J93: 22 | L93: 0.2805777778 | N93: 0.6407 | O93: 0.0318 | Q93: 0 | R93: 0 | T93: 0 | U93: 0 | W93: 0 | X93: 0 | Z93: 1 | AA93: 0.2308 | AC93: 0.5647 | AD93: 0.0353 | AF93: 0.2727 | AG93: -0.0086 | AI93: 0.0471 | AJ93: 0.0118 | AL93: 0 | AM93: 0 | AO93: 0.543775 | AQ93: 0.1064 | AR93: 0.0172 | AT93: 67.81 | AU93: -3.26 | AW93: 0.6227 | AX93: 0.0135 | AZ93: 0.506 | BA93: 0.0221 | BC93: 0.94 | BD93: -0.01 | BF93: 0.6710625 | BH93: 0.5268 | BI93: 0.0223 | BK93: 0.7451 | BL93: -0.0378 | BN93: 1.21 | BO93: 0.08 | BQ93: 0.6227 | BR93: 0.0135 | BT93: 0.0415 | BU93: -0.0062 | BW93: -0.3406 | BX93: -32.1502 | BZ93: 2.3076 | CA93: 2.2674 | CC93: 0.2554 | CD93: 0.0783 | CF93: 0.7418833333 | CH93: 1 | CI93: 0 | CK93: 0.0052 | CL93: 0.0013 | CN93: 2.2857 | CO93: 0.6857 | CQ93: 1 | CR93: 0 | CT93: 0.0239 | CU93: -0.0037 | CW93: 0.1365 | CX93: 0.1365 | CZ93: 0.2565 | DB93: 0.0015 | DC93: 0.0009 | DE93: 0.0693 | DF93: 0.0012 | DH93: 0.3367 | DI93: -0.0031 | DK93: 0 | DL93: 0 | DN93: 0.875 | DO93: 0 | DQ93: 0.0826 | DS93: 0 | DT93: 0 | DV93: 0 | DW93: 0 | DY93: 0 | DZ93: -0.0044 | EB93: 0 | EC93: 0 | EE93: 0.413 | EF93: 0.413 | EH93: 0.02765 | EJ93: 0 | EK93: 0 | EM93: 0.1103 | EN93: -0.0319 | EP93: 0.0003 | EQ93: -0.0001 | ES93: 0 | ET93: 0
C94: 3049 | D94: COMULSEB | F94: 3 | G94: 6 | H94: 19 | I94: 6 | J94: 17 | L94: 0.9345 | N94: 0.9209 | O94: 0.1813 | Q94: 0.6348 | R94: 0 | T94: 0.6348 | U94: 0 | W94: 1 | X94: 0 | Z94: 2.8 | AA94: -2.2 | AC94: 0.51 | AD94: 0 | AF94: 0.6 | AG94: 0.1 | AI94: 0.31 | AJ94: 0 | AL94: 1 | AM94: -0.5 | AO94: 0.474 | AQ94: -0.0158 | AR94: 0.0262 | AT94: 0.64 | AU94: -0.18 | AW94: 0.5176 | AX94: 0.0216 | AZ94: 0.5242 | BA94: -0.0114 | BC94: 0.87 | BD94: -0.03 | BF94: 0.8894875 | BH94: 1.0423 | BI94: 0.3895 | BK94: 0.0663 | BL94: 0.0371 | BN94: 1.16 | BO94: -1.33 | BQ94: 0.5176 | BR94: 0.0216 | BT94: 0.0311 | BU94: -0.0466 | BW94: 0 | BX94: 0.0791 | BZ94: 0 | CA94: -0.1809 | CC94: 4.2986 | CD94: 6.6216 | CF94: 0.7785666667 | CH94: 0.0012 | CI94: -0.0002 | CK94: 0.0092 | CL94: -0.0344 | CN94: 4.125 | CO94: -1.375 | CQ94: 1 | CR94: 0 | CT94: 0 | CU94: 0 | CW94: -0.464 | CX94: 0.1124 | CZ94: 0.37242 | DB94: 0.0023 | DC94: -0.0039 | DE94: 0.0863 | DF94: 0.0863 | DH94: 0.7735 | DI94: -0.6151 | DK94: 0 | DL94: 0 | DN94: 1 | DO94: 0 | DQ94: 0.26258 | DS94: 0.0083 | DT94: 0.0083 | DV94: 0 | DW94: 0 | DY94: 0 | DZ94: -0.0125 | EB94: 0 | EC94: 0 | EE94: 1.3046 | EF94: 0.3046 | EH94: 0.125375 | EJ94: 0.0014 | EK94: 0.0014 | EM94: 0 | EN94: 0 | EP94: 0.0001 | EQ94: 0 | ES94: 0.5 | ET94: 0
C95: 3123 | D95: COOPRODECOL LTDA | F95: 2 | G95: 6 | H95: 19 | I95: 4 | J95: 19 | L95: 0.5639 | N95: 1 | O95: 0.0986 | Q95: 0.9029 | R95: 0.1778 | T95: 0.9029 | U95: 0.1778 | W95: 0.7104 | X95: -0.0848 | Z95: 0.8889 | AA95: 0.1616 | AC95: 0.46 | AD95: -0.026 | AF95: 0.2 | AG95: -0.3714 | AI95: 0.01 | AJ95: 0.0007 | AL95: 0 | AM95: 0 | AO95: 0.356775 | AQ95: 0.0635 | AR95: 0.0364 | AT95: 8.42 | AU95: -3.88 | AW95: 0.6878 | AX95: -0.0099 | AZ95: 0.6758 | BA95: 0.0947 | BC95: 0 | BD95: 0 | BF95: 1.992925 | BH95: 1.0016 | BI95: -0.001 | BK95: 0.2742 | BL95: 0.0623 | BN95: 0.8 | BO95: 0.02 | BQ95: 0.6878 | BR95: -0.0099 | BT95: 0.0528 | BU95: -0.0077 | BW95: 12.8902 | BX95: 12.7178 | BZ95: 0.1539 | CA95: -0.6292 | CC95: 0.0829 | CD95: -0.0241 | CF95: 0.34655 | CH95: 0 | CI95: -0.0031 | CK95: 0.0262 | CL95: 0.0262 | CN95: 2.05 | CO95: 1.9667 | CQ95: 1 | CR95: 0 | CT95: 0.0031 | CU95: 0.0005 | CW95: -1 | CX95: -1 | CZ95: 0.32256 | DB95: 0.0273 | DC95: 0.0273 | DE95: 0.1849 | DF95: -0.8151 | DH95: 0.4006 | DI95: -0.5994 | DK95: 0 | DL95: 0 | DN95: 1 | DO95: 0.125 | DQ95: 0.45 | DS95: 0 | DT95: 0 | DV95: 0 | DW95: 0 | DY95: 0 | DZ95: 0 | EB95: 0 | EC95: 0 | EE95: 2.25 | EF95: -1.0833 | EH95: 0.459825 | EJ95: 1 | EK95: 1 | EM95: 0.7884 | EN95: -0.2116 | EP95: 0.0509 | EQ95: -0.0038 | ES95: 0 | ET95: 0
C96: 3360 | D96: COOTEP LTDA | F96: 7 | G96: 1 | H96: 12 | I96: 4 | J96: 26 | L96: 0.2814666667 | N96: 1 | O96: 0.1044 | Q96: 0 | R96: 0 | T96: 0 | U96: 0 | W96: 0 | X96: 0 | Z96: 0.5789 | AA96: -0.0211 | AC96: 0.6 | AD96: 0.025 | AF96: 0.3043 | AG96: -0.0957 | AI96: 0.05 | AJ96: 0 | AL96: 0 | AM96: 0 | AO96: 0.3426 | AQ96: 0.1059 | AR96: -0.0106 | AT96: 0 | AU96: -12.32 | AW96: 0.6161 | AX96: 0.0151 | AZ96: 0.6484 | BA96: -0.0103 | BC96: 0 | BD96: 0 | BF96: 0.4603375 | BH96: 0.6938 | BI96: 0.6575 | BK96: 0.3194 | BL96: -0.2995 | BN96: 1.4 | BO96: 0.52 | BQ96: 0.6161 | BR96: 0.0151 | BT96: 0.0658 | BU96: 0.0018 | BW96: 0.4226 | BX96: 0.1517 | BZ96: 0.077 | CA96: -0.0308 | CC96: 0.088 | CD96: -0.115 | CF96: 0.5055666667 | CH96: 1 | CI96: 0 | CK96: 0.035 | CL96: 0.035 | CN96: 1 | CO96: 1 | CQ96: 1 | CR96: 1 | CT96: 0.004 | CU96: -0.0044 | CW96: -0.0056 | CX96: -0.1551 | CZ96: 0.27146 | DB96: 0 | DC96: -0.0067 | DE96: 0.0677 | DF96: -0.0249 | DH96: 0.2896 | DI96: -0.067 | DK96: 0 | DL96: 0 | DN96: 1 | DO96: 0 | DQ96: 0.06 | DS96: 0 | DT96: 0 | DV96: 0 | DW96: 0 | DY96: 0 | DZ96: -0.0466 | EB96: 0 | EC96: 0 | EE96: 0.3 | EF96: -3.4037 | EH96: 0.2049 | EJ96: 0 | EK96: 0 | EM96: 0.7925 | EN96: -0.0155 | EP96: 0.0271 | EQ96: 0.0033 | ES96: 0 | ET96: 0
C97: 4403 | D97: PROSPERANDO | F97: 3 | G97: 5 | H97: 16 | I97: 7 | J97: 19 | L97: 0.4155777778 | N97: 0.7974 | O97: 0.0525 | Q97: 0.2127 | R97: 0.0052 | T97: 0.2127 | U97: 0.0052 | W97: 0.6396 | X97: 0.0033 | Z97: 0.6071 | AA97: -2.3929 | AC97: 0.4557 | AD97: -0.018 | AF97: 0.5455 | AG97: 0.3788 | AI97: 0.1519 | AJ97: -0.0235 | AL97: 0.1176 | AM97: -0.2157 | AO97: 0.271925 | AQ97: 0.0694 | AR97: 0.0195 | AT97: 6.23 | AU97: 0.18 | AW97: 0.5641 | AX97: 0.0073 | AZ97: 0.4042 | BA97: -0.0529 | BC97: 0.05 | BD97: 0 | BF97: 0.614325 | BH97: 1.2523 | BI97: 0.4971 | BK97: 0.6308 | BL97: -0.1369 | BN97: 1.12 | BO97: 0 | BQ97: 0.5641 | BR97: 0.0073 | BT97: 0.0691 | BU97: -0.0011 | BW97: 0.0506 | BX97: 0.9086 | BZ97: 1.3043 | CA97: -0.5387 | CC97: -0.0766 | CD97: 0.0753 | CF97: 0.5904333333 | CH97: 0.0066 | CI97: 0.0037 | CK97: 0.0342 | CL97: -0.2925 | CN97: 1 | CO97: -1 | CQ97: 1 | CR97: 0 | CT97: 0 | CU97: 0 | CW97: 1.5018 | CX97: 2.1985 | CZ97: 0.27944 | DB97: 0.0001 | DC97: 0.0001 | DE97: 0.0299 | DF97: -0.7701 | DH97: 0.3645 | DI97: 0.0003 | DK97: 0.0027 | DL97: -0.0002 | DN97: 1 | DO97: 0 | DQ97: 0.12308 | DS97: 0 | DT97: -0.0194 | DV97: 0 | DW97: 0 | DY97: 0 | DZ97: 0 | EB97: 0 | EC97: -0.0118 | EE97: 0.6154 | EF97: 0.6154 | EH97: 0.473575 | EJ97: 0 | EK97: 0 | EM97: 1 | EN97: 1 | EP97: 0.0247 | EQ97: 0.0028 | ES97: 0.8696 | ET97: 0.8696
C98: 4458 | D98: FINANCIERA COAGROSUR | F98: 6 | G98: 3 | H98: 9 | I98: 6 | J98: 27 | L98: 0.2388333333 | N98: 0.5204 | O98: 0.0407 | Q98: 0 | R98: -0.2815 | T98: 0 | U98: -0.2815 | W98: 0 | X98: -0.7304 | Z98: 0.6667 | AA98: -0.0416 | AC98: 0.481 | AD98: -0.0065 | AF98: 0.1739 | AG98: -0.1419 | AI98: 0.1646 | AJ98: -0.0479 | AL98: 0.1429 | AM98: -0.0336 | AO98: 0.322775 | AQ98: 0.1142 | AR98: 0.0269 | AT98: 2.69 | AU98: 1.01 | AW98: 0.5293 | AX98: -0.0009 | AZ98: 0.6476 | BA98: -0.0136 | BC98: 0 | BD98: 0 | BF98: 0.4155375 | BH98: 0.0575 | BI98: -0.4591 | BK98: 0.1259 | BL98: -0.0676 | BN98: 0.91 | BO98: -0.01 | BQ98: 0.5293 | BR98: -0.0009 | BT98: 0.1197 | BU98: 0.0009 | BW98: -0.4195 | BX98: 0.4033 | BZ98: 0.3491 | CA98: 0.2292 | CC98: 1.6523 | CD98: 0.5428 | CF98: 0.623 | CH98: 0.0043 | CI98: -0.0009 | CK98: 0.1607 | CL98: 0.0755 | CN98: 3.6364 | CO98: 2.6364 | CQ98: 0.0813 | CR98: -0.9187 | CT98: 0.0021 | CU98: -0.0005 | CW98: -0.1468 | CX98: 0.125 | CZ98: 0.32672 | DB98: 0.0042 | DC98: 0.0028 | DE98: 0.0593 | DF98: 0.0094 | DH98: 0.5701 | DI98: -0.2298 | DK98: 0 | DL98: 0 | DN98: 1 | DO98: 0 | DQ98: 0.05708 | DS98: 0.0171 | DT98: 0.0055 | DV98: 0 | DW98: -0.0034 | DY98: 0 | DZ98: -0.0546 | EB98: 0.2683 | EC98: -0.2852 | EE98: 0 | EF98: -0.6329 | EH98: 0.2653 | EJ98: 0 | EK98: 0 | EM98: 1 | EN98: 0.964 | EP98: 0.0612 | EQ98: 0.0263 | ES98: 0 | ET98: 0
C99: 7571 | D99: INVERCOOB | F99: 8 | G99: 2 | H99: 8 | I99: 4 | J99: 30 | L99: 0.1894777778 | N99: 1 | O99: 0 | Q99: 0 | R99: 0 | T99: 0 | U99: 0 | W99: 0 | X99: 0 | Z99: 0.2609 | AA99: -0.2846 | AC99: 0 | AD99: 0 | AF99: 0.4444 | AG99: 0.025 | AI99: 0 | AJ99: 0 | AL99: 0 | AM99: -0.0556 | AO99: 0.50585 | AQ99: 0.0289 | AR99: -0.0057 | AT99: 0 | AU99: -0.88 | AW99: 0.6196 | AX99: 0.0217 | AZ99: 0.4549 | BA99: 0.0075 | BC99: 0.92 | BD99: 0.03 | BF99: 0.4914375 | BH99: 0.1408 | BI99: 0.1408 | BK99: 0.6488 | BL99: -0.0892 | BN99: 1.59 | BO99: 1.21 | BQ99: 0.6196 | BR99: 0.0217 | BT99: 0.1883 | BU99: -0.0039 | BW99: -0.6066 | BX99: -0.7347 | BZ99: 1.0169 | CA99: -0.1072 | CC99: 0.3337 | CD99: -0.2583 | CF99: -0.1294666667 | CH99: 0 | CI99: -0.0001 | CK99: 0 | CL99: -0.2613 | CN99: 0 | CO99: 0 | CQ99: 0.2222 | CR99: 0.2222 | CT99: 0.001 | CU99: 0.001 | CW99: -1 | CX99: -0.9635 | CZ99: 0.28398 | DB99: 0 | DC99: 0 | DE99: 0.1012 | DF99: 0.0144 | DH99: 0.3187 | DI99: 0.0857 | DK99: 0 | DL99: 0 | DN99: 1 | DO99: 0 | DQ99: 0 | DS99: 0 | DT99: 0 | DV99: 0 | DW99: 0 | DY99: 0 | DZ99: -1.2979 | EB99: 0 | EC99: 0 | EE99: 0 | EF99: 0 | EH99: 0 | EJ99: 0 | EK99: 0 | EM99: 0 | EN99: 0 | EP99: 0 | EQ99: 0 | ES99: 0 | ET99: 0
C100: 8825 | D100: UNIMOS | F100: 3 | G100: 5 | H100: 15 | I100: 4 | J100: 23 | L100: 0.3161091778 | N100: 0.9588 | O100: -0.7377 | Q100: 0.0022 | R100: 0.0022 | T100: 0.0022 | U100: 0.0022 | W100: 0.7947826 | X100: 0.7947826 | Z100: 0.8235 | AA100: 0.8235 | AC100: 0.087 | AD100: -0.3297 | AF100: 0.1765 | AG100: 0.1765 | AI100: 0 | AJ100: 0 | AL100: 0 | AM100: 0 | AO100: 0.5199 | AQ100: 0.1125 | AR100: -0.1321 | AT100: 13.56 | AU100: -5.96 | AW100: 0.5974 | AX100: 0.0006 | AZ100: 0.6197 | BA100: 0.3917 | BC100: 0.75 | BD100: 0.01 | BF100: 0.5748625 | BH100: 0.2669 | BI100: -1.0407 | BK100: 0.1582 | BL100: -0.0249 | BN100: 1.06 | BO100: -0.14 | BQ100: 0.5974 | BR100: 0.0006 | BT100: 0.0409 | BU100: -0.0034 | BW100: 0.037 | BX100: 0.2162 | BZ100: 0.079 | CA100: -0.1274 | CC100: 2.3595 | CD100: 2.1013 | CF100: 0.7689166667 | CH100: 0.0973 | CI100: -0.9027 | CK100: 0.1704 | CL100: 0.1704 | CN100: 1.9167 | CO100: 1.9167 | CQ100: 1 | CR100: 0 | CT100: 0.082 | CU100: 0.0661 | CW100: 1.3471 | CX100: 0.8816 | CZ100: 0.32144 | DB100: 0.0306 | DC100: -0.0033 | DE100: 0.2103 | DF100: 0.1246 | DH100: 0.3663 | DI100: -0.0757 | DK100: 0 | DL100: 0 | DN100: 1 | DO100: 0 | DQ100: 0.21608 | DS100: 0.0804 | DT100: 0.0804 | DV100: 0 | DW100: 0 | DY100: 0 | DZ100: 0 | EB100: 0 | EC100: 0 | EE100: 1 | EF100: 0 | EH100: 0.25115 | EJ100: 0 | EK100: 0 | EM100: 1 | EN100: 1 | EP100: 0.0046 | EQ100: 0.0046 | ES100: 0 | ET100: 0
C101: 13024 | D101: COOPCANAPRO | F101: 9 | G101: 1 | H101: 9 | I101: 5 | J101: 28 | L101: 0.09726666667 | N101: 0.4151 | O101: -0.5571 | Q101: 0 | R101: 0 | T101: 0 | U101: 0 | W101: 0 | X101: 0 | Z101: 0 | AA101: -0.6 | AC101: 0.4127 | AD101: -0.0936 | AF101: 0 | AG101: -0.1481 | AI101: 0.0476 | AJ101: -0.041 | AL101: 0 | AM101: 0 | AO101: 0.500625 | AQ101: 0.0263 | AR101: -0.0041 | AT101: 4.98 | AU101: 4.86 | AW101: 0.6095 | AX101: 0.0306 | AZ101: 0.3867 | BA101: 0.0077 | BC101: 0.98 | BD101: -0.01 | BF101: 0.448575 | BH101: 0.9638 | BI101: -0.0258 | BK101: 0.2982 | BL101: 0.0828 | BN101: 0.88 | BO101: -0.1 | BQ101: 0.6095 | BR101: 0.0306 | BT101: 0.0054 | BU101: -0.0011 | BW101: 0.2769 | BX101: 0.7806 | BZ101: 0.01 | CA101: -0.0048 | CC101: 0.5448 | CD101: -0.3852 | CF101: 0.1745166667 | CH101: 1 | CI101: 0 | CK101: 0 | CL101: -0.0076 | CN101: 0 | CO101: 0 | CQ101: 0 | CR101: -1 | CT101: 0.0076 | CU101: 0.0076 | CW101: 0.0395 | CX101: 0.0466 | CZ101: 0.23232 | DB101: 0.0387 | DC101: -0.0131 | DE101: 0.0445 | DF101: -0.1065 | DH101: 0.2034 | DI101: -0.0791 | DK101: 0 | DL101: 0 | DN101: 0.875 | DO101: 0 | DQ101: 8e-05 | DS101: 0.0004 | DT101: 0.0004 | DV101: 0 | DW101: 0 | DY101: 0 | DZ101: 0 | EB101: 0 | EC101: 0 | EE101: 0 | EF101: -0.8986 | EH101: 0.304425 | EJ101: 1 | EK101: 1 | EM101: 0.0274 | EN101: 0.0274 | EP101: 0.1903 | EQ101: 0.1903 | ES101: 0 | ET101: 0
C102: 20009 | D102: COOPSUYA | F102: 2 | G102: 8 | H102: 18 | I102: 8 | J102: 16 | L102: 0.4382666667 | N102: 1.168 | O102: 0.6529 | Q102: 0.2491 | R102: 0.177 | T102: 0.2491 | U102: 0.177 | W102: 0.6956 | X102: -0.3044 | Z102: 0.5652 | AA102: 0 | AC102: 0.5921 | AD102: 0.0921 | AF102: 0.32 | AG102: -0.0484 | AI102: 0.1053 | AJ102: -0.0399 | AL102: 0 | AM102: 0 | AO102: 0.529675 | AQ102: 0.0553 | AR102: -0.0079 | AT102: 153.1 | AU102: 140.76 | AW102: 0.5126 | AX102: 0.0193 | AZ102: 0.5808 | BA102: 0.0248 | BC102: 0.97 | BD102: 0.01 | BF102: 0.4361625 | BH102: 0.517 | BI102: -0.0541 | BK102: 0.6556 | BL102: -0.0619 | BN102: 0.98 | BO102: 0.08 | BQ102: 0.5126 | BR102: 0.0193 | BT102: 0.062 | BU102: -0.0061 | BW102: -0.7841 | BX102: -0.6363 | BZ102: 0.7594 | CA102: 0.3398 | CC102: 0.7868 | CD102: 0.2677 | CF102: 1.102383333 | CH102: 0.0208 | CI102: 0.0099 | CK102: 0.0039 | CL102: -0.0077 | CN102: 1.8857 | CO102: 0.8857 | CQ102: 1 | CR102: 0 | CT102: 0.0013 | CU102: -0.0008 | CW102: 3.7026 | CX102: 3.8305 | CZ102: 0.38608 | DB102: 0 | DC102: 0 | DE102: 0.0779 | DF102: -0.0389 | DH102: 0.9775 | DI102: 0.6335 | DK102: 0 | DL102: 0 | DN102: 0.875 | DO102: -0.125 | DQ102: 0.9419 | DS102: 0.0175 | DT102: 0.0131 | DV102: 0 | DW102: 0 | DY102: 0.0015 | DZ102: 0.0015 | EB102: 0 | EC102: 0 | EE102: 4.6905 | EF102: 3.6031 | EH102: 2.116825 | EJ102: 0 | EK102: 0 | EM102: 8.3977 | EN102: 2.7517 | EP102: 0.0696 | EQ102: 0.0378 | ES102: 0 | ET102: 0
B104: Micro 1 | L104: =AVERAGE(N104,Q104,T104,W104,Z104,AC104,AF104,AI104,AL104) -> 0.4626193118 | N104: 0.9332098461 | O104: -0.002553051663 | Q104: 0.4673431818 | R104: 0.157321675 | T104: 0.4673431818 | U104: 0.157321675 | W104: 0.37 | X104: 0.2271744859 | Z104: 0.7757372549 | AA104: 0.09391907308 | AC104: 0.5062692308 | AD104: 0.07787315876 | AF104: 0.327 | AG104: 0.01631784591 | AI104: 0.2426711111 | AJ104: 0.1285139916 | AL104: 0.074 | AM104: 0.01374444444 | AO104: =AVERAGE(AQ104,AW104,AZ104,BC104) -> 0.4909924242 | AQ104: 0.083 | AR104: 0.04527577289 | AT104: 16.26 | AU104: 1.866812698 | AW104: 0.462 | AX104: 0.01838108144 | AZ104: 0.542 | BA104: -0.00484614093 | BC104: 0.876969697 | BD104: 0.009636363636 | BF104: =AVERAGE(BH104,BK104,BN104,BQ104,BT104,BW104,BZ104,CC104) -> 0.5822407407 | BH104: 0.764 | BI104: -0.0741040311 | BK104: 0.59 | BL104: 0.02913304206 | BN104: 1.155925926 | BO104: 0.6581826657 | BQ104: 0.49 | BR104: 0.04638108144 | BT104: 0.091 | BU104: -0.006119449136 | BW104: 0.472 | BX104: 0.5699876772 | BZ104: 0.785 | CA104: 0.2045932911 | CC104: 0.31 | CD104: -0.07101010868 | CF104: =AVERAGE(CH104,CK104,CN104,CQ104,CT104,CW104) -> 0.2777814815 | CH104: 0.248 | CI104: 0.08155557897 | CK104: 0.189 | CL104: 0.09909810804 | CN104: 0.751 | CO104: -0.249 | CQ104: 0.078 | CR104: -0.865647541 | CT104: 0.014 | CU104: 0.005375791535 | CW104: 0.3866888889 | CX104: 0.5369526389 | CZ104: =AVERAGE(DB104,DE104,DH104,DK104,DN104) -> 0.2732103704 | DB104: 0.012 | DC104: -0.0008703283047 | DE104: 0.094 | DF104: -0.02778027279 | DH104: 0.345 | DI104: -0.06956654574 | DK104: 5.185185185e-05 | DL104: -1.677728889e-05 | DN104: 0.915 | DO104: 0.02636363636 | DQ104: =AVERAGE(DS104,DV104,DY104,EB104,EE104) -> 0.2157744444 | DS104: 0.005985185185 | DT104: -0.00292963095 | DV104: 0.0009259259259 | DW104: -0.005251922459 | DY104: 0.02127407407 | DZ104: -0.07215404816 | EB104: 0.05068703704 | EC104: 0.03690930436 | EE104: 1 | EF104: 0 | EH104: =AVERAGE(EJ104,EM104,EP104,ES104) -> 0.5921799143 | EJ104: 0.9025444444 | EK104: 0.1580832669 | EM104: 0.566975 | EN104: 0.2240480296 | EP104: 0.09907021277 | EQ104: 0.0719749941 | ES104: 0.80013 | ET104: 0.02291924789
C105: 93 | D105: COOPINDUMIL | F105: 3 | G105: 4 | H105: 15 | I105: 6 | J105: 21 | L105: 0.5225222222 | N105: 1 | O105: -0.1982 | Q105: 1 | R105: 0.5997 | T105: 1 | U105: 0.5997 | W105: 0.5549 | X105: 0.5144 | Z105: 0.4 | AA105: -0.1556 | AC105: 0.3478 | AD105: -0.0522 | AF105: 0.4 | AG105: 0.1 | AI105: 0 | AJ105: -0.1667 | AL105: 0 | AM105: -0.2857 | AO105: =AVERAGE(AQ105,AW105,AZ105,BC105) -> 0.1373 | AQ105: -0.0016 | AR105: 0.0333 | AT105: 8.12 | AU105: -31.12 | AW105: 0.314 | AX105: 0.0208 | AZ105: 0.2368 | BA105: -0.0337 | BC105: 0 | BD105: -0.8 | BF105: =AVERAGE(BH105,BK105,BN105,BQ105,BT105,BW105,BZ105,CC105) -> 0.689125 | BH105: 1.127 | BI105: -0.1263 | BK105: 0.6516 | BL105: 0.0027 | BN105: 0.69 | BO105: 0.09 | BQ105: 0.314 | BR105: 0.0208 | BT105: 0.0581 | BU105: 0.0002 | BW105: -0.3427 | BX105: 0.4985 | BZ105: 2.2531 | CA105: 1.1077 | CC105: 0.7619 | CD105: 0.499 | CF105: =AVERAGE(CH105,CK105,CN105,CQ105,CT105,CW105) -> 0.48475 | CH105: 0.038 | CI105: 0.032 | CK105: 0.5588 | CL105: 0.5416 | CN105: 1.2632 | CO105: 0.4985 | CQ105: 1 | CR105: 0 | CT105: 0 | CU105: -0.0003 | CW105: 0.0485 | CX105: 0.7886 | CZ105: =AVERAGE(DB105,DE105,DH105,DK105,DN105) -> 0.27472 | DB105: 0 | DC105: 0 | DE105: 0.2995 | DF105: 0.299 | DH105: 0.4491 | DI105: -0.1616 | DK105: 0 | DL105: -633.2036 | DN105: 0.625 | DO105: -0.375 | DQ105: =AVERAGE(DS105,DV105,DY105,EB105,EE105) -> 0.2 | DS105: 0 | DT105: 0 | DV105: 0 | DW105: 0 | DY105: 0 | DZ105: 0 | EB105: 0 | EC105: 0 | EE105: 1 | EF105: 1 | EH105: =AVERAGE(EJ105,EM105,EP105,ES105) -> 0.2897 | EJ105: 0 | EK105: 0 | EM105: 1 | EN105: 0 | EP105: 0.1588 | EQ105: -0.0059 | ES105: 0 | ET105: 0
C106: 330 | D106: CODECOL | F106: 4 | G106: 4 | H106: 16 | I106: 6 | J106: 20 | L106: 0.7936 | N106: 1.004 | O106: 0.004 | Q106: 1 | R106: 1 | T106: 1 | U106: 1 | W106: 1 | X106: 0 | Z106: 0.5217 | AA106: -0.2402 | AC106: 1 | AD106: 1 | AF106: 0.45 | AG106: 0.0929 | AI106: 1 | AJ106: 1 | AL106: 0.1667 | AM106: 0.0953 | AO106: 0.611375 | AQ106: -0.004 | AR106: -0.0202 | AT106: 0 | AU106: -37.06 | AW106: 0.4695 | AX106: 0.0675 | AZ106: 1 | BA106: 0.6667 | BC106: 0.98 | BD106: 0.07 | BF106: 0.7552375 | BH106: 1.135 | BI106: -0.11 | BK106: 0.6326 | BL106: 0.0487 | BN106: 1.08 | BO106: -0.23 | BQ106: 0.4695 | BR106: 0.0675 | BT106: 0.0202 | BU106: 0.0008 | BW106: 0.0675 | BX106: 0.3989 | BZ106: 2.4318 | CA106: 0.0004 | CC106: 0.2053 | CD106: -0.2086 | CF106: 0.3210666667 | CH106: 0.0013 | CI106: -0.0722 | CK106: 0.016 | CL106: -0.984 | CN106: 0.4762 | CO106: -0.6007 | CQ106: 1 | CR106: 0 | CT106: 0.0098 | CU106: -0.0026 | CW106: 0.4231 | CX106: -1.9796 | CZ106: 0.3171 | DB106: 0 | DC106: 0 | DE106: 0.3051 | DF106: -0.0949 | DH106: 0.2804 | DI106: -0.2658 | DK106: 0 | DL106: 0 | DN106: 1 | DO106: 0 | DQ106: 0 | DS106: 0 | DT106: 0 | DV106: 0 | DW106: 0 | DY106: 0 | DZ106: 0 | EB106: 0 | EC106: 0 | EE106: 0 | EF106: 0 | EH106: 0 | EJ106: 0 | EK106: 0 | EM106: 0 | EN106: 0 | EP106: 0 | EQ106: 0 | ES106: 0 | ET106: 0
C107: 715 | D107: COOPSURAMERICA | F107: 2 | G107: 5 | H107: 17 | I107: 8 | J107: 17 | L107: 0.5580666667 | N107: 0.5315 | O107: -0.0455 | Q107: 1 | R107: 0.9736 | T107: 1 | U107: 0.9736 | W107: 1 | X107: 0.6667 | Z107: 0.4286 | AA107: -0.1314 | AC107: 0.3103 | AD107: 0.0376 | AF107: 0.2941 | AG107: 0.0941 | AI107: 0.1724 | AJ107: 0.0512 | AL107: 0.2857 | AM107: 0.0635 | AO107: 0.4538 | AQ107: 0.0009 | AR107: 0.0061 | AT107: 29.36 | AU107: -5.26 | AW107: 0.5458 | AX107: -0.0471 | AZ107: 0.4185 | BA107: -0.0274 | BC107: 0.85 | BD107: 0.85 | BF107: 0.6824375 | BH107: 1.1894 | BI107: 0.4678 | BK107: 0.2889 | BL107: 0.0818 | BN107: 1.11 | BO107: 0.17 | BQ107: 0.5458 | BR107: -0.0471 | BT107: 0.0844 | BU107: -0.0081 | BW107: 0.7906 | BX107: 0.2873 | BZ107: 0.0662 | CA107: -0.0017 | CC107: 1.3842 | CD107: 0.2098 | CF107: 0.8378166667 | CH107: 0.0023 | CI107: 0.0018 | CK107: 0.006 | CL107: 0.0046 | CN107: 0.3478 | CO107: 0.2922 | CQ107: 1 | CR107: 0 | CT107: 0.0029 | CU107: -0.0002 | CW107: 3.6679 | CX107: 3.6679 | CZ107: 0.31762 | DB107: 0 | DC107: 0 | DE107: 0.0464 | DF107: -0.0328 | DH107: 0.5417 | DI107: -0.118 | DK107: 0 | DL107: 0 | DN107: 1 | DO107: 0.125 | DQ107: 0.19254 | DS107: 0 | DT107: 0 | DV107: 0 | DW107: 0 | DY107: 0.0516 | DZ107: -0.0435 | EB107: 0 | EC107: 0 | EE107: 0.9111 | EF107: -0.0413 | EH107: 0.49445 | EJ107: 0 | EK107: 0 | EM107: 1 | EN107: 0.7762 | EP107: 0.1338 | EQ107: -0.0066 | ES107: 0.844 | ET107: -0.0056
C108: 752 | D108: FINANCIAR | F108: 6 | G108: 5 | H108: 11 | I108: 5 | J108: 26 | L108: 0.3825555556 | N108: 0.7264 | O108: 0.404 | Q108: 0.0341 | R108: 0.0109 | T108: 0.0341 | U108: 0.0109 | W108: 1 | X108: 0 | Z108: 0.5556 | AA108: -0.0326 | AC108: 0.3226 | AD108: 0 | AF108: 0.4444 | AG108: 0.0069 | AI108: 0.2258 | AJ108: 0 | AL108: 0.1 | AM108: 0 | AO108: 0.351175 | AQ108: -0.0385 | AR108: -0.1195 | AT108: 2.78 | AU108: -0.09 | AW108: 0.5277 | AX108: 0.0029 | AZ108: 0.9155 | BA108: 0.0141 | BC108: 0 | BD108: 0 | BF108: 1.5103875 | BH108: 0.918 | BI108: 0.0808 | BK108: 0.4 | BL108: -0.0037 | BN108: 1.16 | BO108: 0.16 | BQ108: 0.5277 | BR108: 0.0029 | BT108: 0.1253 | BU108: 0.0064 | BW108: 7.6963 | BX108: 8.4357 | BZ108: 0.001 | CA108: -0.0074 | CC108: 1.2548 | CD108: -1.2288 | CF108: 0.0005333333333 | CH108: 0 | CI108: 0 | CK108: 0 | CL108: 0 | CN108: 0 | CO108: 0 | CQ108: 0 | CR108: 0 | CT108: 0.0032 | CU108: 0.0032 | CW108: 0 | CX108: 0 | CZ108: 0.2149 | DB108: 0 | DC108: 0 | DE108: 0.0064 | DF108: -0.0004 | DH108: 0.1931 | DI108: 0.0842 | DK108: 0 | DL108: -0.0017 | DN108: 0.875 | DO108: 0.125 | DQ108: 0 | DS108: 0 | DT108: 0 | DV108: 0 | DW108: 0 | DY108: 0 | DZ108: 0 | EB108: 0 | EC108: 0 | EE108: 0 | EF108: 0 | EH108: 0.243575 | EJ108: 0 | EK108: 0 | EM108: 0.9732 | EN108: 0.0162 | EP108: 0.0011 | EQ108: 0.0001 | ES108: 0 | ET108: 0
C109: 912 | D109: COOPCHIPAQUE | F109: 1 | G109: 3 | H109: 8 | I109: 11 | J109: 23 | L109: 0.5451333333 | N109: 1.6422 | O109: -0.0724 | Q109: 0.0066 | R109: -0.0027 | T109: 0.0066 | U109: -0.0027 | W109: 0.6111 | X109: -0.3889 | Z109: 0.8889 | AA109: 0.2222 | AC109: 0.5172 | AD109: -0.1103 | AF109: 0.4444 | AG109: -0.127 | AI109: 0.3448 | AJ109: 0.2075 | AL109: 0.4444 | AM109: 0.4444 | AO109: 0.469125 | AQ109: 0.2317 | AR109: 0.1401 | AT109: 8.2 | AU109: 0.75 | AW109: 0.5562 | AX109: -0.0182 | AZ109: 0.5986 | BA109: -0.0087 | BC109: 0.49 | BD109: 0.49 | BF109: 0.3968625 | BH109: 0.3035 | BI109: -0.2255 | BK109: 0.2399 | BL109: 0.0481 | BN109: 1.22 | BO109: 0.07 | BQ109: 0.5562 | BR109: -0.0182 | BT109: 0.0378 | BU109: -0.0058 | BW109: 0.3216 | BX109: 0.9652 | BZ109: 0.1401 | CA109: -0.0221 | CC109: 0.3558 | CD109: -0.11 | CF109: 0.1068833333 | CH109: 0.0407 | CI109: 0.0013 | CK109: 0.0555 | CL109: 0.0166 | CN109: 0.4286 | CO109: 0.2235 | CQ109: 1 | CR109: 0 | CT109: 0.0041 | CU109: -0.0051 | CW109: -0.8876 | CX109: -0.7331 | CZ109: 0.29704 | DB109: 0.0001 | DC109: 0 | DE109: 0.152 | DF109: 0.0094 | DH109: 0.4581 | DI109: 0.0922 | DK109: 0 | DL109: 0 | DN109: 0.875 | DO109: 0 | DQ109: 0.102 | DS109: 0.0019 | DT109: 0.0019 | DV109: 0 | DW109: 0 | DY109: 0 | DZ109: 0 | EB109: 0 | EC109: 0 | EE109: 0.5081 | EF109: 0 | EH109: 0.264175 | EJ109: 1 | EK109: 0 | EM109: 0.0312 | EN109: -0.0002 | EP109: 0.0255 | EQ109: -0.0045 | ES109: 0 | ET109: 0
C110: 970 | D110: USTACOOP LTDA. | F110: 5 | G110: 4 | H110: 15 | I110: 3 | J110: 24 | L110: 0.4311888889 | N110: 1 | O110: -0.0634 | Q110: 0.2645 | R110: -0.0316 | T110: 0.2645 | U110: -0.0316 | W110: 1 | X110: 0.9216 | Z110: 0.7273 | AA110: 0.7273 | AC110: 0.3704 | AD110: 0.0283 | AF110: 0.1429 | AG110: 0.1429 | AI110: 0.1111 | AJ110: 0.0322 | AL110: 0 | AM110: 0 | AO110: 0.47275 | AQ110: -0.051 | AR110: -0.0295 | AT110: 61.022 | AU110: 60.932 | AW110: 0.4806 | AX110: -0.0313 | AZ110: 0.6614 | BA110: 0.0702 | BC110: 0.8 | BD110: 0 | BF110: 0.8914625 | BH110: 0 | BI110: -0.3905 | BK110: 0.2156 | BL110: 0.125 | BN110: 1.3 | BO110: 0.31 | BQ110: 0.4806 | BR110: -0.0313 | BT110: 0.0922 | BU110: 0.002 | BW110: 3.9323 | BX110: 1.8547 | BZ110: 0.9793 | CA110: -0.6176 | CC110: 0.1317 | CD110: -0.2272 | CF110: 0.1950333333 | CH110: 0 | CI110: 0 | CK110: 0.0273 | CL110: -0.2468 | CN110: 0.1429 | CO110: -0.0971 | CQ110: 1 | CR110: 0 | CT110: 0 | CU110: -0.0004 | CW110: 0 | CX110: 0 | CZ110: 0.3103 | DB110: 0 | DC110: 0 | DE110: 0.2278 | DF110: 0.0933 | DH110: 0.3216 | DI110: 0.0198 | DK110: 0.0021 | DL110: 0.0007 | DN110: 1 | DO110: 0 | DQ110: 0 | DS110: 0 | DT110: 0 | DV110: 0 | DW110: 0 | DY110: 0 | DZ110: 0 | EB110: 0 | EC110: 0 | EE110: 0 | EF110: 0 | EH110: 0.97195 | EJ110: 0 | EK110: 0 | EM110: 1 | EN110: -12.0415 | EP110: 2.8878 | EQ110: 2.7466 | ES110: 0 | ET110: 0
C111: 1100 | D111: COOINDEGABO | F111: 4 | G111: 6 | H111: 14 | I111: 3 | J111: 25 | L111: 0.3873444444 | N111: 0.9967 | O111: 0.3304 | Q111: 0.172 | R111: 0.172 | T111: 0.172 | U111: 0.172 | W111: 0.7632 | X111: 0.7632 | Z111: 0.6923 | AA111: -0.4077 | AC111: 0.25 | AD111: -0.07 | AF111: 0.2941 | AG111: -0.1226 | AI111: 0.1458 | AJ111: 0.0658 | AL111: 0 | AM111: 0 | AO111: 0.427475 | AQ111: 0.0787 | AR111: 0.1537 | AT111: 1.78 | AU111: -0.11 | AW111: 0.299 | AX111: 0.01 | AZ111: 0.5122 | BA111: -0.0511 | BC111: 0.82 | BD111: 0.12 | BF111: 0.884275 | BH111: 1.7127 | BI111: 0.2382 | BK111: 0.7469 | BL111: 0.2396 | BN111: 1.15 | BO111: 0.31 | BQ111: 0.299 | BR111: 0.01 | BT111: 0.0048 | BU111: -0.099 | BW111: 1.5321 | BX111: 1.4078 | BZ111: 1.4502 | CA111: -2.4465 | CC111: 0.1785 | CD111: -0.0768 | CF111: 0.4528666667 | CH111: 0 | CI111: -0.0112 | CK111: 0.0505 | CL111: -0.1199 | CN111: 1.6667 | CO111: -82.0833 | CQ111: 1 | CR111: -1 | CT111: 0 | CU111: -0.0054 | CW111: 0 | CX111: 0.4932 | CZ111: 0.2856 | DB111: 0 | DC111: 0 | DE111: 0.0514 | DF111: -0.2392 | DH111: 0.3766 | DI111: 0.0671 | DK111: 0 | DL111: 0 | DN111: 1 | DO111: 0 | DQ111: 0 | DS111: 0 | DT111: 0 | DV111: 0 | DW111: 0 | DY111: 0 | DZ111: 0 | EB111: 0 | EC111: 0 | EE111: 0 | EF111: 0 | EH111: 0.025325 | EJ111: 0 | EK111: 0 | EM111: 0.0605 | EN111: -0.9395 | EP111: 0.0408 | EQ111: 0.0405 | ES111: 0 | ET111: 0
C112: 1128 | D112: ALCALICOOP | F112: 1 | G112: 3 | H112: 14 | I112: 8 | J112: 20 | L112: 0.5245333333 | N112: 0.9782 | O112: -0.0139 | Q112: 0.8302 | R112: 0 | T112: 0.8302 | U112: 0 | W112: 1 | X112: 0 | Z112: 0.5667 | AA112: 0.2 | AC112: 0.2955 | AD112: -0.0227 | AF112: 0.1385 | AG112: -0.0044 | AI112: 0.0227 | AJ112: 0 | AL112: 0.0588 | AM112: 0 | AO112: 0.46455 | AQ112: -0.0196 | AR112: 0.0137 | AT112: 15.56 | AU112: -11.94 | AW112: 0.4478 | AX112: -0.0075 | AZ112: 0.47 | BA112: 0.0169 | BC112: 0.96 | BD112: -0.02 | BF112: 0.719925 | BH112: 1.4195 | BI112: 0.0438 | BK112: 0.6414 | BL112: 0.2566 | BN112: 1.21 | BO112: 0.11 | BQ112: 0.4478 | BR112: -0.0075 | BT112: 0.0441 | BU112: -0.022 | BW112: 0.8862 | BX112: 1.6204 | BZ112: 0.693 | CA112: -0.6187 | CC112: 0.4174 | CD112: 0.482 | CF112: 0.09086666667 | CH112: 0 | CI112: -0.0022 | CK112: 0.0136 | CL112: -0.0124 | CN112: 0.5128 | CO112: 0.0477 | CQ112: 1 | CR112: 0 | CT112: 0.0188 | CU112: 0.0006 | CW112: -1 | CX112: -0.9962 | CZ112: 0.27444 | DB112: 0.0003 | DC112: 0.0003 | DE112: 0.0565 | DF112: -0.0272 | DH112: 0.3154 | DI112: 0.0702 | DK112: 0 | DL112: 0 | DN112: 1 | DO112: 0 | DQ112: 0.087 | DS112: 0.0149 | DT112: 0.0041 | DV112: 0.0382 | DW112: 0.0382 | DY112: 0.0644 | DZ112: 0.025 | EB112: 0.0675 | EC112: -0.0563 | EE112: 0.25 | EF112: -0.2222 | EH112: 0.13705 | EJ112: 0 | EK112: 0 | EM112: 0.509 | EN112: -0.8748 | EP112: 0.0392 | EQ112: 0.0111 | ES112: 0 | ET112: 0
C113: 1271 | D113: COOLEVER | F113: 4 | G113: 1 | H113: 6 | I113: 6 | J113: 30 | L113: 0.4075666667 | N113: 1 | O113: -0.0742 | Q113: 0.1794 | R113: 0.1794 | T113: 0.1794 | U113: 0.1794 | W113: 0.8368 | X113: 0.8368 | Z113: 0.5714 | AA113: 0.0197 | AC113: 0.4634 | AD113: 0.058 | AF113: 0.3889 | AG113: 0.0139 | AI113: 0.0488 | AJ113: -0.0323 | AL113: 0 | AM113: 0 | AO113: 0.368275 | AQ113: -0.0062 | AR113: 0.0629 | AT113: 0.5 | AU113: -2.48 | AW113: 0.5204 | AX113: 0.4064 | AZ113: 0.1189 | BA113: -0.4417 | BC113: 0.84 | BD113: 0.04 | BF113: 0.440475 | BH113: 1.9984 | BI113: 0.1178 | BK113: 0.2445 | BL113: 0.0958 | BN113: 1 | BO113: -0.23 | BQ113: 0.5204 | BR113: 0.4064 | BT113: 0.2198 | BU113: 0.004 | BW113: -0.8723 | BX113: -0.8723 | BZ113: 0.2433 | CA113: -0.2816 | CC113: 0.1697 | CD113: 0.1309 | CF113: -0.04111666667 | CH113: 0.0084 | CI113: 0.0054 | CK113: 0 | CL113: -0.0424 | CN113: 0 | CO113: -0.6957 | CQ113: 0 | CR113: -0.5714 | CT113: 0.0016 | CU113: 0.0016 | CW113: -0.2567 | CX113: 0.2031 | CZ113: 0.01804 | DB113: 0 | DC113: 0 | DE113: 0.0773 | DF113: -0.7223 | DH113: 0.0129 | DI113: -0.7866 | DK113: 0 | DL113: 0 | DN113: 0 | DO113: -0.875 | DQ113: 0.00878 | DS113: 0 | DT113: -0.0179 | DV113: 0 | DW113: 0 | DY113: 0.0439 | DZ113: -0.0284 | EB113: 0 | EC113: 0 | EE113: 0 | EF113: 0 | EH113: 0.250075 | EJ113: 0 | EK113: 0 | EM113: 0 | EN113: 0 | EP113: 0.0003 | EQ113: 0 | ES113: 1 | ET113: 1
C114: 1302 | D114: CIDESA | F114: 2 | G114: 5 | H114: 10 | I114: 3 | J114: 29 | L114: 0.3299111111 | N114: 1 | O114: 0.5646 | Q114: 0.2658 | R114: 0 | T114: 0.2658 | U114: 0 | W114: 0 | X114: -0.7331 | Z114: 0.5909 | AA114: -0.0281 | AC114: 0.48 | AD114: 0 | AF114: 0.2667 | AG114: 0 | AI114: 0.1 | AJ114: 0 | AL114: 0 | AM114: 0 | AO114: 0.181422019 | AQ114: 0.0231 | AR114: 0.0047 | AT114: 0.73 | AU114: 0.15 | AW114: 0.3180880759 | AX114: -0.09641192413 | AZ114: 0.3845 | BA114: 0.0314 | BC114: 0 | BD114: 0 | BF114: 2.031123509 | BH114: 2.0233 | BI114: 1.3138 | BK114: 0.272 | BL114: -0.2739 | BN114: 1.79 | BO114: 0.65 | BQ114: 0.3180880759 | BR114: -0.09641192413 | BT114: 0.073 | BU114: -0.0012 | BW114: 0.0261 | BX114: -0.3011 | BZ114: 1.9358 | CA114: 0.9174 | CC114: 9.8107 | CD114: 7.6033 | CF114: 0.00015 | CH114: 0 | CI114: -0.0011 | CK114: 0 | CL114: -0.0036 | CN114: 0 | CO114: 0 | CQ114: 1 | CR114: 1 | CT114: 0.0009 | CU114: -0.0001 | CW114: -1 | CX114: -0.1053 | CZ114: 0.27782 | DB114: 0 | DC114: -0.0079 | DE114: 0.0206 | DF114: -0.061 | DH114: 0.3685 | DI114: -0.1251 | DK114: 0 | DL114: 0 | DN114: 1 | DO114: 0 | DQ114: 0.20006 | DS114: 0.0003 | DT114: -0.0042 | DV114: 0 | DW114: 0 | DY114: 0 | DZ114: 0 | EB114: 0 | EC114: 0 | EE114: 1 | EF114: 0.1258 | EH114: 0.144775 | EJ114: 0 | EK114: -1 | EM114: 0.5538 | EN114: 0.1701 | EP114: 0.0253 | EQ114: 0.0214 | ES114: 0 | ET114: 0
C115: 1306 | D115: COOPEREN | F115: 4 | G115: 4 | H115: 13 | I115: 7 | J115: 22 | L115: 0.5379222222 | N115: 0.7956 | O115: 0.0092 | Q115: 0.766 | R115: 0 | T115: 0.766 | U115: 0 | W115: 1 | X115: 0 | Z115: 0.5714 | AA115: 0 | AC115: 0.5476 | AD115: 0.0592 | AF115: 0.3947 | AG115: 0.0311 | AI115: 0 | AJ115: 0 | AL115: 0 | AM115: 0 | AO115: 0.20795 | AQ115: 0.0186 | AR115: 0.0868 | AT115: 18.86 | AU115: 5.01 | AW115: 0.4978 | AX115: -0.0013 | AZ115: 0.3154 | BA115: 0.0122 | BC115: 0 | BD115: -0.84 | BF115: 1.785875 | BH115: 1.5043 | BI115: 0.1902 | BK115: 0.4507 | BL115: -0.1956 | BN115: 0.94 | BO115: -0.23 | BQ115: 0.4978 | BR115: -0.0013 | BT115: 0.1212 | BU115: 0.0017 | BW115: -0.7771 | BX115: -0.7076 | BZ115: 11.3467 | CA115: 8.7526 | CC115: 0.2034 | CD115: -0.0047 | CF115: 0.12565 | CH115: 0.0001 | CI115: -0.0022 | CK115: 0.0316 | CL115: -0.2295 | CN115: 0.6818 | CO115: 0.2947 | CQ115: 1 | CR115: 0 | CT115: 0.0096 | CU115: 0.0029 | CW115: -0.9692 | CX115: -0.8388 | CZ115: 0.28038 | DB115: 0 | DC115: 0 | DE115: 0.091 | DF115: -0.2137 | DH115: 0.4359 | DI115: 0.0179 | DK115: 0 | DL115: 0 | DN115: 0.875 | DO115: 0.125 | DQ115: 0.00348 | DS115: 0 | DT115: 0 | DV115: 0 | DW115: 0 | DY115: 0 | DZ115: 0 | EB115: 0 | EC115: 0 | EE115: 0.0174 | EF115: -0.0659 | EH115: 0.343775 | EJ115: 0 | EK115: 0 | EM115: 0.4654 | EN115: -0.1476 | EP115: 0.0006 | EQ115: 0 | ES115: 0.9091 | ET115: -0.0433
C116: 1319 | D116: COOTRAMED | F116: 1 | G116: 8 | H116: 20 | I116: 6 | J116: 16 | L116: 0.4007444444 | N116: 0.8964 | O116: -0.0764 | Q116: 0.1146 | R116: 0.1146 | T116: 0.1146 | U116: 0.1146 | W116: 1 | X116: 1 | Z116: 0.7273 | AA116: -0.2727 | AC116: 0.4468 | AD116: -0.0532 | AF116: 0.2857 | AG116: 0 | AI116: 0.0213 | AJ116: 0.0213 | AL116: 0 | AM116: 0 | AO116: 0.492275 | AQ116: 0.0852 | AR116: 0.1789 | AT116: 36.34 | AU116: -1.36 | AW116: 0.498 | AX116: 0.3613 | AZ116: 0.5159 | BA116: 0.0159 | BC116: 0.87 | BD116: 0.87 | BF116: 1.5209375 | BH116: 1.0251 | BI116: -1.9748 | BK116: 0.7699 | BL116: -0.0711 | BN116: 0.83 | BO116: -0.08 | BQ116: 0.498 | BR116: 0.3613 | BT116: 0.1936 | BU116: -0.0143 | BW116: 0.6841 | BX116: -0.0012 | BZ116: 7.43 | CA116: 5.442 | CC116: 0.7368 | CD116: 0.0024 | CF116: 1.47015 | CH116: 1 | CI116: 0 | CK116: 3.0168 | CL116: 2.0168 | CN116: 3.5909 | CO116: 3.0284 | CQ116: 1 | CR116: 0 | CT116: 0.0141 | CU116: 0.0047 | CW116: 0.1991 | CX116: 0.2858 | CZ116: 0.24534 | DB116: 0 | DC116: 0 | DE116: 0.0288 | DF116: -0.0101 | DH116: 0.1979 | DI116: -0.1873 | DK116: 0 | DL116: 0 | DN116: 1 | DO116: 0 | DQ116: 0.44402 | DS116: 0.0146 | DT116: 0.0031 | DV116: 0.0111 | DW116: 0.0111 | DY116: 0 | DZ116: 0 | EB116: 0.1944 | EC116: 0.1944 | EE116: 2 | EF116: 1 | EH116: 0.293375 | EJ116: 0 | EK116: 0 | EM116: 0.2695 | EN116: 0.0277 | EP116: 0.0707 | EQ116: -0.0198 | ES116: 0.8333 | ET116: 0.0926
C117: 1365 | D117: LEON XIII | F117: 5 | G117: 6 | H117: 16 | I117: 6 | J117: 20 | L117: 0.8187555556 | N117: 0.7368 | O117: 0.0117 | Q117: 1 | R117: 1 | T117: 1 | U117: 1 | W117: 0.7177 | X117: -0.2823 | Z117: 1.7 | AA117: 1.26 | AC117: 1 | AD117: 1 | AF117: 0.2143 | AG117: 0.0628 | AI117: 1 | AJ117: 1 | AL117: 0 | AM117: -0.0714 | AO117: 0.2791 | AQ117: 0.0185 | AR117: -0.007 | AT117: 0.22 | AU117: 0.08 | AW117: 0.5354 | AX117: 0.0414 | AZ117: 0.5625 | BA117: 0.0159 | BC117: 0 | BD117: 0 | BF117: 0.521875 | BH117: 0.4359 | BI117: 0.1194 | BK117: 0.4709 | BL117: -0.0428 | BN117: 1.02 | BO117: -0.1 | BQ117: 0.5354 | BR117: 0.0414 | BT117: 0.1123 | BU117: 0.0289 | BW117: -0.5284 | BX117: -0.5284 | BZ117: 0.2389 | CA117: 0.0291 | CC117: 1.89 | CD117: -0.5987 | CF117: 0.623 | CH117: 0.0043 | CI117: -0.0121 | CK117: 0.6286 | CL117: 0.6286 | CN117: 2.8 | CO117: 2.3294 | CQ117: 1 | CR117: 0 | CT117: 0.0221 | CU117: -0.0092 | CW117: -0.717 | CX117: -0.2279 | CZ117: 0.26262 | DB117: 0 | DC117: 0 | DE117: 0.1155 | DF117: -0.0255 | DH117: 0.1976 | DI117: -0.0753 | DK117: 0 | DL117: 0 | DN117: 1 | DO117: 0.375 | DQ117: 1.1415 | DS117: 0 | DT117: -0.0905 | DV117: 0 | DW117: 0 | DY117: 0 | DZ117: -1.4088 | EB117: 0 | EC117: 0 | EE117: 5.7075 | EF117: -0.0617 | EH117: 0.003175 | EJ117: 0 | EK117: 0 | EM117: 0 | EN117: -0.0059 | EP117: 0.0127 | EQ117: -0.0157 | ES117: 0 | ET117: 0
C118: 1386 | D118: COOSANROQUE | F118: 3 | G118: 6 | H118: 13 | I118: 9 | J118: 20 | L118: 0.4872777778 | N118: 0.9338 | O118: 0 | Q118: 0.4468 | R118: 0 | T118: 0.4468 | U118: 0 | W118: 0.7033 | X118: 0 | Z118: 0.5909 | AA118: -0.0491 | AC118: 0.625 | AD118: -0.0241 | AF118: 0.5556 | AG118: 0.0318 | AI118: 0.0833 | AJ118: -0.022 | AL118: 0 | AM118: 0 | AO118: 0.5158 | AQ118: 0.1729 | AR118: 0 | AT118: 14.29 | AU118: -0.95 | AW118: 0.4757 | AX118: 0.0129 | AZ118: 0.5046 | BA118: 0.0602 | BC118: 0.91 | BD118: 0.91 | BF118: 0.79075 | BH118: 1.2574 | BI118: 0.7087 | BK118: 0.3546 | BL118: -0.0868 | BN118: 1.28 | BO118: 0.03 | BQ118: 0.4757 | BR118: 0.0129 | BT118: 0.0782 | BU118: -0.0056 | BW118: -0.0089 | BX118: 0.2937 | BZ118: 1.6892 | CA118: 0.7696 | CC118: 1.1998 | CD118: 1.1037 | CF118: 0.24695 | CH118: 0 | CI118: 0 | CK118: 0.0709 | CL118: 0.0635 | CN118: 0.4063 | CO118: -0.1846 | CQ118: 1 | CR118: 0 | CT118: 0.0045 | CU118: 0.0012 | CW118: 0 | CX118: 1 | CZ118: 0.25676 | DB118: 0 | DC118: 0 | DE118: 0.039 | DF118: -0.8509 | DH118: 0.3698 | DI118: -0.0315 | DK118: 0 | DL118: 0 | DN118: 0.875 | DO118: 0 | DQ118: 0.06142 | DS118: 0.0054 | DT118: -0.0002 | DV118: 0.0007 | DW118: 0.0007 | DY118: 0 | DZ118: 0 | EB118: 0.0184 | EC118: 0.0184 | EE118: 0.2826 | EF118: -0.0063 | EH118: 0.34515 | EJ118: 0 | EK118: 0 | EM118: 1.3588 | EN118: 0.3588 | EP118: 0.0218 | EQ118: 0.0023 | ES118: 0 | ET118: 0
C119: 1437 | D119: COOABEJORRAL | F119: 2 | G119: 5 | H119: 13 | I119: 6 | J119: 23 | L119: 0.4494111111 | N119: 1.0409 | O119: 0.0409 | Q119: 0.314 | R119: 0.314 | T119: 0.314 | U119: 0.314 | W119: 0.6301 | X119: -0.0319 | Z119: 0.8421 | AA119: 0 | AC119: 0.4559 | AD119: 0.4559 | AF119: 0.2381 | AG119: -0.0952 | AI119: 0.1471 | AJ119: 0.1471 | AL119: 0.0625 | AM119: 0 | AO119: 0.2817 | AQ119: 0.153 | AR119: 0.0192 | AT119: 0.9 | AU119: 0.12 | AW119: 0.4629 | AX119: -0.0123 | AZ119: 0.5109 | BA119: -0.0255 | BC119: 0 | BD119: 0 | BF119: 0.4109125 | BH119: 1.1644 | BI119: 0.0218 | BK119: 0.1654 | BL119: -0.0634 | BN119: 1.23 | BO119: 0.07 | BQ119: 0.4629 | BR119: -0.0123 | BT119: 0.0807 | BU119: -0.0063 | BW119: 0.0505 | BX119: 0.0505 | BZ119: 0.0414 | CA119: -0.1075 | CC119: 0.092 | CD119: -0.0227 | CF119: 0.6414333333 | CH119: 0.0543 | CI119: 0.0335 | CK119: 0.016 | CL119: 0.0063 | CN119: 0.5 | CO119: 0.5 | CQ119: 1 | CR119: 0 | CT119: 0.0163 | CU119: -0.0021 | CW119: 2.262 | CX119: 2.5356 | CZ119: 0.3372 | DB119: 0 | DC119: 0 | DE119: 0.0845 | DF119: -0.0092 | DH119: 0.6015 | DI119: -0.0017 | DK119: 0 | DL119: 0 | DN119: 1 | DO119: 0 | DQ119: 0.13244 | DS119: 0.0289 | DT119: 0.0116 | DV119: 0 | DW119: 0 | DY119: 0 | DZ119: -0.0055 | EB119: 0 | EC119: 0 | EE119: 0.6333 | EF119: -0.0183 | EH119: 0.266875 | EJ119: 0 | EK119: 0 | EM119: 1.0019 | EN119: -0.2199 | EP119: 0.0656 | EQ119: 0.0636 | ES119: 0 | ET119: 0
C120: 1457 | D120: COOTRADEPTALES LTDA. | F120: 3 | G120: 6 | H120: 14 | I120: 2 | J120: 26 | L120: 0.2302888889 | N120: 0.9034 | O120: -0.0348 | Q120: 0 | R120: -0.457 | T120: 0 | U120: -0.457 | W120: 0 | X120: -0.6165 | Z120: 0.6 | AA120: -0.4 | AC120: 0.3 | AD120: -0.0548 | AF120: 0.2692 | AG120: -0.077 | AI120: 0 | AJ120: 0 | AL120: 0 | AM120: 0 | AO120: 0.862125 | AQ120: 0.0837 | AR120: 0.0259 | AT120: 20 | AU120: 20 | AW120: 0.4359 | AX120: -0.0169 | AZ120: 1.9789 | BA120: 1.5599 | BC120: 0.95 | BD120: -0.02 | BF120: 1.5482875 | BH120: 0.6097 | BI120: 0.0285 | BK120: 0.6875 | BL120: 0.1198 | BN120: 1.1 | BO120: -0.24 | BQ120: 0.4359 | BR120: -0.0169 | BT120: 0.1321 | BU120: -0.0273 | BW120: 5.7956 | BX120: 5.7484 | BZ120: 2.9992 | CA120: 0.3243 | CC120: 0.6263 | CD120: 0.2332 | CF120: 0.0124 | CH120: 0.0092 | CI120: 0.0077 | CK120: 0 | CL120: -0.1104 | CN120: 0 | CO120: -3.25 | CQ120: 0 | CR120: -1 | CT120: 0.0096 | CU120: -0.0022 | CW120: 0.0556 | CX120: -1.9235 | CZ120: 0.21954 | DB120: 0.0977 | DC120: -0.0387 | DE120: 0 | DF120: 0 | DH120: 0 | DI120: 0 | DK120: 0 | DL120: 0 | DN120: 1 | DO120: 0 | DQ120: 0.04 | DS120: 0 | DT120: 0 | DV120: 0 | DW120: 0 | DY120: 0 | DZ120: 0 | EB120: 0 | EC120: 0 | EE120: 0.2 | EF120: 0.2 | EH120: 0.11225 | EJ120: 0.3885 | EK120: 0.3885 | EM120: 0 | EN120: -0.0244 | EP120: 0.0605 | EQ120: 0.0586 | ES120: 0 | ET120: 0
C121: 1459 | D121: TELEPOSTAL | F121: 3 | G121: 5 | H121: 16 | I121: 7 | J121: 19 | L121: 0.8585444444 | N121: 1 | O121: 0.172 | Q121: 1 | R121: 1 | T121: 1 | U121: 1 | W121: 1 | X121: 0 | Z121: 1.25 | AA121: 0.75 | AC121: 1 | AD121: 1 | AF121: 0.4 | AG121: 0.1059 | AI121: 1 | AJ121: 1 | AL121: 0.0769 | AM121: 0.0769 | AO121: 0.25635 | AQ121: 0.0227 | AR121: 0.0252 | AT121: 57.61 | AU121: -18.72 | AW121: 0.5069 | AX121: 0.0075 | AZ121: 0.4958 | BA121: 0.085 | BC121: 0 | BD121: 0 | BF121: 0.538825 | BH121: 0.844 | BI121: -0.0804 | BK121: 0.4067 | BL121: -0.4056 | BN121: 1.09 | BO121: -0.12 | BQ121: 0.5069 | BR121: 0.0075 | BT121: 0.2787 | BU121: 0 | BW121: 0.2429 | BX121: 0.5865 | BZ121: 0.7184 | CA121: -0.0478 | CC121: 0.223 | CD121: 0.0289 | CF121: 0.1618833333 | CH121: 0.0441 | CI121: -0.0503 | CK121: 0.0042 | CL121: -0.0203 | CN121: 0.4286 | CO121: -0.4805 | CQ121: 1 | CR121: 0 | CT121: 0.043 | CU121: 0.0332 | CW121: -0.5486 | CX121: -0.2556 | CZ121: 0.25938 | DB121: 0 | DC121: 0 | DE121: 0.0484 | DF121: -0.0743 | DH121: 0.3735 | DI121: 0.009 | DK121: 0 | DL121: 0 | DN121: 0.875 | DO121: 0 | DQ121: 1.5 | DS121: 0 | DT121: 0 | DV121: 0 | DW121: 0 | DY121: 0 | DZ121: 0 | EB121: 0 | EC121: 0 | EE121: 7.5 | EF121: 0 | EH121: 0.184475 | EJ121: 0 | EK121: 0 | EM121: 0.7379 | EN121: -3.9449 | EP121: 0 | EQ121: 0 | ES121: 0 | ET121: 0
C122: 1512 | D122: COYAMOR | F122: 7 | G122: 3 | H122: 10 | I122: 4 | J122: 28 | L122: 0.1906444444 | N122: 0.9301 | O122: -0.0699 | Q122: 0 | R122: -0.4739 | T122: 0 | U122: -0.4739 | W122: 0 | X122: -1 | Z122: 0 | AA122: -0.625 | AC122: 0.6905 | AD122: -0.0809 | AF122: 0 | AG122: -0.9167 | AI122: 0.0952 | AJ122: 0.0666 | AL122: 0 | AM122: 0 | AO122: 0.2536 | AQ122: 0.037 | AR122: -0.0011 | AT122: 7.62 | AU122: -0.72 | AW122: 0.5415 | AX122: 0.0287 | AZ122: 0.4359 | BA122: -0.0562 | BC122: 0 | BD122: 0 | BF122: 0.6766125 | BH122: 0 | BI122: 0 | BK122: 0.0369 | BL122: -0.0074 | BN122: 0.84 | BO122: -0.12 | BQ122: 0.5415 | BR122: 0.0287 | BT122: 0.146 | BU122: -0.0145 | BW122: 1.1304 | BX122: 1.2097 | BZ122: 0.1789 | CA122: -1.574 | CC122: 2.5392 | CD122: 0.4136 | CF122: 0.04353333333 | CH122: 0.0004 | CI122: -0.0009 | CK122: 0.0009 | CL122: 0.0009 | CN122: 0 | CO122: 0 | CQ122: 1 | CR122: 1 | CT122: 0.0012 | CU122: 0.0005 | CW122: -0.7413 | CX122: -9.6476 | CZ122: 0.30846 | DB122: 0 | DC122: 0 | DE122: 0.0837 | DF122: 0.0402 | DH122: 0.4586 | DI122: -0.6889 | DK122: 0 | DL122: 0 | DN122: 1 | DO122: 0 | DQ122: 0.20522 | DS122: 0.0261 | DT122: 0.0261 | DV122: 0 | DW122: 0 | DY122: 0 | DZ122: 0 | EB122: 0 | EC122: 0 | EE122: 1 | EF122: 0.863 | EH122: 0.008375 | EJ122: 0 | EK122: 0 | EM122: 0 | EN122: 0 | EP122: 0.0335 | EQ122: 0.0072 | ES122: 0 | ET122: 0
C123: 1615 | D123: COMFAMIGOS | F123: 10 | G123: 6 | H123: 16 | I123: 2 | J123: 24 | L123: 0.4285666667 | N123: 0.9995 | O123: -0.0376 | Q123: 0.3927 | R123: 0 | T123: 0.3927 | U123: 0 | W123: 1 | X123: 0 | Z123: 0.64 | AA123: -0.2021 | AC123: 0.32 | AD123: -0.0244 | AF123: 0.0455 | AG123: -0.0045 | AI123: 0.0667 | AJ123: 0 | AL123: 0 | AM123: 0 | AO123: 0.497125 | AQ123: -0.0063 | AR123: -0.0374 | AT123: 2.19 | AU123: 0.41 | AW123: 0.3237 | AX123: -0.3261 | AZ123: 0.8511 | BA123: 0.1599 | BC123: 0.82 | BD123: -0.06 | BF123: 0.7702125 | BH123: 3.2149 | BI123: 2.1883 | BK123: 0.3805 | BL123: -0.2223 | BN123: 1.22 | BO123: 0.33 | BQ123: 0.3237 | BR123: -0.3261 | BT123: 0 | BU123: -0.1435 | BW123: -0.1019 | BX123: 0.8981 | BZ123: 1.1245 | CA123: -1.0742 | CC123: 0 | CD123: -1.62 | CF123: 1.281733333 | CH123: 0 | CI123: -0.1529 | CK123: 0.9043 | CL123: -0.0957 | CN123: 0.4167 | CO123: -0.1389 | CQ123: 1 | CR123: 0 | CT123: 0 | CU123: -0.0049 | CW123: 5.3694 | CX123: 5.6927 | CZ123: 0.26924 | DB123: 0 | DC123: -0.0003 | DE123: 0 | DF123: -0.1013 | DH123: 0.3462 | DI123: 0.0134 | DK123: 0 | DL123: 0 | DN123: 1 | DO123: 0 | DQ123: 0.22858 | DS123: 0 | DT123: -0.0162 | DV123: 0 | DW123: 0 | DY123: 0 | DZ123: 0 | EB123: 0.1429 | EC123: 0.1429 | EE123: 1 | EF123: 0 | EH123: 0 | EJ123: 0 | EK123: -0.1049 | EM123: 0 | EN123: 0 | EP123: 0 | EQ123: -0.0005 | ES123: 0 | ET123: 0
C124: 1632 | D124: AVANCOP | F124: 3 | G124: 4 | H124: 20 | I124: 9 | J124: 13 | L124: 0.4930666667 | N124: 0.7512 | O124: 0.0074 | Q124: 0.5382 | R124: 0 | T124: 0.5382 | U124: 0 | W124: 0.6433 | X124: 0 | Z124: 0.5 | AA124: -0.0385 | AC124: 0.6905 | AD124: 0.1191 | AF124: 0.55 | AG124: 0.0717 | AI124: 0.1429 | AJ124: 0.0953 | AL124: 0.0833 | AM124: 0.0119 | AO124: 0.5200027868 | AQ124: -0.0056 | AR124: 0.0334 | AT124: 19.04 | AU124: 1.3 | AW124: 0.712911147 | AX124: 0.154611147 | AZ124: 0.4727 | BA124: 0.03 | BC124: 0.9 | BD124: 0.9 | BF124: 0.7493013934 | BH124: 0.741 | BI124: 0.2508 | BK124: 0.7673 | BL124: 0.3979 | BN124: 1.08 | BO124: 0.17 | BQ124: 0.712911147 | BR124: 0.154611147 | BT124: 0.1235 | BU124: 0.0007 | BW124: 1.037 | BX124: 1.4346 | BZ124: 1.391 | CA124: 0.1241 | CC124: 0.1417 | CD124: 0.0199 | CF124: 0.5633166667 | CH124: 1 | CI124: 0 | CK124: 0.72 | CL124: 0.679 | CN124: 0.4783 | CO124: 0.0497 | CQ124: 1 | CR124: 0 | CT124: 0.0242 | CU124: 0.0209 | CW124: 0.1574 | CX124: 0.0712 | CZ124: 0.27364 | DB124: 0 | DC124: 0 | DE124: 0.0918 | DF124: 0.022 | DH124: 0.2764 | DI124: 0.0115 | DK124: 0 | DL124: 0 | DN124: 1 | DO124: 0 | DQ124: 0.20076 | DS124: 0.0038 | DT124: 0.0029 | DV124: 0 | DW124: 0 | DY124: 0 | DZ124: -0.0707 | EB124: 0 | EC124: 0 | EE124: 1 | EF124: 0 | EH124: 0.465225 | EJ124: 0 | EK124: 0 | EM124: 0.9879 | EN124: 0.9388 | EP124: 0.0034 | EQ124: -0.0357 | ES124: 0.8696 | ET124: 0.0196
C125: 1644 | D125: COOCERVUNION | F125: 6 | G125: 4 | H125: 11 | I125: 6 | J125: 25 | L125: 0.3662666667 | N125: 0.6319 | O125: -0.0633 | Q125: 0.0219 | R125: -0.9781 | T125: 0.0219 | U125: -0.9781 | W125: 1 | X125: 0 | Z125: 0.5 | AA125: 0 | AC125: 0.5862 | AD125: 0.0104 | AF125: 0.5 | AG125: 0.0385 | AI125: 0.0345 | AJ125: 0.0042 | AL125: 0 | AM125: 0 | AO125: 0.21255 | AQ125: -0.1172 | AR125: -0.0776 | AT125: 75.52 | AU125: 44.92 | AW125: 0.3843 | AX125: -0.0303 | AZ125: 0.5831 | BA125: -0.0394 | BC125: 0 | BD125: 0 | BF125: 1.1050375 | BH125: 0.881 | BI125: 0.3272 | BK125: 0.5373 | BL125: -0.1495 | BN125: 1.71 | BO125: 0.06 | BQ125: 0.3843 | BR125: -0.0303 | BT125: 0.1098 | BU125: 0.0206 | BW125: 3.5614 | BX125: 2.7038 | BZ125: 0.8842 | CA125: 0.1707 | CC125: 0.7723 | CD125: -0.74 | CF125: 0.1199333333 | CH125: 0.03 | CI125: -0.0554 | CK125: 0.0067 | CL125: -0.004 | CN125: 0.4091 | CO125: -0.3182 | CQ125: 0.75 | CR125: -0.25 | CT125: 0.0053 | CU125: -0.0001 | CW125: -0.4815 | CX125: -1.1355 | CZ125: 0.20462 | DB125: 0 | DC125: 0 | DE125: 0.024 | DF125: -0.0049 | DH125: 0.2491 | DI125: -0.0916 | DK125: 0 | DL125: 0 | DN125: 0.75 | DO125: 0 | DQ125: 0 | DS125: 0 | DT125: 0 | DV125: 0 | DW125: 0 | DY125: 0 | DZ125: 0 | EB125: 0 | EC125: 0 | EE125: 0 | EF125: 0 | EH125: 0 | EJ125: 0 | EK125: 0 | EM125: 0 | EN125: 0 | EP125: 0 | EQ125: 0 | ES125: 0 | ET125: 0
C126: 1649 | D126: COOPERENKA | F126: 3 | G126: 4 | H126: 13 | I126: 5 | J126: 24 | L126: 0.3224222222 | N126: 0.8218 | O126: -0.0254 | Q126: 0.2034 | R126: 0 | T126: 0.2034 | U126: 0 | W126: 0.6791 | X126: 0 | Z126: 0.7778 | AA126: 0.041 | AC126: 0.1622 | AD126: 0 | AF126: 0 | AG126: -0.1765 | AI126: 0.0541 | AJ126: 0 | AL126: 0 | AM126: 0 | AO126: 0.193575 | AQ126: 0.023 | AR126: -0.0302 | AT126: 56.04 | AU126: -3.66 | AW126: 0.2341 | AX126: -0.0105 | AZ126: 0.5172 | BA126: 0.0068 | BC126: 0 | BD126: 0 | BF126: 0.575475 | BH126: 1.0189 | BI126: -0.053 | BK126: 0.5853 | BL126: 0.0165 | BN126: 1.31 | BO126: -0.2 | BQ126: 0.2341 | BR126: -0.0105 | BT126: 0.0891 | BU126: -0.0057 | BW126: -0.7973 | BX126: -0.2512 | BZ126: 1.7922 | CA126: 0.5552 | CC126: 0.3715 | CD126: 0.1009 | CF126: 0.4160166667 | CH126: 0.0077 | CI126: 0.0033 | CK126: 0 | CL126: -0.0225 | CN126: 0.6087 | CO126: -0.0972 | CQ126: 1 | CR126: 0 | CT126: 0.0036 | CU126: 0.003 | CW126: 0.8761 | CX126: 1.6752 | CZ126: 0.31314 | DB126: 0 | DC126: 0 | DE126: 0.0757 | DF126: 0.0025 | DH126: 0.49 | DI126: 0.0771 | DK126: 0 | DL126: 0 | DN126: 1 | DO126: 0 | DQ126: 0.2 | DS126: 0 | DT126: 0 | DV126: 0 | DW126: 0 | DY126: 0 | DZ126: 0 | EB126: 0 | EC126: 0 | EE126: 1 | EF126: 0 | EH126: 0.187925 | EJ126: 0 | EK126: 0 | EM126: 0.735 | EN126: -0.0004 | EP126: 0.0167 | EQ126: 0.0165 | ES126: 0 | ET126: 0
C127: 1751 | D127: COOSVICENTE | F127: 5 | G127: 4 | H127: 12 | I127: 7 | J127: 23 | L127: 0.5775 | N127: 0.4977 | O127: -0.0433 | Q127: 1 | R127: 0.1379 | T127: 1 | U127: 0.1379 | W127: 1 | X127: 0.04 | Z127: 0.5 | AA127: -0.0926 | AC127: 0.5652 | AD127: 0.0052 | AF127: 0.5476 | AG127: -0.0611 | AI127: 0.087 | AJ127: 0.047 | AL127: 0 | AM127: 0 | AO127: 0.218 | AQ127: -0.0109 | AR127: 0.0436 | AT127: 22.09 | AU127: 1.54 | AW127: 0.4162 | AX127: -0.0024 | AZ127: 0.4667 | BA127: -0.0327 | BC127: 0 | BD127: 0 | BF127: 0.6988375 | BH127: 0.7099 | BI127: 0.0606 | BK127: 0.2803 | BL127: -0.1763 | BN127: 1.02 | BO127: 0 | BQ127: 0.4162 | BR127: -0.0024 | BT127: 0.0582 | BU127: 0.0026 | BW127: 1.0526 | BX127: 0.1737 | BZ127: 0.0385 | CA127: -0.3724 | CC127: 2.015 | CD127: 1.6607 | CF127: -0.16645 | CH127: 0 | CI127: -0.0216 | CK127: 0 | CL127: -0.0026 | CN127: 0 | CO127: -0.3333 | CQ127: 0 | CR127: -1 | CT127: 0.0013 | CU127: -0.0013 | CW127: -1 | CX127: -0.7485 | CZ127: 0.25378 | DB127: 0.0101 | DC127: 0.0101 | DE127: 0.0254 | DF127: -0.0128 | DH127: 0.3584 | DI127: -0.0221 | DK127: 0 | DL127: 0 | DN127: 0.875 | DO127: 0 | DQ127: 0.2 | DS127: 0 | DT127: 0 | DV127: 0 | DW127: 0 | DY127: 0 | DZ127: 0 | EB127: 0 | EC127: 0 | EE127: 1 | EF127: 0 | EH127: 0.2511 | EJ127: 1 | EK127: 1 | EM127: 0.0023 | EN127: -0.0113 | EP127: 0.0021 | EQ127: -0.0001 | ES127: 0 | ET127: 0
C128: 1756 | D128: COOGOMEZPLATA | F128: 3 | G128: 4 | H128: 14 | I128: 6 | J128: 22 | L128: 0.5094555556 | N128: 1.2189 | O128: 0.0739 | Q128: 0.1206 | R128: 0 | T128: 0.1206 | U128: 0 | W128: 1 | X128: 0 | Z128: 1 | AA128: 0.3333 | AC128: 0.625 | AD128: 0.0298 | AF128: 0.5 | AG128: -0.0882 | AI128: 0 | AJ128: -0.0952 | AL128: 0 | AM128: 0 | AO128: 0.491225 | AQ128: 0.0237 | AR128: -0.0131 | AT128: 0.23 | AU128: 0.03 | AW128: 0.4916 | AX128: 0.0061 | AZ128: 0.4796 | BA128: -0.0036 | BC128: 0.97 | BD128: -0.01 | BF128: 0.8841625 | BH128: 3 | BI128: 2.6658 | BK128: 0.229 | BL128: -0.0276 | BN128: 1.06 | BO128: -0.46 | BQ128: 0.4916 | BR128: 0.0061 | BT128: 0.0828 | BU128: -0.0087 | BW128: -0.0001 | BX128: 0.4678 | BZ128: 1.4795 | CA128: -0.0237 | CC128: 0.7305 | CD128: -0.9056 | CF128: 0.2597833333 | CH128: 0.0029 | CI128: 0.0006 | CK128: 0.0308 | CL128: -0.0768 | CN128: 0.1667 | CO128: -0.4487 | CQ128: 1 | CR128: 0 | CT128: 0.0029 | CU128: -0.0065 | CW128: 0.3554 | CX128: 0.3127 | CZ128: 0.26472 | DB128: 0.0057 | DC128: 0.0057 | DE128: 0.0655 | DF128: -0.0271 | DH128: 0.3774 | DI128: 0.0305 | DK128: 0 | DL128: 0 | DN128: 0.875 | DO128: 0 | DQ128: 0.40048 | DS128: 0.0024 | DT128: 0.0024 | DV128: 0 | DW128: 0 | DY128: 0 | DZ128: -0.0842 | EB128: 1 | EC128: 1 | EE128: 1 | EF128: 0 | EH128: 0.001075 | EJ128: 0 | EK128: 0 | EM128: 0 | EN128: 0 | EP128: 0.0043 | EQ128: 0.0043 | ES128: 0 | ET128: 0
C129: 1811 | D129: UNIBOLIVARIANA | F129: 1 | G129: 3 | H129: 13 | I129: 5 | J129: 24 | L129: 0.4663111111 | N129: 0.9624 | O129: 0.5043 | Q129: 0.2584 | R129: 0.038 | T129: 0.2584 | U129: 0.038 | W129: 1 | X129: 0.8934 | Z129: 0.8235 | AA129: 0.0457 | AC129: 0.5306 | AD129: 0.0723 | AF129: 0.2105 | AG129: -0.1077 | AI129: 0.0816 | AJ129: 0.0191 | AL129: 0.0714 | AM129: 0 | AO129: 0.304475 | AQ129: 0.0615 | AR129: -0.05 | AT129: 5.12 | AU129: -1.45 | AW129: 0.5361 | AX129: -0.0456 | AZ129: 0.6203 | BA129: -0.1444 | BC129: 0 | BD129: 0 | BF129: 0.403275 | BH129: 1.0047 | BI129: 0.2728 | BK129: 0.0633 | BL129: -0.3298 | BN129: 1 | BO129: 0.07 | BQ129: 0.5361 | BR129: -0.0456 | BT129: 0.0734 | BU129: -0.0059 | BW129: -0.2322 | BX129: -0.4367 | BZ129: 0.0854 | CA129: -0.0223 | CC129: 0.6955 | CD129: 0.7862 | CF129: 0.4474666667 | CH129: 1.1425 | CI129: 1.1098 | CK129: 0.0854 | CL129: 0.0204 | CN129: 0.3704 | CO129: 0.3704 | CQ129: 1 | CR129: 0 | CT129: 0.0274 | CU129: 0.0131 | CW129: 0.0591 | CX129: 0.2424 | CZ129: 0.2866 | DB129: 0 | DC129: 0 | DE129: 0.0404 | DF129: -0.0909 | DH129: 0.3926 | DI129: -0.1276 | DK129: 0 | DL129: -0.0014 | DN129: 1 | DO129: 0 | DQ129: 0.2008 | DS129: 0.004 | DT129: 0.004 | DV129: 0 | DW129: 0 | DY129: 0 | DZ129: -0.05 | EB129: 0 | EC129: 0 | EE129: 1 | EF129: 0.0864 | EH129: 0.270875 | EJ129: 0 | EK129: 0 | EM129: 0.0589 | EN129: -0.6644 | EP129: 0.0722 | EQ129: -0.0068 | ES129: 0.9524 | ET129: 0.3197
C130: 1813 | D130: COOFRASA | F130: 8 | G130: 5 | H130: 13 | I130: 1 | J130: 28 | L130: 1.006855556 | N130: 2.5617 | O130: 0.131 | Q130: 1 | R130: 1 | T130: 1 | U130: 1 | W130: 1 | X130: 0.9719 | Z130: 1.5 | AA130: 0.8333 | AC130: 1 | AD130: 1 | AF130: 0 | AG130: 0 | AI130: 1 | AJ130: 1 | AL130: 0 | AM130: 0 | AO130: 0.35165 | AQ130: 0 | AR130: -0.051 | AT130: 10.37 | AU130: 4.71 | AW130: 0.0096 | AX130: 0.0061 | AZ130: 0.457 | BA130: 0.0048 | BC130: 0.94 | BD130: 0.01 | BF130: 0.3502403784 | BH130: 0.3889 | BI130: -0.2362 | BK130: 0.176923027 | BL130: -0.100776973 | BN130: 1.15 | BO130: 1.15 | BQ130: 0.0096 | BR130: 0.0061 | BT130: 0.0692 | BU130: -0.0196 | BW130: 0 | BX130: 0 | BZ130: 0 | CA130: -0.0024 | CC130: 1.0073 | CD130: 1.4787 | CF130: 0.00015 | CH130: 0 | CI130: 0 | CK130: 0 | CL130: 0 | CN130: 0 | CO130: 0 | CQ130: 0 | CR130: 0 | CT130: 0.0009 | CU130: -0.0004 | CW130: 0 | CX130: 0 | CZ130: 0.21514 | DB130: 0 | DC130: 0 | DE130: 0.0911 | DF130: 0.0911 | DH130: 0.3596 | DI130: -0.228 | DK130: 0 | DL130: 0 | DN130: 0.625 | DO130: -0.125 | DQ130: 0.2 | DS130: 0 | DT130: 0 | DV130: 0 | DW130: 0 | DY130: 0 | DZ130: 0 | EB130: 0 | EC130: 0 | EE130: 1 | EF130: 0 | EH130: 0.02405 | EJ130: 0 | EK130: 0 | EM130: 0.0959 | EN130: -0.2895 | EP130: 0.0003 | EQ130: -0.0114 | ES130: 0 | ET130: 0
C131: 1991 | D131: GRANCOOP | F131: 3 | G131: 4 | H131: 13 | I131: 7 | J131: 22 | L131: 0.3993555556 | N131: 0.967 | O131: 0.029 | Q131: 0.2044 | R131: -0.0414 | T131: 0.2044 | U131: -0.0414 | W131: 1 | X131: 0 | Z131: 0.5385 | AA131: -0.0769 | AC131: 0.4565 | AD131: 0.0334 | AF131: 0.1364 | AG131: 0.0455 | AI131: 0.087 | AJ131: 0.0101 | AL131: 0 | AM131: 0 | AO131: 0.4094 | AQ131: -0.0537 | AR131: -0.0013 | AT131: 1.53 | AU131: 1.06 | AW131: 0.3422 | AX131: 0.001 | AZ131: 0.4391 | BA131: -0.0541 | BC131: 0.91 | BD131: 0.07 | BF131: 0.47095 | BH131: 0.6403 | BI131: -0.3676 | BK131: 0.5519 | BL131: -0.0686 | BN131: 1.61 | BO131: 0.16 | BQ131: 0.3422 | BR131: 0.001 | BT131: 0.1867 | BU131: -0.0003 | BW131: -0.6244 | BX131: -2.4726 | BZ131: 0.7801 | CA131: 0.4963 | CC131: 0.2808 | CD131: -0.0154 | CF131: 1.142216667 | CH131: 0.0249 | CI131: 0.0249 | CK131: 0.2142 | CL131: 0.0973 | CN131: 0.4 | CO131: -0.0068 | CQ131: 0.9375 | CR131: -0.0625 | CT131: 0.0041 | CU131: -0.0002 | CW131: 5.2726 | CX131: 5.2726 | CZ131: 0.30172 | DB131: 0 | DC131: 0 | DE131: 0.1163 | DF131: -0.146 | DH131: 0.3923 | DI131: -0.0753 | DK131: 0 | DL131: 0 | DN131: 1 | DO131: 0.375 | DQ131: 0.18512 | DS131: 0.0473 | DT131: 0.0473 | DV131: 0 | DW131: 0 | DY131: 0 | DZ131: 0 | EB131: 0.0563 | EC131: 0.0563 | EE131: 0.822 | EF131: 0.0873 | EH131: 0.32375 | EJ131: 0 | EK131: 0 | EM131: 0.1746 | EN131: 0.1364 | EP131: 0.1876 | EQ131: 0.1491 | ES131: 0.9328 | ET131: 0.9328
C132: 2006 | D132: FINECOOP | F132: 7 | G132: 1 | H132: 6 | I132: 4 | J132: 32 | L132: 0.1122111111 | N132: 0.6637 | O132: 0.0382 | Q132: 0 | R132: -0.2565 | T132: 0 | U132: -0.2565 | W132: 0 | X132: -0.045 | Z132: 0 | AA132: -0.6957 | AC132: 0.3077 | AD132: 0.0819 | AF132: 0 | AG132: -0.3235 | AI132: 0.0385 | AJ132: 0.0385 | AL132: 0 | AM132: 0 | AO132: 0.372625 | AQ132: -0.1027 | AR132: -0.0789 | AT132: 1.95 | AU132: -33.36 | AW132: 0.3493 | AX132: 0.0041 | AZ132: 0.5139 | BA132: 0.0364 | BC132: 0.73 | BD132: -0.02 | BF132: 0.2494625 | BH132: 0.5363 | BI132: 0.185 | BK132: 0.5464 | BL132: -0.0083 | BN132: 0.57 | BO132: -0.37 | BQ132: 0.3493 | BR132: 0.0041 | BT132: 0.1158 | BU132: -0.0001 | BW132: -0.8105 | BX132: -422.9057 | BZ132: 0.7619 | CA132: 0.7608 | CC132: -0.0735 | CD132: -0.3596 | CF132: 0.0614 | CH132: 0.006 | CI132: 0.0024 | CK132: 0.0103 | CL132: -0.004 | CN132: 0.1429 | CO132: -0.8045 | CQ132: 0.1026 | CR132: -0.8974 | CT132: 0.0059 | CU132: -0.0184 | CW132: 0.1007 | CX132: 0.694 | CZ132: 0.27052 | DB132: 0 | DC132: 0 | DE132: 0.0568 | DF132: 0.0001 | DH132: 0.2958 | DI132: -0.1183 | DK132: 0 | DL132: 0 | DN132: 1 | DO132: 0.25 | DQ132: 0.175 | DS132: 0 | DT132: 0 | DV132: 0 | DW132: 0 | DY132: 0 | DZ132: -0.0021 | EB132: 0 | EC132: 0 | EE132: 0.875 | EF132: 0.1389 | EH132: 0.0258 | EJ132: 0 | EK132: 0 | EM132: 0.1032 | EN132: -0.8968 | EP132: 0 | EQ132: -0.0775 | ES132: 0 | ET132: 0
C133: 2024 | D133: COOPROFESIONALES LTDA | F133: 4 | G133: 6 | H133: 17 | I133: 5 | J133: 20 | L133: 0.2906444444 | N133: 1.1655 | O133: 0.4272 | Q133: 0 | R133: -0.3191 | T133: 0 | U133: -0.3191 | W133: 0 | X133: -0.7114 | Z133: 0.8 | AA133: -0.4 | AC133: 0.2549 | AD133: -0.0143 | AF133: 0.2778 | AG133: 0.0556 | AI133: 0.1176 | AJ133: 0.0599 | AL133: 0 | AM133: 0 | AO133: 0.54455 | AQ133: 0.032 | AR133: 0.0338 | AT133: 11.02 | AU133: 1.35 | AW133: 0.5958 | AX133: 0.056 | AZ133: 0.6104 | BA133: 0.0523 | BC133: 0.94 | BD133: 0 | BF133: 0.5956125 | BH133: 0.6761 | BI133: -0.0135 | BK133: 0.7682 | BL133: -0.155 | BN133: 1.19 | BO133: -0.18 | BQ133: 0.5958 | BR133: 0.056 | BT133: 0.0768 | BU133: -0.0028 | BW133: 0.2674 | BX133: 0.9775 | BZ133: 1.0017 | CA133: -0.139 | CC133: 0.1889 | CD133: 0.0538 | CF133: 0.7905166667 | CH133: 1 | CI133: 0 | CK133: 1.8231 | CL133: 1.604 | CN133: 1.125 | CO133: 0.5956 | CQ133: 1 | CR133: 0 | CT133: 0.0048 | CU133: 0.0009 | CW133: -0.2098 | CX133: -0.2045 | CZ133: 0.23522 | DB133: 0 | DC133: 0 | DE133: 0.0488 | DF133: -0.0046 | DH133: 0.2523 | DI133: 0.0265 | DK133: 0 | DL133: 0 | DN133: 0.875 | DO133: 0 | DQ133: 0.20118 | DS133: 0 | DT133: 0 | DV133: 0 | DW133: 0 | DY133: 0.0059 | DZ133: 0.0059 | EB133: 0 | EC133: 0 | EE133: 1 | EF133: 0.1875 | EH133: 0.376575 | EJ133: 0 | EK133: 0 | EM133: 0.9563 | EN133: 0.0002 | EP133: 0.0236 | EQ133: 0.0039 | ES133: 0.5264 | ET133: -0.1695
C134: 2058 | D134: CEMCOP | F134: 4 | G134: 6 | H134: 13 | I134: 5 | J134: 24 | L134: 0.5043111111 | N134: 1 | O134: -0.0975 | Q134: 0.3833 | R134: 0 | T134: 0.3833 | U134: 0 | W134: 1 | X134: 0 | Z134: 1.2222 | AA134: 0.453 | AC134: 0.2 | AD134: 0.0095 | AF134: 0.3 | AG134: 0.0857 | AI134: 0.05 | AJ134: -0.0214 | AL134: 0 | AM134: 0 | AO134: 0.39445 | AQ134: 0.0326 | AR134: 0.0312 | AT134: 0 | AU134: 0 | AW134: 0.1885 | AX134: 0.047 | AZ134: 0.4067 | BA134: 0.0324 | BC134: 0.95 | BD134: 0 | BF134: 1.351275 | BH134: 1.9165 | BI134: -0.4545 | BK134: 0.5525 | BL134: 0.0283 | BN134: 0.84 | BO134: -0.25 | BQ134: 0.1885 | BR134: 0.047 | BT134: 0.0634 | BU134: 0.0002 | BW134: 5.9388 | BX134: 6.2728 | BZ134: 1.0037 | CA134: 0.049 | CC134: 0.3068 | CD134: 0.1182 | CF134: 0.5589833333 | CH134: 0.0003 | CI134: 0.0003 | CK134: 0.0519 | CL134: -0.1192 | CN134: 2.3 | CO134: 1.0222 | CQ134: 1 | CR134: 0 | CT134: 0.0017 | CU134: 0.0001 | CW134: 0 | CX134: 1 | CZ134: 0.48556 | DB134: 0.015 | DC134: 0.0107 | DE134: 0.4404 | DF134: 0.3384 | DH134: 0.9724 | DI134: 0.6042 | DK134: 0 | DL134: 0 | DN134: 1 | DO134: 0 | DQ134: 0 | DS134: 0 | DT134: 0 | DV134: 0 | DW134: 0 | DY134: 0 | DZ134: 0 | EB134: 0 | EC134: 0 | EE134: 0 | EF134: 0 | EH134: 0.001125 | EJ134: 0 | EK134: 0 | EM134: 0 | EN134: -0.3302 | EP134: 0.0045 | EQ134: 0.0002 | ES134: 0 | ET134: 0
C135: 2246 | D135: COOTRAIM | F135: 0 | G135: 3 | H135: 11 | I135: 5 | J135: 26 | L135: 0.4763222222 | N135: 1 | O135: 0.6758 | Q135: 0.612 | R135: -0.388 | T135: 0.612 | U135: -0.388 | W135: 1 | X135: 0 | Z135: 0.5333 | AA135: -0.0436 | AC135: 0.2747 | AD135: 0.11 | AF135: 0.2 | AG135: 0.0333 | AI135: 0.0549 | AJ135: 0.0314 | AL135: 0 | AM135: 0 | AO135: 0.187575 | AQ135: 0.0119 | AR135: -0.0204 | AT135: 0.36 | AU135: -25.64 | AW135: 0.2908 | AX135: 0.0049 | AZ135: 0.4476 | BA135: -0.0263 | BC135: 0 | BD135: 0 | BF135: 0.4622875 | BH135: 0.4113 | BI135: -0.3489 | BK135: 0.3366 | BL135: -0.1636 | BN135: 2.37 | BO135: 0.17 | BQ135: 0.2908 | BR135: 0.0049 | BT135: 0.0928 | BU135: -0.0271 | BW135: -0.2068 | BX135: -3.7327 | BZ135: 0.0644 | CA135: 0.04 | CC135: 0.3392 | CD135: -0.2811 | CF135: 0.2917 | CH135: 0.0051 | CI135: -0.0012 | CK135: 0.0141 | CL135: -0.0069 | CN135: 0.8889 | CO135: 0 | CQ135: 1 | CR135: 0 | CT135: 0.0059 | CU135: -0.0012 | CW135: -0.1638 | CX135: 0.3849 | CZ135: 0.25666 | DB135: 0.0006 | DC135: 0 | DE135: 0.1125 | DF135: -0.0044 | DH135: 0.4202 | DI135: -0.4606 | DK135: 0 | DL135: 0 | DN135: 0.75 | DO135: -0.125 | DQ135: 3.17792 | DS135: 0.0428 | DT135: -0.1067 | DV135: 0 | DW135: -0.1026 | DY135: 0.0326 | DZ135: -0.005 | EB135: 0.0666 | EC135: 0.0507 | EE135: 15.7476 | EF135: -0.8976 | EH135: 0.330625 | EJ135: 0 | EK135: 0 | EM135: 0.3294 | EN135: 0.3194 | EP135: 0.1931 | EQ135: 0.022 | ES135: 0.8 | ET135: 0
C136: 2426 | D136: CONFIAMOS | F136: 7 | G136: 3 | H136: 14 | I136: 5 | J136: 23 | L136: =AVERAGE(N136,Q136,T136,W136,Z136,AC136,AF136,AI136,AL136) -> 0.2481333333 | N136: 0.3629 | O136: -0.0838 | Q136: 0 | R136: -0.0969 | T136: 0 | U136: -0.0969 | W136: 0 | X136: -0.7538 | Z136: 0.8125 | AA136: -0.0542 | AC136: 0.5393 | AD136: 0 | AF136: 0.35 | AG136: 0.1 | AI136: 0.1685 | AJ136: 0 | AL136: 0 | AM136: 0 | AO136: 0.276525 | AQ136: 0.0252 | AR136: -0.0653 | AT136: 5.32 | AU136: 2.51 | AW136: 0.63 | AX136: -0.006 | AZ136: 0.4509 | BA136: -0.0462 | BC136: 0 | BD136: 0 | BF136: 0.4702375 | BH136: 0.9426 | BI136: -0.0537 | BK136: 0.4208 | BL136: -0.1245 | BN136: 0.86 | BO136: -0.17 | BQ136: 0.63 | BR136: -0.006 | BT136: 0.1101 | BU136: 0.0053 | BW136: 0.0013 | BX136: 0.6771 | BZ136: 0.0654 | CA136: -0.0306 | CC136: 0.7317 | CD136: 0.6631 | CF136: 0.4897833333 | CH136: 1 | CI136: 0 | CK136: 0.0257 | CL136: 0.007 | CN136: 0.7647 | CO136: 0.1536 | CQ136: 1 | CR136: 0 | CT136: 0.0026 | CU136: 0.0015 | CW136: 0.1457 | CX136: 0.0752 | CZ136: 0.2524 | DB136: 0 | DC136: -0.0498 | DE136: 0.0651 | DF136: -0.0088 | DH136: 0.3219 | DI136: -0.0516 | DK136: 0 | DL136: 0 | DN136: 0.875 | DO136: 0 | DQ136: 1.375 | DS136: 0 | DT136: 0 | DV136: 0 | DW136: 0 | DY136: 0 | DZ136: -0.062 | EB136: 0 | EC136: 0 | EE136: 6.875 | EF136: 0.875 | EH136: 0.253225 | EJ136: 0 | EK136: 0 | EM136: 1 | EN136: 1 | EP136: 0.0129 | EQ136: -0.0011 | ES136: 0 | ET136: 0
C137: 2434 | D137: COMERCIACOOP | F137: 6 | G137: 5 | H137: 11 | I137: 6 | J137: 25 | L137: 0.5324444444 | N137: 0.5478 | O137: 0.0341 | Q137: 0 | R137: -0.0953 | T137: 0 | U137: -0.0953 | W137: 0 | X137: -0.7731 | Z137: 3.5 | AA137: 2.9762 | AC137: 0.4302 | AD137: -0.0698 | AF137: 0 | AG137: -0.3889 | AI137: 0.314 | AJ137: 0.0079 | AL137: 0 | AM137: -0.0714 | AO137: 0.281775 | AQ137: 0.0587 | AR137: 0.0096 | AT137: 6.79 | AU137: 0.28 | AW137: 0.497 | AX137: 0.0154 | AZ137: 0.5714 | BA137: -0.0456 | BC137: 0 | BD137: 0 | BF137: 0.6005875 | BH137: 0.3584 | BI137: -0.0242 | BK137: 0.7626 | BL137: -0.0542 | BN137: 1.29 | BO137: 0.02 | BQ137: 0.497 | BR137: 0.0154 | BT137: 0.0939 | BU137: 0.0047 | BW137: -0.3393 | BX137: 0.5918 | BZ137: 0.01 | CA137: -0.0005 | CC137: 2.1321 | CD137: 2.1203 | CF137: 0.5968333333 | CH137: 1 | CI137: -0.0633 | CK137: 0.0185 | CL137: 0.002 | CN137: 1.5833 | CO137: 0.8333 | CQ137: 1 | CR137: 0 | CT137: 0.0009 | CU137: 0.0001 | CW137: -0.0217 | CX137: 0.0344 | CZ137: 0.26486 | DB137: 0 | DC137: 0 | DE137: 0.0337 | DF137: -0.0375 | DH137: 0.2906 | DI137: -0.0619 | DK137: 0 | DL137: 0 | DN137: 1 | DO137: 0 | DQ137: 0.19172 | DS137: 0 | DT137: 0 | DV137: 0 | DW137: 0 | DY137: 0.2063 | DZ137: -1.1698 | EB137: 0 | EC137: 0 | EE137: 0.7523 | EF137: -0.0221 | EH137: 0.060975 | EJ137: 0 | EK137: 0 | EM137: 0.2025 | EN137: 0.2025 | EP137: 0.0414 | EQ137: 0.0414 | ES137: 0 | ET137: 0
C138: 2525 | D138: COOPJUDICIAL | F138: 5 | G138: 6 | H138: 16 | I138: 9 | J138: 17 | L138: 0.5805888889 | N138: 0.9507 | O138: -0.1641 | Q138: 0.7652 | R138: 0.2167 | T138: 0.7652 | U138: 0.2167 | W138: 0.6172 | X138: -0.3414 | Z138: 1 | AA138: 0.1739 | AC138: 0.5431 | AD138: 0 | AF138: 0.5667 | AG138: 0.0875 | AI138: 0.0172 | AJ138: 0 | AL138: 0 | AM138: 0 | AO138: 0.4482 | AQ138: 0.0152 | AR138: 0.0713 | AT138: 41.19 | AU138: 1.27 | AW138: 0.5305 | AX138: 0.0142 | AZ138: 0.3571 | BA138: 0.0571 | BC138: 0.89 | BD138: -0.02 | BF138: 1.0554 | BH138: 0.5223 | BI138: 0.0232 | BK138: 0.6956 | BL138: -0.0251 | BN138: 1.22 | BO138: 0.09 | BQ138: 0.5305 | BR138: 0.0142 | BT138: 0.2277 | BU138: 0.0083 | BW138: -0.1252 | BX138: 0.0361 | BZ138: 2.5922 | CA138: -0.9162 | CC138: 2.7801 | CD138: 2.6194 | CF138: 0.4011833333 | CH138: 0 | CI138: 0 | CK138: 0.0976 | CL138: 0.0796 | CN138: 1.2857 | CO138: -0.0714 | CQ138: 1 | CR138: 0 | CT138: 0.0238 | CU138: -0.0022 | CW138: 0 | CX138: 0 | CZ138: 0.31952 | DB138: 0 | DC138: -0.0074 | DE138: 0.1498 | DF138: -0.056 | DH138: 0.4478 | DI138: 0.0035 | DK138: 0 | DL138: 0 | DN138: 1 | DO138: 0 | DQ138: 0.08 | DS138: 0 | DT138: 0 | DV138: 0 | DW138: 0 | DY138: 0 | DZ138: 0 | EB138: 0 | EC138: 0 | EE138: 0.4 | EF138: 0 | EH138: 0.238625 | EJ138: 0 | EK138: -1 | EM138: 0.9538 | EN138: 0.0177 | EP138: 0.0007 | EQ138: 0 | ES138: 0 | ET138: 0
C139: 2655 | D139: COOTRACHEC | F139: 3 | G139: 7 | H139: 17 | I139: 3 | J139: 22 | L139: 0.7109222222 | N139: 1.0617 | O139: 0.0329 | Q139: 1 | R139: 1 | T139: 1 | U139: 1 | W139: 0.6265 | X139: 0.2798 | Z139: 0.6 | AA139: -0.2 | AC139: 1 | AD139: 1 | AF139: 0.0476 | AG139: -0.1746 | AI139: 1 | AJ139: 1 | AL139: 0.0625 | AM139: 0.0625 | AO139: 0.194225 | AQ139: -0.0025 | AR139: -0.0287 | AT139: 61.64 | AU139: 0.06 | AW139: 0.3404 | AX139: 0.0311 | AZ139: 0.439 | BA139: 0.1487 | BC139: 0 | BD139: -0.98 | BF139: 0.5475625 | BH139: 1.0747 | BI139: -0.0053 | BK139: 0.8937 | BL139: 0.1368 | BN139: 1.11 | BO139: -0.17 | BQ139: 0.3404 | BR139: 0.0311 | BT139: 0.0444 | BU139: -0.0002 | BW139: -0.8291 | BX139: -1.1126 | BZ139: 1.2617 | CA139: 0.0528 | CC139: 0.4847 | CD139: 0.1166 | CF139: 0.04198333333 | CH139: 0.0089 | CI139: -0.0106 | CK139: 0.1116 | CL139: -0.0134 | CN139: 0.7273 | CO139: -0.2727 | CQ139: 0.0077 | CR139: -0.9923 | CT139: 0.0021 | CU139: 0.0019 | CW139: -0.6057 | CX139: -0.9312 | CZ139: 0.2 | DB139: 0 | DC139: 0 | DE139: 0 | DF139: 0 | DH139: 0 | DI139: 0 | DK139: 0 | DL139: 0 | DN139: 1 | DO139: 0 | DQ139: 4.21052 | DS139: 0 | DT139: 0 | DV139: 0 | DW139: 0 | DY139: 0 | DZ139: 0 | EB139: 0 | EC139: 0 | EE139: 21.0526 | EF139: -2.9474 | EH139: 0.265675 | EJ139: 0 | EK139: 0 | EM139: 1 | EN139: 0 | EP139: 0.0627 | EQ139: -0.0464 | ES139: 0 | ET139: 0
C140: 2660 | D140: COOPROCAL | F140: 4 | G140: 1 | H140: 8 | I140: 6 | J140: 28 | L140: 0.4687111111 | N140: 1 | O140: 0 | Q140: 0.2758 | R140: 0.0142 | T140: 0.2758 | U140: 0.0142 | W140: 0.8837 | X140: 0.0711 | Z140: 0.3158 | AA140: -0.098 | AC140: 0.6486 | AD140: 0.3153 | AF140: 0.2692 | AG140: -0.0508 | AI140: 0.2162 | AJ140: -0.1965 | AL140: 0.3333 | AM140: 0.2708 | AO140: 0.21895 | AQ140: -0.0955 | AR140: -0.0514 | AT140: 4.14 | AU140: 0.91 | AW140: 0.5239 | AX140: 0.0631 | AZ140: 0.4474 | BA140: 0.0348 | BC140: 0 | BD140: 0 | BF140: 0.1705 | BH140: 0 | BI140: 0 | BK140: 0.44 | BL140: 0.0499 | BN140: 0.79 | BO140: -0.19 | BQ140: 0.5239 | BR140: 0.0631 | BT140: 0.0058 | BU140: -0.0195 | BW140: 0 | BX140: 0.2873 | BZ140: 0.5335 | CA140: 0.0842 | CC140: -0.9292 | CD140: -0.9168 | CF140: 0.02646666667 | CH140: 0.0012 | CI140: 0.0002 | CK140: 0.0002 | CL140: -0.0003 | CN140: 0 | CO140: 0 | CQ140: 0 | CR140: -1 | CT140: 0 | CU140: -0.0056 | CW140: 0.1574 | CX140: 0.2018 | CZ140: 0.35982 | DB140: 0.017 | DC140: -0.0737 | DE140: 0.7999 | DF140: -0.0001 | DH140: 0.1072 | DI140: -0.868 | DK140: 0 | DL140: 0 | DN140: 0.875 | DO140: 0 | DQ140: 0.08 | DS140: 0 | DT140: 0 | DV140: 0 | DW140: 0 | DY140: 0 | DZ140: 0 | EB140: 0 | EC140: 0 | EE140: 0.4 | EF140: -0.6 | EH140: 0.335725 | EJ140: 0.968 | EK140: 0.968 | EM140: 0.3749 | EN140: 0.0207 | EP140: 0 | EQ140: 0 | ES140: 0 | ET140: 0
C141: 2675 | D141: COOCALPRO | F141: 7 | G141: 3 | H141: 12 | I141: 7 | J141: 23 | L141: 0.5176333333 | N141: 1.1986 | O141: 0.0371 | Q141: 0.4142 | R141: 0 | T141: 0.4142 | U141: 0 | W141: 1 | X141: 0 | Z141: 0.619 | AA141: -0.0174 | AC141: 0.4889 | AD141: 0 | AF141: 0.5238 | AG141: 0.0238 | AI141: 0 | AJ141: 0 | AL141: 0 | AM141: 0 | AO141: 0.50835 | AQ141: 0.0543 | AR141: 0.0091 | AT141: 0.61 | AU141: 0.61 | AW141: 0.6697 | AX141: 0.0213 | AZ141: 0.3294 | BA141: 0.0294 | BC141: 0.98 | BD141: 0 | BF141: 0.4071 | BH141: 0.4791 | BI141: -0.0096 | BK141: 0.6216 | BL141: 0.0245 | BN141: 1.26 | BO141: 0.01 | BQ141: 0.6697 | BR141: 0.0213 | BT141: 0.062 | BU141: 0.0164 | BW141: 0 | BX141: 0 | BZ141: 0 | CA141: -0.0201 | CC141: 0.1644 | CD141: -0.2455 | CF141: 0.30835 | CH141: 0.0035 | CI141: 0.0035 | CK141: 0.0782 | CL141: -0.0814 | CN141: 0.125 | CO141: -0.035 | CQ141: 0 | CR141: -1 | CT141: 0.017 | CU141: 0.0053 | CW141: 1.6264 | CX141: 2.6264 | CZ141: 0.21046 | DB141: 0 | DC141: 0 | DE141: 0.1469 | DF141: -0.0284 | DH141: 0.0304 | DI141: -0.8658 | DK141: 0 | DL141: 0 | DN141: 0.875 | DO141: 0 | DQ141: 0.15 | DS141: 0 | DT141: 0 | DV141: 0 | DW141: 0 | DY141: 0 | DZ141: 0 | EB141: 0 | EC141: 0 | EE141: 0.75 | EF141: 0.0167 | EH141: 0.007975 | EJ141: 0 | EK141: 0 | EM141: 0.0228 | EN141: -0.0044 | EP141: 0.0091 | EQ141: 0.0049 | ES141: 0 | ET141: 0
C142: 2814 | D142: CREDIFUTURO | F142: 6 | G142: 4 | H142: 9 | I142: 10 | J142: 23 | L142: 0.1493222222 | N142: 0 | O142: 0 | Q142: 0 | R142: 0 | T142: 0 | U142: 0 | W142: 0 | X142: 0 | Z142: 0.5714 | AA142: 0.0714 | AC142: 0.41 | AD142: 0 | AF142: 0.25 | AG142: 0.05 | AI142: 0.05 | AJ142: 0 | AL142: 0.0625 | AM142: 0.0125 | AO142: 0.45285 | AQ142: 0 | AR142: 0 | AT142: 17.05 | AU142: 0.61 | AW142: 0.4874 | AX142: 0.0028 | AZ142: 0.584 | BA142: -0.036 | BC142: 0.74 | BD142: -0.02 | BF142: 0.40965 | BH142: 0.1312 | BI142: 0.068 | BK142: 0.1489 | BL142: -0.352 | BN142: 1.16 | BO142: -0.1 | BQ142: 0.4874 | BR142: 0.0028 | BT142: 0.0698 | BU142: -0.007 | BW142: 0.7314 | BX142: 0.8562 | BZ142: 0.0776 | CA142: 0.0162 | CC142: 0.4709 | CD142: -0.146 | CF142: 1.209266667 | CH142: 0.0197 | CI142: 0.0197 | CK142: 0.0445 | CL142: 0.0305 | CN142: 0.5714 | CO142: 0.0714 | CQ142: 1 | CR142: 0 | CT142: 0.0335 | CU142: 0.015 | CW142: 5.5865 | CX142: 6.5865 | CZ142: 0.17994 | DB142: 0 | DC142: 0 | DE142: 0.0247 | DF142: -0.775 | DH142: 0 | DI142: -0.7997 | DK142: 0 | DL142: 0 | DN142: 0.875 | DO142: 0 | DQ142: 0.28232 | DS142: 0.0013 | DT142: 0.0013 | DV142: 0 | DW142: 0 | DY142: 0 | DZ142: 0 | EB142: 1 | EC142: 1 | EE142: 0.4103 | EF142: 0.4103 | EH142: 0.0362 | EJ142: 0 | EK142: 0 | EM142: 0.1377 | EN142: -0.1179 | EP142: 0.0071 | EQ142: -0.0596 | ES142: 0 | ET142: 0
C143: 2829 | D143: COFACENEIVA | F143: 5 | G143: 5 | H143: 14 | I143: 6 | J143: 22 | L143: 0.4258555556 | N143: 0.4773 | O143: 0.0443 | Q143: 0.5359 | R143: 0 | T143: 0.5359 | U143: 0 | W143: 0.8518 | X143: 0.7629 | Z143: 0.6429 | AA143: -0.3571 | AC143: 0.3625 | AD143: 0.0191 | AF143: 0.3514 | AG143: -0.019 | AI143: 0.075 | AJ143: -0.0866 | AL143: 0 | AM143: 0 | AO143: 0.524275 | AQ143: 0.0441 | AR143: 0.0669 | AT143: 86.36 | AU143: 8.54 | AW143: 0.4514 | AX143: 0.0126 | AZ143: 0.6516 | BA143: -0.0654 | BC143: 0.95 | BD143: -0.04 | BF143: 0.9523625 | BH143: 0.9095 | BI143: -1.2875 | BK143: 0.0772 | BL143: -0.567 | BN143: 1.07 | BO143: -0.17 | BQ143: 0.4514 | BR143: 0.0126 | BT143: 0.0707 | BU143: 0.0035 | BW143: -0.4913 | BX143: 0.0964 | BZ143: 1.0236 | CA143: -0.2822 | CC143: 4.5078 | CD143: 4.1496 | CF143: 0.2330666667 | CH143: 0.0072 | CI143: -0.0027 | CK143: 0.0178 | CL143: 0.0097 | CN143: 0.6389 | CO143: -0.7729 | CQ143: 1 | CR143: 0 | CT143: 0.0081 | CU143: 0.002 | CW143: -0.2736 | CX143: 0.378 | CZ143: 0.23078 | DB143: 0 | DC143: 0 | DE143: 0.0179 | DF143: -0.0081 | DH143: 0.261 | DI143: -0.1104 | DK143: 0 | DL143: 0 | DN143: 0.875 | DO143: 0 | DQ143: 0.25334 | DS143: 0 | DT143: 0 | DV143: 0 | DW143: 0 | DY143: 0 | DZ143: -0.0028 | EB143: 0 | EC143: 0 | EE143: 1.2667 | EF143: 0.6477 | EH143: 0.036125 | EJ143: 0 | EK143: 0 | EM143: 0.0543 | EN143: 0.0038 | EP143: 0.0902 | EQ143: 0.0059 | ES143: 0 | ET143: 0
C144: 2878 | D144: COOMONOMEROS | F144: 2 | G144: 3 | H144: 18 | I144: 3 | J144: 21 | L144: 0.7061333333 | N144: 1 | O144: -0.0967 | Q144: 1 | R144: 1 | T144: 1 | U144: 1 | W144: 0.6602 | X144: 0.0325 | Z144: 0.5581 | AA144: 0.0465 | AC144: 1 | AD144: 1 | AF144: 0.0952 | AG144: -0.0159 | AI144: 1 | AJ144: 1 | AL144: 0.0417 | AM144: 0.0417 | AO144: 0.442125 | AQ144: 0.1378 | AR144: -0.0892 | AT144: 306.01 | AU144: -17.79 | AW144: 0.3908 | AX144: 0.2337 | AZ144: 0.3899 | BA144: -0.0312 | BC144: 0.85 | BD144: -0.05 | BF144: 0.652525 | BH144: 1.1343 | BI144: -0.1358 | BK144: 0.2634 | BL144: -0.0952 | BN144: 0.71 | BO144: -0.02 | BQ144: 0.3908 | BR144: 0.2337 | BT144: 0.0552 | BU144: 0.0056 | BW144: 0.0694 | BX144: -0.1859 | BZ144: 1.9866 | CA144: -0.4646 | CC144: 0.6105 | CD144: 0.0546 | CF144: 0.3321 | CH144: 0.0368 | CI144: -0.0101 | CK144: 0.2393 | CL144: -1.2043 | CN144: 0.8889 | CO144: -0.1546 | CQ144: 1 | CR144: 0 | CT144: 0.0009 | CU144: -0.0123 | CW144: -0.1733 | CX144: -0.5667 | CZ144: 0.29298 | DB144: 0.0232 | DC144: 0.0232 | DE144: 0.0344 | DF144: -0.0032 | DH144: 0.4073 | DI144: -0.003 | DK144: 0 | DL144: 0 | DN144: 1 | DO144: 0 | DQ144: 0.12 | DS144: 0 | DT144: -0.0105 | DV144: 0 | DW144: 0 | DY144: 0 | DZ144: 0 | EB144: 0 | EC144: 0 | EE144: 0.6 | EF144: 0.2667 | EH144: 0.223175 | EJ144: 0.8319 | EK144: 0.8319 | EM144: 0.0603 | EN144: -0.0029 | EP144: 0.0005 | EQ144: 0 | ES144: 0 | ET144: 0
C145: 3048 | D145: MULTICOOP | F145: 3 | G145: 2 | H145: 11 | I145: 12 | J145: 19 | L145: 0.4153111111 | N145: 1 | O145: 0.0541 | Q145: 0.237 | R145: 0 | T145: 0.237 | U145: 0 | W145: 0.7313 | X145: -0.0906 | Z145: 0.5652 | AA145: -0.0181 | AC145: 0.5111 | AD145: 0.0511 | AF145: 0.4118 | AG145: -0.0326 | AI145: 0.0444 | AJ145: -0.0156 | AL145: 0 | AM145: 0 | AO145: 0.5438 | AQ145: 0.2377 | AR145: 0.0897 | AT145: 11.82 | AU145: 1.82 | AW145: 0.4701 | AX145: 0.0028 | AZ145: 0.5274 | BA145: 0.0127 | BC145: 0.94 | BD145: 0 | BF145: 0.35575 | BH145: 0.8423 | BI145: -1.8315 | BK145: 0.3145 | BL145: -0.007 | BN145: 1.07 | BO145: 0.04 | BQ145: 0.4701 | BR145: 0.0028 | BT145: 0.1086 | BU145: -0.0254 | BW145: -0.557 | BX145: -0.2243 | BZ145: 0.2105 | CA145: -0.4358 | CC145: 0.387 | CD145: 0.3745 | CF145: 0.4582333333 | CH145: 1 | CI145: -0.0678 | CK145: 0.0057 | CL145: 0.0051 | CN145: 0.5882 | CO145: 0.5882 | CQ145: 1 | CR145: 0 | CT145: 0.0374 | CU145: 0.0119 | CW145: 0.1181 | CX145: 0.1955 | CZ145: 0.3448 | DB145: 0.2267 | DC145: 0.0776 | DE145: 0.0689 | DF145: -0.0507 | DH145: 0.4284 | DI145: -0.0885 | DK145: 0 | DL145: 0 | DN145: 1 | DO145: 0 | DQ145: 0.108 | DS145: 0.0015 | DT145: 0.0015 | DV145: 0 | DW145: 0 | DY145: 0 | DZ145: -0.5315 | EB145: 0 | EC145: 0 | EE145: 0.5385 | EF145: 0 | EH145: 0.507275 | EJ145: 0.9952 | EK145: 0.0026 | EM145: 1 | EN145: 0 | EP145: 0.0339 | EQ145: -0.0084 | ES145: 0 | ET145: -0.5
C146: 3249 | D146: COOPINTEGRATE | F146: 3 | G146: 4 | H146: 14 | I146: 8 | J146: 20 | L146: 0.4636111111 | N146: 0.5557 | O146: -0.1672 | Q146: 0.3863 | R146: 0 | T146: 0.3863 | U146: 0 | W146: 0.7081 | X146: 0 | Z146: 0.8571 | AA146: 0 | AC146: 0.5593 | AD146: 0.0516 | AF146: 0.5333 | AG146: 0 | AI146: 0.1864 | AJ146: 0.0018 | AL146: 0 | AM146: 0 | AO146: 0.51005 | AQ146: 0.094 | AR146: -0.0245 | AT146: 10.48 | AU146: 7.12 | AW146: 0.4521 | AX146: 0.003 | AZ146: 0.6141 | BA146: -0.0196 | BC146: 0.88 | BD146: 0.03 | BF146: 1.1092375 | BH146: 0.1961 | BI146: -1.0527 | BK146: 0.1317 | BL146: -0.0365 | BN146: 1.19 | BO146: 0.12 | BQ146: 0.4521 | BR146: 0.003 | BT146: 0.0967 | BU146: -0.0116 | BW146: -0.3646 | BX146: -0.3646 | BZ146: 0.069 | CA146: 0.069 | CC146: 7.1029 | CD146: 6.144 | CF146: 0.27475 | CH146: 0.0024 | CI146: -0.0015 | CK146: 0.0413 | CL146: 0.0344 | CN146: 0.8462 | CO146: -0.2307 | CQ146: 1 | CR146: 0 | CT146: 0.0396 | CU146: 0.0235 | CW146: -0.281 | CX146: 0.4639 | CZ146: 0.40886 | DB146: 0.0331 | DC146: 0.0056 | DE146: 0.0883 | DF146: -0.6481 | DH146: 0.9229 | DI146: 0.4348 | DK146: 0 | DL146: 0 | DN146: 1 | DO146: 0 | DQ146: 0.04852 | DS146: 0.005 | DT146: 0.0041 | DV146: 0 | DW146: -0.0015 | DY146: 0 | DZ146: -0.3519 | EB146: 0.0652 | EC146: -0.7381 | EE146: 0.1724 | EF146: 0.1724 | EH146: 0.507075 | EJ146: 1 | EK146: 0 | EM146: 1 | EN146: 0 | EP146: 0.0283 | EQ146: -0.0029 | ES146: 0 | ET146: 0
C147: 3386 | D147: COOPMULTISERVICIOS VILLANUEVAL | F147: 1 | G147: 4 | H147: 14 | I147: 8 | J147: 20 | L147: 0.5626 | N147: 0.7974 | O147: 0.3046 | Q147: 0.6155 | R147: 0 | T147: 0.6155 | U147: 0 | W147: 0.425 | X147: 0 | Z147: 1 | AA147: 0.1053 | AC147: 0.44 | AD147: 0 | AF147: 0.6 | AG147: 0.2471 | AI147: 0.37 | AJ147: 0 | AL147: 0.2 | AM147: -0.0632 | AO147: 0.460675 | AQ147: -0.0784 | AR147: 0.1092 | AT147: 4.97 | AU147: 0.99 | AW147: 0.4702 | AX147: -0.0302 | AZ147: 0.5209 | BA147: -0.0601 | BC147: 0.93 | BD147: -0.02 | BF147: 0.313025 | BH147: 0.4206 | BI147: -0.2585 | BK147: 0.2378 | BL147: -0.0419 | BN147: 1.15 | BO147: -0.05 | BQ147: 0.4702 | BR147: -0.0302 | BT147: 0.0697 | BU147: -0.0035 | BW147: -0.5354 | BX147: 0.089 | BZ147: 0.0701 | CA147: -0.2544 | CC147: 0.6212 | CD147: 0.2986 | CF147: 1.2305 | CH147: 1 | CI147: 1 | CK147: 0.0459 | CL147: 0.0353 | CN147: 5.2326 | CO147: 4.6369 | CQ147: 1 | CR147: 0 | CT147: 0.002 | CU147: -0.0013 | CW147: 0.1025 | CX147: 1.1025 | CZ147: 0.27034 | DB147: 0.0028 | DC147: -0.0004 | DE147: 0.0459 | DF147: 0.0006 | DH147: 0.303 | DI147: 0.0217 | DK147: 0 | DL147: 0 | DN147: 1 | DO147: 0 | DQ147: 0.13456 | DS147: 0.0084 | DT147: 0.007 | DV147: 0 | DW147: -0.1753 | DY147: 0.2071 | DZ147: 0.0899 | EB147: 0.0167 | EC147: 0.0167 | EE147: 0.4406 | EF147: 0.016 | EH147: 0.0066 | EJ147: 0 | EK147: 0 | EM147: 0.0264 | EN147: 0.0005 | EP147: 0 | EQ147: 0 | ES147: 0 | ET147: 0
C148: 3399 | D148: SERVICONAL | F148: 5 | G148: 3 | H148: 12 | I148: 11 | J148: 19 | L148: 0.4013 | N148: 1 | O148: 0.8602 | Q148: 0.1069 | R148: 0 | T148: 0.1069 | U148: 0 | W148: 0.6201 | X148: 0 | Z148: 0.5 | AA148: -0.0714 | AC148: 0.7 | AD148: -0.0021 | AF148: 0.5778 | AG148: -0.0269 | AI148: 0 | AJ148: -0.234 | AL148: 0 | AM148: 0 | AO148: 0.475925 | AQ148: 0.1065 | AR148: 0.0793 | AT148: 7.63 | AU148: 0.36 | AW148: 0.5415 | AX148: 0.0162 | AZ148: 0.4857 | BA148: 0.0122 | BC148: 0.77 | BD148: 0 | BF148: 0.4763875 | BH148: 0.4228 | BI148: -0.0441 | BK148: 0.1848 | BL148: -0.0032 | BN148: 0.91 | BO148: 0.04 | BQ148: 0.5415 | BR148: 0.0162 | BT148: 0.1155 | BU148: -0.0015 | BW148: 0.4037 | BX148: 1.2589 | BZ148: 0.2995 | CA148: -0.2816 | CC148: 0.9333 | CD148: -0.4777 | CF148: 0.26155 | CH148: 0 | CI148: 0 | CK148: 0.0018 | CL148: -0.3 | CN148: 0.55 | CO148: 0.0738 | CQ148: 1 | CR148: 0 | CT148: 0.0175 | CU148: -0.007 | CW148: 0 | CX148: 0 | CZ148: 0.29602 | DB148: 0 | DC148: 0 | DE148: 0.0534 | DF148: -1.065 | DH148: 0.4267 | DI148: 0.0331 | DK148: 0 | DL148: 0 | DN148: 1 | DO148: 0 | DQ148: 1.97324 | DS148: 0.0662 | DT148: -0.02 | DV148: 0 | DW148: 0 | DY148: 0 | DZ148: -0.4088 | EB148: 0 | EC148: 0 | EE148: 9.8 | EF148: 2.3 | EH148: 0.26555 | EJ148: 0 | EK148: 0 | EM148: 1 | EN148: 0.0087 | EP148: 0.0622 | EQ148: -0.0236 | ES148: 0 | ET148: 0
C149: 3402 | D149: COOPVALLE | F149: 2 | G149: 4 | H149: 16 | I149: 8 | J149: 18 | L149: 0.4583666667 | N149: 0.357 | O149: -0.0012 | Q149: 0.2017 | R149: -0.0387 | T149: 0.2017 | U149: -0.0387 | W149: 1 | X149: 0 | Z149: 1 | AA149: 0.3 | AC149: 0.6067 | AD149: 0.0612 | AF149: 0.3529 | AG149: -0.1856 | AI149: 0.191 | AJ149: 0.1228 | AL149: 0.2143 | AM149: 0.2143 | AO149: 0.5211 | AQ149: 0.0032 | AR149: -0.0046 | AT149: 26.11 | AU149: 1.3 | AW149: 0.4743 | AX149: -0.0244 | AZ149: 0.6069 | BA149: 0.0321 | BC149: 1 | BD149: 1 | BF149: 0.7426875 | BH149: 0.4459 | BI149: 0.0214 | BK149: 0.6046 | BL149: -0.0134 | BN149: 1.26 | BO149: 1.24 | BQ149: 0.4743 | BR149: -0.0244 | BT149: 0.1194 | BU149: -0.0177 | BW149: 0.6834 | BX149: 1.229 | BZ149: 0.5192 | CA149: -0.024 | CC149: 1.8347 | CD149: 0.7141 | CF149: 0.03645 | CH149: 0.0106 | CI149: 0.0004 | CK149: 0.0078 | CL149: 0.005 | CN149: 0.5 | CO149: 0.2 | CQ149: 0.0014 | CR149: -0.9986 | CT149: 0.1023 | CU149: 0.0207 | CW149: -0.4034 | CX149: -0.1913 | CZ149: 0.49182 | DB149: 0 | DC149: 0 | DE149: 0.7726 | DF149: -0.022 | DH149: 0.6865 | DI149: -0.0787 | DK149: 0 | DL149: 0 | DN149: 1 | DO149: 0 | DQ149: 0.45606 | DS149: 0.0086 | DT149: 0.0053 | DV149: 0 | DW149: 0 | DY149: 0.1288 | DZ149: -0.1685 | EB149: 0 | EC149: 0 | EE149: 2.1429 | EF149: 0 | EH149: 0.1771 | EJ149: 0 | EK149: 0 | EM149: 0.6131 | EN149: -0.3869 | EP149: 0.0953 | EQ149: 0.0697 | ES149: 0 | ET149: 0
C150: 3488 | D150: COOMULTAGRO LTDA | F150: 3 | G150: 2 | H150: 7 | I150: 6 | J150: 29 | L150: 0.4050222222 | N150: 0.5654 | O150: -0.0026 | Q150: 0.2747 | R150: 0 | T150: 0.2747 | U150: 0 | W150: 1 | X150: 0 | Z150: 0.5714 | AA150: -0.0953 | AC150: 0.2787 | AD150: 0.0033 | AF150: 0.25 | AG150: 0.1019 | AI150: 0.1803 | AJ150: -0.0081 | AL150: 0.25 | AM150: 0 | AO150: 0.283275 | AQ150: 0.1213 | AR150: -0.0982 | AT150: 1.43 | AU150: -0.28 | AW150: 0.4811 | AX150: -0.0162 | AZ150: 0.5307 | BA150: -0.0492 | BC150: 0 | BD150: 0 | BF150: 0.2714875 | BH150: 0.6016 | BI150: -0.0062 | BK150: 0.6811 | BL150: 0.0048 | BN150: 1.08 | BO150: 0.03 | BQ150: 0.4811 | BR150: -0.0162 | BT150: 0.0627 | BU150: -0.005 | BW150: -1 | BX150: -1 | BZ150: 0.0061 | CA150: -0.0142 | CC150: 0.2593 | CD150: 0.7818 | CF150: 0.01193333333 | CH150: 0 | CI150: 0 | CK150: 0 | CL150: 0 | CN150: 0 | CO150: 0 | CQ150: 0 | CR150: 0 | CT150: 0.0716 | CU150: 0.0608 | CW150: 0 | CX150: 0 | CZ150: 0.29344 | DB150: 0.0309 | DC150: -0.0643 | DE150: 0.0438 | DF150: 0.0071 | DH150: 0.3925 | DI150: -0.0005 | DK150: 0 | DL150: 0 | DN150: 1 | DO150: 0 | DQ150: 0.20558 | DS150: 0.0197 | DT150: -0.0008 | DV150: 0 | DW150: 0 | DY150: 0.4082 | DZ150: 0.0617 | EB150: 0 | EC150: 0 | EE150: 0.6 | EF150: 0.1556 | EH150: 0.0011 | EJ150: 0 | EK150: 0 | EM150: 0 | EN150: 0 | EP150: 0.0044 | EQ150: 0.0004 | ES150: 0 | ET150: 0
C151: 3620 | D151: COOTREGUA | F151: 4 | G151: 2 | H151: 12 | I151: 7 | J151: 23 | L151: 0.2792777778 | N151: 0.8012 | O151: -1.6348 | Q151: 0.3256 | R151: 0 | T151: 0.3256 | U151: 0 | W151: 0 | X151: 0 | Z151: 0 | AA151: -0.9375 | AC151: 0.5833 | AD151: 0.0583 | AF151: 0 | AG151: -0.5882 | AI151: 0.2778 | AJ151: -0.0222 | AL151: 0.2 | AM151: 0.1333 | AO151: 0.60755 | AQ151: 0.4615 | AR151: 0.3155 | AT151: 1.35 | AU151: 0.94 | AW151: 0.5114 | AX151: -0.022 | AZ151: 0.6173 | BA151: -0.032 | BC151: 0.84 | BD151: 0.39 | BF151: 0.16435 | BH151: 0.7592 | BI151: -0.9796 | BK151: 0.3886 | BL151: -0.0102 | BN151: 0.23 | BO151: -0.65 | BQ151: 0.5114 | BR151: -0.022 | BT151: 0.0603 | BU151: -0.0057 | BW151: -0.9312 | BX151: -7.4726 | BZ151: 0.0751 | CA151: 0.057 | CC151: 0.2214 | CD151: 0.0642 | CF151: 0.5812833333 | CH151: 0.9831 | CI151: -0.0169 | CK151: 0.0941 | CL151: 0.024 | CN151: 1.3125 | CO151: 0.8458 | CQ151: 1 | CR151: 0 | CT151: 0.0168 | CU151: 0.0114 | CW151: 0.0812 | CX151: 0.0132 | CZ151: 0.22056 | DB151: 0.1028 | DC151: -0.0278 | DE151: 0 | DF151: -0.1311 | DH151: 0 | DI151: 0 | DK151: 0 | DL151: 0 | DN151: 1 | DO151: 0 | DQ151: 0.1049 | DS151: 0.0154 | DT151: -0.0015 | DV151: 0 | DW151: -0.0085 | DY151: 0 | DZ151: -0.2835 | EB151: 0.1091 | EC151: 0.0727 | EE151: 0.4 | EF151: 0 | EH151: 0.41295 | EJ151: 0.9986 | EK151: 0.0003 | EM151: 0.623 | EN151: 0.623 | EP151: 0.0302 | EQ151: 0.017 | ES151: 0 | ET151: 0
C152: 4011 | D152: COOPLAROSA | F152: 8 | G152: 1 | H152: 5 | I152: 5 | J152: 32 | L152: 0.2387666667 | N152: 0.7997 | O152: -0.1994 | Q152: 0 | R152: -0.06 | T152: 0 | U152: -0.06 | W152: 0 | X152: -0.8504 | Z152: 0.7778 | AA152: 0 | AC152: 0 | AD152: -0.2821 | AF152: 0.5 | AG152: 0.2778 | AI152: 0 | AJ152: -0.1795 | AL152: 0.0714 | AM152: -0.0715 | AO152: 0.30425 | AQ152: 0.3159 | AR152: 0.5016 | AT152: 13.74 | AU152: 1.41 | AW152: 0.4732 | AX152: 0.0269 | AZ152: 0.4279 | BA152: -0.0207 | BC152: 0 | BD152: 0 | BF152: 0.2007375 | BH152: 0.2359 | BI152: -0.0211 | BK152: 0.1511 | BL152: -0.2757 | BN152: 0.84 | BO152: -0.39 | BQ152: 0.4732 | BR152: 0.0269 | BT152: 0.0101 | BU152: -0.0245 | BW152: -0.8261 | BX152: -0.8261 | BZ152: 0.2416 | CA152: 0.1384 | CC152: 0.4801 | CD152: 1.3269 | CF152: 0.1721 | CH152: 0.0017 | CI152: -0.0001 | CK152: 0.0155 | CL152: 0.0079 | CN152: 0.1333 | CO152: -0.0667 | CQ152: 1 | CR152: 1 | CT152: 0.013 | CU152: 0.0036 | CW152: -0.1309 | CX152: 0.6909 | CZ152: 0.12182 | DB152: 0 | DC152: 0 | DE152: 0.0551 | DF152: -0.0056 | DH152: 0.304 | DI152: -0.0763 | DK152: 0 | DL152: 0 | DN152: 0.25 | DO152: 0 | DQ152: 0 | DS152: 0 | DT152: 0 | DV152: 0 | DW152: 0 | DY152: 0 | DZ152: -0.0192 | EB152: 0 | EC152: 0 | EE152: 0 | EF152: -0.75 | EH152: 0.0001 | EJ152: 0 | EK152: 0 | EM152: 0 | EN152: -0.0359 | EP152: 0.0004 | EQ152: 0 | ES152: 0 | ET152: 0
C153: 4054 | D153: FAVI UTP | F153: 4 | G153: 3 | H153: 13 | I153: 10 | J153: 19 | L153: 0.4523888889 | N153: 0.9112 | O153: 0.0071 | Q153: 0.3125 | R153: 0 | T153: 0.3125 | U153: 0 | W153: 0.6814 | X153: 0 | Z153: 0.6111 | AA153: -0.2639 | AC153: 0.5 | AD153: 0 | AF153: 0.4118 | AG153: -0.1267 | AI153: 0.1167 | AJ153: 0 | AL153: 0.2143 | AM153: 0.0714 | AO153: 0.40745 | AQ153: 0.0354 | AR153: 0.0471 | AT153: 30.54 | AU153: -1.69 | AW153: 0.4411 | AX153: -0.0427 | AZ153: 0.4333 | BA153: -0.2269 | BC153: 0.72 | BD153: -0.01 | BF153: 0.5138 | BH153: 0.4812 | BI153: -0.0172 | BK153: 0.4498 | BL153: -0.0537 | BN153: 1.46 | BO153: 0.02 | BQ153: 0.4411 | BR153: -0.0427 | BT153: 0.0749 | BU153: -0.003 | BW153: -0.5804 | BX153: -11.647 | BZ153: 1.6403 | CA153: 0.5428 | CC153: 0.1435 | CD153: -0.158 | CF153: 0.4827833333 | CH153: 1 | CI153: 0 | CK153: 0.6233 | CL153: 0.3657 | CN153: 0.1951 | CO153: -3.0906 | CQ153: 1 | CR153: 0.4583 | CT153: 0.0171 | CU153: 0.0171 | CW153: 0.0612 | CX153: 0.0627 | CZ153: 0.2417 | DB153: 0 | DC153: 0 | DE153: 0.1123 | DF153: -0.0481 | DH153: 0.9712 | DI153: 0.7798 | DK153: 0 | DL153: 0 | DN153: 0.125 | DO153: 0.125 | DQ153: 0.18126 | DS153: 0 | DT153: 0 | DV153: 0 | DW153: 0 | DY153: 0 | DZ153: 0 | EB153: 0 | EC153: 0 | EE153: 0.9063 | EF153: 0 | EH153: 0.332625 | EJ153: 0 | EK153: 0 | EM153: 0.9961 | EN153: -0.0039 | EP153: 0.0007 | EQ153: -0.1962 | ES153: 0.3337 | ET153: 0.3337
C154: 7961 | D154: COOPEAIPE | F154: 4 | G154: 3 | H154: 11 | I154: 8 | J154: 23 | L154: 0.4243333333 | N154: 1 | O154: -1.1119 | Q154: 0 | R154: 0 | T154: 0 | U154: 0 | W154: 0 | X154: -0.6528 | Z154: 1 | AA154: 0.25 | AC154: 0.5696 | AD154: 0.5696 | AF154: 0.4583 | AG154: -0.0084 | AI154: 0.2911 | AJ154: 0.2911 | AL154: 0.5 | AM154: 0.1667 | AO154: 0.2855 | AQ154: 0.0272 | AR154: -0.0476 | AT154: 22.11 | AU154: 3.34 | AW154: 0.4959 | AX154: -0.0037 | AZ154: 0.6189 | BA154: 0.0166 | BC154: 0 | BD154: 0 | BF154: 0.5355125 | BH154: 1.1127 | BI154: -1.8786 | BK154: 0.58 | BL154: -0.0061 | BN154: 0.94 | BO154: -0.03 | BQ154: 0.4959 | BR154: -0.0037 | BT154: 0.0589 | BU154: -0.0048 | BW154: 0.8907 | BX154: 1.8489 | BZ154: 0.1385 | CA154: -0.3063 | CC154: 0.0674 | CD154: 0.1978 | CF154: 0.50405 | CH154: 0.009 | CI154: -1.0771 | CK154: 0.0376 | CL154: 0.0113 | CN154: 1.8421 | CO154: -0.5746 | CQ154: 1 | CR154: 0 | CT154: 0.012 | CU154: 0.0033 | CW154: 0.1236 | CX154: 0.2759 | CZ154: 0.28704 | DB154: 0.0044 | DC154: -0.0056 | DE154: 0.0382 | DF154: -0.0266 | DH154: 0.3926 | DI154: -0.0275 | DK154: 0 | DL154: 0 | DN154: 1 | DO154: 0 | DQ154: 0.16 | DS154: 0 | DT154: 0 | DV154: 0 | DW154: 0 | DY154: 0 | DZ154: -0.388 | EB154: 0 | EC154: 0 | EE154: 0.8 | EF154: 0.4 | EH154: 0.065725 | EJ154: 0 | EK154: 0 | EM154: 0.2094 | EN154: 0.0602 | EP154: 0.0535 | EQ154: 0.002 | ES154: 0 | ET154: 0
C155: 10300 | D155: FINANCIAFONDOS | F155: 8 | G155: 2 | H155: 6 | I155: 3 | J155: 33 | L155: 0.2487888889 | N155: 0.3219 | O155: -0.2298 | Q155: 0.0884 | R155: -0.0058 | T155: 0.0884 | U155: -0.0058 | W155: 0.2353 | X155: -0.7647 | Z155: 0.7273 | AA155: 0.7273 | AC155: 0.1111 | AD155: 0.0825 | AF155: 0.6667 | AG155: 0.6667 | AI155: 0 | AJ155: 0 | AL155: 0 | AM155: 0 | AO155: 0.326175 | AQ155: 0.3358 | AR155: 0.0511 | AT155: 3.29 | AU155: -0.03 | AW155: 0.566 | AX155: -0.0396 | AZ155: 0.4029 | BA155: 0.0495 | BC155: 0 | BD155: 0 | BF155: 0.2229125 | BH155: 0.2091 | BI155: 0.0208 | BK155: 0.6367 | BL155: -0.0376 | BN155: 1.06 | BO155: -0.26 | BQ155: 0.566 | BR155: -0.0396 | BT155: 0.0239 | BU155: 0.0052 | BW155: -0.8535 | BX155: -0.8535 | BZ155: 0.0067 | CA155: 0.0067 | CC155: 0.1344 | CD155: -0.1997 | CF155: 0.0008666666667 | CH155: 0 | CI155: 0 | CK155: 0 | CL155: 0 | CN155: 0 | CO155: 0 | CQ155: 0 | CR155: 0 | CT155: 0.0052 | CU155: -0.0107 | CW155: 0 | CX155: 0 | CZ155: 0.2721 | DB155: 0 | DC155: 0 | DE155: 0.0263 | DF155: -0.1534 | DH155: 0.3342 | DI155: 0.163 | DK155: 0 | DL155: 0 | DN155: 1 | DO155: 0 | DQ155: 0 | DS155: 0 | DT155: 0 | DV155: 0 | DW155: 0 | DY155: 0 | DZ155: 0 | EB155: 0 | EC155: 0 | EE155: 0 | EF155: -1 | EH155: 0.001525 | EJ155: 0 | EK155: 0 | EM155: 0 | EN155: 0 | EP155: 0.0061 | EQ155: 0.0061 | ES155: 0 | ET155: 0
C156: 10555 | D156: COOMUNION | F156: 7 | G156: 3 | H156: 9 | I156: 3 | J156: 30 | L156: 0.4659111111 | N156: 0.7667 | O156: -0.0319 | Q156: 0.5593 | R156: 0 | T156: 0.5593 | U156: 0 | W156: 1 | X156: 0 | Z156: 0.7083 | AA156: 0 | AC156: 0.3846 | AD156: 0 | AF156: 0.1765 | AG156: 0 | AI156: 0.0385 | AJ156: 0 | AL156: 0 | AM156: 0 | AO156: 0.3909 | AQ156: -0.025 | AR156: -0.0041 | AT156: 32.48 | AU156: 18.42 | AW156: 0.2242 | AX156: -0.0372 | AZ156: 0.3944 | BA156: 0.0174 | BC156: 0.97 | BD156: 0 | BF156: 0.6039875 | BH156: 0.4099 | BI156: 0.0195 | BK156: 0.0864 | BL156: -0.1646 | BN156: 1.98 | BO156: -0.82 | BQ156: 0.2242 | BR156: -0.0372 | BT156: 0.1312 | BU156: -0.005 | BW156: -0.7885 | BX156: -1.2143 | BZ156: 0.0439 | CA156: -0.1549 | CC156: 2.7448 | CD156: -1.2443 | CF156: 0.001233333333 | CH156: 0 | CI156: 0 | CK156: 0 | CL156: 0 | CN156: 0 | CO156: 0 | CQ156: 0 | CR156: 0 | CT156: 0.0074 | CU156: 0.0059 | CW156: 0 | CX156: 0 | CZ156: 0.2099 | DB156: 0.0166 | DC156: -0.0018 | DE156: 0.0329 | DF156: 0.011 | DH156: 0 | DI156: -0.3586 | DK156: 0 | DL156: 0 | DN156: 1 | DO156: 0.125 | DQ156: 0 | DS156: 0 | DT156: 0 | DV156: 0 | DW156: 0 | DY156: 0 | DZ156: -0.4316 | EB156: 0 | EC156: 0 | EE156: 0 | EF156: 0 | EH156: 0.000125 | EJ156: 0 | EK156: 0 | EM156: 0 | EN156: 0 | EP156: 0.0005 | EQ156: 0 | ES156: 0 | ET156: 0
C157: 13813 | D157: SUCREDITO | F157: 7 | G157: 4 | H157: 15 | I157: 7 | J157: 20 | L157: 0.2458777778 | N157: 0.9903 | O157: 0.1424 | Q157: 0 | R157: 0 | T157: 0 | U157: 0 | W157: 0 | X157: 0 | Z157: 0.4643 | AA157: 0 | AC157: 0 | AD157: 0 | AF157: 0.4583 | AG157: 0 | AI157: 0 | AJ157: 0 | AL157: 0.3 | AM157: 0 | AO157: 0.841525 | AQ157: 1.1714 | AR157: 0.4317 | AT157: 56.2 | AU157: 30.62 | AW157: 0.7087 | AX157: 0.0269 | AZ157: 0.536 | BA157: 0.0393 | BC157: 0.95 | BD157: -0.02 | BF157: 0.54725 | BH157: 0.7691 | BI157: -0.2094 | BK157: 0.1539 | BL157: -0.4823 | BN157: 1.63 | BO157: 0.78 | BQ157: 0.7087 | BR157: 0.0269 | BT157: 0.0362 | BU157: -0.0124 | BW157: 0.1161 | BX157: 0.3033 | BZ157: 0.7597 | CA157: -0.135 | CC157: 0.2043 | CD157: -0.0937 | CF157: 0.8876166667 | CH157: 0.044 | CI157: 0.0293 | CK157: 0.0237 | CL157: -0.0263 | CN157: 0.5143 | CO157: 0.0572 | CQ157: 1 | CR157: 0 | CT157: 0.0186 | CU157: 0.0125 | CW157: 3.7251 | CX157: 3.2332 | CZ157: 0.33002 | DB157: 0.1306 | DC157: -0.0137 | DE157: 0.0264 | DF157: -0.845 | DH157: 0.4924 | DI157: -0.4148 | DK157: 0.0007 | DL157: 0.0007 | DN157: 1 | DO157: 0 | DQ157: 0.08918 | DS157: 0.0047 | DT157: 0.0047 | DV157: 0 | DW157: 0 | DY157: 0 | DZ157: 0 | EB157: 0 | EC157: 0 | EE157: 0.4412 | EF157: -0.0255 | EH157: 0.2426 | EJ157: 0.9407 | EK157: -0.0593 | EM157: 0 | EN157: 0 | EP157: 0.0297 | EQ157: -0.0085 | ES157: 0 | ET157: 0
C158: 15236 | D158: CREDIAHORROS TAX FERIA | F158: 4 | G158: 5 | H158: 12 | I158: 2 | J158: 28 | L158: 0.4293111111 | N158: 1.0249 | O158: -0.1489 | Q158: 0.3352 | R158: 0.3352 | T158: 0.3352 | U158: 0.3352 | W158: 1 | X158: 1 | Z158: 0.6 | AA158: -0.0552 | AC158: 0.2625 | AD158: 0.0482 | AF158: 0.1935 | AG158: 0 | AI158: 0.05 | AJ158: 0.0214 | AL158: 0.0625 | AM158: 0.0125 | AO158: 0.41695 | AQ158: 0.0832 | AR158: 0.0795 | AT158: 27.54 | AU158: 22.42 | AW158: 0.3444 | AX158: 0.0787 | AZ158: 0.3402 | BA158: 0.0429 | BC158: 0.9 | BD158: 0.1 | BF158: 0.74315 | BH158: 1.1434 | BI158: -0.0483 | BK158: 0.4095 | BL158: 0.085 | BN158: 1.98 | BO158: 0.75 | BQ158: 0.3444 | BR158: 0.0787 | BT158: 0.0901 | BU158: -0.015 | BW158: -0.3282 | BX158: 0.057 | BZ158: 1.9267 | CA158: -0.1748 | CC158: 0.3793 | CD158: -0.682 | CF158: 0.2601166667 | CH158: 0.0359 | CI158: 0.0186 | CK158: 0.0083 | CL158: 0.0083 | CN158: 0.3333 | CO158: -0.2255 | CQ158: 1 | CR158: 1 | CT158: 0.0115 | CU158: 0.011 | CW158: 0.1717 | CX158: 0.1797 | CZ158: 0.24576 | DB158: 0 | DC158: 0 | DE158: 0.1017 | DF158: 0.1017 | DH158: 0.1271 | DI158: -0.0179 | DK158: 0 | DL158: 0 | DN158: 1 | DO158: 0 | DQ158: 0 | DS158: 0 | DT158: 0 | DV158: 0 | DW158: 0 | DY158: 0 | DZ158: 0 | EB158: 0 | EC158: 0 | EE158: 0 | EF158: -0.8333 | EH158: 0.250175 | EJ158: 0 | EK158: 0 | EM158: 1 | EN158: -26.5773 | EP158: 0.0007 | EQ158: -0.0066 | ES158: 0 | ET158: 0
B160: Micro 2 | L160: =AVERAGE(N160,Q160,T160,W160,Z160,AC160,AF160,AI160,AL160) -> 0.5468117589 | N160: 0.9151 | O160: -0.003207583561 | Q160: 0.6985621622 | R160: 0.4022422904 | T160: 0.6985621622 | U160: 0.4022422904 | W160: 0.38 | X160: -0.1450944444 | Z160: 0.7154390244 | AA160: 0.03057550082 | AC160: 0.6349214286 | AD160: 0.07074049948 | AF160: 0.397 | AG160: 0.01714258139 | AI160: 0.3837210526 | AJ160: 0.1979019817 | AL160: 0.098 | AM160: -0.0004114439324 | AO160: =AVERAGE(AQ160,AW160,AZ160,BC160) -> 0.4908690476 | AQ160: 0.016 | AR160: -0.02007993185 | AT160: 13.76 | AU160: 0.6314756617 | AW160: 0.518 | AX160: 0.07283237481 | AZ160: 0.539 | BA160: -0.03917074599 | BC160: 0.8904761905 | BD160: 0.01464285714 | BF160: =AVERAGE(BH160,BK160,BN160,BQ160,BT160,BW160,BZ160,CC160) -> 0.495875 | BH160: 0.687 | BI160: -0.04723581997 | BK160: 0.514 | BL160: -0.04175817085 | BN160: 1.1 | BO160: -0.1543027376 | BQ160: 0.518 | BR160: 0.07283237481 | BT160: 0.125 | BU160: -0.0009499713055 | BW160: 0.187 | BX160: 0.7827961127 | BZ160: 0.568 | CA160: 0.09899497552 | CC160: 0.268 | CD160: -0.02197919165 | CF160: =AVERAGE(CH160,CK160,CN160,CQ160,CT160,CW160) -> 0.2168548172 | CH160: 0.067 | CI160: -0.1654599852 | CK160: 0.1459714286 | CL160: 0.04875676263 | CN160: 0.516 | CO160: 0.08303567036 | CQ160: 0.128 | CR160: -0.07361290323 | CT160: 0.011 | CU160: -0.0005311465684 | CW160: 0.4331574745 | CX160: 0.3639721716 | CZ160: =AVERAGE(DB160,DE160,DH160,DK160,DN160) -> 0.294392381 | DB160: 0.017 | DC160: -0.01783451666 | DE160: 0.154 | DF160: 0.0449762533 | DH160: 0.387 | DI160: -0.08403497599 | DK160: 0.003247619048 | DL160: 0.003247619048 | DN160: 0.9107142857 | DO160: 0.03855519481 | DQ160: =AVERAGE(DS160,DV160,DY160,EB160,EE160) -> 0.22746 | DS160: 0.003866666667 | DT160: -0.001449764842 | DV160: 0 | DW160: -0.0009173089141 | DY160: 0.0769952381 | DZ160: -0.03693008067 | EB160: 0.05643809524 | EC160: -0.4098254308 | EE160: 1 | EF160: 0 | EH160: =AVERAGE(EJ160,EM160,EP160,ES160) -> 0.6406973214 | EJ160: 0.96335 | EK160: 0.253643086 | EM160: 1 | EN160: 0.7945978556 | EP160: 0.06911428571 | EQ160: 0.02268738431 | ES160: 0.530325 | ET160: -0.6674988713
C161: 271 | D161: COOPSANFRANCISCO | F161: 4 | G161: 5 | H161: 13 | I161: 7 | J161: 22 | L161: 0.5115222222 | N161: 1.5104 | O161: 0.042 | Q161: 0.0761 | R161: 0 | T161: 0.0761 | U161: 0 | W161: 1 | X161: 0 | Z161: 0.6875 | AA161: -0.136 | AC161: 0.6061 | AD161: 0 | AF161: 0.5263 | AG161: 0.0263 | AI161: 0.1212 | AJ161: 0 | AL161: 0 | AM161: 0 | AO161: =AVERAGE(AQ161,AW161,AZ161,BC161) -> 0.269475 | AQ161: 0.011 | AR161: 0.0016 | AT161: 13.97 | AU161: -31.23 | AW161: 0.5 | AX161: -0.0145 | AZ161: 0.5669 | BA161: 0.0834 | BC161: 0 | BD161: 0 | BF161: =AVERAGE(BH161,BK161,BN161,BQ161,BT161,BW161,BZ161,CC161) -> 0.51555 | BH161: 0.3144 | BI161: -0.4819 | BK161: 0.3889 | BL161: -0.0709 | BN161: 0.94 | BO161: -0.13 | BQ161: 0.5 | BR161: -0.0145 | BT161: 0.1425 | BU161: 0.0069 | BW161: 1.2968 | BX161: 2.1217 | BZ161: 0.2712 | CA161: 0.0708 | CC161: 0.2706 | CD161: -0.2979 | CF161: =AVERAGE(CH161,CK161,CN161,CQ161,CT161,CW161) -> 0.6868166667 | CH161: 0.0126 | CI161: 0.0094 | CK161: 0.0043 | CL161: -0.0001 | CN161: 0.2308 | CO161: -0.3025 | CQ161: 1 | CR161: 1 | CT161: 0.0103 | CU161: 0.0028 | CW161: 2.8629 | CX161: 3.7877 | CZ161: =AVERAGE(DB161,DE161,DH161,DK161,DN161) -> 0.4104 | DB161: 0 | DC161: 0 | DE161: 0.052 | DF161: -0.0118 | DH161: 1 | DI161: 0.6323 | DK161: 0 | DL161: 0 | DN161: 1 | DO161: 0.125 | DQ161: =AVERAGE(DS161,DV161,DY161,EB161,EE161) -> 0.40064 | DS161: 0.0032 | DT161: 0.0032 | DV161: 0 | DW161: 0 | DY161: 0 | DZ161: 0 | EB161: 0 | EC161: 0 | EE161: 2 | EF161: 1.5 | EH161: =AVERAGE(EJ161,EM161,EP161,ES161) -> 0.027025 | EJ161: 0 | EK161: 0 | EM161: 0.0531 | EN161: -0.4138 | EP161: 0.055 | EQ161: 0.0035 | ES161: 0 | ET161: 0
C162: 424 | D162: COOPERATIVA AVP | F162: 3 | G162: 8 | H162: 19 | I162: 4 | J162: 19 | L162: 0.5872 | N162: 0.7595 | O162: 0.3895 | Q162: 0.3071 | R162: 0.3071 | T162: 0.3071 | U162: 0.3071 | W162: 1 | X162: 1 | Z162: 1.1 | AA162: 1.1 | AC162: 0.8333 | AD162: 0.1296 | AF162: 0.7 | AG162: 0.7 | AI162: 0.2778 | AJ162: 0.0926 | AL162: 0 | AM162: 0 | AO162: 0.50395 | AQ162: 0.0957 | AR162: 0.0364 | AT162: 19.88 | AU162: 5.03 | AW162: 0.4919 | AX162: -0.0229 | AZ162: 0.4982 | BA162: -0.0327 | BC162: 0.93 | BD162: -0.07 | BF162: 0.638775 | BH162: 1.2595 | BI162: 0.5476 | BK162: 0.2771 | BL162: -0.0128 | BN162: 1.36 | BO162: 0.28 | BQ162: 0.4919 | BR162: -0.0229 | BT162: 0.1006 | BU162: -0.0036 | BW162: 0.0427 | BX162: 0.7181 | BZ162: 1.5784 | CA162: 0.2778 | CC162: 0 | CD162: 0 | CF162: 3.20265 | CH162: 0.0749 | CI162: 0.0338 | CK162: 0.8036 | CL162: 0.1005 | CN162: 14.5 | CO162: 14.5 | CQ162: 3.1667 | CR162: 2.1667 | CT162: 0.008 | CU162: 0.0052 | CW162: 0.6627 | CX162: 0.6113 | CZ162: 0.27178 | DB162: 0.0131 | DC162: -0.0096 | DE162: 0.0568 | DF162: -0.0092 | DH162: 0.289 | DI162: 0.0129 | DK162: 0 | DL162: 0 | DN162: 1 | DO162: 0 | DQ162: 0.21436 | DS162: 0.091 | DT162: 0.0351 | DV162: 0 | DW162: 0 | DY162: 0 | DZ162: -0.154 | EB162: 0.6378 | EC162: 0.6002 | EE162: 0.343 | EF162: 0.0344 | EH162: 0.2736 | EJ162: 0.6551 | EK162: -0.0903 | EM162: 0.1583 | EN162: 0.0341 | EP162: 0.0032 | EQ162: 0.0009 | ES162: 0.2778 | ET162: -0.5482
C163: 1339 | D163: COOBELMIRA | F163: 4 | G163: 3 | H163: 11 | I163: 9 | J163: 22 | L163: 0.4095 | N163: 0.3897 | O163: -0.5293 | Q163: 0.1153 | R163: 0.0963 | T163: 0.1153 | U163: 0.0963 | W163: 0.8812 | X163: -0.1188 | Z163: 0.45 | AA163: -0.3595 | AC163: 0.4545 | AD163: -0.0122 | AF163: 0.2917 | AG163: -0.0561 | AI163: 0.4545 | AJ163: 0.1878 | AL163: 0.5333 | AM163: -0.0778 | AO163: 0.478725 | AQ163: -0.0063 | AR163: -0.0377 | AT163: 0.1 | AU163: -0.87 | AW163: 0.4005 | AX163: 0.0575 | AZ163: 0.6207 | BA163: -0.0358 | BC163: 0.9 | BD163: -0.05 | BF163: 0.5909625 | BH163: 0.3828 | BI163: 0.3828 | BK163: 0.304 | BL163: 0.2103 | BN163: 0.66 | BO163: 0.11 | BQ163: 0.4005 | BR163: 0.0575 | BT163: 0.1172 | BU163: -0.0013 | BW163: -0.0401 | BX163: 0.1418 | BZ163: 0.5572 | CA163: 0.0351 | CC163: 2.3461 | CD163: 1.1635 | CF163: 0.60665 | CH163: 0.0915 | CI163: 0.0646 | CK163: 0.2874 | CL163: 0.0258 | CN163: 1.1333 | CO163: -0.3111 | CQ163: 1 | CR163: 0 | CT163: 0.0026 | CU163: -0.0109 | CW163: 1.1251 | CX163: 0.9654 | CZ163: 0.2805 | DB163: 0 | DC163: 0 | DE163: 0.2032 | DF163: 0.1205 | DH163: 0.1993 | DI163: -0.1745 | DK163: 0 | DL163: 0 | DN163: 1 | DO163: 0 | DQ163: 0 | DS163: 0 | DT163: 0 | DV163: 0 | DW163: 0 | DY163: 0 | DZ163: 0 | EB163: 0 | EC163: 0 | EE163: 0 | EF163: 0 | EH163: 0.228625 | EJ163: 0 | EK163: 0 | EM163: 0.9145 | EN163: 0.9145 | EP163: 0 | EQ163: 0 | ES163: 0 | ET163: 0
C164: 1344 | D164: CODELCO | F164: 8 | G164: 4 | H164: 14 | I164: 6 | J164: 22 | L164: 0.6828333333 | N164: 1 | O164: 0 | Q164: 1 | R164: 0 | T164: 1 | U164: 0 | W164: 1 | X164: 0 | Z164: 0.6 | AA164: -0.1 | AC164: 0.5455 | AD164: 0.1107 | AF164: 0 | AG164: -0.5 | AI164: 0 | AJ164: 0 | AL164: 1 | AM164: 0 | AO164: 0.5005 | AQ164: -0.0309 | AR164: -0.0309 | AT164: 3.67 | AU164: -31.05 | AW164: 0.4162 | AX164: -0.0716 | AZ164: 0.6667 | BA164: -3.9166 | BC164: 0.95 | BD164: 0.01 | BF164: 0.75115 | BH164: 1.2951 | BI164: 0.114 | BK164: 0.4889 | BL164: -0.1118 | BN164: 0.48 | BO164: -0.18 | BQ164: 0.4162 | BR164: -0.0716 | BT164: 0.2242 | BU164: 0.0153 | BW164: -1 | BX164: -0.8253 | BZ164: 3 | CA164: 0.9465 | CC164: 1.1048 | CD164: 0.4348 | CF164: 0.0001333333333 | CH164: 0 | CI164: 0 | CK164: 0 | CL164: 0 | CN164: 0 | CO164: 0 | CQ164: 0 | CR164: 0 | CT164: 0.0008 | CU164: 0 | CW164: 0 | CX164: 0 | CZ164: 0.26094 | DB164: 0 | DC164: 0 | DE164: 0.0239 | DF164: 0.0239 | DH164: 0.2808 | DI164: 0.2808 | DK164: 0 | DL164: 0 | DN164: 1 | DO164: 0 | DQ164: 0 | DS164: 0 | DT164: 0 | DV164: 0 | DW164: 0 | DY164: 0 | DZ164: 0 | EB164: 0 | EC164: 0 | EE164: 0 | EF164: 0 | EH164: 0.0018 | EJ164: 0 | EK164: 0 | EM164: 0.0072 | EN164: 0.0025 | EP164: 0 | EQ164: -0.0098 | ES164: 0 | ET164: 0
C165: 1356 | D165: COOPMACEO LTDA | F165: 3 | G165: 4 | H165: 14 | I165: 9 | J165: 19 | L165: 0.5393888889 | N165: 2.0476 | O165: 0.0526 | Q165: 0.1741 | R165: 0 | T165: 0.1741 | U165: 0 | W165: 0.6942 | X165: 0 | Z165: 0.5833 | AA165: -0.1367 | AC165: 0.5417 | AD165: -0.0109 | AF165: 0.4848 | AG165: -0.0313 | AI165: 0.0833 | AJ165: -0.022 | AL165: 0.0714 | AM165: 0.0089 | AO165: 0.221875 | AQ165: 0.0082 | AR165: 0 | AT165: 20.09 | AU165: 9.67 | AW165: 0.4327 | AX165: 0.005 | AZ165: 0.4466 | BA165: -0.0342 | BC165: 0 | BD165: 0 | BF165: 0.49695 | BH165: 0.6394 | BI165: 0.189 | BK165: 0.4369 | BL165: 0.0189 | BN165: 0.86 | BO165: 0.4 | BQ165: 0.4327 | BR165: 0.005 | BT165: 0.0972 | BU165: -0.0025 | BW165: -0.1753 | BX165: -9.4911 | BZ165: 0.9517 | CA165: 0.8513 | CC165: 0.733 | CD165: 0.2248 | CF165: 0.9153 | CH165: 0.0524 | CI165: -0.9476 | CK165: 0.3976 | CL165: 0.3097 | CN165: 1.1111 | CO165: -0.8889 | CQ165: 1 | CR165: 0.0833 | CT165: 0.0235 | CU165: -0.0065 | CW165: 2.9072 | CX165: 2.9373 | CZ165: 0.55982 | DB165: 0 | DC165: 0 | DE165: 0.9037 | DF165: 0.9037 | DH165: 0.8954 | DI165: 0.2576 | DK165: 0 | DL165: 0 | DN165: 1 | DO165: 0.25 | DQ165: 0 | DS165: 0 | DT165: 0 | DV165: 0 | DW165: 0 | DY165: 0 | DZ165: 0 | EB165: 0 | EC165: 0 | EE165: 0 | EF165: 0 | EH165: 0.014925 | EJ165: 0 | EK165: 0 | EM165: 0 | EN165: 0 | EP165: 0.0597 | EQ165: 0.0036 | ES165: 0 | ET165: 0
C166: 1370 | D166: ORBISCOOP | F166: 1 | G166: 6 | H166: 12 | I166: 6 | J166: 24 | L166: 0.3793111111 | N166: 0.9719 | O166: -0.1243 | Q166: 0.0275 | R166: 0.0021 | T166: 0.0275 | U166: 0.0021 | W166: 1 | X166: 0 | Z166: 0.6111 | AA166: -0.0556 | AC166: 0.3667 | AD166: 0 | AF166: 0.4091 | AG166: 0.0933 | AI166: 0 | AJ166: 0 | AL166: 0 | AM166: 0 | AO166: 0.198425 | AQ166: -0.0361 | AR166: 0.0401 | AT166: 27.37 | AU166: -6.6 | AW166: 0.4109 | AX166: 0.0403 | AZ166: 0.4189 | BA166: 0.142 | BC166: 0 | BD166: -0.85 | BF166: 0.967875 | BH166: 1.204 | BI166: 0.0235 | BK166: 0.566 | BL166: 0.566 | BN166: 1.15 | BO166: 0.36 | BQ166: 0.4109 | BR166: 0.0403 | BT166: 0.1185 | BU166: 0.001 | BW166: 0.1722 | BX166: 0.1329 | BZ166: 3.6188 | CA166: 1.8485 | CC166: 0.5026 | CD166: 0.8113 | CF166: 0.1598833333 | CH166: 0.0094 | CI166: -0.0294 | CK166: 0.0795 | CL166: -0.0032 | CN166: 0.6667 | CO166: 0 | CQ166: 0.0076 | CR166: 0.0001 | CT166: 0.0159 | CU166: 0.0115 | CW166: 0.1802 | CX166: 0.0212 | CZ166: 0.175 | DB166: 0 | DC166: 0 | DE166: 0 | DF166: 0 | DH166: 0 | DI166: -0.4529 | DK166: 0 | DL166: 0 | DN166: 0.875 | DO166: 0 | DQ166: 22.22242 | DS166: 0.001 | DT166: 0.001 | DV166: 0 | DW166: 0 | DY166: 0 | DZ166: 0 | EB166: 0 | EC166: 0 | EE166: 111.1111 | EF166: 110.1644 | EH166: 0.04735 | EJ166: 0 | EK166: 0 | EM166: 0.0494 | EN166: -0.0506 | EP166: 0.0777 | EQ166: -0.0058 | ES166: 0.0623 | ET166: 0.0623
C167: 1388 | D167: COEDA | F167: 7 | G167: 2 | H167: 13 | I167: 6 | J167: 23 | L167: 0.8589444444 | N167: 1.4613 | O167: 0.1338 | Q167: 1 | R167: 1 | T167: 1 | U167: 1 | W167: 1 | X167: 0.3465 | Z167: 0.7692 | AA167: 0.7692 | AC167: 1 | AD167: 1 | AF167: 0.5 | AG167: 0.5 | AI167: 1 | AJ167: 1 | AL167: 0 | AM167: 0 | AO167: 0.2504 | AQ167: 0.0512 | AR167: -0.024 | AT167: 41.57 | AU167: 2.25 | AW167: 0.5453 | AX167: 0.0827 | AZ167: 0.4051 | BA167: -0.141 | BC167: 0 | BD167: -1 | BF167: 0.2951375 | BH167: 0 | BI167: -0.8156 | BK167: 0.7135 | BL167: -0.0399 | BN167: 0.89 | BO167: -0.72 | BQ167: 0.5453 | BR167: 0.0827 | BT167: 0.3172 | BU167: 0.0136 | BW167: -0.4964 | BX167: -2.5788 | BZ167: 0.2885 | CA167: 0.1998 | CC167: 0.103 | CD167: -0.1737 | CF167: 0 | CH167: 0 | CI167: -0.0076 | CK167: 0 | CL167: -0.0105 | CN167: 0 | CO167: -0.8889 | CQ167: 0 | CR167: -0.25 | CT167: 0 | CU167: 0 | CW167: 0 | CX167: 0.7264 | CZ167: 0.2673 | DB167: 0.0371 | DC167: 0.0016 | DE167: 0.7994 | DF167: 0.6121 | DH167: 0 | DI167: -0.4014 | DK167: 0 | DL167: 0 | DN167: 0.5 | DO167: 0.5 | DQ167: 0 | DS167: 0 | DT167: 0 | DV167: 0 | DW167: 0 | DY167: 0 | DZ167: 0 | EB167: 0 | EC167: 0 | EE167: 0 | EF167: 0 | EH167: 0.5 | EJ167: 1 | EK167: 0 | EM167: 1 | EN167: 1 | EP167: 0 | EQ167: 0 | ES167: 0 | ET167: 0
C168: 1411 | D168: COOAGRUPO | F168: 5 | G168: 6 | H168: 18 | I168: 6 | J168: 18 | L168: 0.5750222222 | N168: 0.6299 | O168: -0.3701 | Q168: 1 | R168: 0 | T168: 1 | U168: 0 | W168: 0.8505 | X168: -0.0267 | Z168: 0.64 | AA168: 0.0631 | AC168: 0.3125 | AD168: 0 | AF168: 0.3235 | AG168: 0.0457 | AI168: 0.2188 | AJ168: -0.0937 | AL168: 0.2 | AM168: -0.2 | AO168: 0.5374 | AQ168: 0.0476 | AR168: 0.075 | AT168: 6.54 | AU168: 5.45 | AW168: 0.5994 | AX168: 0.1506 | AZ168: 0.5526 | BA168: -0.4474 | BC168: 0.95 | BD168: 0 | BF168: 0.7714625 | BH168: 1.323 | BI168: 0.307 | BK168: 0.3353 | BL168: -0.4696 | BN168: 1.03 | BO168: 0.05 | BQ168: 0.5994 | BR168: 0.1506 | BT168: 0.0189 | BU168: 0.0035 | BW168: -0.2545 | BX168: -0.2113 | BZ168: 2.1277 | CA168: 0.227 | CC168: 0.9919 | CD168: -0.5027 | CF168: 0.45555 | CH168: 0.005 | CI168: 0.0036 | CK168: 1.0638 | CL168: 1.0071 | CN168: 0.8421 | CO168: 0.8421 | CQ168: 0 | CR168: -1 | CT168: 0.1557 | CU168: 0.1434 | CW168: 0.6667 | CX168: 0.7491 | CZ168: 0.56614 | DB168: 0 | DC168: 0 | DE168: 1.0331 | DF168: 0.8464 | DH168: 0.7976 | DI168: 0.0286 | DK168: 0 | DL168: 0 | DN168: 1 | DO168: 0 | DQ168: 0 | DS168: 0 | DT168: 0 | DV168: 0 | DW168: 0 | DY168: 0 | DZ168: 0 | EB168: 0 | EC168: 0 | EE168: 0 | EF168: 0 | EH168: 0 | EJ168: 0 | EK168: 0 | EM168: 0 | EN168: 0 | EP168: 0 | EQ168: 0 | ES168: 0 | ET168: 0
C169: 1448 | D169: COMUDEM | F169: 6 | G169: 3 | H169: 8 | I169: 6 | J169: 28 | L169: 0.4755777778 | N169: 1.1206 | O169: 0.9106 | Q169: 0.4092 | R169: 0 | T169: 0.4092 | U169: 0 | W169: 1 | X169: -1.444 | Z169: 0.5926 | AA169: 0.0212 | AC169: 0.4242 | AD169: 0 | AF169: 0.2941 | AG169: -0.0217 | AI169: 0.0303 | AJ169: -0.2727 | AL169: 0 | AM169: 0 | AO169: 0.188625 | AQ169: -0.0935 | AR169: -0.0835 | AT169: 0.02 | AU169: 0.01 | AW169: 0.4662 | AX169: 0.1205 | AZ169: 0.3818 | BA169: -0.2398 | BC169: 0 | BD169: 0 | BF169: 2.468775 | BH169: 0.1519 | BI169: 0.0309 | BK169: 0.0676 | BL169: -0.122 | BN169: 0.73 | BO169: -0.01 | BQ169: 0.4662 | BR169: 0.1205 | BT169: 0.2365 | BU169: 0.0378 | BW169: 18 | BX169: 18 | BZ169: 0.0007 | CA169: -0.0129 | CC169: 0.0973 | CD169: -1.0787 | CF169: 0.1667333333 | CH169: 0 | CI169: 0 | CK169: 0.0004 | CL169: -0.0007 | CN169: 0 | CO169: 0 | CQ169: 1 | CR169: 1 | CT169: 0 | CU169: -0.0007 | CW169: 0 | CX169: 0 | CZ169: 0.19358 | DB169: 0.0294 | DC169: -0.194 | DE169: 0.0159 | DF169: -0.0022 | DH169: 0.0476 | DI169: -0.1995 | DK169: 0 | DL169: 0 | DN169: 0.875 | DO169: 0 | DQ169: 0 | DS169: 0 | DT169: 0 | DV169: 0 | DW169: 0 | DY169: 0 | DZ169: 0 | EB169: 0 | EC169: 0 | EE169: 0 | EF169: 0 | EH169: 0.296425 | EJ169: 1 | EK169: 0 | EM169: 0.1843 | EN169: 0.1843 | EP169: 0.0014 | EQ169: -0.0417 | ES169: 0 | ET169: 0
C170: 1450 | D170: SOYCOOP COOTRAPIM LTDA | F170: 6 | G170: 4 | H170: 9 | I170: 4 | J170: 29 | L170: 1.464355556 | N170: 0.654 | O170: -0.3536 | Q170: 5.4857 | R170: 4.9428 | T170: 5.4857 | U170: 4.9428 | W170: 0 | X170: -1.8421 | Z170: 1 | AA170: 0.0625 | AC170: 0.28 | AD170: 0.0695 | AF170: 0.1538 | AG170: 0.0769 | AI170: 0.12 | AJ170: -0.3011 | AL170: 0 | AM170: -0.0769 | AO170: 0.179925 | AQ170: -0.0476 | AR170: -0.041 | AT170: 33.17 | AU170: 32.38 | AW170: 0.3128 | AX170: 0.1266 | AZ170: 0.4545 | BA170: -0.0265 | BC170: 0 | BD170: 0 | BF170: 0.4739 | BH170: 0.5054 | BI170: -1.0304 | BK170: 0.5473 | BL170: 0.3186 | BN170: 1.86 | BO170: 0.1 | BQ170: 0.3128 | BR170: 0.1266 | BT170: 0.2667 | BU170: 0.0493 | BW170: 0 | BX170: 0 | BZ170: 0 | CA170: 0 | CC170: 0.299 | CD170: -0.9035 | CF170: 0.00165 | CH170: 0 | CI170: 0 | CK170: 0 | CL170: -0.0037 | CN170: 0 | CO170: 0 | CQ170: 0 | CR170: 0 | CT170: 0.0099 | CU170: -0.0043 | CW170: 0 | CX170: 0 | CZ170: 0.18958 | DB170: 0 | DC170: 0 | DE170: 0 | DF170: -0.0325 | DH170: 0.3229 | DI170: -0.0346 | DK170: 0 | DL170: 0 | DN170: 0.625 | DO170: 0 | DQ170: 0.2 | DS170: 0 | DT170: -0.0045 | DV170: 0 | DW170: 0 | DY170: 0 | DZ170: 0 | EB170: 0 | EC170: 0 | EE170: 1 | EF170: 1 | EH170: 0.260175 | EJ170: 0 | EK170: 0 | EM170: 1 | EN170: -0.0139 | EP170: 0.0407 | EQ170: -0.0266 | ES170: 0 | ET170: 0
C171: 1510 | D171: COOMPAU | F171: 7 | G171: 3 | H171: 15 | I171: 6 | J171: 21 | L171: 0.6581666667 | N171: 1.1934 | O171: -0.0014 | Q171: 1 | R171: 1 | T171: 1 | U171: 1 | W171: 0.7301 | X171: -0.0363 | Z171: 0 | AA171: -0.8889 | AC171: 1 | AD171: 1 | AF171: 0 | AG171: -0.75 | AI171: 1 | AJ171: 1 | AL171: 0 | AM171: -0.1875 | AO171: 0.428675 | AQ171: 0.0133 | AR171: 0.0282 | AT171: 10.84 | AU171: 10.3 | AW171: 0.4161 | AX171: -0.0213 | AZ171: 0.4853 | BA171: -0.069 | BC171: 0.8 | BD171: -0.05 | BF171: 0.2850125 | BH171: 0.0271 | BI171: -0.9932 | BK171: 0.3557 | BL171: 0.0305 | BN171: 0.96 | BO171: 0.04 | BQ171: 0.4161 | BR171: -0.0213 | BT171: 0.2073 | BU171: 0.0131 | BW171: 0 | BX171: 0.2945 | BZ171: 0 | CA171: -0.0965 | CC171: 0.3139 | CD171: 0.6257 | CF171: -0.1665333333 | CH171: 0 | CI171: -0.0266 | CK171: 0 | CL171: 0 | CN171: 0 | CO171: 0 | CQ171: 0 | CR171: 0 | CT171: 0.0008 | CU171: -0.001 | CW171: -1 | CX171: -1.2903 | CZ171: 0.3095 | DB171: 0.0294 | DC171: -0.0813 | DE171: 0.0714 | DF171: -0.2993 | DH171: 0.4467 | DI171: -0.0425 | DK171: 0 | DL171: 0 | DN171: 1 | DO171: 0 | DQ171: 0.72238 | DS171: 0 | DT171: 0 | DV171: 0 | DW171: 0 | DY171: 0.6489 | DZ171: 0.3173 | EB171: 0 | EC171: 0 | EE171: 2.963 | EF171: 1.2963 | EH171: 0.5 | EJ171: 1 | EK171: 0 | EM171: 1 | EN171: 0.999 | EP171: 0 | EQ171: 0 | ES171: 0 | ET171: 0
C172: 1630 | D172: COOEBAN | F172: 7 | G172: 3 | H172: 9 | I172: 5 | J172: 28 | L172: 0.2343888889 | N172: 0.5056 | O172: 0.2374 | Q172: 0 | R172: -0.6535 | T172: 0 | U172: -0.6535 | W172: 0 | X172: -0.7893 | Z172: 1 | AA172: 0.4 | AC172: 0.2571 | AD172: -0.0762 | AF172: 0.3182 | AG172: 0.0515 | AI172: 0.0286 | AJ172: -0.0381 | AL172: 0 | AM172: 0 | AO172: 0.2371 | AQ172: -0.1165 | AR172: -0.9908 | AT172: 39.11 | AU172: 16.67 | AW172: 0.6136 | AX172: -0.0026 | AZ172: 0.4513 | BA172: 0.0227 | BC172: 0 | BD172: 0 | BF172: 0.62465 | BH172: 1.2306 | BI172: 0.0314 | BK172: 0.411 | BL172: -0.0715 | BN172: 1.54 | BO172: 0.24 | BQ172: 0.6136 | BR172: -0.0026 | BT172: 0.2428 | BU172: 0.0039 | BW172: 0.6205 | BX172: 1.1848 | BZ172: 0.0365 | CA172: -0.0079 | CC172: 0.3022 | CD172: -0.0014 | CF172: 0.001883333333 | CH172: 0 | CI172: 0 | CK172: 0 | CL172: 0 | CN172: 0 | CO172: 0 | CQ172: 0 | CR172: 0 | CT172: 0.0113 | CU172: 0.0113 | CW172: 0 | CX172: 0 | CZ172: 0.3727 | DB172: 0 | DC172: 0 | DE172: 0.525 | DF172: -0.4156 | DH172: 0.5885 | DI172: -0.9115 | DK172: 0 | DL172: 0 | DN172: 0.75 | DO172: -0.25 | DQ172: 0 | DS172: 0 | DT172: 0 | DV172: 0 | DW172: 0 | DY172: 0 | DZ172: 0 | EB172: 0 | EC172: 0 | EE172: 0 | EF172: -1 | EH172: 0.0698 | EJ172: 0 | EK172: 0 | EM172: 0.2169 | EN172: 0.2067 | EP172: 0.0623 | EQ172: 0.0514 | ES172: 0 | ET172: 0
C173: 1691 | D173: COOINPE | F173: 6 | G173: 1 | H173: 14 | I173: 7 | J173: 21 | L173: 0.7384222222 | N173: 1 | O173: 0 | Q173: 1 | R173: 1 | T173: 1 | U173: 1 | W173: 1 | X173: 0 | Z173: 0.5833 | AA173: -0.0638 | AC173: 1 | AD173: 1 | AF173: 0.0625 | AG173: -0.0913 | AI173: 1 | AJ173: 1 | AL173: 0 | AM173: 0 | AO173: 0.50305 | AQ173: 0.066 | AR173: 0.0176 | AT173: 0.98 | AU173: 0.4 | AW173: 0.5019 | AX173: 0.0086 | AZ173: 0.5143 | BA173: 0.0455 | BC173: 0.93 | BD173: 0.11 | BF173: 0.5170625 | BH173: 0.291 | BI173: -0.0588 | BK173: 0.5613 | BL173: 0.0949 | BN173: 0.95 | BO173: -1.36 | BQ173: 0.5019 | BR173: 0.0086 | BT173: 0.0907 | BU173: -0.0009 | BW173: -0.5113 | BX173: -0.5055 | BZ173: 1.8793 | CA173: 0.0344 | CC173: 0.3736 | CD173: -0.3491 | CF173: 0.3773333333 | CH173: 0.0144 | CI173: 0.0144 | CK173: 0.2353 | CL173: 0.1462 | CN173: 1 | CO173: 0.3548 | CQ173: 1 | CR173: 0 | CT173: 0.0143 | CU173: -0.0427 | CW173: 0 | CX173: 0 | CZ173: 0.25468 | DB173: 0.0753 | DC173: -0.0285 | DE173: 0.0933 | DF173: -0.0563 | DH173: 0.1048 | DI173: -0.3435 | DK173: 0 | DL173: 0 | DN173: 1 | DO173: 0 | DQ173: 0 | DS173: 0 | DT173: 0 | DV173: 0 | DW173: 0 | DY173: 0 | DZ173: 0 | EB173: 0 | EC173: 0 | EE173: 0 | EF173: 0 | EH173: 0.27265 | EJ173: 0 | EK173: 0 | EM173: 0.9232 | EN173: -0.0768 | EP173: 0.1674 | EQ173: -0.0195 | ES173: 0 | ET173: 0
C174: 1824 | D174: COOBAGRE | F174: 2 | G174: 4 | H174: 14 | I174: 3 | J174: 25 | L174: 0.6941222222 | N174: 0.3881 | O174: -0.3032 | Q174: 1 | R174: 1 | T174: 1 | U174: 1 | W174: 1 | X174: 0.2441 | Z174: 0.6667 | AA174: -0.3333 | AC174: 1 | AD174: 1 | AF174: 0.1923 | AG174: 0.0048 | AI174: 1 | AJ174: 1 | AL174: 0 | AM174: 0 | AO174: 0.2019 | AQ174: 0.0509 | AR174: 0.1392 | AT174: 12.73 | AU174: 6.41 | AW174: 0.2654 | AX174: 0.0506 | AZ174: 0.4913 | BA174: -0.0024 | BC174: 0 | BD174: 0 | BF174: 0.336825 | BH174: 0.2318 | BI174: 0.0163 | BK174: 0.4551 | BL174: -0.0986 | BN174: 1.47 | BO174: -0.56 | BQ174: 0.2654 | BR174: 0.0506 | BT174: 0.1013 | BU174: -0.0018 | BW174: -0.421 | BX174: -1.6172 | BZ174: 0.2406 | CA174: 0.1103 | CC174: 0.3514 | CD174: 0.6109 | CF174: 0.0955 | CH174: 0 | CI174: -0.0071 | CK174: 0.04 | CL174: -0.0714 | CN174: 0.5294 | CO174: 0.3715 | CQ174: 1 | CR174: 0 | CT174: 0.0036 | CU174: -0.0039 | CW174: -1 | CX174: -0.9623 | CZ174: 0.32722 | DB174: 0.0664 | DC174: 0.0478 | DE174: 0.1736 | DF174: -0.0143 | DH174: 0.3961 | DI174: -0.2502 | DK174: 0 | DL174: 0 | DN174: 1 | DO174: 0 | DQ174: 0.00016 | DS174: 0 | DT174: -0.0434 | DV174: 0 | DW174: -0.0189 | DY174: 0.0008 | DZ174: 0.0008 | EB174: 0 | EC174: 0 | EE174: 0 | EF174: -0.5476 | EH174: 6.4 | EJ174: 1 | EK174: 1 | EM174: 23.8009 | EN174: 5.0906 | EP174: 0.0241 | EQ174: 0.0017 | ES174: 0.775 | ET174: 0.775
C175: 1851 | D175: COOPMUJER LTDA | F175: 5 | G175: 3 | H175: 15 | I175: 3 | J175: 24 | L175: 0.4465444444 | N175: 0.5952 | O175: 0.1735 | Q175: 0.1841 | R175: 0.0098 | T175: 0.1841 | U175: 0.0098 | W175: 0.1995 | X175: -5.5387 | Z175: 0.6154 | AA175: -1.3846 | AC175: 1 | AD175: 0 | AF175: 1 | AG175: 0 | AI175: 0.1406 | AJ175: 0.0531 | AL175: 0.1 | AM175: -0.4 | AO175: 0.36135 | AQ175: -0.0161 | AR175: -0.0068 | AT175: 5.65 | AU175: -10.03 | AW175: 1 | AX175: 0 | AZ175: 0.4615 | BA175: -0.1611 | BC175: 0 | BD175: 0 | BF175: 0.1679875 | BH175: 0.1304 | BI175: -0.9301 | BK175: 0.0508 | BL175: -0.0984 | BN175: 0 | BO175: 0 | BQ175: 1 | BR175: 0 | BT175: 0.1627 | BU175: -0.0423 | BW175: 0 | BX175: -0.0983 | BZ175: 0 | CA175: -0.0009 | CC175: 0 | CD175: 0 | CF175: 2.188416667 | CH175: 0.0185 | CI175: 0.0185 | CK175: 0.0042 | CL175: 0.0042 | CN175: 0.3 | CO175: 0.3 | CQ175: 1 | CR175: 1 | CT175: 0 | CU175: -0.0056 | CW175: 11.8078 | CX175: 11.8078 | CZ175: 0.32438 | DB175: 0.0364 | DC175: 0.0364 | DE175: 0.0378 | DF175: -0.0037 | DH175: 0.4149 | DI175: 0.0933 | DK175: 0.1328 | DL175: 0.1328 | DN175: 1 | DO175: 0 | DQ175: 0.2 | DS175: 0 | DT175: 0 | DV175: 0 | DW175: 0 | DY175: 0 | DZ175: 0 | EB175: 0 | EC175: 0 | EE175: 1 | EF175: 1 | EH175: 0.764925 | EJ175: 0.9914 | EK175: 0.9914 | EM175: 1 | EN175: 0 | EP175: 0.0683 | EQ175: 0.0042 | ES175: 1 | ET175: 1
C176: 1852 | D176: COAPAZ | F176: 4 | G176: 5 | H176: 14 | I176: 7 | J176: 21 | L176: 0.7864 | N176: 1.751 | O176: 0.7905 | Q176: 1 | R176: 1 | T176: 1 | U176: 1 | W176: 0.0885 | X176: -0.5656 | Z176: 0.5714 | AA176: -0.0286 | AC176: 1 | AD176: 1 | AF176: 0.5 | AG176: 0.0263 | AI176: 1 | AJ176: 1 | AL176: 0.1667 | AM176: 0 | AO176: 0.29525 | AQ176: 0.1327 | AR176: -0.0197 | AT176: 5.44 | AU176: -2.42 | AW176: 0.498 | AX176: 0.0397 | AZ176: 0.5503 | BA176: -0.0533 | BC176: 0 | BD176: 0 | BF176: 0.7054625 | BH176: 0.4373 | BI176: -0.0255 | BK176: 0.3874 | BL176: 0.0048 | BN176: 1.02 | BO176: -0.07 | BQ176: 0.498 | BR176: 0.0397 | BT176: 0.1479 | BU176: -0.0053 | BW176: 0.2685 | BX176: 0.5999 | BZ176: 0.8415 | CA176: -0.0234 | CC176: 2.0431 | CD176: 1.5293 | CF176: 0.23995 | CH176: 0 | CI176: 0 | CK176: 0.0052 | CL176: -0.0191 | CN176: 0.4167 | CO176: 0.2244 | CQ176: 1 | CR176: 0 | CT176: 0.0178 | CU176: 0.0165 | CW176: 0 | CX176: 0 | CZ176: 0.2929 | DB176: 0 | DC176: 0 | DE176: 0.0895 | DF176: -0.1128 | DH176: 0.375 | DI176: -0.0093 | DK176: 0 | DL176: 0 | DN176: 1 | DO176: 0 | DQ176: 0.8 | DS176: 0 | DT176: 0 | DV176: 0 | DW176: 0 | DY176: 0 | DZ176: -0.8628 | EB176: 0 | EC176: 0 | EE176: 4 | EF176: 0 | EH176: 0.006975 | EJ176: 0 | EK176: 0 | EM176: 0.0257 | EN176: -0.009 | EP176: 0.0022 | EQ176: 0.0004 | ES176: 0 | ET176: 0
C177: 1894 | D177: COORINOQUIA | F177: 4 | G177: 4 | H177: 16 | I177: 5 | J177: 21 | L177: 0.4395111111 | N177: 0.685 | O177: -0.315 | Q177: 0.2889 | R177: 0 | T177: 0.2889 | U177: 0 | W177: 0.645 | X177: 0 | Z177: 0.6364 | AA177: -0.0303 | AC177: 0.725 | AD177: 0.0623 | AF177: 0.6364 | AG177: -0.0303 | AI177: 0.05 | AJ177: -0.2784 | AL177: 0 | AM177: 0 | AO177: 0.318025 | AQ177: -0.0477 | AR177: -0.0077 | AT177: 16.43 | AU177: -1.39 | AW177: 0.7573 | AX177: 0.0223 | AZ177: 0.5625 | BA177: -0.0785 | BC177: 0 | BD177: 0 | BF177: 0.7884 | BH177: 0.8908 | BI177: -0.1112 | BK177: 0.8193 | BL177: -0.0149 | BN177: 0.9 | BO177: 0.15 | BQ177: 0.7573 | BR177: 0.0223 | BT177: 0.2392 | BU177: 0.0043 | BW177: 0.3956 | BX177: 0.7029 | BZ177: 1.8718 | CA177: 0.221 | CC177: 0.4332 | CD177: -0.0522 | CF177: 0.1111 | CH177: 0.0925 | CI177: -0.0525 | CK177: 0 | CL177: -1 | CN177: 0.5263 | CO177: -0.407 | CQ177: 0.4167 | CR177: -0.5833 | CT177: 0.0117 | CU177: 0.0067 | CW177: -0.3806 | CX177: 0.1359 | CZ177: 0.21014 | DB177: 0 | DC177: 0 | DE177: 0.0693 | DF177: 0.006 | DH177: 0.3564 | DI177: -0.012 | DK177: 0 | DL177: 0 | DN177: 0.625 | DO177: -0.125 | DQ177: 10.71626 | DS177: 0.0144 | DT177: 0.0073 | DV177: 0 | DW177: 0 | DY177: 0 | DZ177: 0 | EB177: 0.5669 | EC177: -0.6797 | EE177: 53 | EF177: -47 | EH177: 0.075925 | EJ177: 0 | EK177: 0 | EM177: 0.0412 | EN177: -0.0098 | EP177: 0.2625 | EQ177: 0.1663 | ES177: 0 | ET177: 0
C178: 1961 | D178: COOTRAUNION | F178: 5 | G178: 2 | H178: 14 | I178: 7 | J178: 21 | L178: 0.5301222222 | N178: 0.9178 | O178: 0.1663 | Q178: 0.3581 | R178: 0.0862 | T178: 0.3581 | U178: 0.0862 | W178: 0.8063 | X178: 0.0594 | Z178: 0.5238 | AA178: 0.0021 | AC178: 0.6316 | AD178: 0.0407 | AF178: 1 | AG178: 0.25 | AI178: 0.1754 | AJ178: 0.0845 | AL178: 0 | AM178: 0 | AO178: 0.54035 | AQ178: -0.0251 | AR178: 0.0635 | AT178: 27.58 | AU178: 27.55 | AW178: 0.5794 | AX178: 0.0022 | AZ178: 0.6871 | BA178: 0.0421 | BC178: 0.92 | BD178: 0.06 | BF178: 0.4722 | BH178: 0.2712 | BI178: -0.003 | BK178: 0.7565 | BL178: -0.0376 | BN178: 0.93 | BO178: -0.13 | BQ178: 0.5794 | BR178: 0.0022 | BT178: 0.1361 | BU178: 0.0008 | BW178: 0.1579 | BX178: -0.3808 | BZ178: 0.8761 | CA178: 0.0399 | CC178: 0.0704 | CD178: -0.0091 | CF178: 0.4792666667 | CH178: 1 | CI178: -0.5356 | CK178: 0.0586 | CL178: -0.0046 | CN178: 0.9 | CO178: 0.1174 | CQ178: 1 | CR178: 0 | CT178: 0.0019 | CU178: 0.0009 | CW178: -0.0849 | CX178: -0.2024 | CZ178: 0.16352 | DB178: 0 | DC178: 0 | DE178: 0.0781 | DF178: -0.0056 | DH178: 0.3645 | DI178: -0.1004 | DK178: 0 | DL178: 0 | DN178: 0.375 | DO178: 0 | DQ178: 0.54762 | DS178: 0 | DT178: 0 | DV178: 0 | DW178: 0 | DY178: 0 | DZ178: 0 | EB178: 0 | EC178: 0 | EE178: 2.7381 | EF178: -0.2619 | EH178: 0.047775 | EJ178: 0 | EK178: 0 | EM178: 0.1262 | EN178: -0.0077 | EP178: 0.0649 | EQ178: 0.0201 | ES178: 0 | ET178: 0
C179: 2012 | D179: COOSANANDRESITO | F179: 4 | G179: 4 | H179: 15 | I179: 4 | J179: 23 | L179: 0.6890555556 | N179: 0.4575 | O179: 0.0238 | Q179: 1 | R179: 1 | T179: 1 | U179: 1 | W179: 1 | X179: 0 | Z179: 0.5517 | AA179: 0.5517 | AC179: 1 | AD179: 1 | AF179: 0.1923 | AG179: 0.1923 | AI179: 1 | AJ179: 1 | AL179: 0 | AM179: 0 | AO179: 0.73605 | AQ179: -0.0645 | AR179: 0.0412 | AT179: 0.08 | AU179: 0.05 | AW179: 1.9149 | AX179: 1.3807 | AZ179: 0.1538 | BA179: -0.4462 | BC179: 0.94 | BD179: -0.03 | BF179: 0.4569375 | BH179: 0.0425 | BI179: -0.0477 | BK179: 0.4681 | BL179: 0.3517 | BN179: 1.09 | BO179: -0.01 | BQ179: 1.9149 | BR179: 1.3807 | BT179: 0.0557 | BU179: -0.004 | BW179: -0.3034 | BX179: -4.713 | BZ179: 0.0713 | CA179: 0.061 | CC179: 0.3164 | CD179: 0.1972 | CF179: 0.27735 | CH179: 0.003 | CI179: -0.997 | CK179: 0.0412 | CL179: 0.0412 | CN179: 0.7222 | CO179: 0.7222 | CQ179: 0 | CR179: -0.6957 | CT179: 0.0042 | CU179: -0.0133 | CW179: 0.8935 | CX179: 1.113 | CZ179: 0.3131 | DB179: 0 | DC179: 0 | DE179: 0.32 | DF179: 0.013 | DH179: 0.3702 | DI179: 0.3702 | DK179: 0.0003 | DL179: 0.0003 | DN179: 0.875 | DO179: 0.125 | DQ179: 0 | DS179: 0 | DT179: 0 | DV179: 0 | DW179: 0 | DY179: 0 | DZ179: 0 | EB179: 0 | EC179: 0 | EE179: 0 | EF179: 0 | EH179: 0.7771 | EJ179: 0 | EK179: 0 | EM179: 3.0663 | EN179: -10.504 | EP179: 0.0421 | EQ179: -0.0184 | ES179: 0 | ET179: 0
C180: 2021 | D180: COESCOOP | F180: 2 | G180: 2 | H180: 13 | I180: 12 | J180: 17 | L180: 0.4995111111 | N180: 0.8174 | O180: -0.4118 | Q180: 0.5099 | R180: 0 | T180: 0.5099 | U180: 0 | W180: 0.6567 | X180: 0.6567 | Z180: 0.5238 | AA180: 0 | AC180: 0.4615 | AD180: -0.0122 | AF180: 0.56 | AG180: 0 | AI180: 0.2564 | AJ180: -0.0068 | AL180: 0.2 | AM180: 0 | AO180: 0.54385 | AQ180: 0.1345 | AR180: 0.0987 | AT180: 81.15 | AU180: 67.72 | AW180: 0.5147 | AX180: 0.0395 | AZ180: 0.5262 | BA180: -0.0452 | BC180: 1 | BD180: 0 | BF180: 0.5437875 | BH180: 0.7019 | BI180: -0.2083 | BK180: 0.604 | BL180: 0.3781 | BN180: 0.88 | BO180: -0.11 | BQ180: 0.5147 | BR180: 0.0395 | BT180: 0.0906 | BU180: -0.0054 | BW180: -0.5686 | BX180: 0.0906 | BZ180: 0.1145 | CA180: 0.0316 | CC180: 2.0132 | CD180: 1.3063 | CF180: 0.09373333333 | CH180: 0 | CI180: -0.0006 | CK180: 0.0556 | CL180: -0.0083 | CN180: 0.5 | CO180: 0.1364 | CQ180: 1 | CR180: 0 | CT180: 0.0068 | CU180: -0.0014 | CW180: -1 | CX180: -0.1894 | CZ180: 0.29902 | DB180: 0.0433 | DC180: -0.0121 | DE180: 0.0792 | DF180: 0.0346 | DH180: 0.3726 | DI180: 0.2389 | DK180: 0 | DL180: 0 | DN180: 1 | DO180: 0 | DQ180: 0.21564 | DS180: 0 | DT180: 0 | DV180: 0 | DW180: 0 | DY180: 0.0782 | DZ180: 0.0332 | EB180: 0 | EC180: 0 | EE180: 1 | EF180: -99 | EH180: 0.467925 | EJ180: 0.9988 | EK180: 0.9988 | EM180: 0.8724 | EN180: -0.1276 | EP180: 0.0005 | EQ180: 0 | ES180: 0 | ET180: 0
C181: 2028 | D181: COOPCLERO LTDA | F181: 7 | G181: 2 | H181: 14 | I181: 2 | J181: 26 | L181: 0.8910111111 | N181: 1.8915 | O181: 0.8915 | Q181: 1 | R181: 0.7012 | T181: 1 | U181: 0.7012 | W181: 0.7347 | X181: -0.0239 | Z181: 1 | AA181: 0.4848 | AC181: 1 | AD181: 0.7945 | AF181: 0.25 | AG181: 0.1959 | AI181: 1 | AJ181: 0.9041 | AL181: 0.1429 | AM181: 0.1429 | AO181: 0.253675 | AQ181: 0.0392 | AR181: 0.0259 | AT181: 37.77 | AU181: 29.08 | AW181: 0.2482 | AX181: -0.0458 | AZ181: 0.7273 | BA181: 0.2876 | BC181: 0 | BD181: -0.95 | BF181: 0.4794 | BH181: 0.9701 | BI181: -1.035 | BK181: 0.0584 | BL181: -0.6206 | BN181: 0.56 | BO181: -1.78 | BQ181: 0.2482 | BR181: -0.0458 | BT181: 0.1096 | BU181: 0.0552 | BW181: 0.2314 | BX181: -1.8595 | BZ181: 0.9077 | CA181: 0.7581 | CC181: 0.7498 | CD181: 0.1975 | CF181: 0.001483333333 | CH181: 0 | CI181: -0.0063 | CK181: 0 | CL181: -0.0319 | CN181: 0 | CO181: -1 | CQ181: 0 | CR181: -1 | CT181: 0.0089 | CU181: 0.0089 | CW181: 0 | CX181: 0.7061 | CZ181: 0.23414 | DB181: 0 | DC181: -0.035 | DE181: 0.1707 | DF181: -0.0438 | DH181: 0 | DI181: -0.5987 | DK181: 0 | DL181: 0 | DN181: 1 | DO181: 0.125 | DQ181: 0.2 | DS181: 0 | DT181: -0.0003 | DV181: 0 | DW181: 0 | DY181: 0 | DZ181: 0 | EB181: 0 | EC181: -1 | EE181: 1 | EF181: 1 | EH181: 0.0634 | EJ181: 0 | EK181: -1 | EM181: 0 | EN181: -0.5736 | EP181: 0.2536 | EQ181: 0.1772 | ES181: 0 | ET181: 0
C182: 2109 | D182: SIGLOXX | F182: 5 | G182: 3 | H182: 12 | I182: 6 | J182: 24 | L182: 0.3481222222 | N182: 1 | O182: -0.1473 | Q182: 0.2988 | R182: 0.0959 | T182: 0.2988 | U182: 0.0959 | W182: 0.7586 | X182: -0.2414 | Z182: 0.4286 | AA182: -1.0158 | AC182: 0.2297 | AD182: -0.2703 | AF182: 0.0645 | AG182: -0.3799 | AI182: 0.0541 | AJ182: 0.0086 | AL182: 0 | AM182: 0 | AO182: 0.40465 | AQ182: 0.0007 | AR182: 0.0568 | AT182: 17.57 | AU182: 17.13 | AW182: 0.2968 | AX182: -0.014 | AZ182: 0.4211 | BA182: 0.1858 | BC182: 0.9 | BD182: -0.05 | BF182: 0.8245375 | BH182: 1.9597 | BI182: 1.1219 | BK182: 0.6789 | BL182: 0.5843 | BN182: 2.76 | BO182: 1.36 | BQ182: 0.2968 | BR182: -0.014 | BT182: 0.0593 | BU182: -0.0138 | BW182: -0.0203 | BX182: 0.005 | BZ182: 0.3604 | CA182: -0.7635 | CC182: 0.5015 | CD182: -0.2998 | CF182: 0.3348666667 | CH182: 0.0088 | CI182: -0.0087 | CK182: 0.0333 | CL182: -0.1401 | CN182: 0.6207 | CO182: -0.2364 | CQ182: 1 | CR182: 0 | CT182: 0 | CU182: -0.031 | CW182: 0.3464 | CX182: 0.4289 | CZ182: 0.21484 | DB182: 0.0184 | DC182: 0.0184 | DE182: 0.061 | DF182: -0.0517 | DH182: 0.1198 | DI182: -0.3167 | DK182: 0 | DL182: 0 | DN182: 0.875 | DO182: -0.125 | DQ182: 0 | DS182: 0 | DT182: 0 | DV182: 0 | DW182: 0 | DY182: 0 | DZ182: 0 | EB182: 0 | EC182: 0 | EE182: 0 | EF182: 0 | EH182: 0.416075 | EJ182: 1 | EK182: 1 | EM182: 0.5824 | EN182: -0.4101 | EP182: 0.0819 | EQ182: -0.1152 | ES182: 0 | ET182: -11.8846
C183: 2196 | D183: COUNAL | F183: 3 | G183: 4 | H183: 11 | I183: 8 | J183: 23 | L183: 0.4339777778 | N183: 1 | O183: 0 | Q183: 0.2029 | R183: -0.793 | T183: 0.2029 | U183: -0.793 | W183: 1 | X183: 0.2863 | Z183: 0.6364 | AA183: 0.0174 | AC183: 0.45 | AD183: 0.3346 | AF183: 0.3636 | AG183: 0.3219 | AI183: 0.05 | AJ183: -0.0269 | AL183: 0 | AM183: 0 | AO183: 0.417675 | AQ183: -0.0158 | AR183: 0.1164 | AT183: 0 | AU183: -87.9 | AW183: 0.3792 | AX183: 0.132 | AZ183: 0.4773 | BA183: -0.0227 | BC183: 0.83 | BD183: 0.83 | BF183: 0.45155 | BH183: 0.5675 | BI183: 0.4278 | BK183: 0.1835 | BL183: -0.3334 | BN183: 1.09 | BO183: -1.1 | BQ183: 0.3792 | BR183: 0.132 | BT183: 0.0716 | BU183: -0.0755 | BW183: -0.1449 | BX183: 0.5465 | BZ183: 1.0458 | CA183: 0.0664 | CC183: 0.4197 | CD183: -0.0117 | CF183: 0.4809166667 | CH183: 0.0258 | CI183: 0.0258 | CK183: 0.2563 | CL183: 0.2563 | CN183: 1.1765 | CO183: 1.1765 | CQ183: 1 | CR183: 1 | CT183: 0.016 | CU183: 0.016 | CW183: 0.4109 | CX183: 0.4109 | CZ183: 0.24706 | DB183: 0 | DC183: 0 | DE183: 0.0592 | DF183: -0.9832 | DH183: 0.1761 | DI183: -2.0704 | DK183: 0 | DL183: 0 | DN183: 1 | DO183: 0 | DQ183: 0.15 | DS183: 0 | DT183: 0 | DV183: 0 | DW183: 0 | DY183: 0 | DZ183: 0 | EB183: 0 | EC183: 0 | EE183: 0.75 | EF183: 0.75 | EH183: 0.2934 | EJ183: 0 | EK183: 0 | EM183: 1.0532 | EN183: 0.0532 | EP183: 0.1204 | EQ183: 0.037 | ES183: 0 | ET183: 0
C184: 2223 | D184: MULTIACOOP | F184: 8 | G184: 5 | H184: 12 | I184: 3 | J184: 27 | L184: 0.4988333333 | N184: 1 | O184: 0 | Q184: 0.9438 | R184: 0.8722 | T184: 0.9438 | U184: 0.8722 | W184: 0.728 | X184: -0.272 | Z184: 0.5882 | AA184: -0.0027 | AC184: 0.1786 | AD184: -0.144 | AF184: 0 | AG184: -0.45 | AI184: 0.1071 | AJ184: 0.0103 | AL184: 0 | AM184: 0 | AO184: 0.126575 | AQ184: -0.1095 | AR184: -0.0647 | AT184: 1.35 | AU184: 0.68 | AW184: 0.2485 | AX184: -0.092 | AZ184: 0.3673 | BA184: 0.0502 | BC184: 0 | BD184: 0 | BF184: 1.4626875 | BH184: 1.0071 | BI184: 0.2839 | BK184: 0.5808 | BL184: -0.0659 | BN184: 1.75 | BO184: 0.31 | BQ184: 0.2485 | BR184: -0.092 | BT184: 0.1455 | BU184: 0.0321 | BW184: 7.2217 | BX184: 7.2417 | BZ184: 0.3904 | CA184: -1.6475 | CC184: 0.3575 | CD184: -0.3189 | CF184: 0.0005666666667 | CH184: 0 | CI184: 0 | CK184: 0 | CL184: -0.0469 | CN184: 0 | CO184: -0.8667 | CQ184: 0 | CR184: -1 | CT184: 0.0034 | CU184: 0.0034 | CW184: 0 | CX184: 0 | CZ184: 0.53778 | DB184: 0 | DC184: -0.1158 | DE184: 0.7985 | DF184: 0.6931 | DH184: 0.8904 | DI184: 0.5486 | DK184: 0 | DL184: 0 | DN184: 1 | DO184: 0 | DQ184: 0 | DS184: 0 | DT184: 0 | DV184: 0 | DW184: 0 | DY184: 0 | DZ184: 0 | EB184: 0 | EC184: 0 | EE184: 0 | EF184: 0 | EH184: 0.085625 | EJ184: 0 | EK184: 0 | EM184: 0.3425 | EN184: -0.6575 | EP184: 0 | EQ184: -0.0575 | ES184: 0 | ET184: 0
C185: 2231 | D185: MULTIEMPRESAS | F185: 6 | G185: 2 | H185: 13 | I185: 6 | J185: 23 | L185: 0.4106555556 | N185: 1 | O185: -0.0059 | Q185: 0.0716 | R185: -0.405 | T185: 0.0716 | U185: -0.405 | W185: 1 | X185: 0.0837 | Z185: 0.65 | AA185: 0.025 | AC185: 0.375 | AD185: -0.1843 | AF185: 0.4444 | AG185: -0.2223 | AI185: 0.0833 | AJ185: -0.0353 | AL185: 0 | AM185: -0.1 | AO185: 0.2134 | AQ185: 0.0156 | AR185: -0.0032 | AT185: 1.35 | AU185: 1.32 | AW185: 0.4066 | AX185: 0.1495 | AZ185: 0.4314 | BA185: -0.0286 | BC185: 0 | BD185: 0 | BF185: 0.7099625 | BH185: 0.8044 | BI185: -0.6219 | BK185: 0.668 | BL185: 0.578 | BN185: 1 | BO185: -0.58 | BQ185: 0.4066 | BR185: 0.1495 | BT185: 0.1127 | BU185: -0.0931 | BW185: -0.0357 | BX185: -0.0357 | BZ185: 2.2549 | CA185: 2.2549 | CC185: 0.4688 | CD185: -0.1986 | CF185: 0.1670333333 | CH185: 0 | CI185: -0.0139 | CK185: 0.0022 | CL185: -0.0376 | CN185: 0 | CO185: -0.4762 | CQ185: 1 | CR185: 0 | CT185: 0 | CU185: -0.0222 | CW185: 0 | CX185: 0.7643 | CZ185: 0.30266 | DB185: 0.0346 | DC185: 0.0346 | DE185: 0.1093 | DF185: -0.0268 | DH185: 0.3694 | DI185: -0.3403 | DK185: 0 | DL185: 0 | DN185: 1 | DO185: 0.625 | DQ185: 0 | DS185: 0 | DT185: 0 | DV185: 0 | DW185: 0 | DY185: 0 | DZ185: 0 | EB185: 0 | EC185: 0 | EE185: 0 | EF185: -83.3333 | EH185: 0.51365 | EJ185: 0.9946 | EK185: 0.9946 | EM185: 1 | EN185: 1 | EP185: 0.06 | EQ185: 0.0573 | ES185: 0 | ET185: 0
C186: 2337 | D186: COOMULNORBOY | F186: 4 | G186: 4 | H186: 16 | I186: 5 | J186: 21 | L186: 0.8297333333 | N186: 0.5957 | O186: -0.5038 | Q186: 0.4766 | R186: 0.4766 | T186: 0.4766 | U186: 0.4766 | W186: 1 | X186: 0.3147 | Z186: 3.3333 | AA186: 3.0919 | AC186: 0.5763 | AD186: 0.5763 | AF186: 0.625 | AG186: 0.1144 | AI186: 0.0508 | AJ186: 0.0508 | AL186: 0.3333 | AM186: 0.2666 | AO186: 0.458025 | AQ186: 0.0417 | AR186: 0.0391 | AT186: 0.06 | AU186: 0.03 | AW186: 0.6188 | AX186: 0.033 | AZ186: 0.2716 | BA186: 0.2216 | BC186: 0.9 | BD186: 0.1 | BF186: 0.6975012994 | BH186: 1.6324 | BI186: 1.5467 | BK186: 0.3021 | BL186: 0.0301 | BN186: 1.1 | BO186: -0.38 | BQ186: 0.6188 | BR186: 0.033 | BT186: 0.205 | BU186: 0.115 | BW186: 0.1939103948 | BX186: 0.2253103948 | BZ186: 0.7168 | CA186: -0.7213 | CC186: 0.811 | CD186: 0.6293 | CF186: 0.1850833333 | CH186: 0.0196 | CI186: -0.9804 | CK186: 0.0538 | CL186: -0.07 | CN186: 0.1429 | CO186: -0.6466 | CQ186: 0 | CR186: -1 | CT186: 0.0181 | CU186: 0.0025 | CW186: 0.8761 | CX186: 0.9566 | CZ186: 0.21142 | DB186: 0 | DC186: 0 | DE186: 0.1417 | DF186: 0.0703 | DH186: 0.0404 | DI186: -0.4596 | DK186: 0 | DL186: 0 | DN186: 0.875 | DO186: 0.375 | DQ186: 0.3399 | DS186: 0.0014 | DT186: 0.0014 | DV186: 0 | DW186: 0 | DY186: 0 | DZ186: 0 | EB186: 0 | EC186: 0 | EE186: 1.6981 | EF186: -1198.3019 | EH186: 0.377725 | EJ186: 0 | EK186: 0 | EM186: 0.7071 | EN186: -0.2929 | EP186: 0.0005 | EQ186: -0.0789 | ES186: 0.8033 | ET186: 0.8033
C187: 2483 | D187: COOPINEM | F187: 5 | G187: 3 | H187: 14 | I187: 6 | J187: 22 | L187: 0.9173444444 | N187: 0.9419 | O187: 0.3183 | Q187: 1 | R187: 0.3241 | T187: 1 | U187: 0.3241 | W187: 2.5268 | X187: 1.5268 | Z187: 0.2963 | AA187: -0.2254 | AC187: 1 | AD187: 0.4792 | AF187: 0.4286 | AG187: 0.0686 | AI187: 1 | AJ187: 1 | AL187: 0.0625 | AM187: 0.0625 | AO187: 0.413375 | AQ187: -0.0571 | AR187: -0.0845 | AT187: 0.47 | AU187: -0.8 | AW187: 0.5977 | AX187: -0.0044 | AZ187: 0.1429 | BA187: -0.2077 | BC187: 0.97 | BD187: 0.02 | BF187: 0.62905 | BH187: 0 | BI187: 0 | BK187: 0.2707 | BL187: 0.1293 | BN187: 1.24 | BO187: -0.23 | BQ187: 0.5977 | BR187: -0.0044 | BT187: 0.0897 | BU187: -0.1425 | BW187: -0.4549 | BX187: -0.4154 | BZ187: 3.1035 | CA187: 2.8521 | CC187: 0.1857 | CD187: -0.9465 | CF187: 0.1060333333 | CH187: 0.0009 | CI187: -0.035 | CK187: 0.1035 | CL187: -0.8787 | CN187: 0.2222 | CO187: -0.9207 | CQ187: 0.3 | CR187: -0.7 | CT187: 0.0096 | CU187: -0.0263 | CW187: 0 | CX187: 0 | CZ187: 0.24612 | DB187: 0.0366 | DC187: 0.0018 | DE187: 0.1083 | DF187: -0.0808 | DH187: 0.2107 | DI187: -0.1493 | DK187: 0 | DL187: 0 | DN187: 0.875 | DO187: -0.125 | DQ187: 0.12 | DS187: 0 | DT187: -0.0359 | DV187: 0 | DW187: -0.0161 | DY187: 0 | DZ187: -0.0026 | EB187: 0 | EC187: -0.0172 | EE187: 0.6 | EF187: -29.0296 | EH187: 0.521625 | EJ187: 1 | EK187: 1 | EM187: 1 | EN187: -34.2573 | EP187: 0.0865 | EQ187: 0.0441 | ES187: 0 | ET187: 0
C188: 2520 | D188: COOPSANSIMON | F188: 5 | G188: 8 | H188: 18 | I188: 5 | J188: 19 | L188: 0.2410777778 | N188: 0.7228 | O188: -1.0798 | Q188: 0 | R188: 0 | T188: 0 | U188: 0 | W188: 0 | X188: -0.6512 | Z188: 0.5217 | AA188: 0.0017 | AC188: 0.5435 | AD188: 0.5435 | AF188: 0.36 | AG188: -0.0538 | AI188: 0.0217 | AJ188: 0.0217 | AL188: 0 | AM188: 0 | AO188: 0.48795 | AQ188: 0.059 | AR188: 0.1193 | AT188: 5.44 | AU188: 5.06 | AW188: 0.6128 | AX188: 0.0849 | AZ188: 0.32 | BA188: 0.0007 | BC188: 0.96 | BD188: 0.96 | BF188: 0.611475 | BH188: 0 | BI188: -1.1906 | BK188: 0.2 | BL188: -0.8396 | BN188: 0.82 | BO188: -0.17 | BQ188: 0.6128 | BR188: 0.0849 | BT188: 0.2149 | BU188: 0.0946 | BW188: 1.155 | BX188: 0.5036 | BZ188: 0.5774 | CA188: 0.4668 | CC188: 1.3117 | CD188: 1.372 | CF188: 0.5230833333 | CH188: 0.0364 | CI188: 0.0324 | CK188: 1 | CL188: 1 | CN188: 1.0667 | CO188: 1.0667 | CQ188: 1 | CR188: 1 | CT188: 0.0365 | CU188: 0.0186 | CW188: -0.0011 | CX188: 0.7327 | CZ188: 0.31524 | DB188: 0.0952 | DC188: 0.0952 | DE188: 0.1379 | DF188: -0.662 | DH188: 0.3431 | DI188: -0.4573 | DK188: 0 | DL188: 0 | DN188: 1 | DO188: 0 | DQ188: 5.3738 | DS188: 0.0366 | DT188: 0.0366 | DV188: 0 | DW188: 0 | DY188: 0 | DZ188: -0.2562 | EB188: 0.1657 | EC188: 0.1657 | EE188: 26.6667 | EF188: 26.6667 | EH188: 4.103075 | EJ188: 0.7961 | EK188: 0.7961 | EM188: 15.5898 | EN188: 15.5898 | EP188: 0.0264 | EQ188: -0.0382 | ES188: 0 | ET188: 0
C189: 2540 | D189: COOFINANCIAR | F189: 4 | G189: 4 | H189: 14 | I189: 8 | J189: 20 | L189: 0.8255555556 | N189: 1.7432 | O189: 1.3237 | Q189: 1 | R189: 0.4035 | T189: 1 | U189: 0.4035 | W189: 0.7078 | X189: -0.9687 | Z189: 0.5652 | AA189: -0.1491 | AC189: 1 | AD189: 0.3529 | AF189: 0.4138 | AG189: -0.1418 | AI189: 1 | AJ189: 1 | AL189: 0 | AM189: 0 | AO189: 0.462425 | AQ189: 0.0839 | AR189: -0.0142 | AT189: 11.85 | AU189: 10.18 | AW189: 0.5109 | AX189: 0.3739 | AZ189: 0.4549 | BA189: 0.1216 | BC189: 0.8 | BD189: 0.8 | BF189: 0.5272375 | BH189: 1.0836 | BI189: 0.5505 | BK189: 0.6755 | BL189: 0.4976 | BN189: 1.14 | BO189: -0.25 | BQ189: 0.5109 | BR189: 0.3739 | BT189: 0.127 | BU189: 0.0069 | BW189: 0.1409 | BX189: 0.1409 | BZ189: 0.1165 | CA189: 0.1049 | CC189: 0.4235 | CD189: -73.4746 | CF189: 0.2797166667 | CH189: 0.0036 | CI189: 0.0036 | CK189: 0.0209 | CL189: 0.0209 | CN189: 1 | CO189: 1 | CQ189: 1 | CR189: 1 | CT189: 0.0188 | CU189: 0.0019 | CW189: -0.365 | CX189: -0.365 | CZ189: 0.29602 | DB189: 0 | DC189: -0.0423 | DE189: 0.0873 | DF189: 0.0678 | DH189: 0.3895 | DI189: -0.4125 | DK189: 0.0033 | DL189: 0.0033 | DN189: 1 | DO189: 0.5 | DQ189: 0.06352 | DS189: 0 | DT189: 0 | DV189: 0 | DW189: 0 | DY189: 0.3176 | DZ189: 0.3176 | EB189: 0 | EC189: 0 | EE189: 0 | EF189: 0 | EH189: 0.01655 | EJ189: 0 | EK189: -1 | EM189: 0 | EN189: 0 | EP189: 0.0662 | EQ189: -0.0721 | ES189: 0 | ET189: 0
C190: 2560 | D190: COOMULTRAISS LTDA | F190: 6 | G190: 4 | H190: 8 | I190: 4 | J190: 30 | L190: 0.5895222222 | N190: 3.4025 | O190: 1.9784 | Q190: 0 | R190: -0.1267 | T190: 0 | U190: -0.1267 | W190: 0 | X190: -0.5433 | Z190: 0.7143 | AA190: -0.0357 | AC190: 0.6333 | AD190: -0.0864 | AF190: 0.5556 | AG190: 0.3056 | AI190: 0 | AJ190: -0.0382 | AL190: 0 | AM190: -0.25 | AO190: 0.22715 | AQ190: -0.0212 | AR190: -0.1887 | AT190: 0.11 | AU190: -25.11 | AW190: 0.5813 | AX190: 0.2482 | AZ190: 0.3485 | BA190: -0.0066 | BC190: 0 | BD190: 0 | BF190: 1.4748625 | BH190: 0.5259 | BI190: -1.4741 | BK190: 0.8627 | BL190: 0.078 | BN190: 1.23 | BO190: 0.37 | BQ190: 0.5813 | BR190: 0.2482 | BT190: 0.1157 | BU190: 0.0395 | BW190: 0 | BX190: -0.1239 | BZ190: 0 | CA190: -1.0778 | CC190: 8.4833 | CD190: 8.3913 | CF190: 0.002716666667 | CH190: 0 | CI190: -0.0302 | CK190: 0 | CL190: -0.0028 | CN190: 0 | CO190: 0 | CQ190: 0 | CR190: -1 | CT190: 0.0163 | CU190: -0.0758 | CW190: 0 | CX190: -0.3372 | CZ190: 0.1874 | DB190: 0.0001 | DC190: 0.0001 | DE190: 0.0225 | DF190: -0.0896 | DH190: 0.0394 | DI190: -0.3913 | DK190: 0 | DL190: 0 | DN190: 0.875 | DO190: -0.125 | DQ190: 0 | DS190: 0 | DT190: -0.0076 | DV190: 0 | DW190: 0 | DY190: 0 | DZ190: 0 | EB190: 0 | EC190: 0 | EE190: 0 | EF190: -0.6091 | EH190: 0 | EJ190: 0 | EK190: 0 | EM190: 0 | EN190: 0 | EP190: 0 | EQ190: -0.0014 | ES190: 0 | ET190: 0
C191: 2688 | D191: COOPSOCIAL | F191: 6 | G191: 3 | H191: 12 | I191: 3 | J191: 27 | L191: 0.3919888889 | N191: 1.3135 | O191: 0.3135 | Q191: 0 | R191: -0.3785 | T191: 0 | U191: -0.3785 | W191: 0 | X191: -1 | Z191: 0.9375 | AA191: -0.0625 | AC191: 0.7438 | AD191: 0.1638 | AF191: 0.25 | AG191: -0.25 | AI191: 0.0331 | AJ191: -0.2469 | AL191: 0.25 | AM191: 0.25 | AO191: 0.286675 | AQ191: 0.1201 | AR191: 0.0815 | AT191: 19.9919582 | AU191: 4.6619582 | AW191: 0.6591 | AX191: 0.2214 | AZ191: 0.3675 | BA191: -0.237 | BC191: 0 | BD191: 0 | BF191: 0.530175 | BH191: 0.4755 | BI191: 0.4306 | BK191: 0.7075 | BL191: -0.0128 | BN191: 0.99 | BO191: 0.06 | BQ191: 0.6591 | BR191: 0.2214 | BT191: 0.0781 | BU191: -0.1177 | BW191: -0.3019 | BX191: -6.2763 | BZ191: 1.5376 | CA191: 1.5127 | CC191: 0.0955 | CD191: -0.2827 | CF191: 0.2372666667 | CH191: 0.0101 | CI191: -0.9899 | CK191: 0.6647 | CL191: 0.6213 | CN191: 0.3333 | CO191: -0.4928 | CQ191: 1 | CR191: 0 | CT191: 0.0202 | CU191: 0.0202 | CW191: -0.6047 | CX191: -0.5648 | CZ191: 0.23072 | DB191: 0 | DC191: 0 | DE191: 0.0963 | DF191: 0.0341 | DH191: 0.0573 | DI191: -0.4693 | DK191: 0 | DL191: 0 | DN191: 1 | DO191: 0 | DQ191: 0.11642 | DS191: 0.0069 | DT191: 0.0055 | DV191: 0 | DW191: 0 | DY191: 0 | DZ191: -0.32 | EB191: 0 | EC191: -0.5559 | EE191: 0.5752 | EF191: -0.0248 | EH191: 2.5e-05 | EJ191: 0 | EK191: 0 | EM191: 0 | EN191: -1.0086 | EP191: 0.0001 | EQ191: -0.0888 | ES191: 0 | ET191: -0.6
C192: 3034 | D192: COOPIGON | F192: 1 | G192: 1 | H192: 14 | I192: 14 | J192: 14 | L192: 0.5403222222 | N192: 1 | O192: -0.1674 | Q192: 0.3785 | R192: 0.3785 | T192: 0.3785 | U192: 0.3785 | W192: 1 | X192: 0.3147 | Z192: 0.7059 | AA192: 0.2059 | AC192: 0.5957 | AD192: 0.5957 | AF192: 0.4444 | AG192: 0.0396 | AI192: 0.2766 | AJ192: 0.2766 | AL192: 0.0833 | AM192: 0.0208 | AO192: 0.484875 | AQ192: 0.0266 | AR192: 0.0257 | AT192: 15.89 | AU192: 6.91 | AW192: 0.4731 | AX192: 0.0533 | AZ192: 0.5898 | BA192: -0.0213 | BC192: 0.85 | BD192: 0.85 | BF192: 0.4013125 | BH192: 0.4826 | BI192: -0.3789 | BK192: 0.524 | BL192: 0.0956 | BN192: 0.83 | BO192: -0.36 | BQ192: 0.4731 | BR192: 0.0533 | BT192: 0.1832 | BU192: 0.0763 | BW192: 0.3421 | BX192: 0.3421 | BZ192: 0.0106 | CA192: -0.4256 | CC192: 0.3649 | CD192: 0.706 | CF192: 0.47335 | CH192: 1 | CI192: 1 | CK192: 0.0146 | CL192: 0.0146 | CN192: 0.6429 | CO192: 0.6429 | CQ192: 1 | CR192: 1 | CT192: 0 | CU192: -0.0508 | CW192: 0.1826 | CX192: 0.1826 | CZ192: 0.32162 | DB192: 0 | DC192: -0.0909 | DE192: 0.06 | DF192: 0.0116 | DH192: 0.5481 | DI192: 0.1226 | DK192: 0 | DL192: 0 | DN192: 1 | DO192: 0 | DQ192: 0.43554 | DS192: 0.0009 | DT192: 0.0009 | DV192: 0 | DW192: 0 | DY192: 0.5316 | DZ192: 0.0725 | EB192: 1 | EC192: 1 | EE192: 0.6452 | EF192: 0.0052 | EH192: 0.420225 | EJ192: 0 | EK192: -1 | EM192: 1 | EN192: 0 | EP192: 0.0809 | EQ192: 0.08 | ES192: 0.6 | ET192: 0.6
C193: 3070 | D193: COOMBEL LTDA. | F193: 8 | G193: 1 | H193: 10 | I193: 8 | J193: 24 | L193: 0.7741 | N193: 0.957 | O193: 0.2456 | Q193: 1 | R193: 0.7298 | T193: 1 | U193: 0.7298 | W193: 1 | X193: 0 | Z193: 0.5 | AA193: -0.5 | AC193: 1 | AD193: 0.2568 | AF193: 0.4474 | AG193: -0.1359 | AI193: 1 | AJ193: 0.8243 | AL193: 0.0625 | AM193: -0.2452 | AO193: 0.2716 | AQ193: 0.0111 | AR193: -0.0517 | AT193: 8.83 | AU193: 2.05 | AW193: 0.4856 | AX193: -0.0009 | AZ193: 0.5897 | BA193: -0.041 | BC193: 0 | BD193: -0.69 | BF193: 0.335025 | BH193: 0.2483 | BI193: -0.4794 | BK193: 0.4897 | BL193: 0.0549 | BN193: 0.97 | BO193: -0.16 | BQ193: 0.4856 | BR193: -0.0009 | BT193: 0.1091 | BU193: 0.0137 | BW193: 0 | BX193: -5.67 | BZ193: 0 | CA193: -0.0107 | CC193: 0.3775 | CD193: 0.274 | CF193: 0.0002 | CH193: 0 | CI193: -0.0074 | CK193: 0 | CL193: -0.0282 | CN193: 0 | CO193: -0.5385 | CQ193: 0 | CR193: -1 | CT193: 0.0012 | CU193: 0.0006 | CW193: 0 | CX193: 0.1249 | CZ193: 0.29186 | DB193: 0 | DC193: -0.0137 | DE193: 0.0398 | DF193: -0.0109 | DH193: 0.4195 | DI193: 0.096 | DK193: 0 | DL193: 0 | DN193: 1 | DO193: 0.125 | DQ193: 0.10666 | DS193: 0 | DT193: -0.0339 | DV193: 0 | DW193: 0 | DY193: 0 | DZ193: -0.3789 | EB193: 0 | EC193: -0.9402 | EE193: 0.5333 | EF193: -0.2167 | EH193: 0.2554 | EJ193: 0 | EK193: -1 | EM193: 1 | EN193: 0 | EP193: 0.0216 | EQ193: -0.0633 | ES193: 0 | ET193: -0.3102
C194: 3278 | D194: COINPROGUA | F194: 0 | G194: 3 | H194: 16 | I194: 7 | J194: 19 | L194: 0.5524555556 | N194: 0.6758 | O194: -1.4129 | Q194: 0.2702 | R194: 0.0567 | T194: 0.2702 | U194: 0.0567 | W194: 1 | X194: 0.2829 | Z194: 1 | AA194: 0.3846 | AC194: 0.8103 | AD194: 0.3436 | AF194: 0.5 | AG194: 0.1522 | AI194: 0.1379 | AJ194: 0.0046 | AL194: 0.3077 | AM194: 0.2452 | AO194: 0.44475 | AQ194: 0.04 | AR194: 0.0481 | AT194: 18.02 | AU194: 17.58 | AW194: 0.4548 | AX194: -0.0928 | AZ194: 0.5642 | BA194: 0.1661 | BC194: 0.72 | BD194: -0.26 | BF194: 0.34275 | BH194: 0.9209 | BI194: 0.6008 | BK194: 0.2826 | BL194: -0.2863 | BN194: 1.37 | BO194: 0.6 | BQ194: 0.4548 | BR194: -0.0928 | BT194: 0.097 | BU194: 0.0383 | BW194: -0.3354 | BX194: -0.7153 | BZ194: 0.0607 | CA194: -1.0027 | CC194: -0.1086 | CD194: -0.1519 | CF194: 0.3434166667 | CH194: 0.0075 | CI194: 0.0075 | CK194: 0.0885 | CL194: 0.0715 | CN194: 0.6923 | CO194: 0.3982 | CQ194: 1 | CR194: 0 | CT194: 0.0051 | CU194: -0.015 | CW194: 0.2671 | CX194: 1.2671 | CZ194: 0.27004 | DB194: 0.0138 | DC194: 0.0138 | DE194: 0.0537 | DF194: -0.0374 | DH194: 0.4077 | DI194: -0.0269 | DK194: 0 | DL194: 0 | DN194: 0.875 | DO194: -0.125 | DQ194: 0.7362 | DS194: 0.0007 | DT194: 0.0007 | DV194: 0 | DW194: 0 | DY194: 0.5265 | DZ194: 0.5265 | EB194: 0 | EC194: 0 | EE194: 3.1538 | EF194: 2.2 | EH194: 0.6073 | EJ194: 0.9956 | EK194: 0.9956 | EM194: 1 | EN194: 0 | EP194: 0.0715 | EQ194: 0.0657 | ES194: 0.3621 | ET194: 0.3621
C195: 3282 | D195: COOPTELECUC | F195: 6 | G195: 1 | H195: 8 | I195: 10 | J195: 24 | L195: 0.4268888889 | N195: 0.9964 | O195: 0.3139 | Q195: 0.2135 | R195: -0.0694 | T195: 0.2135 | U195: -0.0694 | W195: 0.7171 | X195: -0.2829 | Z195: 0.5714 | AA195: 0.0158 | AC195: 0.4865 | AD195: -0.2135 | AF195: 0.5 | AG195: 0.0385 | AI195: 0.0811 | AJ195: -0.0189 | AL195: 0.0625 | AM195: -0.0042 | AO195: 0.453175 | AQ195: -0.0841 | AR195: -0.1379 | AT195: 7.67 | AU195: -2.6 | AW195: 0.58 | AX195: 0.2204 | AZ195: 0.3768 | BA195: -0.185 | BC195: 0.94 | BD195: -0.02 | BF195: 0.2797875 | BH195: 0.2571 | BI195: -0.5862 | BK195: 0.4184 | BL195: 0.0403 | BN195: 0.8 | BO195: -0.43 | BQ195: 0.58 | BR195: 0.2204 | BT195: 0.0651 | BU195: -0.1449 | BW195: -0.3277 | BX195: -0.2389 | BZ195: 0.5957 | CA195: 0.5594 | CC195: -0.1503 | CD195: 0.0225 | CF195: 0.2496523217 | CH195: 0.0022 | CI195: -0.9978 | CK195: 0.0364 | CL195: 0.021 | CN195: 0.4242 | CO195: -0.1091 | CQ195: 1 | CR195: 0 | CT195: 0.0178 | CU195: 0.0121 | CW195: 0.01731393 | CX195: -241.8989861 | CZ195: 0.29542 | DB195: 0 | DC195: -0.0284 | DE195: 0.0619 | DF195: -0.0343 | DH195: 0.4152 | DI195: 0.0752 | DK195: 0 | DL195: 0 | DN195: 1 | DO195: 0 | DQ195: 0 | DS195: 0 | DT195: -0.0014 | DV195: 0 | DW195: -0.0016 | DY195: 0 | DZ195: -0.6728 | EB195: 0 | EC195: 0 | EE195: 0 | EF195: -0.335 | EH195: 0.251575 | EJ195: 0 | EK195: -1 | EM195: 1 | EN195: -0.1385 | EP195: 0.0063 | EQ195: -0.2139 | ES195: 0 | ET195: -0.3691
C196: 3316 | D196: COODIN | F196: 5 | G196: 4 | H196: 12 | I196: 5 | J196: 25 | L196: 0.2839777778 | N196: 0.9552 | O196: 0.0246 | Q196: 0 | R196: -0.4817 | T196: 0 | U196: -0.4817 | W196: 0 | X196: -1 | Z196: 0.5714 | AA196: -0.1128 | AC196: 0.6226 | AD196: -0.121 | AF196: 0.35 | AG196: -0.3833 | AI196: 0.0566 | AJ196: -0.2767 | AL196: 0 | AM196: -0.1538 | AO196: 0.499325 | AQ196: 0.0421 | AR196: -0.1035 | AT196: 10.26 | AU196: 4.08 | AW196: 0.3944 | AX196: -0.0526 | AZ196: 0.6008 | BA196: -0.142 | BC196: 0.96 | BD196: 0.96 | BF196: 0.5253375 | BH196: 1.0587 | BI196: 0.1 | BK196: 0.4241 | BL196: 0.2309 | BN196: 0.96 | BO196: -0.82 | BQ196: 0.3944 | BR196: -0.0526 | BT196: 0.1838 | BU196: 0.0474 | BW196: 0.6284 | BX196: 0.6284 | BZ196: 0.0032 | CA196: -0.438 | CC196: 0.5501 | CD196: -0.0562 | CF196: -0.16135 | CH196: 0 | CI196: -1.2513 | CK196: 0 | CL196: -0.3178 | CN196: 0 | CO196: -0.9375 | CQ196: 0 | CR196: -1 | CT196: 0.0319 | CU196: 0.0171 | CW196: -1 | CX196: -1.0649 | CZ196: 0.29942 | DB196: 0.0604 | DC196: 0.0603 | DE196: 0.0925 | DF196: -0.013 | DH196: 0.3442 | DI196: 0.0538 | DK196: 0 | DL196: 0 | DN196: 1 | DO196: 0 | DQ196: 0.06556 | DS196: 0.0041 | DT196: 0.0041 | DV196: 0 | DW196: 0 | DY196: 0 | DZ196: -0.6005 | EB196: 0 | EC196: 0 | EE196: 0.3237 | EF196: -1.4763 | EH196: 2.18135 | EJ196: 0.9969 | EK196: -0.0031 | EM196: 7.1915 | EN196: 6.3524 | EP196: 0.1749 | EQ196: 0.1045 | ES196: 0.3621 | ET196: 0.3621
C197: 3391 | D197: COOPARAMO LTDA | F197: 6 | G197: 3 | H197: 14 | I197: 8 | J197: 20 | L197: 0.6371666667 | N197: 0.9323 | O197: 0.1771 | Q197: 0.5574 | R197: 0.5574 | T197: 0.5574 | U197: 0.5574 | W197: 1 | X197: 0.2832 | Z197: 0.6957 | AA197: -0.3043 | AC197: 0.75 | AD197: 0.75 | AF197: 0.6667 | AG197: 0.4445 | AI197: 0.325 | AJ197: 0.325 | AL197: 0.25 | AM197: 0.25 | AO197: 0.31075 | AQ197: 0.1038 | AR197: 0.0427 | AT197: 14.41 | AU197: 12.65 | AW197: 0.5016 | AX197: -0.0416 | AZ197: 0.6376 | BA197: -0.0014 | BC197: 0 | BD197: 0 | BF197: 0.3775 | BH197: 0.5897 | BI197: 0.2522 | BK197: 0.0288 | BL197: -0.3877 | BN197: 1.8 | BO197: -0.29 | BQ197: 0.5016 | BR197: -0.0416 | BT197: 0.1185 | BU197: 0.053 | BW197: 0 | BX197: 0.0722 | BZ197: 0.3445 | CA197: 0.308 | CC197: -0.3631 | CD197: -7.8536 | CF197: 0.38805 | CH197: 0.0055 | CI197: 0.0055 | CK197: 0.4679 | CL197: 0.4679 | CN197: 0.8421 | CO197: 0.8421 | CQ197: 1 | CR197: 1 | CT197: 0.0128 | CU197: 0.0108 | CW197: 0 | CX197: 0 | CZ197: 0.50318 | DB197: 0 | DC197: -0.2883 | DE197: 0.5367 | DF197: 0.4187 | DH197: 0.9792 | DI197: 0.6179 | DK197: 0 | DL197: 0 | DN197: 1 | DO197: 0 | DQ197: 0.28616 | DS197: 0.0022 | DT197: 0.0022 | DV197: 0 | DW197: 0 | DY197: 0 | DZ197: -0.3213 | EB197: 0 | EC197: 0 | EE197: 1.4286 | EF197: 0.8286 | EH197: 0.23735 | EJ197: 0 | EK197: -1 | EM197: 0.8817 | EN197: -0.0973 | EP197: 0.0677 | EQ197: 0.0343 | ES197: 0 | ET197: 0
C198: 3446 | D198: COAGRANJA LTDA | F198: 4 | G198: 1 | H198: 16 | I198: 6 | J198: 20 | L198: 0.6858777778 | N198: 0.7593 | O198: -0.0679 | Q198: 1 | R198: 0.8543 | T198: 1 | U198: 0.8543 | W198: 0.7962 | X198: 0.1654 | Z198: 0.4 | AA198: -0.1 | AC198: 1 | AD198: 0.6364 | AF198: 0.2174 | AG198: 0.1633 | AI198: 1 | AJ198: 0.9091 | AL198: 0 | AM198: -0.0625 | AO198: 0.285675 | AQ198: 0.0432 | AR198: 0.0268 | AT198: 2.2 | AU198: -10.31 | AW198: 0.4855 | AX198: 0.1169 | AZ198: 0.614 | BA198: 0.1633 | BC198: 0 | BD198: 0 | BF198: 0.211976375 | BH198: 0.5361 | BI198: 0.2555 | BK198: 0.3859 | BL198: -0.1841 | BN198: 0.64 | BO198: -0.94 | BQ198: 0.4855 | BR198: 0.1169 | BT198: 0.0664 | BU198: -0.0823 | BW198: -0.8889 | BX198: -2.9664 | BZ198: 0.1519 | CA198: -0.904 | CC198: 0.318911 | CD198: 0.303511 | CF198: 0.0003166666667 | CH198: 0 | CI198: -0.0347 | CK198: 0 | CL198: -0.083 | CN198: 0 | CO198: -0.2759 | CQ198: 0 | CR198: -3.2143 | CT198: 0.0019 | CU198: -0.0038 | CW198: 0 | CX198: -0.2848 | CZ198: 0.55326 | DB198: 0.1669 | DC198: 0.1219 | DE198: 0.8 | DF198: 0.1801 | DH198: 0.7994 | DI198: 0.0115 | DK198: 0 | DL198: 0 | DN198: 1 | DO198: 0.25 | DQ198: 0.30628 | DS198: 0 | DT198: 0 | DV198: 0 | DW198: 0 | DY198: 0.9064 | DZ198: 0.9064 | EB198: 0 | EC198: 0 | EE198: 0.625 | EF198: -0.155 | EH198: 0.50385 | EJ198: 0.9924 | EK198: -0.0076 | EM198: 0.9801 | EN198: -0.0199 | EP198: 0.0429 | EQ198: -0.0614 | ES198: 0 | ET198: 0
C199: 7099 | D199: COOMPARTIR | F199: 2 | G199: 4 | H199: 13 | I199: 5 | J199: 24 | L199: 0.2896 | N199: 0.7072 | O199: -0.2938 | Q199: 0.1498 | R199: -0.1265 | T199: 0.1498 | U199: -0.1265 | W199: 0.6308 | X199: -0.0706 | Z199: 0.5714 | AA199: -0.0953 | AC199: 0.2222 | AD199: -0.1624 | AF199: 0.0571 | AG199: -0.4646 | AI199: 0.0556 | AJ199: 0.0171 | AL199: 0.0625 | AM199: -0.0375 | AO199: 0.379175 | AQ199: -0.0714 | AR199: 0.0846 | AT199: 4.53 | AU199: -10.44 | AW199: 0.3937 | AX199: -0.1418 | AZ199: 0.4444 | BA199: -0.0525 | BC199: 0.75 | BD199: -0.13 | BF199: 0.8684875 | BH199: 0.1312 | BI199: -0.6812 | BK199: 0.4913 | BL199: -0.3948 | BN199: 1.2 | BO199: -0.09 | BQ199: 0.3937 | BR199: -0.1418 | BT199: 0.1244 | BU199: 0.0887 | BW199: -0.6119 | BX199: -0.6119 | BZ199: 2.4733 | CA199: 1.4228 | CC199: 2.7459 | CD199: 2.3169 | CF199: 0.2762833333 | CH199: 0.0315 | CI199: -0.9685 | CK199: 0.1921 | CL199: 0.1416 | CN199: 0.3333 | CO199: 0.2222 | CQ199: 1 | CR199: 0.8333 | CT199: 0.0298 | CU199: 0.0217 | CW199: 0.071 | CX199: -0.1678 | CZ199: 0.27534 | DB199: 0.0428 | DC199: 0.0428 | DE199: 0.0787 | DF199: -0.0473 | DH199: 0.5052 | DI199: 0.1933 | DK199: 0 | DL199: 0 | DN199: 0.75 | DO199: -0.25 | DQ199: 0.14546 | DS199: 0 | DT199: 0 | DV199: 0 | DW199: 0 | DY199: 0 | DZ199: 0 | EB199: 0 | EC199: 0 | EE199: 0.7273 | EF199: -0.0346 | EH199: 0.53795 | EJ199: 0.9931 | EK199: 0.9931 | EM199: 1 | EN199: 1 | EP199: 0.1587 | EQ199: 0.1166 | ES199: 0 | ET199: 0
C200: 8202 | D200: COTRASENA | F200: 9 | G200: 1 | H200: 9 | I200: 6 | J200: 27 | L200: 0.4337666667 | N200: 1 | O200: 0.7887 | Q200: 0.2763 | R200: -0.1969 | T200: 0.2763 | U200: -0.1969 | W200: 0.7014 | X200: -0.1842 | Z200: 0.65 | AA200: -0.0318 | AC200: 0.4583 | AD200: 0.2731 | AF200: 0.4583 | AG200: -0.1417 | AI200: 0.0833 | AJ200: -0.1019 | AL200: 0 | AM200: -0.3333 | AO200: 0.433675 | AQ200: 0 | AR200: 0.0273 | AT200: 0 | AU200: -4.83 | AW200: 0.514 | AX200: 0.0478 | AZ200: 0.4207 | BA200: -0.149 | BC200: 0.8 | BD200: 0.5 | BF200: 0.246425 | BH200: 0 | BI200: -0.3371 | BK200: 0.1058 | BL200: -0.2747 | BN200: 1.08 | BO200: -0.06 | BQ200: 0.514 | BR200: 0.0478 | BT200: 0.0385 | BU200: 0.0218 | BW200: 0 | BX200: -1.7425 | BZ200: 0 | CA200: -0.0477 | CC200: 0.2331 | CD200: -0.7269 | CF200: 0.2841333333 | CH200: 0 | CI200: -1 | CK200: 0.0798 | CL200: 0.0483 | CN200: 0.625 | CO200: 0.244 | CQ200: 1 | CR200: 0 | CT200: 0 | CU200: -0.0023 | CW200: 0 | CX200: 0.0101 | CZ200: 0.29212 | DB200: 0 | DC200: -0.1432 | DE200: 0.1409 | DF200: 0.1294 | DH200: 0.3197 | DI200: -0.0797 | DK200: 0 | DL200: 0 | DN200: 1 | DO200: 0.375 | DQ200: 0.15806 | DS200: 0 | DT200: 0 | DV200: 0 | DW200: 0 | DY200: 0 | DZ200: -0.2573 | EB200: 0 | EC200: 0 | EE200: 0.7903 | EF200: -12.8065 | EH200: 0.00935 | EJ200: 0 | EK200: -0.9782 | EM200: 0 | EN200: -1 | EP200: 0.0374 | EQ200: -0.0504 | ES200: 0 | ET200: 0
C201: 11488 | D201: UNION COOPERATIVA | F201: 3 | G201: 3 | H201: 13 | I201: 7 | J201: 22 | L201: 0.4505 | N201: 0.2497 | O201: -0.1192 | Q201: 0.4732 | R201: 0.3984 | T201: 0.4732 | U201: 0.3984 | W201: 0.8856 | X201: -0.1144 | Z201: 0.7895 | AA201: 0.4978 | AC201: 0.2083 | AD201: -0.1917 | AF201: 0.1667 | AG201: -0.0392 | AI201: 0.2083 | AJ201: -1.0917 | AL201: 0.6 | AM201: 0.5091 | AO201: 0.266575 | AQ201: -0.0498 | AR201: -0.119 | AT201: 3.48 | AU201: -16.4 | AW201: 0.4893 | AX201: -0.0083 | AZ201: 0.6268 | BA201: 0.0356 | BC201: 0 | BD201: -0.53 | BF201: 0.2914749666 | BH201: 0.227199733 | BI201: 0.222099733 | BK201: 0.3226 | BL201: 0.1886 | BN201: 0.93 | BO201: -0.21 | BQ201: 0.4893 | BR201: -0.0083 | BT201: 0.0164 | BU201: -0.0749 | BW201: 0 | BX201: 0 | BZ201: 0.0371 | CA201: 0.0371 | CC201: 0.3092 | CD201: 3.4993 | CF201: 0.4001666667 | CH201: 0.0072 | CI201: 0.0072 | CK201: 0.0401 | CL201: 0.0401 | CN201: 1 | CO201: 1 | CQ201: 1 | CR201: 1 | CT201: 0.0023 | CU201: 0.0023 | CW201: 0.3514 | CX201: 0.3514 | CZ201: 0.218 | DB201: 0.0307 | DC201: 0.0234 | DE201: 0.0119 | DF201: -0.1185 | DH201: 0.4224 | DI201: 0.0623 | DK201: 0 | DL201: 0 | DN201: 0.625 | DO201: -0.375 | DQ201: 2.75618 | DS201: 0 | DT201: 0 | DV201: 0 | DW201: 0 | DY201: 0.1841 | DZ201: 0.0898 | EB201: 0 | EC201: 0 | EE201: 13.5968 | EF201: 12.9194 | EH201: 0.53215 | EJ201: 0.9996 | EK201: 0.9996 | EM201: 1 | EN201: 1 | EP201: 0.129 | EQ201: 0.1285 | ES201: 0 | ET201: 0
C202: 13022 | D202: AFROAMERICANA | F202: 6 | G202: 2 | H202: 8 | I202: 8 | J202: 26 | L202: 0.3969111111 | N202: 1 | O202: -0.1686 | Q202: 0.5982 | R202: 0.5982 | T202: 0.5982 | U202: 0.5982 | W202: 0.0376 | X202: -0.9624 | Z202: 0.5 | AA202: -0.3571 | AC202: 0.3429 | AD202: 0.3429 | AF202: 0.4286 | AG202: 0.1786 | AI202: 0 | AJ202: 0 | AL202: 0.0667 | AM202: -0.1 | AO202: 0.369275 | AQ202: 0.0652 | AR202: 0.0652 | AT202: 2.03 | AU202: -31.42 | AW202: 0.5262 | AX202: 0.2524 | AZ202: 0.8857 | BA202: 0.5524 | BC202: 0 | BD202: -0.99 | BF202: 0.529575 | BH202: 0.0152 | BI202: -0.5548 | BK202: 0.3048 | BL202: 0.0846 | BN202: 1 | BO202: 0.38 | BQ202: 0.5262 | BR202: 0.2524 | BT202: 0.0722 | BU202: -0.0675 | BW202: 0 | BX202: -1.4012 | BZ202: 0 | CA202: -0.2545 | CC202: 2.3182 | CD202: 1.9183 | CF202: 0 | CH202: 0 | CI202: 0 | CK202: 0 | CL202: 0 | CN202: 0 | CO202: 0 | CQ202: 0 | CR202: 0 | CT202: 0 | CU202: -0.0082 | CW202: 0 | CX202: 0 | CZ202: 0.43212 | DB202: 0.0017 | DC202: 0.0017 | DE202: 0.836 | DF202: 0.7485 | DH202: 0.3229 | DI202: -0.1302 | DK202: 0 | DL202: 0 | DN202: 1 | DO202: 0 | DQ202: 0.00794 | DS202: 0 | DT202: 0 | DV202: 0 | DW202: 0 | DY202: 0.0397 | DZ202: -0.0135 | EB202: 0 | EC202: 0 | EE202: 0 | EF202: -1 | EH202: 0.2501 | EJ202: 0 | EK202: 0 | EM202: 0.9999 | EN202: 0.9999 | EP202: 0.0005 | EQ202: -0.0126 | ES202: 0 | ET202: 0

Sheet Gráficos (hidden)
C2: Participación de la educación, formación e información. | D2: Cobertura en procesos de educación, formación e información para asociados | E2: Participación en procesos de educación, formación e información para directivos | F2: Participación en procesos de educación, formación e información para empleados. | G2: Difusión cooperativa y solidaria | H2: Crecimiento de inversión en educación, formación e información.
B3: 2021 | C3: 0.2035302857 | D3: 0.1562651429 | E3: 1.056474286 | F3: 0.6804874286 | G3: 0.01782685714 | H3: 0.2555509367
B4: 2020 | C4: 0.3535598561 | D4: 0.1835992642 | E4: 0.9564898558 | F4: 0.2741797961 | G4: 0.009610725544 | H4: -0.003388233567
G30: Participación de la educación, formación e información. | H30: Promedio Segmento | K30: Participación en procesos de educación, formación e información para directivos | L30: Promedio Segmento | O30: Difusión cooperativa y solidaria | P30: Promedio Segmento
F31: Top 4 | G31: 0.0048 | H31: 0.5431833333 | J31: Top 4 | K31: 1.88125 | L31: 0.5431833333 | N31: Top 4 | O31: 0.007825 | P31: 0.5431833333
F32: Megas | G32: 0.6261125 | H32: 0.4551125 | J32: Megas | K32: 1.37075 | L32: 0.4551125 | N32: Megas | O32: 0.006975 | P32: 0.4551125
F33: Grandes | G33: 0.2138052632 | H33: 0.2828561404 | J33: Grandes | K33: 0.7761842105 | L33: 0.2828561404 | N33: Grandes | O33: 0.0138 | P33: 0.2828561404
F34: Medianas | G34: 0.3251 | H34: 0.4902353333 | J34: Medianas | K34: 1.876536 | L34: 0.4902353333 | N34: Medianas | O34: 0.012568 | P34: 0.4902353333
F35: Pequeñas | G35: 0.19455 | H35: 0.4564704545 | J35: Pequeñas | K35: 1.456595455 | L35: 0.4564704545 | N35: Pequeñas | O35: 0.008904545455 | P35: 0.4564704545
F36: Micro 1 | G36: 0.1960462963 | H36: 0.3767243827 | J36: Micro 1 | K36: 0.7256537037 | L36: 0.3767243827 | N36: Micro 1 | O36: 0.01315925926 | P36: 0.3767243827
F37: Micro 2 | G37: 0.08216976744 | H37: 0.3558066431 | J37: Micro 2 | K37: 0.7790860465 | L37: 0.3558066431 | N37: Micro 2 | O37: 0.03603953488 | P37: 0.3558066431
G39: Cobertura en procesos de educación, formación e información para asociados | H39: Promedio Segmento | K39: Participación en procesos de educación, formación e información para empleados. | L39: Promedio Segmento | O39: Crecimiento de inversión en educación, formación e información. | P39: Promedio Segmento
F40: Top 4 | G40: 0.02195 | H40: 0.5431833333 | J40: Top 4 | K40: 1 | L40: 0.5431833333 | N40: Top 4 | O40: 0.343275 | P40: 0.5431833333
F41: Megas | G41: 0.0819375 | H41: 0.4551125 | J41: Megas | K41: 0.5651125 | L41: 0.4551125 | N41: Megas | O41: 0.0797875 | P41: 0.4551125
F42: Grandes | G42: 0.1435421053 | H42: 0.2828561404 | J42: Grandes | K42: 0.4394105263 | L42: 0.2828561404 | N42: Grandes | O42: 0.1103947368 | P42: 0.2828561404
F43: Medianas | G43: 0.216808 | H43: 0.4902353333 | J43: Medianas | K43: 0.70134 | L43: 0.4902353333 | N43: Medianas | O43: -0.19094 | P43: 0.4902353333
F44: Pequeñas | G44: 0.06495 | H44: 0.4564704545 | J44: Pequeñas | K44: 0.7269045455 | L44: 0.4564704545 | N44: Pequeñas | O44: 0.2869181818 | P44: 0.4564704545
F45: Micro 1 | G45: 0.1832574074 | H45: 0.3767243827 | J45: Micro 1 | K45: 0.7555407407 | L45: 0.3767243827 | N45: Micro 1 | O45: 0.3866888889 | P45: 0.3767243827
F46: Micro 2 | G46: 0.1658325581 | H46: 0.3558066431 | J46: Micro 2 | K46: 0.648627907 | L46: 0.3558066431 | N46: Micro 2 | O46: 0.4230840449 | P46: 0.3558066431

Sheet INDICADORES
B9: 1. PRINCIPIO DE ADMINISTRACIÓN DEMOCRÁTICA, PARTICIPATIVA, AUTOGESTIONARIA Y EMPRENDEDORA
B11: NOMBRE INDICADOR | C11: DEFINICIÓN DEL INDICADOR | D11: FÓRMULA | E11: PROPÓSITO
B12: Asociados activos | C12: Identificar el porcentaje de asociados que hacen uso de los productos y servicios de la organización. Asociado activo: es aquel que siendo hábil posee uno o más productos, excluyendo los de aportes y ahorro permanente, por ser obligatorios y, además, hayan realizado una transacción u operación en los últimos 6 meses. (No tomar en cuenta participaciones en actividades de bienestar social). | D12: # asociados activos / asociados hábiles * 100 | E12: La participación libre y voluntaria de los asociados de una organización solidaria debe impactar en los niveles de actividad a través de uso de los productos y servicios a los que tiene acceso.
B13: Participación democrática asociados | C13: Mide el nivel de participación y el compromiso de los asociados en asambleas. | D13: # asociados asistentes a la asamblea / total asociados hábiles * 100 | E13: Identificar el nivel de participación efectiva de los asociados en asambleas frente al total de asociados habilitados para hacerlo. Un bajo nivel de habilitación refleja las limitaciones que tiene la organización solidaria para constituirse en un espacio de participación activa y democrática.
B14: Participación democrática delegados | C14: Mide el nivel de participación de los asociados en la última elección. (votaciones para designar delegados). | D14: # de asociados que votaron para la elección de delegados / total hábiles para votación * 100 | E14: Identificar el potencial de participación de asociados habilitados para elegir delegados. Un bajo nivel de participación refleja las limitaciones que tiene la organización solidaria para constituirse en un espacio de participación activa y democrática.
B15: Diversidad democrática | C15: Identifica la diversidad por antigüedad en las elecciones democráticas. Antigüedad promedio de los asociados: es el promedio del número de asociados ponderado por su antigüedad en la organización. (aplica para cualquier tipo de asamblea: de asociados o de delegados). | D15: # votantes con antigüedad inferior al promedio de los asociados de la organización / total votantes potenciales * 100 | E15: Identificar la diversidad por antigüedad en las elecciones democráticas que garantice el cumplimiento de la equidad y la inclusión, valores fundamentales para los procesos democráticos.
B16: Diversidad de participantes en órganos de dirección, administración y control | C16: Identifica la diversidad por antigüedad en los cargos de dirección, administración y control. Antigüedad promedio de los asociados: es el promedio del número de asociados ponderado por su antigüedad en la organización. | D16: # integrantes de órganos de dirección, administración y control con antigüedad inferior al promedio de los asociados de la organización / total integrantes en órganos de dirección, administración y control * 100 | E16: Identificar la diversidad por antigüedad en los cargos de dirección, administración y control que garantice el cumplimiento de la equidad y la inclusión, valores fundamentales para los procesos democráticos.
B17: Equidad de género en asamblea | C17: Identifica el nivel de inclusión de género en los procesos de participación democrática de la organización solidaria, en asamblea. (aplica para cualquier tipo de asamblea: de asociados o de delegados). | D17: # integrantes mujeres en asamblea / total integrantes asamblea* 100 | E17: Identificar el nivel de inclusión de género en los procesos de participación de la organización solidaria. Puede estar abierta a la inclusión de género, pero la efectividad de sus estrategias de inclusión sólo puede evaluarse a través de la activa participación de mujeres en procesos de la toma de decisiones.
B18: Equidad de género en órganos de dirección, administración y control | C18: Identifica el nivel de inclusión de género en los procesos de participación de la organización solidaria, en los órganos de dirección, administración y control | D18: # integrantes femeninos en órganos de dirección, administración y control / total de integrantes en órganos de dirección, administración y control * 100 | E18: Dimensionar la participación de las mujeres en los cargos de dirección, administración y control, así como la efectividad de la organización solidaria para que las mismas cumplan con efectividad sus funciones.
B19: Población joven en asamblea | C19: Identifica el nivel de inclusión de población joven en los procesos de participación de la organización solidaria, en asamblea. (aplica para cualquier tipo de asamblea: de asociados o de delegados). | D19: # integrantes en asamblea con edad <= 35 años / total integrantes en asamblea | E19: Identificar la diversidad por edad en los procesos de participación democrática que garantice el cumplimiento de la equidad y la inclusión, valores fundamentales para el buen funcionamiento de la organización.
B20: Población joven en órganos de dirección, administración y control | C20: Identifica el nivel de inclusión de población joven en los procesos de participación de la organización solidaria, en los órganos de dirección, administración y control | D20: # integrantes en órganos de dirección, administración y control con edad <= 35 años / total integrantes en órganos de dirección, administración y control * 100 | E20: Identificar la diversidad por edad en los cargos de dirección, administración y control que garantice el cumplimiento de la equidad y la inclusión, valores fundamentales para el buen funcionamiento de la organización.
B23: 2. PRINCIPIO DE ADHESIÓN VOLUNTARIA, RESPONSABLE Y ABIERTA
B25: NOMBRE INDICADOR | C25: DEFINICIÓN DEL INDICADOR | D25: FÓRMULA | E25: PROPÓSITO
B26: Crecimiento neto de asociados hábiles | C26: Mide la efectividad de la institución en cuanto al crecimiento de su base social. Asociado hábil: es quien cumple los estatutos y está al día en sus aportes sociales. | D26: (# asociados hábiles vinculados en el período - # asociados hábiles retirados en el período) / asociados hábiles totales al inicio del período evaluado * 100 | E26: Identificar el índice de asociados hábiles de la organización. El cumplimiento del pago de aportes sociales es una evidencia del compromiso con la organización; una manera de expresar su participación, apoyando la misión de la organización solidaria y su adhesión a los logros de los objetivos.
B27: Actividad transaccional | C27: Evidencia el nivel de operaciones para favorecer el conocimiento, la habilidad y el trámite en los diferentes canales de acceso, información y gestión de la organización en sus asociados. | D27: # total transacciones / total asociados | E27: La participación voluntaria y responsable de los asociados puede verse a través del volumen de transacciones al año frente al total de asociados, esto soporta el crecimiento y la sostenibilidad a largo plazo de la organización.
B28: Equidad de género en número de operaciones | C28: Permite identificar la relación entre hombres y mujeres en los desembolsos de operaciones de crédito. | D28: # operaciones de desembolso de crédito destinadas a mujeres / total de operaciones de desembolso de crédito * 100 | E28: Identificar la diversidad edad en el crecimiento de la base social que garantice el cumplimiento de la equidad y la inclusión, valores fundamentales para el buen funcionamiento de la organización.
B29: Relevo generacional | C29: Identifica la diversidad por edad en el crecimiento de la base social. | D29: # asociados vinculados en el período con edad <= 35 años / total asociados vinculados en el período * 100 | E29: Identificar la diversidad edad en el crecimiento de la base social que garantice el cumplimiento de la equidad y la inclusión, valores fundamentales para el buen funcionamiento de la organización.
B30: Nivel de satisfacción de asociados | C30: Mide el nivel de satisfacción de los asociados con el modelo cooperativo, los productos, servicios y beneficios, que estimula la permanencia y lealtad con la organización. Es el resultado cuantitativo de la medición realizada a través de métodos especializados. | D30: porcentaje de satisfacción de asociados | E30: Evidenciar el compromiso de la organización solidaria por mantener una relación a largo plazo con sus asociados midiendo la calidad de los servicios prestados a través de mecanismos de evaluación formales.
B33: 3. PARTICIPACIÓN ECONÓMICA DE LOS ASOCIADOS, EN JUSTICIA Y EQUIDAD
B35: NOMBRE INDICADOR | C35: DEFINICIÓN DEL INDICADOR | D35: FÓRMULA | E35: PROPÓSITO
B36: Cultura de ahorro | C36: Identifica la incidencia de la organización en la práctica del ahorro de sus asociados, como valor cooperativo y familiar. Ahorro voluntario: Incluye el ahorro a la vista y los CDAT, no tiene en cuenta el ahorro permanente dado que es obligatorio estatutariamente. Ahorro a la vista: actividad mínima de 6 meses CDAT: se considera producto activo | D36: # asociados con al menos un producto de ahorro voluntario activo / total asociados * 100 | E36: Evidenciar la gestión de la organización solidaria para incentivar el ahorro voluntario en sus asociados, a través de la promoción de una cultura de ahorro y la gestión financiera para el desarrollo económico de sus asociados.
B37: Inclusión financiera | C37: Mide la oportunidad de acceder al crédito en condiciones razonables, con formalidad. Se busca evaluar el nivel de operaciones. | D37: # operaciones con desembolso de crédito inferior a 3 SMMLV / total operaciones desembolso de crédito en el período * 100 | E37: Las organizaciones solidarias son agentes genuinos de inclusión financiera y otorgan crédito a la población que por lo general no califica como clientes del sector financiero tradicional. Se busca evaluar el nivel de operaciones de crédito concedidas con montos moderados cuyas necesidades son atendidas por la organización.
B38: Equidad de género en volumen de negocio | C38: Permite identificar la relación entre hombres y mujeres en los negocios de la organización. Volumen de negocio: es el valor de los montos de créditos desembolsados durante el año + montos de depósitos captados durante monto de aportes sociales recibidos durante el año. (de acuerdo con la actividad de la organización). Volumen de negocio promedio: montos de créditos desembolsados durante el año + montos de depósitos captados durante el año + monto de aportes sociales recibidos durante el año / número de asociados que forman parte del promedio. | D38: volumen de negocio promedio hombres / volumen de negocio promedio mujeres | E38: Promover la igualdad de género es fundamental para acelerar el desarrollo sostenible. Garantizar el acceso a los servicios ofrecidos por la organización solidaria de forma igualitaria permite generar procesos de participación basados en la no discriminación.
B39: Equidad de género en número de operaciones | C39: Permite identificar la relación entre hombres y mujeres en los desembolsos de operaciones de crédito. | D39: # operaciones de desembolso de crédito destinadas a mujeres / total de operaciones de desembolso de crédito * 100 | E39: La inclusión financiera de mujeres es un foco importante de la gestión en las organizaciones solidarias. Se busca identificar el nivel de orientación de la cartera colocada entre mujeres.
B40: Capital institucional | C40: Mide la participación que tiene el capital institucional dentro de los activos. Entendiendo por capital institucional como la principal fortaleza con la que cuenta la organización, ya que no pertenece a un asociado en particular, sino a todos. | D40: aportes amortizados + reserva protección de aportes + fondo para amortización de aportes + donaciones y auxilios / total activos * 100 | E40: Evidenciar las políticas con que cuenta la organización solidaria para fortalezcan su capital institucional, lo que permite una mejor estructura financiera y mayores recursos propios de apalancamiento para el desarrollo del objeto social.
B41: Crecimiento en fondos sociales por asociado beneficiado | C41: Mide el crecimiento de la ejecución en fondos sociales por asociado beneficiado. La escala toma como referencia el valor del IPC (Menor de IPC + 2 puntos = 1; Entre IPC + 2 e IPC + 5 = 2; Mayor de IPC + 5 puntos = 3). | D41: [(ejecución de fondos sociales del período analizado / # asociados beneficiados durante el período analizado) - (ejecución de fondos sociales del período anterior / # asociados beneficiados durante el período anterior) ] / (ejecución de fondos sociales del período anterior / # asociados beneficiados durante el período anterior) * 100 | E41: Identificar que la organización solidaria cumpla con el desarrollo de su objeto social mediante la ejecución responsable de los fondos sociales a través de actividades en beneficio de sus asociados, supliendo necesidades comunes.
B42: Cobertura de programas y beneficios sociales | C42: Evidencia el compromiso y cumplimiento de la organización solidaria al contribuir con el mejoramiento de la calidad de vida de sus asociados, a través de beneficios, programas y actividades sociales que permitan satisfacer necesidades de bienestar. | D42: # asociados beneficiados de programas y actividades sociales /Total de asociados * 100 | E42: Evaluar en qué medida los asociados aprovechan los beneficios, programas y actividades sociales efectuados por cuenta propia, convenios y alianzas con instituciones y/o empresas, en aquellos servicios distintos a los no financieros.
B43: Rentabilidad social | C43: Cuantifica los beneficios otorgados a los asociados en relación con los aportes sociales. Total de beneficios recibidos por los asociados: sumatoria de (diferencial tasa activa * saldo cartera de créditos) + (diferencial tasa pasiva * saldo depósitos) + costos y gastos incurridos en el período en favor de los asociados + excedente del ejercicio). Diferencial de tasas: es la diferencia entre la tasa promedio propia de la organización frente a la tasa promedio propia del mercado. | D43: total beneficios / total aportes sociales * 100 | E43: Identificar la rentabilidad obtenida a partir del aporte social, tomando en cuenta los beneficios financieros y sociales que contribuyen al mejoramiento de la calidad de vida de los asociados y sus familias.
B46: 4. FORMACIÓN E INFORMACIÓN PARA SUS MIEMBROS, DE MANERA PERMANENTE, OPORTUNA Y PROGRESIVA
B48: NOMBRE INDICADOR | C48: DEFINICIÓN DEL INDICADOR | D48: FÓRMULA | E48: PROPÓSITO
B49: Participación de la educación, formación e información. | C49: Determina la eficiencia del gasto institucional asignado a los grupos de interés, en temas de educación, formación e información. | D49: gastos en educación, formación e información / total gastos * 100 | E49: Las organizaciones solidarias deben brindar educación y entrenamiento a sus asociados, directivos y empleados. Se busca identificar el nivel de compromiso con este principio, a través de la implementación de iniciativas de educación, formación e información.
B50: Cobertura en procesos de educación, formación e información para asociados | C50: La educación, formación e información a los asociados constituye un aspecto central de las responsabilidades organizacionales y sobre todo un enfoque importante de los criterios de excelencia. | D50: # asociados que participaron en por lo menos una de las actividades de educación, formación e información/ total asociados * 100 | E50: Evidenciar la gestión y compromiso de la organización para lograr participación activa de los asociados en los procesos de educación, formación e información, contribuyendo de esta forma, con el desarrollo integral de las personas.
B51: Participación en procesos de educación, formación e información para directivos | C51: La educación y formación debe estar dirigida a mejorar el desempeño de los miembros en cargos directivos. Directivos: incluye a los asociados que hacen parte del consejo de administración, junta de vigilancia, comités de apoyo. | D51: Sumatoria directivos participantes / total directivos convocados* 100 | E51: La iniciativa de capacitación también responde a principios y estándares internacionales de gestión y ética organizacional. Busca dar información sobre la efectividad de la cooperativa en la implementación de iniciativas de capacitación y el nivel de ejecución de la política de mejoramiento de miembros de los cargos directivos.
B52: Participación en procesos de educación, formación e información para empleados. | C52: La educación y formación debe estar dirigida a mejorar el desempeño de los empleados, con la finalidad de alcanzar mejores destrezas en sus funciones asignadas. | D52: Sumatoria empleados participantes / total empleados convocados * 100 | E52: Los procesos de educación, formación e información constituyen uno de los pilares de fortalezas del capital humano. Permite ofrecer servicios de mayor calidad y oportunidades de hacer crecer y consolidar la gestión de la organización.
B53: Difusión cooperativa y solidaria | C53: Identifica el nivel de compromiso de la organización al realizar la difusión del modelo económico solidario, a través de los diferentes canales con los que cuenta la institución (Talleres, charlas, boletines, información en página web, etc.). Las actividades iniciadas con el propósito de promover productos y servicios específicos de la entidad no deberían incluirse en este indicador. | D53: total gastos en difusión cooperativa y solidaria / total gastos * 100 | E53: La responsabilidad de la organización debe estar enfocada en hacer conocer la naturaleza y los beneficios del modelo económico solidario, valores, principios, así como sus realizaciones prácticas en el país y en el mundo.
